Workbook

Sheet C1
A2: CUADRO 1 COSTA RICA: TOTAL Y VARIACIÓN DEL PADRÓN NACIONAL ELECTORAL
A3: SEGÚN PROVINCIA Y SEXO, ELECCIONES MUNICIPALES
A4: FEBRERO 2016 A FEBRERO 2020
A6: PROVINCIA Y SEXO | B6: PADRÓN NACIONAL ELECTORAL | D6: VARIACIÓN
B8: FEBRERO 2016 | C8: FEBRERO 2020 | D8: ABSOLUTO | E8: %
A10: COSTA RICA | B10: =+B11+B12 -> 3178364 | C10: =+C11+C12 -> 3398338 | D10: =+C10-B10 -> 219974 | E10: =+D10/B10*100 -> 6.920981989
A11: HOMBRES | B11: =+B15+B19+B23+B27+B31+B35+B39 -> 1584178 | C11: =+C15+C19+C23+C27+C31+C35+C39 -> 1690575 | D11: =+C11-B11 -> 106397 | E11: =+D11/B11*100 -> 6.716227596
A12: MUJERES | B12: =+B16+B20+B24+B28+B32+B36+B40 -> 1594186 | C12: =+C16+C20+C24+C28+C32+C36+C40 -> 1707763 | D12: =+C12-B12 -> 113577 | E12: =+D12/B12*100 -> 7.124450974
A14: SAN JOSÉ | B14: =+B15+B16 -> 1088828 | C14: =+C15+C16 -> 1139884 | D14: =+C14-B14 -> 51056 | E14: =+D14/B14*100 -> 4.689078532
A15: HOMBRES | B15: 530482 | C15: 554947 | D15: =+C15-B15 -> 24465 | E15: =+D15/B15*100 -> 4.611843569
A16: MUJERES | B16: 558346 | C16: 584937 | D16: =+C16-B16 -> 26591 | E16: =+D16/B16*100 -> 4.76245912
A18: ALAJUELA | B18: =+B19+B20 -> 604089 | C18: =+C19+C20 -> 657175 | D18: =+C18-B18 -> 53086 | E18: =+D18/B18*100 -> 8.78777796
A19: HOMBRES | B19: 304791 | C19: 331017 | D19: =+C19-B19 -> 26226 | E19: =+D19/B19*100 -> 8.604584781
A20: MUJERES | B20: 299298 | C20: 326158 | D20: =+C20-B20 -> 26860 | E20: =+D20/B20*100 -> 8.974333273
A22: CARTAGO | B22: =+B23+B24 -> 374190 | C22: =+C23+C24 -> 399475 | D22: =+C22-B22 -> 25285 | E22: =+D22/B22*100 -> 6.757262353
A23: HOMBRES | B23: 186298 | C23: 198274 | D23: =+C23-B23 -> 11976 | E23: =+D23/B23*100 -> 6.428410396
A24: MUJERES | B24: 187892 | C24: 201201 | D24: =+C24-B24 -> 13309 | E24: =+D24/B24*100 -> 7.083324463
A26: HEREDIA | B26: =+B27+B28 -> 319674 | C26: =+C27+C28 -> 344746 | D26: =+C26-B26 -> 25072 | E26: =+D26/B26*100 -> 7.842990046
A27: HOMBRES | B27: 157161 | C27: 169424 | D27: =+C27-B27 -> 12263 | E27: =+D27/B27*100 -> 7.802826401
A28: MUJERES | B28: 162513 | C28: 175322 | D28: =+C28-B28 -> 12809 | E28: =+D28/B28*100 -> 7.881830992
A30: GUANACASTE | B30: =+B31+B32 -> 231102 | C30: =+C31+C32 -> 250585 | D30: =+C30-B30 -> 19483 | E30: =+D30/B30*100 -> 8.430476586
A31: HOMBRES | B31: 116777 | C31: 126246 | D31: =+C31-B31 -> 9469 | E31: =+D31/B31*100 -> 8.108617279
A32: MUJERES | B32: 114325 | C32: 124339 | D32: =+C32-B32 -> 10014 | E32: =+D32/B32*100 -> 8.759239012
A34: PUNTARENAS | B34: =+B35+B36 -> 299227 | C34: =+C35+C36 -> 322594 | D34: =+C34-B34 -> 23367 | E34: =+D34/B34*100 -> 7.809121503
A35: HOMBRES | B35: 153648 | C35: 164936 | D35: =+C35-B35 -> 11288 | E35: =+D35/B35*100 -> 7.346662501
A36: MUJERES | B36: 145579 | C36: 157658 | D36: =+C36-B36 -> 12079 | E36: =+D36/B36*100 -> 8.297213197
A38: LIMÓN | B38: =+B39+B40 -> 261254 | C38: =+C39+C40 -> 283879 | D38: =+C38-B38 -> 22625 | E38: =+D38/B38*100 -> 8.660154486
A39: HOMBRES | B39: 135021 | C39: 145731 | D39: =+C39-B39 -> 10710 | E39: =+D39/B39*100 -> 7.932099451
A40: MUJERES | B40: 126233 | C40: 138148 | D40: =+C40-B40 -> 11915 | E40: =+D40/B40*100 -> 9.438894742
A43: Fuente: Padrón Electoral, Tribunal Supremo de Elecciones.

Sheet G1
A1: MENU
J5: MENU
A29: =+'C1'!A43 -> Fuente: Padrón Electoral, Tribunal Supremo de Elecciones.
B31: 2010 | C31: 2016
A33: GUANACASTE | B33: =+'C1'!B30 -> 231102 | C33: =+'C1'!C30 -> 250585
A34: LIMÓN | B34: =+'C1'!B38 -> 261254 | C34: =+'C1'!C38 -> 283879
A35: PUNTARENAS | B35: =+'C1'!B34 -> 299227 | C35: =+'C1'!C34 -> 322594
A36: HEREDIA | B36: =+'C1'!B26 -> 319674 | C36: =+'C1'!C26 -> 344746
A37: CARTAGO | B37: =+'C1'!B22 -> 374190 | C37: =+'C1'!C22 -> 399475
A38: ALAJUELA | B38: =+'C1'!B18 -> 604089 | C38: =+'C1'!C18 -> 657175
A39: SAN JOSÉ | B39: =+'C1'!B14 -> 1088828 | C39: =+'C1'!C14 -> 1139884
B42: =SUM(B33:B39) -> 3178364 | C42: =SUM(C33:C39) -> 3398338

Sheet C2
A1: CUADRO 2 COSTA RICA: PADRÓN NACIONAL ELECTORAL POR SEXO
A2: SEGÚN PROVINCIA Y CANTÓN, ELECCIONES MUNICIPALES
A3: FEBRERO 2016 Y FEBRERO 2020
A5: PROVINCIA Y CANTÓN | B5: PADRÓN NACIONAL ELECTORAL
B6: FEBRERO 2016 | E6: FEBRERO 2020
B7: TOTAL | C7: HOMBRES | D7: MUJERES | E7: TOTAL | F7: HOMBRES | G7: MUJERES
A9: COSTA RICA | B9: =+B17+B38+B55+B64+B75+B87+B99 -> 3178364 | C9: 1584178 | D9: 1594186 | E9: 3398338 | F9: 1690575 | G9: 1707763
A10: SAN JOSÉ | B10: =+B17 -> 1088828 | C10: 530482 | D10: 558346 | E10: 1139884 | F10: 554947 | G10: 584937
A11: ALAJUELA | B11: =+B38 -> 604089 | C11: 304791 | D11: 299298 | E11: 657175 | F11: 331017 | G11: 326158
A12: CARTAGO | B12: =+B55 -> 374190 | C12: 186298 | D12: 187892 | E12: 399475 | F12: 198274 | G12: 201201
A13: HEREDIA | B13: =+B64 -> 319674 | C13: 157161 | D13: 162513 | E13: 344746 | F13: 169424 | G13: 175322
A14: GUANACASTE | B14: =+B75 -> 231102 | C14: 116777 | D14: 114325 | E14: 250585 | F14: 126246 | G14: 124339
A15: PUNTARENAS | B15: =+B87 -> 299227 | C15: 153648 | D15: 145579 | E15: 322594 | F15: 164936 | G15: 157658
A16: LIMÓN | B16: =+B99 -> 261254 | C16: 135021 | D16: 126233 | E16: 283879 | F16: 145731 | G16: 138148
A17: SAN JOSÉ | B17: =SUM(B18:B37) -> 1088828 | C17: 530482 | D17: 558346 | E17: 1139884 | F17: 554947 | G17: 584937
A18: SAN JOSÉ | B18: =+C18+D18 -> 231684 | C18: 111893 | D18: 119791 | E18: =+F18+G18 -> 237491 | F18: 114869 | G18: 122622
A19: ESCAZÚ | B19: 44982 | C19: 21974 | D19: 23008 | E19: 48909 | F19: 23879 | G19: 25030
A20: DESAMPARADOS | B20: 156610 | C20: 76637 | D20: 79973 | E20: 163721 | F20: 80113 | G20: 83608
A21: PURISCAL | B21: 27437 | C21: 13782 | D21: 13655 | E21: 29170 | F21: 14591 | G21: 14579
A22: TARRAZÚ | B22: 11843 | C22: 5965 | D22: 5878 | E22: 12455 | F22: 6240 | G22: 6215
A23: ASERRÍ | B23: 41808 | C23: 20847 | D23: 20961 | E23: 43971 | F23: 22002 | G23: 21969
A24: MORA | B24: 20263 | C24: 10006 | D24: 10257 | E24: 22339 | F24: 11013 | G24: 11326
A25: GOICOECHEA | B25: 88592 | C25: 42299 | D25: 46293 | E25: 91511 | F25: 43751 | G25: 47760
A26: SANTA ANA | B26: 32863 | C26: 16097 | D26: 16766 | E26: 37125 | F26: 18118 | G26: 19007
A27: ALAJUELITA | B27: 49065 | C27: 24259 | D27: 24806 | E27: 51812 | F27: 25678 | G27: 26134
A28: VÁZQUEZ DE CORONADO | B28: 51588 | C28: 24845 | D28: 26743 | E28: 55002 | F28: 26501 | G28: 28501
A29: ACOSTA | B29: 16028 | C29: 8220 | D29: 7808 | E29: 17156 | F29: 8771 | G29: 8385
A30: TIBÁS | B30: 55709 | C30: 26170 | D30: 29539 | E30: 56487 | F30: 26430 | G30: 30057
A31: MORAVIA | B31: 43464 | C31: 20824 | D31: 22640 | E31: 45153 | F31: 21611 | G31: 23542
A32: MONTES DE OCA | B32: 41908 | C32: 19679 | D32: 22229 | E32: 43075 | F32: 20203 | G32: 22872
A33: TURRUBARES | B33: 4484 | C33: 2321 | D33: 2163 | E33: 4834 | F33: 2504 | G33: 2330
A34: DOTA | B34: 5376 | C34: 2697 | D34: 2679 | E34: 5674 | F34: 2804 | G34: 2870
A35: CURRIDABAT | B35: =+C35+D35 -> 47468 | C35: 22774 | D35: 24694 | E35: 50222 | F35: 23944 | G35: 26278
A36: PÉREZ ZELEDÓN | B36: 108626 | C36: 54587 | D36: 54039 | E36: 114449 | F36: 57204 | G36: 57245
A37: LEÓN CORTÉS CASTRO | B37: 9030 | C37: 4606 | D37: 4424 | E37: 9328 | F37: 4721 | G37: 4607
A38: ALAJUELA | B38: =SUM(B39:B53) -> 604089 | C38: =SUM(C39:C53) -> 304791 | D38: =SUM(D39:D53) -> 299298 | E38: =SUM(E39:E54) -> 657175 | F38: =SUM(F39:F54) -> 331017 | G38: =SUM(G39:G54) -> 326158
A39: ALAJUELA | B39: =+C39+D39 -> 193569 | C39: 97613 | D39: 95956 | E39: =+F39+G39 -> 209680 | F39: 105950 | G39: 103730
A40: SAN RAMÓN | B40: 60762 | C40: 30281 | D40: 30481 | E40: 66233 | F40: 32892 | G40: 33341
A41: GRECIA | B41: 57117 | C41: 28502 | D41: 28615 | E41: 55270 | F41: 27309 | G41: 27961
A42: SAN MATEO | B42: 4365 | C42: 2242 | D42: 2123 | E42: 4811 | F42: 2478 | G42: 2333
A43: ATENAS | B43: 19661 | C43: 9886 | D43: 9775 | E43: 21154 | F43: 10573 | G43: 10581
A44: NARANJO | B44: 30801 | C44: 15274 | D44: 15527 | E44: 32709 | F44: 16203 | G44: 16506
A45: PALMARES | B45: 28151 | C45: 13946 | D45: 14205 | E45: 29557 | F45: 14624 | G45: 14933
A46: POÁS | B46: 20803 | C46: 10455 | D46: 10348 | E46: 22742 | F46: 11360 | G46: 11382
A47: OROTINA | B47: 14762 | C47: 7408 | D47: 7354 | E47: 16274 | F47: 8138 | G47: 8136
A48: SAN CARLOS | B48: 102906 | C48: 52494 | D48: 50412 | E48: 113408 | F48: 57577 | G48: 55831
A49: ZARCERO | B49: 8802 | C49: 4382 | D49: 4420 | E49: 9278 | F49: 4581 | G49: 4697
A50: SARCHÍ | B50: 14208 | C50: 7057 | D50: 7151 | E50: 15107 | F50: 7555 | G50: 7552
A51: UPALA | B51: 26574 | C51: 13814 | D51: 12760 | E51: 30030 | F51: 15558 | G51: 14472
A52: LOS CHILES | B52: 11212 | C52: 6047 | D52: 5165 | E52: 13027 | F52: 6936 | G52: 6091
A53: GUATUSO | B53: 10396 | C53: 5390 | D53: 5006 | E53: 11426 | F53: 5929 | G53: 5497
A54: RÍO CUARTO | B54: NA | C54: NA | D54: NA | E54: 6469 | F54: 3354 | G54: 3115
A55: CARTAGO | B55: =SUM(B56:B63) -> 374190 | C55: 186298 | D55: 187892 | E55: 399475 | F55: 198274 | G55: 201201
A56: CARTAGO | B56: =+C56+D56 -> 117991 | C56: 58534 | D56: 59457 | E56: =+F56+G56 -> 125036 | F56: 61578 | G56: 63458
A57: PARAÍSO | B57: 44765 | C57: 22283 | D57: 22482 | E57: 48167 | F57: 23946 | G57: 24221
A58: LA UNIÓN | B58: 67581 | C58: 33412 | D58: 34169 | E58: 72609 | F58: 35687 | G58: 36922
A59: JIMÉNEZ | B59: 11681 | C59: 6002 | D59: 5679 | E59: 12404 | F59: 6284 | G59: 6120
A60: TURRIALBA | B60: 55945 | C60: 28019 | D60: 27926 | E60: 58384 | F60: 29119 | G60: 29265
A61: ALVARADO | B61: 9985 | C61: 5007 | D61: 4978 | E61: 11066 | F61: 5528 | G61: 5538
A62: OREAMUNO | B62: 34952 | C62: 17160 | D62: 17792 | E62: 37179 | F62: 18309 | G62: 18870
A63: EL GUARCO | B63: 31290 | C63: 15881 | D63: 15409 | E63: 34630 | F63: 17823 | G63: 16807
A64: HEREDIA | B64: =SUM(B65:B74) -> 319674 | C64: 157161 | D64: 162513 | E64: 344746 | F64: 169424 | G64: 175322
A65: HEREDIA | B65: =+C65+D65 -> 93490 | C65: 44718 | D65: 48772 | E65: =+F65+G65 -> 99320 | F65: 47651 | G65: 51669
A66: BARVA | B66: 31461 | C66: 15413 | D66: 16048 | E66: 33992 | F66: 16651 | G66: 17341
A67: SANTO DOMINGO | B67: 33424 | C67: 16466 | D67: 16958 | E67: 35439 | F67: 17367 | G67: 18072
A68: SANTA BÁRBARA | B68: 25705 | C68: 12759 | D68: 12946 | E68: 27612 | F68: 13665 | G68: 13947
A69: SAN RAFAEL | B69: 33543 | C69: 16659 | D69: 16884 | E69: 36956 | F69: 18409 | G69: 18547
A70: SAN ISIDRO | B70: 15301 | C70: 7678 | D70: 7623 | E70: 16663 | F70: 8344 | G70: 8319
A71: BELÉN | B71: 18012 | C71: 8879 | D71: 9133 | E71: 19306 | F71: 9523 | G71: 9783
A72: FLORES | B72: 15949 | C72: 7778 | D72: 8171 | E72: 17393 | F72: 8417 | G72: 8976
A73: SAN PABLO | B73: 21083 | C73: 10175 | D73: 10908 | E73: 22755 | F73: 11017 | G73: 11738
A74: SARAPIQUÍ | B74: 31706 | C74: 16636 | D74: 15070 | E74: 35310 | F74: 18380 | G74: 16930
A75: GUANACASTE | B75: =SUM(B76:B86) -> 231102 | C75: 116777 | D75: 114325 | E75: 250585 | F75: 126246 | G75: 124339
A76: LIBERIA | B76: =+C76+D76 -> 43059 | C76: 21575 | D76: 21484 | E76: =+F76+G76 -> 47203 | F76: 23568 | G76: 23635
A77: NICOYA | B77: 39567 | C77: 19852 | D77: 19715 | E77: 42477 | F77: 21365 | G77: 21112
A78: SANTA CRUZ | B78: 39431 | C78: 20050 | D78: 19381 | E78: 42694 | F78: 21683 | G78: 21011
A79: BAGACES | B79: 13067 | C79: 6624 | D79: 6443 | E79: 14260 | F79: 7167 | G79: 7093
A80: CARRILLO | B80: 23197 | C80: 11760 | D80: 11437 | E80: 25517 | F80: 12897 | G80: 12620
A81: CAÑAS | B81: 19065 | C81: 9561 | D81: 9504 | E81: 20019 | F81: 9968 | G81: 10051
A82: ABANGARES | B82: 13237 | C82: 6733 | D82: 6504 | E82: 14024 | F82: 7131 | G82: 6893
A83: TILARÁN | B83: 14622 | C83: 7337 | D83: 7285 | E83: 15470 | F83: 7742 | G83: 7728
A84: NANDAYURE | B84: 8278 | C84: 4279 | D84: 3999 | E84: 8650 | F84: 4421 | G84: 4229
A85: LA CRUZ | B85: 11808 | C85: 6030 | D85: 5778 | E85: 14091 | F85: 7148 | G85: 6943
A86: HOJANCHA | B86: 5771 | C86: 2976 | D86: 2795 | E86: 6180 | F86: 3156 | G86: 3024
A87: PUNTARENAS | B87: =SUM(B88:B98) -> 299227 | C87: 153648 | D87: 145579 | E87: 322594 | F87: 164936 | G87: 157658
A88: PUNTARENAS | B88: =+C88+D88 -> 84342 | C88: 43228 | D88: 41114 | E88: =+F88+G88 -> 88825 | F88: 45366 | G88: 43459
A89: ESPARZA | B89: 21684 | C89: 10766 | D89: 10918 | E89: 23525 | F89: 11642 | G89: 11883
A90: BUENOS AIRES | B90: 30931 | C90: 16122 | D90: 14809 | E90: 32950 | F90: 17096 | G90: 15854
A91: MONTES DE ORO | B91: 9941 | C91: 4962 | D91: 4979 | E91: 10587 | F91: 5256 | G91: 5331
A92: OSA | B92: 21229 | C92: 11201 | D92: 10028 | E92: 23342 | F92: 12298 | G92: 11044
A93: QUEPOS | B93: 18798 | C93: 9962 | D93: 8836 | E93: 20603 | F93: 10874 | G93: 9729
A94: GOLFITO | B94: 28587 | C94: 14881 | D94: 13706 | E94: 30734 | F94: 15854 | G94: 14880
A95: COTO BRUS | B95: 28684 | C95: 14490 | D95: 14194 | E95: 31226 | F95: 15742 | G95: 15484
A96: PARRITA | B96: 11285 | C96: 5816 | D96: 5469 | E96: 12621 | F96: 6513 | G96: 6108
A97: CORREDORES | B97: 32790 | C97: 16460 | D97: 16330 | E97: 35404 | F97: 17635 | G97: 17769
A98: GARABITO | B98: 10956 | C98: 5760 | D98: 5196 | E98: 12777 | F98: 6660 | G98: 6117
A99: LIMÓN | B99: =SUM(B100:B105) -> 261254 | C99: 135021 | D99: 126233 | E99: 283879 | F99: 145731 | G99: 138148
A100: LIMÓN | B100: =+C100+D100 -> 66628 | C100: 33472 | D100: 33156 | E100: =+F100+G100 -> 70958 | F100: 35465 | G100: 35493
A101: POCOCÍ | B101: 87921 | C101: 45944 | D101: 41977 | E101: 95804 | F101: 49811 | G101: 45993
A102: SIQUIRRES | B102: 38953 | C102: 20408 | D102: 18545 | E102: 41285 | F102: 21349 | G102: 19936
A103: TALAMANCA | B103: 19165 | C103: 10049 | D103: 9116 | E103: 22666 | F103: 11797 | G103: 10869
A104: MATINA | B104: 20908 | C104: 10883 | D104: 10025 | E104: 22938 | F104: 11933 | G104: 11005
A105: GUÁCIMO | B105: 27679 | C105: 14265 | D105: 13414 | E105: 30228 | F105: 15376 | G105: 14852
A108: =+'C1'!A43 -> Fuente: Padrón Electoral, Tribunal Supremo de Elecciones.

Sheet C3
A1: CUADRO 3 COSTA RICA: PADRÓN NACIONAL ELECTORAL POR SEXO
A2: SEGÚN PROVINCIA, CANTÓN Y DISTRITO ADMINISTRATIVO
A3: ELECCIONES MUNICIPALES FEBRERO 2020
A5: PROVINCIA, CANTÓN y DISTRITO ADMINISTRATIVO | B5: TOTAL | C5: HOMBRES | D5: % | E5: MUJERES | F5: %
A7: COSTA RICA | B7: 3398338 | C7: 1690575 | D7: =+C7/B7*100 -> 49.74711168 | E7: 1707763 | F7: =+E7/B7*100 -> 50.25288832
A8: PROVINCIA SAN JOSÉ | B8: 1139884 | C8: 554947 | D8: =+C8/B8*100 -> 48.68451527 | E8: 584937 | F8: =+E8/B8*100 -> 51.31548473
A9: CANTÓN SAN JOSÉ | B9: 237491 | C9: 114869 | D9: =+C9/B9*100 -> 48.36772762 | E9: 122622 | F9: 51.63227238
A10: CARMEN | B10: 5149 | C10: 2393 | D10: =+C10/B10*100 -> 46.4750437 | E10: 2756 | F10: 53.5249563
A11: MERCED | B11: 10107 | C11: 5254 | D11: 51.98377362 | E11: 4853 | F11: 48.01622638
A12: HOSPITAL | B12: 18760 | C12: 9472 | D12: 50.49040512 | E12: 9288 | F12: 49.50959488
A13: CATEDRAL | B13: 15365 | C13: 7473 | D13: 48.63651155 | E13: 7892 | F13: 51.36348845
A14: ZAPOTE | B14: 18461 | C14: 8605 | D14: 46.61177618 | E14: 9856 | F14: 53.38822382
A15: SAN FRANCISCO DE DOS RÍOS | B15: 18338 | C15: 8547 | D15: 46.60813611 | E15: 9791 | F15: 53.39186389
A16: URUCA | B16: 17091 | C16: 8394 | D16: 49.11356854 | E16: 8697 | F16: 50.88643146
A17: MATA REDONDA | B17: 7812 | C17: 3783 | D17: 48.42549923 | E17: 4029 | F17: 51.57450077
A18: PAVAS | B18: 51395 | C18: 24849 | D18: 48.34906119 | E18: 26546 | F18: 51.65093881
A19: HATILLO | B19: 44248 | C19: 21024 | D19: 47.51401193 | E19: 23224 | F19: 52.48598807
A20: SAN SEBASTIÁN | B20: 30765 | C20: 15075 | D20: 49.00048757 | E20: 15690 | F20: 50.99951243
A21: CANTÓN ESCAZÚ | B21: 48909 | C21: 23879 | D21: 48.82332495 | E21: 25030 | F21: 51.17667505
A22: ESCAZÚ | B22: 12554 | C22: 6041 | D22: 48.12012108 | E22: 6513 | F22: 51.87987892
A23: SAN ANTONIO | B23: 15931 | C23: 8012 | D23: 50.29188375 | E23: 7919 | F23: 49.70811625
A24: SAN RAFAEL | B24: 20424 | C24: 9826 | D24: 48.11006659 | E24: 10598 | F24: 51.88993341
A25: CANTÓN DESAMPARADOS | B25: 163721 | C25: 80113 | D25: 48.9326354 | E25: 83608 | F25: 51.0673646
A26: DESAMPARADOS | B26: 31049 | C26: 15100 | D26: 48.63280621 | E26: 15949 | F26: 51.36719379
A27: SAN MIGUEL | B27: 29419 | C27: 14465 | D27: 49.16890445 | E27: 14954 | F27: 50.83109555
A28: SAN JUAN DE DIOS | B28: 13354 | C28: 6646 | D28: 49.76785982 | E28: 6708 | F28: 50.23214018
A29: SAN RAFAEL ARRIBA | B29: 11808 | C29: 5647 | D29: 47.82350949 | E29: 6161 | F29: 52.17649051
A30: SAN ANTONIO | B30: 9373 | C30: 4508 | D30: 48.09559373 | E30: 4865 | F30: 51.90440627
A31: FRAILES | B31: 3032 | C31: 1529 | D31: 50.42875989 | E31: 1503 | F31: 49.57124011
A32: PATARRÁ | B32: 7171 | C32: 3618 | D32: 50.45321434 | E32: 3553 | F32: 49.54678566
A33: SAN CRISTÓBAL | B33: 3306 | C33: 1651 | D33: 49.93950393 | E33: 1655 | F33: 50.06049607
A34: ROSARIO | B34: 3134 | C34: 1614 | D34: 51.49968092 | E34: 1520 | F34: 48.50031908
A35: DAMAS | B35: 9335 | C35: 4540 | D35: 48.63417247 | E35: 4795 | F35: 51.36582753
A36: SAN RAFAEL ABAJO | B36: 16465 | C36: 8000 | D36: 48.58791376 | E36: 8465 | F36: 51.41208624
A37: GRAVILIAS | B37: 12969 | C37: 6201 | D37: 47.81401804 | E37: 6768 | F37: 52.18598196
A38: LOS GUIDO | B38: 13306 | C38: 6594 | D38: 49.55659101 | E38: 6712 | F38: 50.44340899
A39: CANTÓN PURISCAL | B39: 29170 | C39: 14591 | D39: 50.02056908 | E39: 14579 | F39: 49.97943092
A40: SANTIAGO | B40: 10768 | C40: 5201 | D40: 48.30052006 | E40: 5567 | F40: 51.69947994
A41: MERCEDES SUR | B41: 4722 | C41: 2426 | D41: 51.37653537 | E41: 2296 | F41: 48.62346463
A42: BARBACOAS | B42: 3800 | C42: 1902 | D42: 50.05263158 | E42: 1898 | F42: 49.94736842
A43: GRIFO ALTO | B43: 1002 | C43: 500 | D43: 49.9001996 | E43: 502 | F43: 50.0998004
A44: SAN RAFAEL | B44: 1344 | C44: 666 | D44: 49.55357143 | E44: 678 | F44: 50.44642857
A45: CANDELARITA | B45: 1453 | C45: 758 | D45: 52.16792842 | E45: 695 | F45: 47.83207158
A46: DESAMPARADITOS | B46: 606 | C46: 312 | D46: 51.48514851 | E46: 294 | F46: 48.51485149
A47: SAN ANTONIO | B47: 3260 | C47: 1636 | D47: 50.18404908 | E47: 1624 | F47: 49.81595092
A48: CHIRES | B48: 2215 | C48: 1190 | D48: 53.72460497 | E48: 1025 | F48: 46.27539503
A49: CANTÓN TARRAZÚ | B49: 12455 | C49: 6240 | D49: 50.1003613 | E49: 6215 | F49: 49.8996387
A50: SAN MARCOS | B50: 7923 | C50: 3923 | D50: 49.51407295 | E50: 4000 | F50: 50.48592705
A51: SAN LORENZO | B51: 3078 | C51: 1552 | D51: 50.42235218 | E51: 1526 | F51: 49.57764782
A52: SAN CARLOS | B52: 1454 | C52: 765 | D52: 52.61348006 | E52: 689 | F52: 47.38651994
A53: CANTÓN ASERRÍ | B53: 43971 | C53: 22002 | D53: 50.03752473 | E53: 21969 | F53: 49.96247527
A54: ASERRÍ | B54: 24752 | C54: 12222 | D54: 49.37782805 | E54: 12530 | F54: 50.62217195
A55: TARBACA | B55: 1818 | C55: 959 | D55: 52.75027503 | E55: 859 | F55: 47.24972497
A56: VUELTA DE JORCO | B56: 5201 | C56: 2633 | D56: 50.62487983 | E56: 2568 | F56: 49.37512017
A57: SAN GABRIEL | B57: 4075 | C57: 2008 | D57: 49.27607362 | E57: 2067 | F57: 50.72392638
A58: LEGUA | B58: 980 | C58: 519 | D58: 52.95918367 | E58: 461 | F58: 47.04081633
A59: MONTERREY | B59: 738 | C59: 352 | D59: 47.69647696 | E59: 386 | F59: 52.30352304
A60: SALITRILLOS | B60: 6407 | C60: 3309 | D60: 51.64663649 | E60: 3098 | F60: 48.35336351
A61: CANTÓN MORA | B61: 22339 | C61: 11013 | D61: 49.29943149 | E61: 11326 | F61: 50.70056851
A62: COLÓN | B62: 12758 | C62: 6184 | D62: 48.47154726 | E62: 6574 | F62: 51.52845274
A63: GUAYABO | B63: 3341 | C63: 1613 | D63: 48.2789584 | E63: 1728 | F63: 51.7210416
A64: TABARCIA | B64: 3511 | C64: 1770 | D64: 50.41298775 | E64: 1741 | F64: 49.58701225
A65: PIEDRAS NEGRAS | B65: 270 | C65: 137 | D65: 50.74074074 | E65: 133 | F65: 49.25925926
A66: PICAGRES | B66: 569 | C66: 300 | D66: 52.72407733 | E66: 269 | F66: 47.27592267
A67: JARIS | B67: 896 | C67: 482 | D67: 53.79464286 | E67: 414 | F67: 46.20535714
A68: QUITIRRISÍ | B68: 994 | C68: 527 | D68: 53.01810865 | E68: 467 | F68: 46.98189135
A69: CANTÓN GOICOECHEA | B69: 91511 | C69: 43751 | D69: 47.80955295 | E69: 47760 | F69: 52.19044705
A70: GUADALUPE | B70: 20690 | C70: 9828 | D70: 47.50120831 | E70: 10862 | F70: 52.49879169
A71: SAN FRANCISCO | B71: 2047 | C71: 1033 | D71: 50.4640938 | E71: 1014 | F71: 49.5359062
A72: CALLE BLANCOS | B72: 11875 | C72: 5615 | D72: 47.28421053 | E72: 6260 | F72: =+E72/B72*100 -> 52.71578947
A73: MATA DE PLÁTANO | B73: 13497 | C73: 6531 | D73: 48.38853078 | E73: 6966 | F73: 51.61146922
A74: IPÍS | B74: 23180 | C74: 11034 | D74: =+C74/B74*100 -> 47.6013805 | E74: 12146 | F74: 52.3986195
A75: RANCHO REDONDO | B75: 3394 | C75: 1710 | D75: 50.38302887 | E75: 1684 | F75: 49.61697113
A76: PURRAL | B76: 16828 | C76: 8000 | D76: 47.53981459 | E76: 8828 | F76: 52.46018541
A77: CANTÓN SANTA ANA | B77: 37125 | C77: 18118 | D77: 48.8026936 | E77: 19007 | F77: 51.1973064
A78: SANTA ANA | B78: 9289 | C78: 4503 | D78: 48.47669286 | E78: 4786 | F78: 51.52330714
A79: SALITRAL | B79: 3032 | C79: 1535 | D79: 50.62664908 | E79: 1497 | F79: 49.37335092
A80: POZOS | B80: 11607 | C80: 5635 | D80: 48.54828983 | E80: 5972 | F80: 51.45171017
A81: URUCA | B81: 6132 | C81: 2988 | D81: 48.72798434 | E81: 3144 | F81: 51.27201566
A82: PIEDADES | B82: 5383 | C82: 2650 | D82: 49.22905443 | E82: 2733 | F82: 50.77094557
A83: BRASIL | B83: 1682 | C83: 807 | D83: 47.97859691 | E83: 875 | F83: 52.02140309
A84: CANTÓN ALAJUELITA | B84: 51812 | C84: 25678 | D84: 49.5599475 | E84: 26134 | F84: 50.4400525
A85: ALAJUELITA | B85: 10251 | C85: 5003 | D85: 48.80499463 | E85: 5248 | F85: 51.19500537
A86: SAN JOSÉCITO | B86: 7842 | C86: 3894 | D86: 49.65570008 | E86: 3948 | F86: 50.34429992
A87: SAN ANTONIO | B87: 2024 | C87: 1005 | D87: 49.6541502 | E87: 1019 | F87: 50.3458498
A88: CONCEPCIÓN | B88: 12691 | C88: 6417 | D88: 50.56339138 | E88: 6274 | F88: 49.43660862
A89: SAN FELIPE | B89: 19004 | C89: 9359 | D89: 49.24752684 | E89: 9645 | F89: 50.75247316
A90: CANTÓN VÁZQUEZ DE CORONADO | B90: 55002 | C90: 26501 | D90: 48.1818843 | E90: 28501 | F90: 51.8181157
A91: SAN ISIDRO | B91: 16056 | C91: 7683 | D91: 47.85127055 | E91: 8373 | F91: 52.14872945
A92: SAN RAFAEL | B92: 6005 | C92: 2960 | D92: 49.29225645 | E92: 3045 | F92: 50.70774355
A93: DULCE NOMBRE DE JESÚS | B93: 10116 | C93: 4936 | D93: 48.79398972 | E93: 5180 | F93: 51.20601028
A94: PATALILLO | B94: 17238 | C94: 8150 | D94: 47.27926674 | E94: 9088 | F94: 52.72073326
A95: CASCAJAL | B95: 5587 | C95: 2772 | D95: 49.61517809 | E95: 2815 | F95: 50.38482191
A96: CANTÓN ACOSTA | B96: 17156 | C96: 8771 | D96: 51.12497086 | E96: 8385 | F96: 48.87502914
A97: SAN IGNACIO | B97: 7842 | C97: 3843 | D97: 49.00535578 | E97: 3999 | F97: 50.99464422
A98: GUAITIL | B98: 2044 | C98: 1088 | D98: 53.22896282 | E98: 956 | F98: 46.77103718
A99: PALMICHAL | B99: 3797 | C99: 1942 | D99: 51.1456413 | E99: 1855 | F99: 48.8543587
A100: CANGREJAL | B100: 1560 | C100: 829 | D100: 53.14102564 | E100: 731 | F100: 46.85897436
A101: SABANILLAS | B101: 1913 | C101: 1069 | D101: 55.88081547 | E101: 844 | F101: 44.11918453
A102: CANTÓN TIBÁS | B102: 56487 | C102: 26430 | D102: 46.78952679 | E102: 30057 | F102: 53.21047321
A103: SAN JUAN | B103: 21701 | C103: 10130 | D103: 46.6798765 | E103: 11571 | F103: 53.3201235
A104: CINCO ESQUINAS | B104: 7623 | C104: 3702 | D104: 48.56355765 | E104: 3921 | F104: 51.43644235
A105: ANSELMO LLORENTE | B105: 8672 | C105: 3967 | D105: 45.7449262 | E105: 4705 | F105: 54.2550738
A106: LEÓN XIII | B106: 7852 | C106: 3703 | D106: 47.15995925 | E106: 4149 | F106: 52.84004075
A107: COLIMA | B107: 10639 | C107: 4928 | D107: 46.32014287 | E107: 5711 | F107: 53.67985713
A108: CANTÓN: MORAVIA | B108: 45153 | C108: 21611 | D108: 47.86171461 | E108: 23542 | F108: 52.13828539
A109: SAN VICENTE | B109: 26285 | C109: 12325 | D109: 46.88986114 | E109: 13960 | F109: 53.11013886
A110: SAN JERÓNIMO | B110: 4530 | C110: 2294 | D110: 50.6401766 | E110: 2236 | F110: 49.3598234
A111: LA TRINIDAD | B111: 14338 | C111: 6992 | D111: 48.7655182 | E111: 7346 | F111: 51.2344818
A112: CANTÓN MONTES DE OCA | B112: 43075 | C112: 20203 | D112: 46.90191526 | E112: 22872 | F112: 53.09808474
A113: SAN PEDRO | B113: 21302 | C113: 10048 | D113: 47.16927988 | E113: 11254 | F113: 52.83072012
A114: SABANILLA | B114: 12136 | C114: 5661 | D114: 46.64634146 | E114: 6475 | F114: 53.35365854
A115: MERCEDES | B115: 2745 | C115: 1283 | D115: 46.73952641 | E115: 1462 | F115: 53.26047359
A116: SAN RAFAEL | B116: 6892 | C116: 3211 | D116: 46.59024956 | E116: 3681 | F116: 53.40975044
A117: CANTÓN TURRUBARES | B117: 4834 | C117: 2504 | D117: 51.79975176 | E117: 2330 | F117: 48.20024824
A118: SAN PABLO | B118: 1422 | C118: 691 | D118: 48.59353024 | E118: 731 | F118: 51.40646976
A119: SAN PEDRO | B119: 517 | C119: 263 | D119: 50.87040619 | E119: 254 | F119: 49.12959381
A120: SAN JUAN DE MATA | B120: 1027 | C120: 550 | D120: 53.5540409 | E120: 477 | F120: 46.4459591
A121: SAN LUIS | B121: 484 | C121: 266 | D121: 54.95867769 | E121: 218 | F121: 45.04132231
A122: CARARA | B122: 1384 | C122: 734 | D122: 53.03468208 | E122: 650 | F122: 46.96531792
A123: CANTÓN DOTA | B123: 5674 | C123: 2804 | D123: 49.41839972 | E123: 2870 | F123: 50.58160028
A124: SANTA MARÍA | B124: 3948 | C124: 1915 | D124: 48.50557244 | E124: 2033 | F124: 51.49442756
A125: JARDÍN | B125: 309 | C125: 159 | D125: 51.45631068 | E125: 150 | F125: 48.54368932
A126: COPEY | B126: 1417 | C126: 730 | D126: 51.51729005 | E126: 687 | F126: 48.48270995
A127: CANTÓN CURRIDABAT | B127: 50222 | C127: 23944 | D127: 47.67631715 | E127: 26278 | F127: 52.32368285
A128: CURRIDABAT | B128: 24649 | C128: 11529 | D128: 46.77268855 | E128: 13120 | F128: 53.22731145
A129: GRANADILLA | B129: 9887 | C129: 4796 | D129: 48.508142 | E129: 5091 | F129: 51.491858
A130: SÁNCHEZ | B130: 5168 | C130: 2459 | D130: 47.58126935 | E130: 2709 | F130: 52.41873065
A131: TIRRASES | B131: 10518 | C131: 5160 | D131: 49.05875642 | E131: 5358 | F131: 50.94124358
A132: CANTÓN PÉREZ ZELEDÓN | B132: 114449 | C132: 57204 | D132: 49.98208809 | E132: 57245 | F132: 50.01791191
A133: SAN ISIDRO DE EL GENERAL | B133: 40483 | C133: 19440 | D133: 48.02015661 | E133: 21043 | F133: 51.97984339
A134: EL GENERAL | B134: 5201 | C134: 2628 | D134: 50.52874447 | E134: 2573 | F134: 49.47125553
A135: DANIEL FLORES | B135: 28359 | C135: 14297 | D135: 50.41433055 | E135: 14062 | F135: 49.58566945
A136: RIVAS | B136: 5182 | C136: 2684 | D136: 51.79467387 | E136: 2498 | F136: =+E136/B136*100 -> 48.20532613
A137: SAN PEDRO | B137: 6549 | C137: 3293 | D137: 50.28248588 | E137: 3256 | F137: 49.71751412
A138: PLATANARES | B138: 5932 | C138: 3057 | D138: =+C138/B138*100 -> 51.5340526 | E138: 2875 | F138: 48.4659474
A139: PEJIBAYE | B139: 4409 | C139: 2274 | D139: 51.57632116 | E139: 2135 | F139: 48.42367884
A140: CAJÓN | B140: 7836 | C140: 3965 | D140: 50.59979581 | E140: 3871 | F140: 49.40020419
A141: BARÚ | B141: 2019 | C141: 1073 | D141: 53.14512135 | E141: 946 | F141: 46.85487865
A142: RÍO NUEVO | B142: 2417 | C142: 1300 | D142: 53.78568473 | E142: 1117 | F142: 46.21431527
A143: PÁRAMO | B143: 3846 | C143: 2037 | D143: 52.96411856 | E143: 1809 | F143: 47.03588144
A144: LA AMISTAD | B144: 2216 | C144: 1156 | D144: 52.16606498 | E144: 1060 | F144: 47.83393502
A145: CANTÓN LEÓN CORTÉS CASTRO | B145: 9328 | C145: 4721 | D145: 50.61106346 | E145: 4607 | F145: 49.38893654
A146: SAN PABLO | B146: 3297 | C146: 1636 | D146: 49.62086746 | E146: 1661 | F146: 50.37913254
A147: SAN ANDRÉS | B147: 1170 | C147: 614 | D147: 52.47863248 | E147: 556 | F147: 47.52136752
A148: LLANO BONITO | B148: 1397 | C148: 706 | D148: 50.53686471 | E148: 691 | F148: 49.46313529
A149: SAN ISIDRO | B149: 1235 | C149: 633 | D149: 51.25506073 | E149: 602 | F149: 48.74493927
A150: SANTA CRUZ | B150: 1395 | C150: 707 | D150: 50.68100358 | E150: 688 | F150: 49.31899642
A151: SAN ANTONIO | B151: 834 | C151: 425 | D151: 50.95923261 | E151: 409 | F151: 49.04076739
A152: PROVINCIA ALAJUELA | B152: 657175 | C152: 331017 | D152: 50.36968844 | E152: 326158 | F152: 49.63031156
A153: CANTÓN ALAJUELA | B153: 209680 | C153: 105950 | D153: 50.5293781 | E153: 103730 | F153: 49.4706219
A154: ALAJUELA | B154: 40986 | C154: 19671 | D154: 47.99443712 | E154: 21315 | F154: 52.00556288
A155: SAN JOSÉ | B155: 34416 | C155: 16801 | D155: 48.81741051 | E155: 17615 | F155: 51.18258949
A156: CARRIZAL | B156: 5110 | C156: 2581 | D156: 50.50880626 | E156: 2529 | F156: 49.49119374
A157: SAN ANTONIO | B157: 22469 | C157: 11316 | D157: 50.36272197 | E157: 11153 | F157: 49.63727803
A158: GUÁCIMA | B158: 16119 | C158: 8201 | D158: 50.87784602 | E158: 7918 | F158: 49.12215398
A159: SAN ISIDRO | B159: 12402 | C159: 6220 | D159: 50.1532011 | E159: 6182 | F159: 49.8467989
A160: SABANILLA | B160: 5781 | C160: 2902 | D160: 50.19892752 | E160: 2879 | F160: 49.80107248
A161: SAN RAFAEL | B161: 20354 | C161: 12203 | D161: 59.95381743 | E161: 8151 | F161: 40.04618257
A162: RÍO SEGUNDO | B162: 8980 | C162: 4472 | D162: 49.79955457 | E162: 4508 | F162: 50.20044543
A163: DESAMPARADOS | B163: 19908 | C163: 9831 | D163: 49.38215793 | E163: 10077 | F163: 50.61784207
A164: TURRÚCARES | B164: 5855 | C164: 2994 | D164: 51.13578138 | E164: 2861 | F164: 48.86421862
A165: TAMBOR | B165: 10196 | C165: 5151 | D165: 50.51981169 | E165: 5045 | F165: 49.48018831
A166: GARITA | B166: 5150 | C166: 2627 | D166: 51.00970874 | E166: 2523 | F166: 48.99029126
A167: SARAPIQUÍ | B167: 1954 | C167: 980 | D167: 50.15353122 | E167: 974 | F167: 49.84646878
A168: CANTÓN SAN RAMÓN | B168: 66233 | C168: 32892 | D168: 49.6610451 | E168: 33341 | F168: 50.3389549
A169: SAN RAMÓN | B169: 13034 | C169: 6031 | D169: 46.27129047 | E169: 7003 | F169: 53.72870953
A170: SANTIAGO | B170: 3872 | C170: 1985 | D170: 51.26549587 | E170: 1887 | F170: 48.73450413
A171: SAN JUAN | B171: 9590 | C171: 4693 | D171: 48.93639208 | E171: 4897 | F171: 51.06360792
A172: PIEDADES NORTE | B172: 6225 | C172: 3104 | D172: 49.86345382 | E172: 3121 | F172: 50.13654618
A173: PIEDADES SUR | B173: 3263 | C173: 1724 | D173: 52.83481459 | E173: 1539 | F173: 47.16518541
A174: SAN RAFAEL | B174: 6115 | C174: 3061 | D174: 50.0572363 | E174: 3054 | F174: 49.9427637
A175: SAN ISIDRO | B175: 3285 | C175: 1669 | D175: 50.80669711 | E175: 1616 | F175: 49.19330289
A176: ÁNGELES | B176: 3681 | C176: 1884 | D176: 51.18174409 | E176: 1797 | F176: 48.81825591
A177: ALFARO | B177: 4304 | C177: 2123 | D177: 49.32620818 | E177: 2181 | F177: 50.67379182
A178: VOLIO | B178: 1924 | C178: 960 | D178: 49.8960499 | E178: 964 | F178: 50.1039501
A179: CONCEPCIÓN | B179: 1894 | C179: 961 | D179: 50.73917635 | E179: 933 | F179: 49.26082365
A180: ZAPOTAL | B180: 296 | C180: 162 | D180: 54.72972973 | E180: 134 | F180: 45.27027027
A181: PEÑAS BLANCAS | B181: 5745 | C181: 2994 | D181: 52.11488251 | E181: 2751 | F181: 47.88511749
A182: SAN LORENZO | B182: 3005 | C182: 1541 | D182: 51.281198 | E182: 1464 | F182: 48.718802
A183: CANTÓN GRECIA | B183: 55270 | C183: 27309 | D183: 49.41016826 | E183: 27961 | F183: 50.58983174
A184: GRECIA | B184: 15236 | C184: 7339 | D184: 48.16881071 | E184: 7897 | F184: 51.83118929
A185: SAN ISIDRO | B185: 4535 | C185: 2276 | D185: 50.18743109 | E185: 2259 | F185: 49.81256891
A186: SAN JOSÉ | B186: 6825 | C186: 3388 | D186: 49.64102564 | E186: 3437 | F186: 50.35897436
A187: SAN ROQUE | B187: 9020 | C187: 4385 | D187: 48.61419069 | E187: 4635 | F187: 51.38580931
A188: TACARES | B188: 5754 | C188: 2906 | D188: 50.50399722 | E188: 2848 | F188: 49.49600278
A189: PUENTE DE PIEDRA | B189: 8042 | C189: 4040 | D189: 50.23625964 | E189: 4002 | F189: 49.76374036
A190: BOLÍVAR | B190: 5858 | C190: 2975 | D190: 50.78525094 | E190: 2883 | F190: 49.21474906
A191: CANTÓN SAN MATEO | B191: 4811 | C191: 2478 | D191: 51.50696321 | E191: 2333 | F191: 48.49303679
A192: SAN MATEO | B192: 2424 | C192: 1228 | D192: 50.66006601 | E192: 1196 | F192: 49.33993399
A193: DESMONTE | B193: 530 | C193: 297 | D193: 56.03773585 | E193: 233 | F193: 43.96226415
A194: JESÚS MARÍA | B194: 845 | C194: 433 | D194: 51.24260355 | E194: 412 | F194: 48.75739645
A195: LABRADOR | B195: 1012 | C195: 520 | D195: 51.38339921 | E195: 492 | F195: 48.61660079
A196: CANTÓN ATENAS | B196: 21154 | C196: 10573 | D196: 49.98109105 | E196: 10581 | F196: 50.01890895
A197: ATENAS | B197: 7057 | C197: 3423 | D197: 48.50503047 | E197: 3634 | F197: 51.49496953
A198: JESÚS | B198: 3110 | C198: 1539 | D198: 49.48553055 | E198: 1571 | F198: 50.51446945
A199: MERCEDES | B199: 2370 | C199: 1233 | D199: 52.02531646 | E199: 1137 | F199: 47.97468354
A200: SAN ISIDRO | B200: 2264 | C200: 1178 | D200: 52.03180212 | E200: 1086 | F200: =+E200/B200*100 -> 47.96819788
A201: CONCEPCIÓN | B201: 2825 | C201: 1423 | D201: 50.37168142 | E201: 1402 | F201: 49.62831858
A202: SAN JOSÉ | B202: 1255 | C202: 615 | D202: =+C202/B202*100 -> 49.00398406 | E202: 640 | F202: 50.99601594
... 382 more rows

Sheet C4
A2: CUADRO 4 COSTA RICA: PADRÓN NACIONAL ELECTORAL POR SEXO
A3: SEGÚN EDADES SIMPLES, ELECCIONES MUNICIPALES
A4: 2 DE FEBRERO 2020
A6: EDAD AL 2 DE FEBRERO DE 2020 | B6: TOTAL | C6: SEXO
B7: Total | C7: HOMBRES | D7: % | E7: MUJERES | F7: %
A9: TOTAL | B9: =SUM(B11:B107) -> 3398338 | C9: =SUM(C11:C107) -> 1690575 | D9: =+C9/B9*100 -> 49.74711168 | E9: =SUM(E11:E107) -> 1707763 | F9: =+E9/B9*100 -> 50.25288832
A11: 18 AÑOS | B11: =+C11+E11 -> 49003 | C11: 24859 | D11: =+C11/B11*100 -> 50.72954717 | E11: 24144 | F11: =+E11/B11*100 -> 49.27045283
A12: 19 AÑOS | B12: 75438 | C12: 38275 | D12: =+C12/B12*100 -> 50.73702908 | E12: 37163 | F12: =+E12/B12*100 -> 49.26297092
A13: 20 AÑOS | B13: 76172 | C13: 39050 | D13: 51.2655569 | E13: 37122 | F13: 48.7344431
A14: 21 AÑOS | B14: 73655 | C14: 37697 | D14: 51.1805037 | E14: 35958 | F14: 48.8194963
A15: 22 AÑOS | B15: 75250 | C15: 38201 | D15: 50.7654485 | E15: 37049 | F15: 49.2345515
A16: 23 AÑOS | B16: 76933 | C16: 39196 | D16: 50.94822768 | E16: 37737 | F16: 49.05177232
A17: 24 AÑOS | B17: 77377 | C17: 39475 | D17: 51.01645192 | E17: 37902 | F17: 48.98354808
A18: 25 AÑOS | B18: 78133 | C18: 39653 | D18: 50.75064313 | E18: 38480 | F18: 49.24935687
A19: 26 AÑOS | B19: 77446 | C19: 39792 | D19: 51.38031661 | E19: 37654 | F19: 48.61968339
A20: 27 AÑOS | B20: 77860 | C20: 39455 | D20: 50.67428718 | E20: 38405 | F20: 49.32571282
A21: 28 AÑOS | B21: 77317 | C21: 39380 | D21: 50.93317123 | E21: 37937 | F21: 49.06682877
A22: 29 AÑOS | B22: 78958 | C22: 40467 | D22: 51.25129816 | E22: 38491 | F22: 48.74870184
A23: 30 AÑOS | B23: 80775 | C23: 40912 | D23: 50.64933457 | E23: 39863 | F23: 49.35066543
A24: 31 AÑOS | B24: 78752 | C24: 40057 | D24: 50.86473994 | E24: 38695 | F24: 49.13526006
A25: 32 AÑOS | B25: 76226 | C25: 38684 | D25: 50.74908824 | E25: 37542 | F25: 49.25091176
A26: 33 AÑOS | B26: 79316 | C26: 39975 | D26: 50.39966715 | E26: 39341 | F26: 49.60033285
A27: 34 AÑOS | B27: 80928 | C27: 41003 | D27: 50.66602412 | E27: 39925 | F27: 49.33397588
A28: 35 AÑOS | B28: 75889 | C28: 38175 | D28: 50.30373308 | E28: 37714 | F28: 49.69626692
A29: 36 AÑOS | B29: 69768 | C29: 35181 | D29: 50.42569659 | E29: 34587 | F29: 49.57430341
A30: 37 AÑOS | B30: 69378 | C30: 34940 | D30: 50.36178616 | E30: 34438 | F30: 49.63821384
A31: 38 AÑOS | B31: 69089 | C31: 34649 | D31: 50.15125418 | E31: 34440 | F31: 49.84874582
A32: 39 AÑOS | B32: 67683 | C32: 33987 | D32: 50.21497274 | E32: 33696 | F32: 49.78502726
A33: 40 AÑOS | B33: 64963 | C33: 32758 | D33: 50.4256269 | E33: 32205 | F33: 49.5743731
A34: 41 AÑOS | B34: 63193 | C34: 31480 | D34: 49.81564414 | E34: 31713 | F34: 50.18435586
A35: 42 AÑOS | B35: 61154 | C35: 30604 | D35: 50.04415083 | E35: 30550 | F35: 49.95584917
A36: 43 AÑOS | B36: 56577 | C36: 28380 | D36: 50.1617265 | E36: 28197 | F36: 49.8382735
A37: 44 AÑOS | B37: 54544 | C37: 27288 | D37: 50.02933412 | E37: 27256 | F37: 49.97066588
A38: 45 AÑOS | B38: 54383 | C38: 27311 | D38: 50.21973779 | E38: 27072 | F38: 49.78026221
A39: 46 AÑOS | B39: 52967 | C39: 26439 | D39: 49.91598542 | E39: 26528 | F39: 50.08401458
A40: 47 AÑOS | B40: 53365 | C40: 26614 | D40: 49.87163871 | E40: 26751 | F40: 50.12836129
A41: 48 AÑOS | B41: 53560 | C41: 26403 | D41: 49.2961165 | E41: 27157 | F41: 50.7038835
A42: 49 AÑOS | B42: 52839 | C42: 26449 | D42: 50.05582997 | E42: 26390 | F42: 49.94417003
A43: 50 AÑOS | B43: 53083 | C43: 26311 | D43: 49.56577435 | E43: 26772 | F43: 50.43422565
A44: 51 AÑOS | B44: 53523 | C44: 26655 | D44: 49.80102012 | E44: 26868 | F44: 50.19897988
A45: 52 AÑOS | B45: 54953 | C45: 27358 | D45: 49.78436118 | E45: 27595 | F45: 50.21563882
A46: 53 AÑOS | B46: 54950 | C46: 27015 | D46: 49.16287534 | E46: 27935 | F46: 50.83712466
A47: 54 AÑOS | B47: 54342 | C47: 27062 | D47: 49.7994185 | E47: 27280 | F47: 50.2005815
A48: 55 AÑOS | B48: 53543 | C48: 26454 | D48: 49.40701866 | E48: 27089 | F48: 50.59298134
A49: 56 AÑOS | B49: 53183 | C49: 26314 | D49: 49.47821672 | E49: 26869 | F49: 50.52178328
A50: 57 AÑOS | B50: 50863 | C50: 24929 | D50: 49.01205198 | E50: 25934 | F50: 50.98794802
A51: 58 AÑOS | B51: 50420 | C51: 24973 | D51: 49.52994843 | E51: 25447 | F51: 50.47005157
A52: 59 AÑOS | B52: 49260 | C52: 24044 | D52: 48.81039383 | E52: 25216 | F52: 51.18960617
A53: 60 AÑOS | B53: 46496 | C53: 22875 | D53: 49.19778045 | E53: 23621 | F53: 50.80221955
A54: 61 AÑOS | B54: 43886 | C54: 21501 | D54: 48.9928451 | E54: 22385 | F54: 51.0071549
A55: 62 AÑOS | B55: 41902 | C55: 20475 | D55: 48.86401604 | E55: 21427 | F55: 51.13598396
A56: 63 AÑOS | B56: 40419 | C56: 19673 | D56: 48.67265395 | E56: 20746 | F56: 51.32734605
A57: 64 AÑOS | B57: 38760 | C57: 18669 | D57: 48.16563467 | E57: 20091 | F57: 51.83436533
A58: 65 AÑOS | B58: 36993 | C58: 17955 | D58: 48.53620955 | E58: 19038 | F58: 51.46379045
A59: 66 AÑOS | B59: 33609 | C59: 16307 | D59: 48.51974174 | E59: 17302 | F59: 51.48025826
A60: 67 AÑOS | B60: 31719 | C60: 15224 | D60: 47.99646899 | E60: 16495 | F60: 52.00353101
A61: 68 AÑOS | B61: 29321 | C61: 14055 | D61: 47.93492719 | E61: 15266 | F61: 52.06507281
A62: 69 AÑOS | B62: 27950 | C62: 13424 | D62: 48.02862254 | E62: 14526 | F62: 51.97137746
A63: 70 AÑOS | B63: 26338 | C63: 12526 | D63: 47.55866049 | E63: 13812 | F63: 52.44133951
A64: 71 AÑOS | B64: 23503 | C64: 11154 | D64: 47.45777135 | E64: 12349 | F64: 52.54222865
A65: 72 AÑOS | B65: 22024 | C65: 10423 | D65: 47.32564475 | E65: 11601 | F65: 52.67435525
A66: 73 AÑOS | B66: 20666 | C66: 9825 | D66: 47.54185619 | E66: 10841 | F66: 52.45814381
A67: 74 AÑOS | B67: 19728 | C67: 9370 | D67: 47.49594485 | E67: 10358 | F67: 52.50405515
A68: 75 AÑOS | B68: 18621 | C68: 8762 | D68: 47.05440095 | E68: 9859 | F68: 52.94559905
A69: 76 AÑOS | B69: 16563 | C69: 7753 | D69: 46.80915293 | E69: 8810 | F69: 53.19084707
A70: 77 AÑOS | B70: 15212 | C70: 7088 | D70: 46.59479358 | E70: 8124 | F70: 53.40520642
A71: 78 AÑOS | B71: 14120 | C71: 6445 | D71: 45.64447592 | E71: 7675 | F71: 54.35552408
A72: 79 AÑOS | B72: 13191 | C72: 6096 | D72: 46.21332727 | E72: 7095 | F72: 53.78667273
A73: 80 AÑOS | B73: 12175 | C73: 5612 | D73: 46.09445585 | E73: 6563 | F73: 53.90554415
A74: 81 AÑOS | B74: 11313 | C74: 5198 | D74: 45.94714046 | E74: 6115 | F74: 54.05285954
A75: 82 AÑOS | B75: =+C75+E75 -> 10376 | C75: 4670 | D75: 45.0077101 | E75: 5706 | F75: 54.9922899
A76: 83 AÑOS | B76: 9415 | C76: 4066 | D76: =+C76/B76*100 -> 43.18640467 | E76: 5349 | F76: =+E76/B76*100 -> 56.81359533
A77: 84 AÑOS | B77: 8411 | C77: 3603 | D77: 42.83676138 | E77: 4808 | F77: 57.16323862
A78: 85 AÑOS | B78: 7378 | C78: 3225 | D78: 43.7110328 | E78: 4153 | F78: 56.2889672
A79: 86 AÑOS | B79: 6499 | C79: 2763 | D79: 42.51423296 | E79: 3736 | F79: 57.48576704
A80: 87 AÑOS | B80: 6027 | C80: 2534 | D80: 42.04413473 | E80: 3493 | F80: 57.95586527
A81: 88 AÑOS | B81: 5305 | C81: 2185 | D81: 41.18755891 | E81: 3120 | F81: 58.81244109
A82: 89 AÑOS | B82: 4639 | C82: 1915 | D82: 41.28044837 | E82: 2724 | F82: 58.71955163
A83: 90 AÑOS | B83: 3846 | C83: 1574 | D83: 40.92563703 | E83: 2272 | F83: 59.07436297
A84: 91 AÑOS | B84: 3466 | C84: 1379 | D84: 39.7864974 | E84: 2087 | F84: 60.2135026
A85: 92 AÑOS | B85: 2842 | C85: 1169 | D85: 41.13300493 | E85: 1673 | F85: 58.86699507
A86: 93 AÑOS | B86: 2243 | C86: 874 | D86: 38.96567098 | E86: 1369 | F86: 61.03432902
A87: 94 AÑOS | B87: 1653 | C87: 602 | D87: 36.41863279 | E87: 1051 | F87: 63.58136721
A88: 95 AÑOS | B88: 1303 | C88: 491 | D88: 37.68227168 | E88: 812 | F88: 62.31772832
A89: 96 AÑOS | B89: 994 | C89: 364 | D89: 36.61971831 | E89: 630 | F89: 63.38028169
A90: 97 AÑOS | B90: 733 | C90: 262 | D90: 35.74351978 | E90: 471 | F90: 64.25648022
A91: 98 AÑOS | B91: 583 | C91: 204 | D91: 34.99142367 | E91: 379 | F91: 65.00857633
A92: 99 AÑOS | B92: 347 | C92: 109 | D92: 31.41210375 | E92: 238 | F92: 68.58789625
A93: 100 AÑOS | B93: 246 | C93: 81 | D93: 32.92682927 | E93: 165 | F93: 67.07317073
A94: 101 AÑOS | B94: 169 | C94: 68 | D94: 40.23668639 | E94: 101 | F94: 59.76331361
A95: 102 AÑOS | B95: 107 | C95: 44 | D95: 41.12149533 | E95: 63 | F95: 58.87850467
A96: 103 AÑOS | B96: 79 | C96: 34 | D96: 43.03797468 | E96: 45 | F96: 56.96202532
A97: 104 AÑOS | B97: 65 | C97: 17 | D97: 26.15384615 | E97: 48 | F97: 73.84615385
A98: 105 AÑOS | B98: 44 | C98: 14 | D98: 31.81818182 | E98: 30 | F98: 68.18181818
A99: 106 AÑOS | B99: 23 | C99: 5 | D99: 21.73913043 | E99: 18 | F99: 78.26086957
A100: 107 AÑOS | B100: 15 | C100: 5 | D100: 33.33333333 | E100: 10 | F100: 66.66666667
A101: 108 AÑOS | B101: 4 | C101: 1 | D101: 25 | E101: 3 | F101: 75
A102: 109 AÑOS | B102: 1 | C102: 0 | D102: 0 | E102: 1 | F102: 100
A103: 110 AÑOS | B103: 1 | C103: 0 | D103: 0 | E103: 1 | F103: 100
A104: 112 AÑOS | B104: 1 | C104: 1 | D104: 100 | E104: 0 | F104: 0
A105: 113 AÑOS | B105: 1 | C105: 0 | D105: 0 | E105: 1 | F105: 100
A106: 114 AÑOS | B106: 1 | C106: 1 | D106: 100 | E106: 0 | F106: 0
A107: 119 AÑOS | B107: 1 | C107: 1 | D107: 100 | E107: 0 | F107: 0
A110: Fuente: Padrón Electoral, Tribunal Supremo de Elecciones.

Sheet C5
A1: CUADRO 5 COSTA RICA: PADRÓN NACIONAL ELECTORAL POR SEXO
A2: SEGÚN GRUPOS DE EDAD, ELECCIONES MUNICIAPLES
A3: 2 DE FEBRERO 2020
A5: GRUPOS DE EDAD | B5: TOTAL | C5: SEXO
B6: Total | C6: HOMBRES | D6: % | E6: MUJERES | F6: %
A8: TOTAL | B8: =SUM(B10:B26) -> 3398338 | C8: =SUM(C10:C26) -> 1690575 | D8: =+C8/B8*100 -> 49.74711168 | E8: =SUM(E10:E26) -> 1707763 | F8: =+E8/B8*100 -> 50.25288832
A10: 18 - 19 | B10: =+C10+E10 -> 124441 | C10: 63134 | D10: =+C10/B10*100 -> 50.73408282 | E10: 61307 | F10: =+E10/B10*100 -> 49.26591718
A11: 20 - 24 | B11: =+C11+E11 -> 379387 | C11: 193619 | D11: =+C11/B11*100 -> 51.03469544 | E11: 185768 | F11: =+E11/B11*100 -> 48.96530456
A12: 25 - 29 | B12: =+C12+E12 -> 389714 | C12: 198747 | D12: 50.99816789 | E12: 190967 | F12: 49.00183211
A13: 30 - 34 | B13: 395997 | C13: 200631 | D13: 50.66477776 | E13: 195366 | F13: 49.33522224
A14: 35 - 39 | B14: 351807 | C14: 176932 | D14: 50.29234779 | E14: 174875 | F14: 49.70765221
A15: 40 - 44 | B15: 300431 | C15: 150510 | D15: 50.09802584 | E15: 149921 | F15: 49.90197416
A16: 45 - 49 | B16: 267114 | C16: 133216 | D16: 49.87233915 | E16: 133898 | F16: 50.12766085
A17: 50 - 54 | B17: 270851 | C17: 134401 | D17: 49.62174775 | E17: 136450 | F17: 50.37825225
A18: 55 - 59 | B18: 257269 | C18: 126714 | D18: 49.25350509 | E18: 130555 | F18: 50.74649491
A19: 60 - 64 | B19: 211463 | C19: 103193 | D19: 48.79955359 | E19: 108270 | F19: 51.20044641
A20: 65 - 69 | B20: 159592 | C20: 76965 | D20: 48.22610156 | E20: 82627 | F20: 51.77389844
A21: 70 - 74 | B21: 112259 | C21: 53298 | D21: 47.4777078 | E21: 58961 | F21: 52.5222922
A22: 75 - 79 | B22: 77707 | C22: 36144 | D22: 46.51318414 | E22: 41563 | F22: 53.48681586
A23: 80 - 84 | B23: 51690 | C23: 23149 | D23: 44.78429097 | E23: 28541 | F23: 55.21570903
A24: 85 - 89 | B24: 29848 | C24: 12622 | D24: 42.28759046 | E24: 17226 | F24: 57.71240954
A25: 90 - 94 | B25: 14050 | C25: 5598 | D25: 39.84341637 | E25: 8452 | F25: 60.15658363
A26: 95 Y MÁS | B26: 4718 | C26: 1702 | D26: 36.07460788 | E26: 3016 | F26: 63.92539212
A29: Fuente: Padrón Electoral, Tribunal Supremo de Elecciones.

Sheet G2
J3: HOMBRES | K3: MUJERES
J4: =+'C5'!C10 -> 63134 | K4: =+'C5'!E10*-1 -> -61307 | L4: 18 - 19 | M4: =CONCATENATE(L4," ") -> 18 - 19
J5: =+'C5'!C11 -> 193619 | K5: =+'C5'!E11*-1 -> -185768 | L5: 20 - 24 | M5: =CONCATENATE(L5," ") -> 20 - 24
J6: =+'C5'!C12 -> 198747 | K6: =+'C5'!E12*-1 -> -190967 | L6: 25 - 29 | M6: 25 - 29
J7: =+'C5'!C13 -> 200631 | K7: =+'C5'!E13*-1 -> -195366 | L7: 30 - 34 | M7: 30 - 34
J8: =+'C5'!C14 -> 176932 | K8: =+'C5'!E14*-1 -> -174875 | L8: 35 - 39 | M8: 35 - 39
J9: =+'C5'!C15 -> 150510 | K9: =+'C5'!E15*-1 -> -149921 | L9: 40 - 44 | M9: 40 - 44
J10: =+'C5'!C16 -> 133216 | K10: =+'C5'!E16*-1 -> -133898 | L10: 45 - 49 | M10: 45 - 49
J11: =+'C5'!C17 -> 134401 | K11: =+'C5'!E17*-1 -> -136450 | L11: 50 - 54 | M11: 50 - 54
J12: =+'C5'!C18 -> 126714 | K12: =+'C5'!E18*-1 -> -130555 | L12: 55 - 59 | M12: 55 - 59
J13: =+'C5'!C19 -> 103193 | K13: =+'C5'!E19*-1 -> -108270 | L13: 60 - 64 | M13: 60 - 64
J14: =+'C5'!C20 -> 76965 | K14: =+'C5'!E20*-1 -> -82627 | L14: 65 - 69 | M14: 65 - 69
J15: =+'C5'!C21 -> 53298 | K15: =+'C5'!E21*-1 -> -58961 | L15: 70 - 74 | M15: 70 - 74
J16: =+'C5'!C22 -> 36144 | K16: =+'C5'!E22*-1 -> -41563 | L16: 75 - 79 | M16: 75 - 79
J17: =+'C5'!C23 -> 23149 | K17: =+'C5'!E23*-1 -> -28541 | L17: 80 - 84 | M17: 80 - 84
J18: =+'C5'!C24 -> 12622 | K18: =+'C5'!E24*-1 -> -17226 | L18: 88 - 89 | M18: 88 - 89
J19: =+'C5'!C25 -> 5598 | K19: =+'C5'!E25*-1 -> -8452 | L19: 90 - 94 | M19: 90 - 94
J20: =+'C5'!C26 -> 1702 | K20: =+'C5'!E26*-1 -> -3016 | L20: 95 y más | M20: 95 y más
A39: Fuente: Padrón Electoral, Tribunal Supremo de Elecciones.

Sheet C6
A2: CUADRO 6 COSTA RICA: PADRÓN NACIONAL ELECTORAL POR PROVINCIA
A3: SEGÚN SEXO Y GRUPOS DE EDAD, ELECCIONES MUNICIPALES
A4: 2 DE FEBRERO 2020
A6: SEXO Y GRUPOS DE EDAD | B6: TOTAL | C6: PROVINCIA
C7: SAN JOSÉ | D7: ALAJUELA | E7: CARTAGO | F7: HEREDIA | G7: GUANACASTE | H7: PUNTARENAS | I7: LIMÓN
A9: COSTA RICA | B9: =SUM(B10:B26) -> 3398338 | C9: =SUM(C10:C26) -> 1139884 | D9: 657175 | E9: 399475 | F9: 344746 | G9: 250585 | H9: 322594 | I9: 283879
A10: 18 - 19 | B10: =+B29+B48 -> 124441 | C10: 38128 | D10: 25289 | E10: 14145 | F10: 12064 | G10: 9571 | H10: 12842 | I10: 12402
A11: 20 - 24 | B11: 379387 | C11: 118942 | D11: 75503 | E11: 43674 | F11: 36329 | G11: 29303 | H11: 38345 | I11: 37291
A12: 25 - 29 | B12: 389714 | C12: 126069 | D12: 76901 | E12: 46441 | F12: 38100 | G12: 28978 | H12: 37540 | I12: 35685
A13: 30 - 34 | B13: 395997 | C13: 129577 | D13: 78499 | E13: 47545 | F13: 39668 | G13: 28769 | H13: 37805 | I13: 34134
A14: 35 - 39 | B14: 351807 | C14: 118059 | D14: 67078 | E14: 41117 | F14: 37276 | G14: 25691 | H14: 33772 | I14: 28814
A15: 40 - 44 | B15: 300431 | C15: 100101 | D15: 56504 | E15: 36110 | F15: 32194 | G15: 22320 | H15: 28518 | I15: 24684
A16: 45 - 49 | B16: 267114 | C16: 87518 | D16: 50231 | E16: 32605 | F16: 27984 | G16: 19705 | H16: 26042 | I16: 23029
A17: 50 - 54 | B17: 270851 | C17: 90339 | D17: 52476 | E17: 33080 | F17: 27370 | G17: 19780 | H17: 25838 | I17: 21968
A18: 55 - 59 | B18: 257269 | C18: 88946 | D18: 49909 | E18: 30515 | F18: 26495 | G18: 18337 | H18: 23411 | I18: 19656
A19: 60 - 64 | B19: 211463 | C19: 75367 | D19: 40000 | E19: 24276 | F19: 21889 | G19: 15058 | H19: 18945 | I19: 15928
A20: 65 - 69 | B20: 159592 | C20: 58304 | D20: 29427 | E20: 17901 | F20: 16704 | G20: 11337 | H20: 14184 | I20: 11735
A21: 70 - 74 | B21: 112259 | C21: 41888 | D21: 21009 | E21: 12305 | F21: 11377 | G21: 8094 | H21: 9859 | I21: 7727
A22: 75 - 79 | B22: 77707 | C22: 28447 | D22: 15266 | E22: 8867 | F22: 7602 | G22: 5704 | H22: 6898 | I22: 4923
A23: 80 - 84 | B23: 51690 | C23: 19278 | D23: 9926 | E23: 5751 | F23: 5057 | G23: 3928 | H23: 4576 | I23: 3174
A24: 85 - 89 | B24: 29848 | C24: 11450 | D24: 5675 | E24: 3200 | F24: 2871 | G24: 2415 | H24: 2531 | I24: 1706
A25: 90 - 94 | B25: 14050 | C25: 5661 | D25: 2571 | E25: 1486 | F25: 1327 | G25: 1112 | H25: 1109 | I25: 784
A26: 95 Y MÁS | B26: =+B45+B64 -> 4718 | C26: 1810 | D26: 911 | E26: 457 | F26: 439 | G26: 483 | H26: 379 | I26: 239
A28: HOMBRES | B28: =SUM(B29:B45) -> 1690575 | C28: 554947 | D28: 331017 | E28: 198274 | F28: 169424 | G28: 126246 | H28: 164936 | I28: 145731
A29: 18 - 19 | B29: =SUM(C29:I29) -> 63134 | C29: 19296 | D29: 12882 | E29: 7236 | F29: 6194 | G29: 4875 | H29: 6506 | I29: 6145
A30: 20 - 24 | B30: 193619 | C30: 60348 | D30: 38799 | E30: 22339 | F30: 18529 | G30: 14976 | H30: 19572 | I30: 19056
A31: 25 - 29 | B31: 198747 | C31: 63957 | D31: 39725 | E31: 23766 | F31: 19459 | G31: 14605 | H31: 18988 | I31: 18247
A32: 30 - 34 | B32: 200631 | C32: 65131 | D32: 40460 | E32: 24072 | F32: 20049 | G32: 14555 | H32: 19124 | I32: 17240
A33: 35 - 39 | B33: 176932 | C33: 59296 | D33: 34160 | E33: 20587 | F33: 18616 | G33: 13017 | H33: 16965 | I33: 14291
A34: 40 - 44 | B34: 150510 | C34: 49981 | D34: 28744 | E34: 17820 | F34: 15928 | G34: 11179 | H34: 14358 | I34: 12500
A35: 45 - 49 | B35: 133216 | C35: 43049 | D35: 25074 | E35: 16017 | F35: 13872 | G35: 9883 | H35: 13445 | I35: 11876
A36: 50 - 54 | B36: 134401 | C36: 43938 | D36: 26002 | E36: 16352 | F36: 13334 | G36: 10091 | H36: 13285 | I36: 11399
A37: 55 - 59 | B37: 126714 | C37: 42569 | D37: 24759 | E37: 14955 | F37: 12774 | G37: 9289 | H37: 12124 | I37: 10244
A38: 60 - 64 | B38: 103193 | C38: 35218 | D38: 19839 | E38: 11807 | F38: 10344 | G38: 7596 | H38: 9877 | I38: 8512
A39: 65 - 69 | B39: 76965 | C39: 26467 | D39: 14643 | E39: 8537 | F39: 7793 | G39: 5719 | H39: 7450 | I39: 6356
A40: 70 - 74 | B40: 53298 | C40: 18739 | D40: 10128 | E40: 5845 | F40: 5238 | G40: 3929 | H40: 5204 | I40: 4215
A41: 75 - 79 | B41: 36144 | C41: 12347 | D41: 7274 | E41: 4165 | F41: 3357 | G41: 2793 | H41: 3563 | I41: 2645
A42: 80 - 84 | B42: 23149 | C42: 7832 | D42: 4578 | E42: 2593 | F42: 2183 | G42: 1889 | H42: 2429 | I42: 1645
A43: 85 - 89 | B43: 12622 | C43: 4314 | D43: 2508 | E43: 1390 | F43: 1116 | G43: 1149 | H43: 1268 | I43: 877
A44: 90 - 94 | B44: 5598 | C44: 1924 | D44: 1078 | E44: 638 | F44: 496 | G44: 498 | H44: 591 | I44: 373
A45: 95 Y MÁS | B45: 1702 | C45: 541 | D45: 364 | E45: 155 | F45: 142 | G45: 203 | H45: 187 | I45: 110
A47: MUJERES | B47: =SUM(B48:B64) -> 1707763 | C47: 584937 | D47: 326158 | E47: 201201 | F47: 175322 | G47: 124339 | H47: 157658 | I47: 138148
A48: 18 - 19 | B48: =SUM(C48:I48) -> 61307 | C48: 18832 | D48: 12407 | E48: 6909 | F48: 5870 | G48: 4696 | H48: 6336 | I48: 6257
A49: 20 - 24 | B49: 185768 | C49: 58594 | D49: 36704 | E49: 21335 | F49: 17800 | G49: 14327 | H49: 18773 | I49: 18235
A50: 25 - 29 | B50: 190967 | C50: 62112 | D50: 37176 | E50: 22675 | F50: 18641 | G50: 14373 | H50: 18552 | I50: 17438
A51: 30 - 34 | B51: 195366 | C51: 64446 | D51: 38039 | E51: 23473 | F51: 19619 | G51: 14214 | H51: 18681 | I51: 16894
A52: 35 - 39 | B52: 174875 | C52: 58763 | D52: 32918 | E52: 20530 | F52: 18660 | G52: 12674 | H52: 16807 | I52: 14523
A53: 40 - 44 | B53: 149921 | C53: 50120 | D53: 27760 | E53: 18290 | F53: 16266 | G53: 11141 | H53: 14160 | I53: 12184
A54: 45 - 49 | B54: 133898 | C54: 44469 | D54: 25157 | E54: 16588 | F54: 14112 | G54: 9822 | H54: 12597 | I54: 11153
A55: 50 - 54 | B55: 136450 | C55: 46401 | D55: 26474 | E55: 16728 | F55: 14036 | G55: 9689 | H55: 12553 | I55: 10569
A56: 55 - 59 | B56: 130555 | C56: 46377 | D56: 25150 | E56: 15560 | F56: 13721 | G56: 9048 | H56: 11287 | I56: 9412
A57: 60 - 64 | B57: 108270 | C57: 40149 | D57: 20161 | E57: 12469 | F57: 11545 | G57: 7462 | H57: 9068 | I57: 7416
A58: 65 - 69 | B58: 82627 | C58: 31837 | D58: 14784 | E58: 9364 | F58: 8911 | G58: 5618 | H58: 6734 | I58: 5379
A59: 70 - 74 | B59: 58961 | C59: 23149 | D59: 10881 | E59: 6460 | F59: 6139 | G59: 4165 | H59: 4655 | I59: 3512
A60: 75 - 79 | B60: 41563 | C60: 16100 | D60: 7992 | E60: 4702 | F60: 4245 | G60: 2911 | H60: 3335 | I60: 2278
A61: 80 - 84 | B61: 28541 | C61: 11446 | D61: 5348 | E61: 3158 | F61: 2874 | G61: 2039 | H61: 2147 | I61: 1529
A62: 85 - 89 | B62: 17226 | C62: 7136 | D62: 3167 | E62: 1810 | F62: 1755 | G62: 1266 | H62: 1263 | I62: 829
A63: 90 - 94 | B63: 8452 | C63: 3737 | D63: 1493 | E63: 848 | F63: 831 | G63: 614 | H63: 518 | I63: 411
A64: 95 Y MÁS | B64: 3016 | C64: 1269 | D64: 547 | E64: 302 | F64: 297 | G64: 280 | H64: 192 | I64: 129
A67: Fuente: Padrón Electoral, Tribunal Supremo de Elecciones.

Sheet C7
A2: CUADRO 7 COSTA RICA: PADRÓN NACIONAL ELECTORAL POR GRANDES GRUPOS DE EDAD
A3: SEGÚN PROVINCIA, ELECCIONES MUNICIPALES
A4: 2 DE FEBRERO 2020
A6: PROVINCIA | B6: TOTAL | C6: JÓVENES 1/ | D6: % | E6: ADULTOS 2/ | F6: % | G6: ADULTOS MAYORES 3/ | H6: %
A8: COSTA RICA | B8: 3398338 | C8: 1365428 | D8: 40.2 | E8: 1583046 | F8: 46.6 | G8: 449864 | H8: 13.2
A9: SAN JOSÉ | B9: 1139884 | C9: 437719 | D9: 38.4 | E9: 535327 | F9: 47 | G9: 166838 | H9: 14.6
A10: ALAJUELA | B10: 657175 | C10: 270861 | D10: 41.2 | E10: 301529 | F10: 45.9 | G10: 84785 | H10: 12.9
A11: CARTAGO | B11: 399475 | C11: 160648 | D11: 40.2 | E11: 188860 | F11: 47.3 | G11: 49967 | H11: 12.5
A12: HEREDIA | B12: 344746 | C12: 133975 | D12: 38.9 | E12: 165394 | F12: 48 | G12: 45377 | H12: 13.2
A13: GUANACASTE | B13: 250585 | C13: 102092 | D13: 40.7 | E13: 115420 | F13: 46.1 | G13: 33073 | H13: 13.2
A14: PUNTARENAS | B14: 322594 | C14: 134111 | D14: 41.6 | E14: 148947 | F14: 46.2 | G14: 39536 | H14: 12.3
A15: LIMÓN | B15: 283879 | C15: 126022 | D15: 44.4 | E15: 127569 | F15: 44.9 | G15: 30288 | H15: 10.7
A18: 1/ Personas de 18 a 35 años
A19: 2/ Personas de 36 a 64 años
A20: 3/ Personas de 65 años y más
A22: Fuente: Padrón Electoral, Tribunal Supremo de Elecciones.

Sheet C8
A1: CUADRO 8 COSTA RICA: PADRÓN NACIONAL ELECTORAL POR ZONA 1/, SEGÚN PROVINCIA Y CANTÓN
A2: ELECCIONES MUNICIPALES FEBRERO 2020
A4: PROVINCIA Y CANTÓN | B4: TOTAL | C4: URBANA | D4: % | E4: PREPONDERANTEMENTE URBANA | F4: % | G4: RURAL | H4: % | I4: PREPONDERANTEMENTE RURAL | J4: %
A6: COSTA RICA | B6: 3398338 | C6: 1254598 | D6: 36.91798756 | E6: 1265174 | F6: 37.22919851 | G6: 140687 | H6: 4.13987661 | I6: 737879 | J6: 21.71293732
A7: PROVINCIA SAN JOSÉ | B7: 1139884 | C7: 742759 | D7: 65.16092866 | E7: 257432 | F7: 22.58405241 | G7: 74027 | H7: 6.49425731 | I7: 65666 | J7: 5.760761621
A8: SAN JOSÉ | B8: 237491 | C8: 237491 | D8: 100 | E8: 0 | F8: 0 | G8: 0 | H8: 0 | I8: 0 | J8: 0
A9: ESCAZÚ | B9: 48909 | C9: 32978 | D9: 67.42726288 | E9: 15931 | F9: 32.57273712 | G9: 0 | H9: 0 | I9: 0 | J9: 0
A10: DESAMPARADOS | B10: 163721 | C10: 117659 | D10: 71.86555176 | E10: 36590 | F10: 22.34899616 | G10: 6440 | H10: 3.933521051 | I10: 3032 | J10: 1.851931029
A11: PURISCAL | B11: 29170 | C11: 0 | D11: 0 | E11: 10768 | F11: 36.91463833 | G11: 14602 | H11: 50.05827905 | I11: 3800 | J11: 13.02708262
A12: TARRAZÚ | B12: 12455 | C12: 0 | D12: 0 | E12: 7923 | F12: 63.61300682 | G12: 1454 | H12: 11.6740265 | I12: 3078 | J12: 24.71296668
A13: ASERRÍ | B13: 43971 | C13: 0 | D13: 0 | E13: 31159 | F13: 70.862614 | G13: 2798 | H13: 6.363284892 | I13: 10014 | J13: 22.77410111
A14: MORA | B14: 22339 | C14: 0 | D14: 0 | E14: 12758 | F14: 57.11088231 | G14: 1735 | H14: 7.766686065 | I14: 7846 | J14: 35.12243162
A15: GOICOECHEA | B15: 91511 | C15: 74620 | D15: 81.54210969 | E15: 13497 | F15: 14.74904656 | G15: 0 | H15: 0 | I15: 3394 | J15: 3.708843746
A16: SANTA ANA | B16: 37125 | C16: 22578 | D16: 60.81616162 | E16: 11515 | F16: 31.01683502 | G16: 0 | H16: 0 | I16: 3032 | J16: 8.167003367
A17: ALAJUELITA | B17: 51812 | C17: 49788 | D17: 96.09356906 | E17: 2024 | F17: 3.906430943 | G17: 0 | H17: 0 | I17: 0 | J17: 0
A18: VÁZQUEZ DE CORONADO | B18: 55002 | C18: 17238 | D18: 31.34067852 | E18: 37764 | F18: 68.65932148 | G18: 0 | H18: 0 | I18: 0 | J18: 0
A19: ACOSTA | B19: 17156 | C19: 0 | D19: 0 | E19: 0 | F19: 0 | G19: 5517 | H19: 32.15784565 | I19: 11639 | J19: 67.84215435
A20: TIBÁS | B20: 56487 | C20: 56487 | D20: 100 | E20: 0 | F20: 0 | G20: 0 | H20: 0 | I20: 0 | J20: 0
A21: MORAVIA | B21: 45153 | C21: 40623 | D21: 89.96744402 | E21: 4530 | F21: 10.03255598 | G21: 0 | H21: 0 | I21: 0 | J21: 0
A22: MONTES DE OCA | B22: 43075 | C22: 43075 | D22: 100 | E22: 0 | F22: 0 | G22: 0 | H22: 0 | I22: 0 | J22: 0
A23: TURRUBARES | B23: 4834 | C23: 0 | D23: 0 | E23: 0 | F23: 0 | G23: 3412 | H23: 70.58336781 | I23: 1422 | J23: 29.41663219
A24: DOTA | B24: 5674 | C24: 0 | D24: 0 | E24: 0 | F24: 0 | G24: 1726 | H24: 30.41945717 | I24: 3948 | J24: 69.58054283
A25: CURRIDABAT | B25: 50222 | C25: 50222 | D25: 100 | E25: 0 | F25: 0 | G25: 0 | H25: 0 | I25: 0 | J25: 0
A26: PÉREZ ZELEDÓN | B26: 114449 | C26: 0 | D26: 0 | E26: 68842 | F26: 60.15080953 | G26: 31146 | H26: 27.21386819 | I26: 14461 | J26: 12.63532228
A27: LEÓN CORTÉS CASTRO | B27: 9328 | C27: 0 | D27: 0 | E27: 4131 | F27: 44.28602058 | G27: 5197 | H27: 55.71397942 | I27: 0 | J27: 0
A28: PROVINCIA ALAJUELA | B28: 657175 | C28: 136291 | D28: 20.73892038 | E28: 276843 | F28: 42.12622209 | G28: 20417 | H28: 3.10678282 | I28: 223624 | J28: 34.02807471
A29: ALAJUELA | B29: 209680 | C29: 106851 | D29: 50.9590805 | E29: 95094 | F29: 45.3519649 | G29: 0 | H29: 0 | I29: 7735 | J29: 3.688954597
A30: SAN RAMÓN | B30: 66233 | C30: 24518 | D30: 37.01780079 | E30: 4304 | F30: 6.498271255 | G30: 296 | H30: 0.4469071309 | I30: 37115 | J30: 56.03702082
A31: GRECIA | B31: 55270 | C31: 0 | D31: 0 | E31: 43658 | F31: 78.99041071 | G31: 0 | H31: 0 | I31: 11612 | J31: 21.00958929
A32: SAN MATEO | B32: 4811 | C32: 0 | D32: 0 | E32: 0 | F32: 0 | G32: 530 | H32: 11.0164207 | I32: 4281 | J32: 88.9835793
A33: ATENAS | B33: 21154 | C33: 0 | D33: 0 | E33: 12771 | F33: 60.37156093 | G33: 2264 | H33: 10.70246762 | I33: 6119 | J33: 28.92597145
A34: NARANJO | B34: 32709 | C34: 0 | D34: 0 | E34: 15412 | F34: 47.11853007 | G34: 0 | H34: 0 | I34: 17297 | J34: 52.88146993
A35: PALMARES | B35: 29557 | C35: 4922 | D35: 16.65256961 | E35: 21190 | F35: 71.69198498 | G35: 0 | H35: 0 | I35: 3445 | J35: 11.65544541
A36: POÁS | B36: 22742 | C36: 0 | D36: 0 | E36: 14482 | F36: 63.67953566 | G36: 1859 | H36: 8.174303052 | I36: 6401 | J36: 28.14616129
A37: OROTINA | B37: 16274 | C37: 0 | D37: 0 | E37: 9219 | F37: 56.64864201 | G37: 1273 | H37: 7.822293228 | I37: 5782 | J37: 35.52906477
A38: SAN CARLOS | B38: 113408 | C38: 0 | D38: 0 | E38: 55911 | F38: 49.3007548 | G38: 8215 | H38: 7.243757054 | I38: 49282 | J38: 43.45548815
A39: ZARCERO | B39: 9278 | C39: 0 | D39: 0 | E39: 4802 | F39: 51.75684415 | G39: 442 | H39: 4.76395775 | I39: 4034 | J39: 43.4791981
A40: SARCHÍ | B40: 15107 | C40: 0 | D40: 0 | E40: 0 | F40: 0 | G40: 0 | H40: 0 | I40: 15107 | J40: 100
A41: UPALA | B41: 30030 | C41: 0 | D41: 0 | E41: 0 | F41: 0 | G41: 2442 | H41: 8.131868132 | I41: 27588 | J41: 91.86813187
A42: LOS CHILES | B42: 13027 | C42: 0 | D42: 0 | E42: 0 | F42: 0 | G42: 1522 | H42: 11.68342673 | I42: 11505 | J42: 88.31657327
A43: GUATUSO | B43: 11426 | C43: 0 | D43: 0 | E43: 0 | F43: 0 | G43: 1574 | H43: 13.77559951 | I43: 9852 | J43: 86.22440049
A44: RÍO CUARTO | B44: 6469 | C44: 0 | D44: 0 | E44: 0 | F44: 0 | G44: 0 | H44: 0 | I44: 6469 | J44: 100
A45: PROVINCIA CARTAGO | B45: 399475 | C45: 92794 | D45: 23.22898805 | E45: 252697 | F45: 63.25727517 | G45: 10908 | H45: 2.730583891 | I45: 43076 | J45: 10.78315289
A46: CARTAGO | B46: 125036 | C46: 56356 | D46: 45.07181932 | E46: 56560 | F46: 45.23497233 | G46: 3455 | H46: 2.763204197 | I46: 8665 | J46: 6.930004159
A47: PARAÍSO | B47: 48167 | C47: 0 | D47: 0 | E47: 39089 | F47: 81.15307161 | G47: 0 | H47: 0 | I47: 9078 | J47: 18.84692839
A48: LA UNIÓN | B48: 72609 | C48: 36438 | D48: 50.1838615 | E48: 36171 | F48: 49.8161385 | G48: 0 | H48: 0 | I48: 0 | J48: 0
A49: JIMÉNEZ | B49: 12404 | C49: 0 | D49: 0 | E49: 5636 | F49: 45.43695582 | G49: 0 | H49: 0 | I49: 6768 | J49: 54.56304418
A50: TURRIALBA | B50: 58384 | C50: 0 | D50: 0 | E50: 42018 | F50: 71.96834749 | G50: 7038 | H50: 12.05467251 | I50: 9328 | J50: 15.97697999
A51: ALVARADO | B51: 11066 | C51: 0 | D51: 0 | E51: 4737 | F51: 42.80679559 | G51: 0 | H51: 0 | I51: 6329 | J51: 57.19320441
A52: OREAMUNO | B52: 37179 | C52: 0 | D52: 0 | E52: 34271 | F52: 92.17838027 | G52: 0 | H52: 0 | I52: 2908 | J52: 7.821619732
A53: EL GUARCO | B53: 34630 | C53: 0 | D53: 0 | E53: 34215 | F53: 98.8016171 | G53: 415 | H53: 1.198382905 | I53: 0 | J53: 0
A54: PROVINCIA HEREDIA | B54: 344746 | C54: 257884 | D54: 74.80405864 | E54: 48629 | F54: 14.10574742 | G54: 799 | H54: 0.2317648356 | I54: 37434 | J54: 10.8584291
A55: HEREDIA | B55: 99320 | C55: 98737 | D55: 99.41300846 | E55: 0 | F55: 0 | G55: 0 | H55: 0 | I55: 583 | J55: 0.5869915425
A56: BARVA | B56: 33992 | C56: 14865 | D56: 43.73087785 | E56: 19127 | F56: 56.26912215 | G56: 0 | H56: 0 | I56: 0 | J56: 0
A57: SANTO DOMINGO | B57: 35439 | C57: 35439 | D57: 100 | E57: 0 | F57: 0 | G57: 0 | H57: 0 | I57: 0 | J57: 0
A58: SANTA BÁRBARA | B58: 27612 | C58: 15579 | D58: 56.42112125 | E58: 9693 | F58: 35.10430248 | G58: 0 | H58: 0 | I58: 2340 | J58: 8.474576271
A59: SAN RAFAEL | B59: 36956 | C59: 23725 | D59: 64.19796515 | E59: 13231 | F59: 35.80203485 | G59: 0 | H59: 0 | I59: 0 | J59: 0
A60: SAN ISIDRO | B60: 16663 | C60: 10085 | D60: 60.52331513 | E60: 6578 | F60: 39.47668487 | G60: 0 | H60: 0 | I60: 0 | J60: 0
A61: BELÉN | B61: 19306 | C61: 19306 | D61: 100 | E61: 0 | F61: 0 | G61: 0 | H61: 0 | I61: 0 | J61: 0
A62: FLORES | B62: 17393 | C62: 17393 | D62: 100 | E62: 0 | F62: 0 | G62: 0 | H62: 0 | I62: 0 | J62: 0
A63: SAN PABLO | B63: 22755 | C63: 22755 | D63: 100 | E63: 0 | F63: 0 | G63: 0 | H63: 0 | I63: 0 | J63: 0
A64: SARAPIQUÍ | B64: 35310 | C64: 0 | D64: 0 | E64: 0 | F64: 0 | G64: 799 | H64: 2.262815067 | I64: 34511 | J64: 97.73718493
A65: PROVINCIA GUANACASTE | B65: 250585 | C65: 0 | D65: 0 | E65: 135464 | F65: 54.0591017 | G65: 13413 | H65: 5.352674741 | I65: 101708 | J65: 40.58822356
A66: LIBERIA | B66: 47203 | C66: 0 | D66: 0 | E66: 41972 | F66: 88.91807724 | G66: 0 | H66: 0 | I66: 5231 | J66: 11.08192276
A67: NICOYA | B67: 42477 | C67: 0 | D67: 0 | E67: 21862 | F67: 51.46785319 | G67: 4301 | H67: 10.12547967 | I67: 16314 | J67: 38.40666714
A68: SANTA CRUZ | B68: 42694 | C68: 0 | D68: 0 | E68: 21254 | F68: 49.7821708 | G68: 1317 | H68: 3.084742587 | I68: 20123 | J68: 47.13308662
A69: BAGACES | B69: 14260 | C69: 0 | D69: 0 | E69: 0 | F69: 0 | G69: 802 | H69: 5.624123422 | I69: 13458 | J69: 94.37587658
A70: CARRILLO | B70: 25517 | C70: 0 | D70: 0 | E70: 25517 | F70: 100 | G70: 0 | H70: 0 | I70: 0 | J70: 0
A71: CAÑAS | B71: 20019 | C71: 0 | D71: 0 | E71: 17431 | F71: 87.07228133 | G71: 500 | H71: 2.497627254 | I71: 2088 | J71: 10.43009141
A72: ABANGARES | B72: 14024 | C72: 0 | D72: 0 | E72: 0 | F72: 0 | G72: 1708 | H72: 12.17912151 | I72: 12316 | J72: 87.82087849
A73: TILARÁN | B73: 15470 | C73: 0 | D73: 0 | E73: 7428 | F73: 48.0155139 | G73: 653 | H73: 4.221073045 | I73: 7389 | J73: 47.76341306
A74: NANDAYURE | B74: 8650 | C74: 0 | D74: 0 | E74: 0 | F74: 0 | G74: 1639 | H74: 18.94797688 | I74: 7011 | J74: 81.05202312
A75: LA CRUZ | B75: 14091 | C75: 0 | D75: 0 | E75: 0 | F75: 0 | G75: 0 | H75: 0 | I75: 14091 | J75: 100
A76: HOJANCHA | B76: 6180 | C76: 0 | D76: 0 | E76: 0 | F76: 0 | G76: 2493 | H76: 40.33980583 | I76: 3687 | J76: 59.66019417
A77: PROVINCIA PUNTARENAS | B77: 322594 | C77: 24870 | D77: 7.709380832 | E77: 150976 | F77: 46.80062245 | G77: 21123 | H77: 6.547858919 | I77: 125625 | J77: 38.9421378
A78: PUNTARENAS | B78: 88825 | C78: 24870 | D78: 27.99887419 | E78: 33745 | F78: 37.99043062 | G78: 3485 | H78: 3.923444976 | I78: 26725 | J78: 30.08725021
A79: ESPARZA | B79: 23525 | C79: 0 | D79: 0 | E79: 19845 | F79: 84.35706695 | G79: 1848 | H79: 7.855472901 | I79: 1832 | J79: 7.787460149
A80: BUENOS AIRES | B80: 32950 | C80: 0 | D80: 0 | E80: 16007 | F80: 48.57966616 | G80: 5321 | H80: 16.14871017 | I80: 11622 | J80: 35.27162367
A81: MONTES DE ORO | B81: 10587 | C81: 0 | D81: 0 | E81: 6944 | F81: 65.58987437 | G81: 991 | H81: 9.360536507 | I81: 2652 | J81: 25.04958912
A82: OSA | B82: 23342 | C82: 0 | D82: 0 | E82: 6401 | F82: 27.42267158 | G82: 1191 | H82: 5.102390541 | I82: 15750 | J82: 67.47493788
A83: QUEPOS | B83: 20603 | C83: 0 | D83: 0 | E83: 15358 | F83: 74.54254235 | G83: 0 | H83: 0 | I83: 5245 | J83: 25.45745765
A84: GOLFITO | B84: 30734 | C84: 0 | D84: 0 | E84: 19529 | F84: 63.5420056 | G84: 0 | H84: 0 | I84: 11205 | J84: 36.4579944
A85: COTO BRUS | B85: 31226 | C85: 0 | D85: 0 | E85: 0 | F85: 0 | G85: 8287 | H85: 26.53878178 | I85: 22939 | J85: 73.46121822
A86: PARRITA | B86: 12621 | C86: 0 | D86: 0 | E86: 0 | F86: 0 | G86: 0 | H86: 0 | I86: 12621 | J86: 100
A87: CORREDORES | B87: 35404 | C87: 0 | D87: 0 | E87: 24638 | F87: 69.59100667 | G87: 0 | H87: 0 | I87: 10766 | J87: 30.40899333
A88: GARABITO | B88: 12777 | C88: 0 | D88: 0 | E88: 8509 | F88: 66.5962276 | G88: 0 | H88: 0 | I88: 4268 | J88: 33.4037724
A89: PROVINCIA LIMÓN | B89: 283879 | C89: 0 | D89: 0 | E89: 143133 | F89: 50.4204256 | G89: 0 | H89: 0 | I89: 140746 | J89: 49.5795744
A90: LIMÓN | B90: 70958 | C90: 0 | D90: 0 | E90: 48166 | F90: 67.87959074 | G90: 0 | H90: 0 | I90: 22792 | J90: 32.12040926
A91: POCOCÍ | B91: 95804 | C91: 0 | D91: 0 | E91: 56515 | F91: 58.99023005 | G91: 0 | H91: 0 | I91: 39289 | J91: 41.00976995
A92: SIQUIRRES | B92: 41285 | C92: 0 | D92: 0 | E92: 20044 | F92: 48.55032094 | G92: 0 | H92: 0 | I92: 21241 | J92: 51.44967906
A93: TALAMANCA | B93: 22666 | C93: 0 | D93: 0 | E93: 0 | F93: 0 | G93: 0 | H93: 0 | I93: 22666 | J93: 100
A94: MATINA | B94: 22938 | C94: 0 | D94: 0 | E94: 0 | F94: 0 | G94: 0 | H94: 0 | I94: 22938 | J94: 100
A95: GUÁCIMO | B95: 30228 | C95: 0 | D95: 0 | E95: 18408 | F95: 60.89718142 | G95: 0 | H95: 0 | I95: 11820 | J95: 39.10281858
A98: 1/ La clasificación por zona se realizó con base en el "Manual de Clasificación Geográfica con Fines Estadísticos de Costa Rica" Instituto de Estadística y Censos (INEC).
A100: Fuente: Padrón Electoral, Tribunal Supremo de Elecciones.

Sheet C9
A1: CUADRO 9 COSTA RICA: ELECTORADO NATURALIZADO POR PAÍS DE ORIGEN
A2: SEGÚN SEXO Y GRUPO DE EDAD, ELECCIONES MUNICIPALES
A3: 2 DE FEBRERO 2020
A5: SEXO Y GRUPO DE EDAD | B5: País de origen
B6: TOTAL | C6: NICARAGUA | D6: COLOMBIA | E6: EL SALVADOR | F6: CUBA | G6: CHINA | H6: PERÚ | I6: PANAMÁ | J6: RESTO DE PAÍSES
A8: COSTA RICA | B8: =SUM(B9:B16) -> 70592 | C8: 36517 | D8: 9737 | E8: 4315 | F8: 2419 | G8: 2153 | H8: 1947 | I8: 1715 | J8: 11789
A9: MENOS DE 30 | B9: =SUM(C9:J9) -> 5656 | C9: =+C18+C27 -> 2915 | D9: 1406 | E9: 139 | F9: 178 | G9: 160 | H9: 106 | I9: 37 | J9: 715
A10: 30 - 39 | B10: =SUM(C10:J10) -> 12985 | C10: 7799 | D10: 2000 | E10: 360 | F10: 282 | G10: 375 | H10: 307 | I10: 155 | J10: 1707
A11: 40 - 49 | B11: 17553 | C11: 9064 | D11: 2757 | E11: 1107 | F11: 528 | G11: 558 | H11: 509 | I11: 313 | J11: 2717
A12: 50 - 59 | B12: 14788 | C12: 7065 | D12: 2137 | E12: 1005 | F12: 656 | G12: 405 | H12: 463 | I12: 473 | J12: 2584
A13: 60 - 59 | B13: 9813 | C13: 4412 | D13: 955 | E13: 988 | F13: 406 | G13: 307 | H13: 362 | I13: 347 | J13: 2036
A14: 70 - 79 | B14: 6021 | C14: 2930 | D14: 366 | E14: 509 | F14: 233 | G14: 221 | H14: 154 | I14: 261 | J14: 1347
A15: 80 - 89 | B15: 3072 | C15: 1830 | D15: 106 | E15: 187 | F15: 106 | G15: 109 | H15: 43 | I15: 110 | J15: 581
A16: 90 Y MÁS | B16: 704 | C16: 502 | D16: 10 | E16: 20 | F16: 30 | G16: 18 | H16: 3 | I16: 19 | J16: 102
A17: HOMBRES | B17: =SUM(B18:B25) -> 30969 | C17: 14397 | D17: 4558 | E17: 1879 | F17: 1355 | G17: 1178 | H17: 1046 | I17: 740 | J17: 5816
A18: MENOS DE 30 | B18: =SUM(C18:J18) -> 2529 | C18: 1149 | D18: 720 | E18: 69 | F18: 111 | G18: 90 | H18: 53 | I18: 6 | J18: 331
A19: 30 - 39 | B19: =SUM(C19:J19) -> 5083 | C19: 2749 | D19: 883 | E19: 161 | F19: 132 | G19: 235 | H19: 157 | I19: 52 | J19: 714
A20: 40 - 49 | B20: 7545 | C20: 3545 | D20: 1256 | E20: 499 | F20: 282 | G20: 316 | H20: 252 | I20: 131 | J20: 1264
A21: 50 - 59 | B21: 6700 | C21: 2928 | D21: 1007 | E21: 436 | F21: 390 | G21: 199 | H21: 239 | I21: 220 | J21: 1281
A22: 60 - 59 | B22: 4298 | C22: 1602 | D22: 448 | E22: 386 | F22: 245 | G22: 172 | H22: 207 | I22: 150 | J22: 1088
A23: 70 - 79 | B23: 3058 | C23: 1363 | D23: 193 | E23: 235 | F23: 140 | G23: 108 | H23: 110 | I23: 120 | J23: 789
A24: 80 - 89 | B24: 1421 | C24: 815 | D24: 48 | E24: 86 | F24: 43 | G24: 53 | H24: 26 | I24: 51 | J24: 299
A25: 90 Y MÁS | B25: 335 | C25: 246 | D25: 3 | E25: 7 | F25: 12 | G25: 5 | H25: 2 | I25: 10 | J25: 50
A26: MUJERES | B26: =SUM(B27:B34) -> 39623 | C26: 22120 | D26: 5179 | E26: 2436 | F26: 1064 | G26: 975 | H26: 901 | I26: 975 | J26: 5973
A27: MENOS DE 30 | B27: =SUM(C27:J27) -> 3127 | C27: 1766 | D27: 686 | E27: 70 | F27: 67 | G27: 70 | H27: 53 | I27: 31 | J27: 384
A28: 30 - 39 | B28: =SUM(C28:J28) -> 7902 | C28: 5050 | D28: 1117 | E28: 199 | F28: 150 | G28: 140 | H28: 150 | I28: 103 | J28: 993
A29: 40 - 49 | B29: 10008 | C29: 5519 | D29: 1501 | E29: 608 | F29: 246 | G29: 242 | H29: 257 | I29: 182 | J29: 1453
A30: 50 - 59 | B30: 8088 | C30: 4137 | D30: 1130 | E30: 569 | F30: 266 | G30: 206 | H30: 224 | I30: 253 | J30: 1303
A31: 60 - 59 | B31: 5515 | C31: 2810 | D31: 507 | E31: 602 | F31: 161 | G31: 135 | H31: 155 | I31: 197 | J31: 948
A32: 70 - 79 | B32: 2963 | C32: 1567 | D32: 173 | E32: 274 | F32: 93 | G32: 113 | H32: 44 | I32: 141 | J32: 558
A33: 80 - 89 | B33: 1651 | C33: 1015 | D33: 58 | E33: 101 | F33: 63 | G33: 56 | H33: 17 | I33: 59 | J33: 282
A34: 90 Y MÁS | B34: 369 | C34: 256 | D34: 7 | E34: 13 | F34: 18 | G34: 13 | H34: 1 | I34: 9 | J34: 52
A37: Fuente: Padrón Electoral, Tribunal Supremo de Elecciones.

Sheet C10
A2: CUADRO 10 COSTA RICA: NUEVOS ELECTORES 1/ POR SEXO, SEGÚN EDAD 2/ ELECCIONES MUNICIPALES 2 DE FEBRERO 2020
A4: EDAD | B4: TOTAL | C4: HOMBRES | D4: % | E4: MUJERES | F4: %
A6: TOTAL | B6: =SUM(B7:B9) -> 135000 | C6: =SUM(C7:C9) -> 67438 | D6: =+C6/B6*100 -> 49.95407407 | E6: =SUM(E7:E9) -> 67562 | F6: =+E6/B6*100 -> 50.04592593
A7: 18 AÑOS | B7: =+C7+E7 -> 48869 | C7: 24794 | D7: =+C7/B7*100 -> 50.73564018 | E7: 24075 | F7: =+E7/B7*100 -> 49.26435982
A8: 19 AÑOS | B8: =+C8+E8 -> 74789 | C8: 37949 | D8: =+C8/B8*100 -> 50.74141919 | E8: 36840 | F8: =+E8/B8*100 -> 49.25858081
A9: NATURALIZADOS 3/ | B9: =+C9+E9 -> 11342 | C9: 4695 | D9: =+C9/B9*100 -> 41.39481573 | E9: 6647 | F9: =+E9/B9*100 -> 58.60518427
A12: 1/ Personas nacidas entre 5/2/2000 y 2/2/2002, (rango de nuevos electores por edad) y Naturalizados después del 4/2/2017, ausentes en el padrón electoral para las elecciones 2020.
A13: 2/ Edad calculada al 2 de febrero 2020.
A14: 3/ Se incluyen 408 naturalizados menores de 20 años registrados en este grupo.
A16: Fuente: Bases de datos de Nacimientos y Padrón Electoral Febrero 2020.

Sheet C11
A2: CUADRO 11 COSTA RICA: NUEVOS ELECTORES 1/ POR SEXO, SEGÚN PROVINCIA ELECCIONES MUNICIPALES 2 DE FEBRERO 2020
A4: PROVINCIA | B4: TOTAL | C4: HOMBRES | D4: % | E4: MUJERES | F4: %
A6: TOTAL | B6: =SUM(B7:B13) -> 135000 | C6: =SUM(C7:C13) -> 67438 | D6: =+C6/B6*100 -> 49.95407407 | E6: =SUM(E7:E13) -> 67562 | F6: =+E6/B6*100 -> 50.04592593
A7: SAN JOSÉ | B7: =+C7+E7 -> 42917 | C7: 21294 | D7: =+C7/B7*100 -> 49.61670201 | E7: 21623 | F7: =+E7/B7*100 -> 50.38329799
A8: ALAJUELA | B8: 27157 | C8: 13615 | D8: 50.13440365 | E8: 13542 | F8: 49.86559635
A9: CARTAGO | B9: 14811 | C9: 7500 | D9: 50.6380393 | E9: 7311 | F9: 49.3619607
A10: HEREDIA | B10: 13333 | C10: 6740 | D10: 50.55126378 | E10: 6593 | F10: 49.44873622
A11: GUANCASTE | B11: 10218 | C11: 5123 | D11: 50.13701311 | E11: 5095 | F11: 49.86298689
A12: PUNTARENAS | B12: 13499 | C12: 6764 | D12: 50.10741536 | E12: 6735 | F12: 49.89258464
A13: LIMÓN | B13: 13065 | C13: 6402 | D13: =+C13/B13*100 -> 49.00114811 | E13: 6663 | F13: =+E13/B13*100 -> 50.99885189
A16: 1/ Personas nacidas entre 5/2/2000 y 2/2/2002, (rango de nuevos electores por edad) y Naturalizados después del 4/2/2017 y antes del 2/2/2019, ausentes en el padrón electoral para las eleccciones 2020.
A18: Fuente: Bases de datos de Nacimientos y Padrón Electoral febrero 2020.

Sheet C12
A1: CUADRO 12 COSTA RICA: CANTONES, DISTRITOS ADMINISTRATIVOS Y ELECTORALES
A2: SEGÚN PROVINCIA, ELECCIONES MUNICIPALES
A3: 2 DE FEBRERO 2020
A5: PROVINCIA | B5: CANTONES | C5: DISTRITOS
C6: ADMINISTRATIVOS | D6: ELECTORALES
A8: COSTA RICA | B8: =SUM(B10:B16) -> 82 | C8: =SUM(C10:C16) -> 487 | D8: =SUM(D10:D16) -> 2077
A10: SAN JOSÉ | B10: 20 | C10: 123 | D10: 444
A11: ALAJUELA | B11: 16 | C11: 116 | D11: 444
A12: CARTAGO | B12: 8 | C12: 51 | D12: 196
A13: HEREDIA | B13: 10 | C13: 47 | D13: 116
A14: GUANACASTE | B14: 11 | C14: 60 | D14: 300
A15: PUNTARENAS | B15: 11 | C15: 60 | D15: 381
A16: LIMÓN | B16: 6 | C16: 30 | D16: 196
A19: Fuente: Contraloría Electoral del Tribunal Supremo de Elecciones.

Sheet C13
A1: CUADRO 13 COSTA RICA: MOVIMIENTOS A LA DIVISIÓN TERRITORIAL ELECTORAL
A2: SEGÚN PROVINCIA, ELECCIONES MUNICIPALES
A3: 2 DE FEBRERO 2020
A5: PROVINCIA | B5: DISTRITOS ADMINISTRATIVOS CREADOS | C5: DISTRITOS ELECTORALES
C6: CREADOS 1/ | D6: REFUNDIDOS 2/ | E6: ELIMINADOS 3/ | F6: REUBICADOS 4/ | G6: MODIFICADOS 5/
A8: COSTA RICA | B8: =SUM(B10:B16) -> 5 | C8: 10 | D8: 3 | E8: 2 | F8: 19 | G8: 27
A10: SAN JOSÉ | B10: 0 | C10: 0 | D10: 1 | E10: 1 | F10: 0 | G10: 3
A11: ALAJUELA | B11: 3 | C11: 6 | D11: 1 | E11: 0 | F11: 12 | G11: 8
A12: CARTAGO | B12: 0 | C12: 2 | D12: 1 | E12: 1 | F12: 0 | G12: 2
A13: HEREDIA | B13: 0 | C13: 0 | D13: 0 | E13: 0 | F13: 0 | G13: 0
A14: GUANACASTE | B14: 1 | C14: 0 | D14: 0 | E14: 0 | F14: 0 | G14: 3
A15: PUNTARENAS | B15: 0 | C15: 1 | D15: 0 | E15: 0 | F15: 2 | G15: 5
A16: LIMÓN | B16: 1 | C16: 1 | D16: 0 | E16: 0 | F16: 5 | G16: 6
A19: 1/ El TSE crea los distritos electorales, ejerciendo su facultad legal de dividir un Distrito Administrativo en los electorales que sean necesarios, con el fin de procurar la mayor comodidad del electorado para la emisión de sus votos. (Art. 143 Código El Electoral).
A20: 2/Refundición: Es el traslado de los poblados y electores de un distrito electoral que perdió funcionalidad a otro. Regalmento para la formulación de la División Territorial Electoral.
A21: 3/ Eliminación de un distrito electoral porque deja de cumplir los requisitos mínimos para su existencia y/o funcionalidad. Regalmento para la formulación de la División Territorial Electoral.
A22: 4/ Rehubicados: Es el traslado de la cabecera del distrito electoral de un poblado a otro por la pérdida de su funcionalidad.
A23: 5/ Modificados: Procedimiento a través del cual el TSE crea, elimina, reubica o refunde un distrito electoral, en virtud de un cambio sustancial en sus condiciones originales. Esta gestión también puede conllevar el cambio de nombre, coordenadas y/o simbología de un poblado o distrito electoral.
A24: Fuente: Contraloría Electoral del Tribunal Supremo de Elecciones.

Sheet C14
A1: CUADRO 14 COSTA RICA: JUNTAS RECEPTORAS Y ELECTORADO EN CENTROS PENITENCIARIOS
A2: HOGARES DE ANCIANOS, ZONAS INDÍGENAS Y CENTROS DE SALUD MENTAL
A3: SEGÚN PROVINCIA, ELECCIONES MUNICIPALES 2 DE FEBRERO 2020
A5: PROVINCIA | B5: CENTROS PENITENCIARIOS | D5: HOGARES DE ANCIANOS | F5: ZONAS INDÍGENAS | H5: CENTROS DE SALUD MENTAL
B6: JUNTAS | C6: ELECTORADO | D6: JUNTAS | E6: ELECTORADO | F6: JUNTAS | G6: ELECTORADO | H6: JUNTAS | I6: ELECTORADO
A8: COSTA RICA | B8: =SUM(B10:B16) -> 39 | C8: 10148 | D8: 50 | E8: 2471 | F8: 97 | G8: 38537 | H8: 1 | I8: 129
A10: SAN JOSÉ | B10: =+'C15'!C10 -> 6 | C10: =+'C15'!D10 -> 1901 | D10: =+'C16'!C9 -> 14 | E10: =+'C16'!D9 -> 760 | F10: =+'C17'!C9 -> 5 | G10: =+'C17'!D9 -> 1706 | H10: 1 | I10: 129
A11: ALAJUELA | B11: =+'C15'!C15 -> 17 | C11: =+'C15'!D15 -> 4329 | D11: =+'C16'!C24 -> 9 | E11: =+'C16'!D24 -> 692 | F11: =+'C17'!C14 -> 2 | G11: =+'C17'!D14 -> 790 | H11: 0 | I11: 0
A12: CARTAGO | B12: =+'C15'!C27 -> 2 | C12: =+'C15'!D27 -> 538 | D12: =+'C16'!C34 -> 2 | E12: =+'C16'!D34 -> 140 | F12: =+'C17'!C17 -> 13 | G12: =+'C17'!D17 -> 3621 | H12: 0 | I12: 0
A13: HEREDIA | B13: =+'C15'!C29 -> 1 | C13: =+'C15'!D29 -> 63 | D13: =+'C16'!C37 -> 4 | E13: =+'C16'!D37 -> 186 | F13: 0 | G13: 0 | H13: 0 | I13: 0
A14: GUANACASTE | B14: =+'C15'!C31 -> 3 | C14: =+'C15'!D31 -> 752 | D14: =+'C16'!C42 -> 7 | E14: =+'C16'!D42 -> 168 | F14: =+'C17'!C30 -> 2 | G14: =+'C17'!D30 -> 909 | H14: 0 | I14: 0
A15: PUNTARENAS | B15: =+'C15'!C35 -> 3 | C15: =+'C15'!D35 -> 737 | D15: =+'C16'!C50 -> 9 | E15: =+'C16'!D50 -> 343 | F15: =+'C17'!C33 -> 41 | G15: =+'C17'!D33 -> 15092 | H15: 0 | I15: 0
A16: LIMÓN | B16: =+'C15'!C38 -> 7 | C16: =+'C15'!D38 -> 1828 | D16: =+'C16'!C60 -> 5 | E16: =+'C16'!D60 -> 182 | F16: =+'C17'!C69 -> 34 | G16: =+'C17'!D69 -> 16419 | H16: 0 | I16: 0
A19: Fuente: Padrón Electoral y Departamento de Programas Electorales, Tribunal Supremo de Elecciones.

Sheet C15
A1: CUADRO 15 COSTA RICA: JUNTAS RECEPTORAS Y ELECTORADO EN CENTROS PENITENCIARIOS POR SEXO
A2: SEGÚN PROVINCIA Y DISTRITO ELECTORAL, ELECCIONES MUNICIPALES
A3: 2 DE FEBRERO 2020
A5: CÓDIGO ELECTORAL | B5: PROVINCIA Y DISTRITO ELECTORAL | C5: NÚMERO DE JUNTAS | D5: ELECTORADO | E5: SEXO
E6: HOMBRES | F6: MUJERES
B8: COSTA RICA | C8: =+C10+C15+C27+C31+C35+C38+C29 -> 39 | D8: =+D10+D15+D27+D31+D35+D38+D29 -> 10148 | E8: =+E10+E15+E27+E31+E35+E38+E29 -> 9752 | F8: =+F10+F15+F27+F31+F35+F38+F29 -> 396
B10: SAN JOSÉ | C10: =SUM(C11:C14) -> 6 | D10: =SUM(D11:D14) -> 1901 | E10: 1525 | F10: 376
A11: 101030 | B11: C.P. CRISTO REY | C11: 2 | D11: 591 | E11: 591 | F11: 0
A12: 103034 | B12: C.P. VILMA CURLING RIVERA | C12: 1 | D12: 376 | E12: 0 | F12: 376
A13: 119105 | B13: C.P. ANTONIO BASTIDA DE PAZ | C13: 2 | D13: 736 | E13: 736 | F13: 0
A14: 119124 | B14: C.P. PABRU PRESBERI | C14: 1 | D14: 198 | E14: 198 | F14: 0
B15: ALAJUELA | C15: =SUM(C16:C26) -> 17 | D15: =SUM(D16:D26) -> 4329 | E15: 4329 | F15: 0
A16: 201058 | B16: C.P. REYNALDO VILLALOBOS ZUÑIGA | C16: 2 | D16: 535 | E16: 535 | F16: 0
A17: 201059 | B17: C.P. LUIS PAULINO MORA MORA | C17: 2 | D17: 562 | E17: 562 | F17: 0
A18: 201060 | B18: C.P. ÁMBITO A Y B [MÍNIMA] | C18: 2 | D18: 730 | E18: 730 | F18: 0
A19: 201062 | B19: C.P. ÁMBITO C [MEDIANA ABIERTA] | C19: 1 | D19: 322 | E19: 322 | F19: 0
A20: 201063 | B20: C.P. ÁMBITOS D [MED CERRADA] | C20: 2 | D20: 476 | E20: 476 | F20: 0
A21: 201064 | B21: C.P. GERARDO RODRÍGUEZ ECHEVERRÍA | C21: 2 | D21: 763 | E21: 763 | F21: 0
A22: 201065 | B22: C.P. ADULTO MAYOR | C22: 1 | D22: 107 | E22: 107 | F22: 0
A23: 201071 | B23: C.P. ADULTO JOVEN | C23: 1 | D23: 139 | E23: 139 | F23: 0
A24: 201074 | B24: C.P. ÁMBITO E [INDICIADOS] Y PENSIONES | C24: 1 | D24: 214 | E24: 214 | F24: 0
A25: 201075 | B25: C.P. CENTRO NACIONAL DE ATENCIÓN ESPECIFICA | C25: 1 | D25: 20 | E25: 20 | F25: 0
A26: 210093 | B26: C.P. NELSON MANDELA | C26: 2 | D26: 461 | E26: 461 | F26: 0
B27: CARTAGO | C27: =SUM(C28) -> 2 | D27: =SUM(D28) -> 538 | E27: 538 | F27: 0
A28: 308017 | B28: C.P. JORGE DEBRAVO | C28: 2 | D28: 538 | E28: 538 | F28: 0
B29: HEREDIA | C29: =SUM(C30:C30) -> 1 | D29: =SUM(D30:D30) -> 63 | E29: 55 | F29: 8
A30: 406007 | B30: C.P. SAN ISIDRO JUVENIL ZURQUI | C30: 1 | D30: 63 | E30: 55 | F30: 8
B31: GUANACASTE | C31: =SUM(C32:C34) -> 3 | D31: =SUM(D32:D34) -> 752 | E31: 740 | F31: 12
A32: 501011 | B32: C.P. CALLE REAL [MODULO B CASITAS] | C32: 1 | D32: 331 | E32: 319 | F32: 12
A33: 501022 | B33: C.P. CALLE REAL [MODULO D1-D2] | C33: 1 | D33: 298 | E33: 298 | F33: 0
A34: 501024 | B34: C.P. CALLE REAL (MODULO D3-D4) | C34: 1 | D34: 123 | E34: 123 | F34: 0
B35: PUNTARENAS | C35: =SUM(C36:C37) -> 3 | D35: =SUM(D36:D37) -> 737 | E35: 737 | F35: 0
A36: 601094 | B36: C.P. 26 DE JULIO [SENTENCIADOS] | C36: 2 | D36: 647 | E36: 647 | F36: 0
A37: 601109 | B37: C.P. 26 DE JULIO [INDICIADOS] | C37: 1 | D37: 90 | E37: 90 | F37: 0
B38: LIMÓN | C38: =SUM(C39:C43) -> 7 | D38: =SUM(D39:D43) -> 1828 | E38: 1828 | F38: 0
A39: 701037 | B39: C.P. LIMÓN [SANDOVAL] | C39: 2 | D39: 588 | E39: 588 | F39: 0
A40: 702035 | B40: C.P. CARLOS LUIS FALLAS [MODULOS A-B-C] | C40: 2 | D40: 542 | E40: 542 | F40: 0
A41: 702049 | B41: C.P. CARLOS LUIS FALLAS [MODULOS D-E] | C41: 1 | D41: 370 | E41: 370 | F41: 0
A42: 702053 | B42: C.P. CARLOS LUIS FALLAS (MODULO AGROPECUARIO) | C42: 1 | D42: 163 | E42: 163 | F42: 0
A43: 702054 | B43: C.P. 20 DE DICIEMBRE | C43: 1 | D43: 165 | E43: 165 | F43: 0
A46: Fuente: Padrón Electoral y Departamento de Programas Electorales, Tribunal Supremo de Elecciones.

Sheet C16
A1: CUADRO 16 COSTA RICA: JUNTAS RECEPTORAS Y ELECTORADO EN HOGARES DE ANCIANOS POR SEXO
A2: SEGÚN PROVINCIA Y DISTRITO ELECTORAL, ELECCIONES MUNICIPALES
A3: 2 DE FEBRERO 2020
A5: CÓDIGO ELECTORAL | B5: PROVINCIA Y DISTRITO ELECTORAL | C5: NÚMERO DE JUNTAS | D5: ELECTORADO | E5: SEXO
E6: HOMBRES | F6: MUJERES
B8: COSTA RICA | C8: =+C9+C24+C34+C42+C50+C60+C37 -> 50 | D8: =+D9+D24+D34+D42+D50+D60+D37 -> 2471 | E8: =+E9+E24+E34+E42+E50+E60+E37 -> 1320 | F8: =+F9+F24+F34+F42+F50+F60+F37 -> 1151
B9: SAN JOSÉ | C9: =SUM(C10:C23) -> 14 | D9: =SUM(D10:D23) -> 760 | E9: 342 | F9: 418
A10: 102008 | B10: H.A. MAGDALA | C10: 1 | D10: 48 | E10: 22 | F10: 26
A11: 103036 | B11: H.A. OFELIA CARVAJAL DE NARANJO | C11: 1 | D11: 63 | E11: 24 | F11: 39
A12: 103037 | B12: H.A. SAN CAYETANO | C12: 1 | D12: 43 | E12: 15 | F12: 28
A13: 103040 | B13: H.A.C.G. MANANTIAL DE VIDA SAN RAFAEL | C13: 1 | D13: 30 | E13: 15 | F13: 15
A14: 104045 | B14: H.A. CORAZÓN DE JESÚS | C14: 1 | D14: 43 | E14: 23 | F14: 20
A15: 105016 | B15: H.A. LOS SANTOS | C15: 1 | D15: 45 | E15: 23 | F15: 22
A16: 106024 | B16: H.A. SAN FRANCISCO DE ASÍS | C16: 1 | D16: 42 | E16: 22 | F16: 20
A17: 108002 | B17: H.A. CARLOS MARÍA ULLOA | C17: 1 | D17: 191 | E17: 83 | F17: 108
A18: 108013 | B18: H.A. CORTEZA AMARILLA-EMMANUEL | C18: 1 | D18: 15 | E18: 3 | F18: 12
A19: 112031 | B19: H.A. ACOSTA | C19: 1 | D19: 30 | E19: 16 | F19: 14
A20: 114006 | B20: H.A. CASA NAZARETH | C20: 1 | D20: 26 | E20: 10 | F20: 16
A21: 115007 | B21: H.A. MONTES DE OCA | C21: 1 | D21: 69 | E21: 28 | F21: 41
A22: 118010 | B22: H.A. CURRIDABAT | C22: 1 | D22: 34 | E22: 10 | F22: 24
A23: 119108 | B23: H.A. MONSEÑOR DELFÍN QUESADA CASTRO | C23: 1 | D23: 81 | E23: 48 | F23: 33
B24: ALAJUELA | C24: =SUM(C25:C33) -> 9 | D24: =SUM(D25:D33) -> 692 | E24: 347 | F24: 345
A25: 201066 | B25: H.A. SANTIAGO CRESPO CALVO | C25: 1 | D25: 179 | E25: 77 | F25: 102
A26: 202045 | B26: H.A. SAN RAMÓN | C26: 1 | D26: 41 | E26: 22 | F26: 19
A27: 203045 | B27: H.A. JAFETH JIMÉNEZ MORALES | C27: 1 | D27: 118 | E27: 53 | F27: 65
A28: 205016 | B28: H.A. HORTENSIA RODRÍGUEZ S. DE B | C28: 1 | D28: 68 | E28: 39 | F28: 29
A29: 206022 | B29: H.A. JOSÉ DEL OLMO | C29: 1 | D29: 56 | E29: 22 | F29: 34
A30: 207009 | B30: H.A. PALMARES | C30: 1 | D30: 69 | E30: 36 | F30: 33
A31: 209012 | B31: H.A. PRESBÍTERO JESÚS MARÍA VARGAS | C31: 1 | D31: 44 | E31: 27 | F31: 17
A32: 210094 | B32: H.A. SAN VICENTE DE PAÚL | C32: 1 | D32: 63 | E32: 44 | F32: 19
A33: 211012 | B33: H.A. SAN RAFAEL | C33: 1 | D33: 54 | E33: 27 | F33: 27
B34: CARTAGO | C34: =SUM(C35:C36) -> 2 | D34: =SUM(D35:D36) -> 140 | E34: 75 | F34: 65
A35: 301033 | B35: H.A. ASILO DE LA VEJEZ | C35: 1 | D35: 78 | E35: 34 | F35: 44
A36: 305068 | B36: H.A. SAN BUENAVENTURA | C36: 1 | D36: 62 | E36: 41 | F36: 21
B37: HEREDIA | C37: =SUM(C38:C41) -> 4 | D37: =SUM(D38:D41) -> 186 | E37: 100 | F37: 86
A38: 402012 | B38: H.A. REINA DE LOS ANGELES | C38: 1 | D38: 18 | E38: 7 | F38: 11
A39: 406008 | B39: H.A. SEÑORA DE LOS ANGELES | C39: 1 | D39: 80 | E39: 39 | F39: 41
A40: 409004 | B40: H.A. ALFREDO Y DELIA GONZÁLEZ FLORES | C40: 1 | D40: 61 | E40: 33 | F40: 28
A41: 410045 | B41: H.A. SAN AGUSTÍN | C41: 1 | D41: 27 | E41: 21 | F41: 6
B42: GUANACASTE | C42: =SUM(C43:C49) -> 7 | D42: =SUM(D43:D49) -> 168 | E42: 105 | F42: 63
A43: 501012 | B43: H.A. LIBERIA | C43: 1 | D43: 33 | E43: 22 | F43: 11
A44: 502084 | B44: H.A. SAN BLAS | C44: 1 | D44: 22 | E44: 12 | F44: 10
A45: 503045 | B45: H.A. NUESTRA SEÑORA DEL ROSARIO | C45: 1 | D45: 20 | E45: 12 | F45: 8
A46: 506017 | B46: H.A. MARY BLANCO | C46: 1 | D46: 28 | E46: 20 | F46: 8
A47: 507023 | B47: H.A. SAN JORGE | C47: 1 | D47: 22 | E47: 16 | F47: 6
A48: 508024 | B48: H.A. TILARÁN | C48: 1 | D48: 22 | E48: 11 | F48: 11
A49: 509027 | B49: H.A. SAGRADO CORAZON DE JESÚS | C49: 1 | D49: 21 | E49: 12 | F49: 9
B50: PUNTARENAS | C50: =SUM(C51:C59) -> 9 | D50: =SUM(D51:D59) -> 343 | E50: 235 | F50: 108
A51: 601106 | B51: H.A. MARÍA INMACULADA | C51: 1 | D51: 34 | E51: 20 | F51: 14
A52: 601103 | B52: H.A. MIGUEL MORENO | C52: 1 | D52: 30 | E52: 17 | F52: 13
A53: 602018 | B53: H.A. CARLOS VENEGAS | C53: 1 | D53: 14 | E53: 7 | F53: 7
A54: 604014 | B54: H.A. FRAY CASIANO DE MADRID | C54: 1 | D54: 58 | E54: 35 | F54: 23
A55: 605037 | B55: H.A. PALMAR SUR | C55: 1 | D55: 67 | E55: 53 | F55: 14
A56: 606038 | B56: H.A. PAQUITA | C56: 1 | D56: 27 | E56: 17 | F56: 10
A57: 607037 | B57: H.A. GOLFITO | C57: 1 | D57: 39 | E57: 31 | F57: 8
A58: 608045 | B58: H.A. COTO BRUS | C58: 1 | D58: 27 | E58: 22 | F58: 5
A59: 610030 | B59: H.A. NEILY | C59: 1 | D59: 47 | E59: 33 | F59: 14
B60: LIMÓN | C60: =SUM(C61:C65) -> 5 | D60: =SUM(D61:D65) -> 182 | E60: 116 | F60: 66
A61: 701038 | B61: H.A. VICTOR CASCO TORRES | C61: 1 | D61: 28 | E61: 10 | F61: 18
A62: 702037 | B62: H.A. GUÁPILES | C62: 1 | D62: 36 | E62: 29 | F62: 7
A63: 702052 | B63: H.A. CARIARI | C63: 1 | D63: 69 | E63: 47 | F63: 22
A64: 704021 | B64: H.A. SANTA LUISA | C64: 1 | D64: 26 | E64: 13 | F64: 13
A65: 706018 | B65: H.A. DAVID GARRO | C65: 1 | D65: 23 | E65: 17 | F65: 6
A68: Fuente: Padrón Electoral y Departamento de Programas Electorales, Tribunal Supremo de Elecciones.

Sheet C17
A1: CUADRO 17 COSTA RICA: JUNTAS RECEPTORAS Y ELECTORADO EN ZONAS INDÍGENAS
A2: SEGÚN PROVINCIA Y DISTRITO ELECTORAL, ELECCIONES MUNICIPALES
A3: 2 DE FEBRERO 2020
A5: CÓDIGO ELECTORAL | B5: PROVINCIA Y DISTRITO ELECTORAL | C5: NÚMERO DE JUNTAS | D5: ELECTORADO | E5: SEXO
E6: HOMBRES | F6: MUJERES
B8: COSTA RICA | C8: =+C9+C14+C17+C30+C33+C69 -> 97 | D8: =+D9+D14+D17+D30+D33+D69 -> 38537 | E8: =+E9+E14+E17+E30+E33+E69 -> 20194 | F8: =+F9+F14+F17+F30+F33+F69 -> 18343
B9: SAN JOSÉ | C9: =SUM(C10:C13) -> 5 | D9: =SUM(D10:D13) -> 1706 | E9: 900 | F9: 806
A10: 104024 | B10: ZAPATÓN (SAN CARLOS) | C10: 1 | D10: 365 | E10: 199 | F10: 166
A11: 104044 | B11: BAJO REY | C11: 1 | D11: 40 | E11: 21 | F11: 19
A12: 107014 | B12: QUITIRRISÍ | C12: 2 | D12: 994 | E12: 527 | F12: 467
A13: 119069 | B13: CHINA KICHÁ | C13: 1 | D13: 307 | E13: 153 | F13: 154
B14: ALAJUELA | C14: =SUM(C15:C16) -> 2 | D14: =SUM(D15:D16) -> 790 | E14: 400 | F14: 390
A15: 215003 | B15: MARGARITA | C15: 1 | D15: 468 | E15: 231 | F15: 237
A16: 215010 | B16: TONJIBE | C16: 1 | D16: 322 | E16: 169 | F16: 153
B17: CARTAGO | C17: =SUM(C18:C29) -> 13 | D17: =SUM(D18:D29) -> 3621 | E17: 1838 | F17: 1783
A18: 305017 | B18: GRANO DE ORO O XARA | C18: 2 | D18: 877 | E18: 439 | F18: 438
A19: 305057 | B19: SIMIRIÑAC (JACUY) | C19: 1 | D19: 320 | E19: 165 | F19: 155
A20: 305058 | B20: ALTO PACUARE ARRIBA (DUCLAC) | C20: 1 | D20: 253 | E20: 121 | F20: 132
A21: 305059 | B21: JAKI (CAPILLA DOS CHIRRIPÓ ARRIBA) | C21: 1 | D21: 379 | E21: 203 | F21: 176
A22: 305060 | B22: BOLORIÑAC (CAPILLA UNO) | C22: 1 | D22: 329 | E22: 170 | F22: 159
A23: 305061 | B23: NIMARI-ÑAC (RÍO PEJE) | C23: 1 | D23: 225 | E23: 120 | F23: 105
A24: 305062 | B24: NAMALDI | C24: 1 | D24: 112 | E24: 56 | F24: 56
A25: 305063 | B25: TSIPIRI (QUEBRADA PLATANILLO) | C25: 1 | D25: 529 | E25: 265 | F25: 264
A26: 305073 | B26: QUETZAL | C26: 1 | D26: 359 | E26: 177 | F26: 182
A27: 305075 | B27: JAMO (SITIO HILDA PARTE OESTE) | C27: 1 | D27: 77 | E27: 42 | F27: 35
A28: 305076 | B28: ALTO PACUARE ABAJO (JEKUI) | C28: 1 | D28: 130 | E28: 66 | F28: 64
A29: 305077 | B29: JACBATA (CERRO AZUL) | C29: 1 | D29: 31 | E29: 14 | F29: 17
B30: GUANACASTE | C30: =SUM(C31:C32) -> 2 | D30: =SUM(D31:D32) -> 909 | E30: 472 | F30: 437
A31: 502080 | B31: MATAMBUGUITO | C31: 1 | D31: 198 | E31: 102 | F31: 96
A32: 511011 | B32: MATAMBÚ | C32: 1 | D32: 711 | E32: 370 | F32: 341
B33: PUNTARENAS | C33: =SUM(C34:C68) -> 41 | D33: =SUM(D34:D68) -> 15092 | E33: 7963 | F33: 7129
A34: 603003 | B34: SALITRE | C34: 1 | D34: 469 | E34: 254 | F34: 215
A35: 603006 | B35: BORUCA | C35: 2 | D35: 1222 | E35: 643 | F35: 579
A36: 603007 | B36: LAS PILAS | C36: 1 | D36: 136 | E36: 83 | F36: 53
A37: 603008 | B37: COLINAS (MAÍZ DE LOS UVA) | C37: 1 | D37: 336 | E37: 185 | F37: 151
A38: 603011 | B38: CURRÉ | C38: 1 | D38: 390 | E38: 194 | F38: 196
A39: 603012 | B39: LA DANTA O CONCEPCIÓN | C39: 1 | D39: 441 | E39: 232 | F39: 209
A40: 603014 | B40: UJARRÁS | C40: 2 | D40: 962 | E40: 502 | F40: 460
A41: 603019 | B41: BAJO LAS BRISAS | C41: 2 | D41: 869 | E41: 441 | F41: 428
A42: 603022 | B42: TÉRRABA | C42: 1 | D42: 612 | E42: 313 | F42: 299
A43: 603023 | B43: SAN RAFAEL DE CABAGRA | C43: 2 | D43: 887 | E43: 453 | F43: 434
A44: 603027 | B44: BIJAGUAL | C44: 1 | D44: 472 | E44: 264 | F44: 208
A45: 603028 | B45: CAJÓN | C45: 1 | D45: 254 | E45: 150 | F45: 104
A46: 603029 | B46: GUAGARAL | C46: 1 | D46: 234 | E46: 127 | F46: 107
A47: 603030 | B47: MAÍZ DE BORUCA | C47: 1 | D47: 330 | E47: 182 | F47: 148
A48: 603031 | B48: CHÁNGUENA (LA FILA) | C48: 1 | D48: 258 | E48: 156 | F48: 102
A49: 603032 | B49: PILÓN | C49: 1 | D49: 471 | E49: 260 | F49: 211
A50: 603033 | B50: LAS VEGAS DE RÍO CHÁNGUENA | C50: 1 | D50: 109 | E50: 64 | F50: 45
A51: 603034 | B51: LA BONGA | C51: 1 | D51: 275 | E51: 152 | F51: 123
A52: 603035 | B52: SAN VICENTE (UPIAV-2) | C52: 1 | D52: 135 | E52: 69 | F52: 66
A53: 603036 | B53: PARAÍSO | C53: 1 | D53: 235 | E53: 129 | F53: 106
A54: 603041 | B54: PUENTE DE SALITRE | C54: 1 | D54: 348 | E54: 180 | F54: 168
A55: 603051 | B55: SHAMBA | C55: 1 | D55: 179 | E55: 103 | F55: 76
A56: 607021 | B56: LA PEÑA DE BURICA | C56: 1 | D56: 209 | E56: 113 | F56: 96
A57: 607024 | B57: GUAYMÍ DE BURICA | C57: 1 | D57: 244 | E57: 135 | F57: 109
A58: 607025 | B58: ALTO CONTE (MOLO DUBTDO) | C58: 1 | D58: 339 | E58: 179 | F58: 160
A59: 607027 | B59: PROGRESO DE CONTEBURICA | C59: 1 | D59: 254 | E59: 139 | F59: 115
A60: 608016 | B60: SAN GERARDO | C60: 1 | D60: 116 | E60: 64 | F60: 52
A61: 608042 | B61: LA CASONA (GUAYMÍ) | C61: 2 | D61: 1170 | E61: 590 | F61: 580
A62: 610003 | B62: BAJO LOS INDIOS | C62: 1 | D62: 270 | E62: 138 | F62: 132
A63: 610006 | B63: ABROJO NORTE (VEGAS DE ABROJO NORTE) | C63: 1 | D63: 652 | E63: 333 | F63: 319
A64: 610012 | B64: BARRIO NUEVO DE VERACRUZ O COLORADITO SUR | C64: 2 | D64: 901 | E64: 445 | F64: 456
A65: 610020 | B65: CARACOL DE LA VACA | C65: 1 | D65: 410 | E65: 213 | F65: 197
A66: 610021 | B66: VEREH | C66: 1 | D66: 380 | E66: 189 | F66: 191
A67: 610026 | B67: VEGAS DEL RÍO LA VACA (NIBIRIBOTDA) | C67: 1 | D67: 217 | E67: 124 | F67: 93
A68: 610027 | B68: ABROJO - MONTEZUMA | C68: 1 | D68: 306 | E68: 165 | F68: 141
B69: LIMÓN | C69: =SUM(C70:C90) -> 34 | D69: =SUM(D70:D90) -> 16419 | E69: 8621 | F69: 7798
A70: 701009 | B70: VESTA | C70: 1 | D70: 464 | E70: 258 | F70: 206
A71: 701021 | B71: BOCUARE | C71: 1 | D71: 232 | E71: 131 | F71: 101
A72: 701034 | B72: ALTO CWEN | C72: 1 | D72: 438 | E72: 220 | F72: 218
A73: 701035 | B73: XIQIARI | C73: 1 | D73: 581 | E73: 292 | F73: 289
A74: 701036 | B74: SINOLI | C74: 1 | D74: 230 | E74: 121 | F74: 109
A75: 701042 | B75: ALMIRANTE | C75: 1 | D75: 430 | E75: 218 | F75: 212
A76: 701044 | B76: JAKKUE (SITIO HILDA PARTE ESTE) | C76: 1 | D76: 50 | E76: 28 | F76: 22
A77: 703004 | B77: PACUARITO | C77: 1 | D77: 721 | E77: 408 | F77: 313
A78: 704001 | B78: BRATSI (BAMBÚ O DON DIEGO) | C78: 1 | D78: 438 | E78: 217 | F78: 221
A79: 704002 | B79: AMUBRI | C79: 3 | D79: 2009 | E79: 1034 | F79: 975
A80: 704003 | B80: COROMA (COLOQCHA) | C80: 1 | D80: 404 | E80: 217 | F80: 187
A81: 704006 | B81: PUERTO VIEJO | C81: 1 | D81: 1718 | E81: 964 | F81: 754
A82: 704007 | B82: BRIBRÍ [FIELDS] | C82: 3 | D82: 3381 | E82: 1747 | F82: 1634
A83: 704008 | B83: SHIROLES [XIROLES] | C83: 6 | D83: 2183 | E83: 1107 | F83: 1076
A84: 704013 | B84: KATSI | C84: 4 | D84: 690 | E84: 368 | F84: 322
A85: 704015 | B85: SEPEQUE | C85: 1 | D85: 1129 | E85: 575 | F85: 554
A86: 704019 | B86: SIBUJÚ | C86: 2 | D86: 340 | E86: 191 | F86: 149
A87: 704020 | B87: BAJO TELIRE [BAJO BLEY] | C87: 1 | D87: 211 | E87: 116 | F87: 95
A88: 704022 | B88: YORKIN | C88: 1 | D88: 232 | E88: 133 | F88: 99
A89: 704023 | B89: ALTO TELIRE [BAJO PIEDRA MESA] | C89: 1 | D89: 241 | E89: 121 | F89: 120
A90: 705017 | B90: PALMERA [CATSAQIBI] | C90: 1 | D90: 297 | E90: 155 | F90: 142
A93: Fuente: Padrón Electoral y Departamento de Programas Electorales, Tribunal Supremo de Elecciones.

Sheet T1
A2: TABLA 1 COSTA RICA: PARTIDOS POLÍTICOS A ESCALA NACIONAL QUE PARTICIPAN EN LAS ELECCIONES MUNICIPALES DE 2 DE FEBRERO 2020
A4: PARTIDO POLÍTICO | B4: DIVISA
A6: ACCESIBILIDAD SIN EXCLUSIÓN
A7: ACCIÓN CIUDADANA
A8: ALIANZA DEMÓCRATA CRISTIANA
A9: FRENTE AMPLIO
A10: INTEGRACIÓN NACIONAL
A11: LIBERACIÓN NACIONAL
A12: LIBERAL PROGRESISTA
A13: NUEVA GENERACIÓN
A14: NUEVA REPÚBLICA
A15: RENOVACIÓN COSTARRICENSE
A16: REPUBLICANO SOCIAL CRISTIANO
A17: RESTAURACIÓN NACIONAL
A18: UNIDAD SOCIAL CRISTIANA
A19: UNIDOS PODEMOS
A21: Fuente: Tribunal Supremo de Elecciones.

Sheet T2
A2: TABLA 2 COSTA RICA: PARTIDOS POLÍTICOS A ESCALA PROVINCIAL QUE PARTICIPAN EN LAS ELECCIONES MUNICIPALES DE 2 DE FEBRERO 2020
A4: PARTIDO POLÍTICO | B4: DIVISA
A6: ACTUEMOS YA (CARTAGO)
A7: AUTENTICO LIMONENSE (LIMÓN)
A8: COMUNAL UNIDO (SAN JOSÉ)
A9: IZQUIERDA UNIDA (LIMÓN)
A10: JUSTICIA SOCIAL COSTARRICENSE (LIMÓN)
A11: NUESTRO PUEBLO (SAN JOSÉ)
A12: RECUPERANDO VALORES (LIMÓN)
A13: UNIÓN GUANACASTECA (GUANACASTE)
A14: VERDE ECOLOGISTA (CARTAGO)
A16: Fuente: Tribunal Supremo de Elecciones.

Sheet T3
A2: TABLA 3 COSTA RICA: PARTIDOS POLÍTICOS A ESCALA CANTONAL QUE PARTICIPAN EN LAS ELECCIONES MUNICIPALES DE 2 DE FEBRERO 2020
A4: PARTIDO POLÍTICO | B4: DIVISA
A6: ACCIÓN CANTONAL SIQUIRRES INDEPENDIENTE (SIQUIRRES, LIMÓN)
A7: ACCIÓN NARANJEÑA (NARANJO, ALAJUELA)
A8: ACUERDO DE ALIANZA DE QUEPOS (QUEPOS, PUNTARENAS)
A9: ALIANZA POR PALMARES (PALMARES, ALAJUELA)
A10: ALIANZA POR SAN JOSÉ (SAN JOSÉ, SAN JOSÉ)
A11: ALIANZA POR SARCHÍ (SARCHÍ, ALAJUELA)
A12: ALIANZA SOCIAL POR LA UNIÓN (LA UNIÓN. CARTAGO)
A13: ANTICORRUPCIÓN COSTARRICENSE (SAN JOSÉ, SAN JOSÉ)
A14: AUTÉNTICO LABRADOR DE CORONADO (VÁZQUEZ DE CORONADO, SAN JOSÉ)
A15: AUTÉNTICO NICOYANO (NICOYA, GUANACASTE)
A16: AUTÉNTICO SANTACRUCEÑO (SANTA CRUZ, GUANACASTE)
A17: AUTÉNTICO SIQUIRREÑO (SIQUIRRES, LIMÓN)
A18: AUTÓNOMO OROMONTANO (MONTES DE ORO, PUNTARENAS)
A19: AVANCE ISIDREÑO
A20: AVANCE MONTES DE OCA (MONTES DE OCA, SAN JOSÉ)
A21: AVANTE POCOCÍ (POCOCÍ, LIMÓN)
A22: BARVA UNIDA (BARVA, HEREDIA)
A23: CANTONAL DE CARRILLO (CARRILLO , GUANACASTE)
A24: COALICIÓN ALIANZA POR NICOYA
A25: COALICIÓN ASERRI DE TODOS
A26: COALICIÓN GENTE MONTES DE OCA
A27: COALICIÓN JUNTOS
A28: COALICIÓN UNIDAD POR FLORES
A29: COALICIÓN UNIÓN BELEMITA
A30: CURRIDABAT SIGLO XXI (CURRIDABAT, SAN JOSÉ)
A31: DEL SOL (SANTA ANA, SAN JOSÉ)
A32: DESARROLLO TALAMANQUEÑO (TALAMANCA, LIMÓN)
A33: DESPERTAR ALAJUELENSE (ALAJUELA, ALAJUELA)
A34: ECOLÓGICO COMUNAL COSTARRICENSE (DESAMPARADOS, SAN JOSÉ)
A35: FUERZA SARCHISEÑA (SARCHÍ, ALAJUELA)
A36: GOICOECHEA EN ACCIÓN (GOICOECHEA, SAN JOSÉ)
A37: GUANACASTE PRIMERO (NICOYA, GUANACASTE)
A38: INNOVACIÓN CANTONAL (SAN JOSÉ, SAN JOSÉ)
A39: JUSTICIA SOCIAL (QUEPOS, PUNTARENAS)
A40: LA FUERZA DE LA UNIÓN (LA UNIÓN, CARTAGO)
A41: LA GRAN NICOYA (NICOYA, GUANACASTE)
A42: LIGA RAMONENSE (SAN RAMÓN, ALAJUELA)
A43: MOVIMIENTO AVANCE SANTO DOMINGO
A44: NANDAYURE PROGRESA (NANDAYURE, GUANACASTE)
A45: NUEVA MAYORÍA GRIEGA (GRECIA, ALAJUELA)
A46: PALMARES PRIMERO (PALMARES, ALAJUELA)
A47: PROGRESER (SAN CARLOS, AJAJUELA)
A48: PUEBLO GARABITO (GARABITO, PUNTARENAS)
A49: PURISCAL EN MARCHA (PURISCAL, SAN JOSÉ)
A50: RESCATE CANTONAL LA UNIÓN (LA UNIÓN, CARTAGO)
A51: RESTAURACIÓN PARRITEÑA (PARRITA, PUNTARENAS)
A52: SENTIR HEREDIA (HEREDIA, HEREDIA)
A53: SOMOS MORAVIA (MORAVIA, SAN JOSÉ)
A54: SOMOS SARCHÍ (SARCHÍ, ALAJUELA)
A55: TARRAZÚ PRIMERO (TARRAZÚ, SAN JOSÉ)
A56: TERRA ESCAZÚ (ESCAZÚ, SAN JOSÉ)
A57: TODOS POR GOICOECHEA (GOICOECHEA, SAN JOSÉ)
A58: TURRIALBA PRIMERO (TURRIALBA, CARTAGO)
A59: ÚNICO ABANGAREÑO (ABANGARES, GUANACASTE)
A60: UNIDOS PARA EL DESARROLLO (MORA, SAN JOSÉ)
A61: UNIDOS POR ESCAZÚ (ESCAZÚ, SAN JOSÉ)
A62: UNIÓN ATENIENSE (ATENAS, ALAJUELA)
A63: UNIÓN DE PUNTARENENSES EMPRENDEDORES (PUNTARENAS, PUNTARENAS)
A64: UNIÓN DOMINGUEÑA (SANTO DOMINGO, HEREDIA)
A65: UNIÓN GRIEGA (GRECIA, ALAJUELA)
A66: UNIÓN GUARQUEÑO (EL GUARCO,CARTAGO)
A67: YO SOY EL CAMBIO (POCOCÍ, LIMÓN)
A68: YUNTA PROGRESISTA ESCAZUCEÑA (ESCAZÚ, SAN JOSÉ)
A70: Fuente: Tribunal Supremo de Elecciones.

Sheet partidos (hidden)
A1: CUADRO 17. COSTA RICA: PARTIDOS POLÍTICOS QUE PARTICIPAN EN LAS ELECCIONES
A2: SEGÚN ESCALA. ELECCIONES MUNICIPALES
A3: 2 DE FEBRERO 2020
A5: NOMBRE | B5: DIVISA
A7: ESCALA NACIONAL
A9: ACCESIBILIDAD SIN EXCLUSIÓN
A10: ACCIÓN CIUDADANA
A11: ALIANZA DEMÓCRATA CRISTIANA
A12: ALIANZA PATRIÓTICA
A13: AVANCE NACIONAL
A14: CENTRO DEMOCRÁTICO Y SOCIAL
A15: DE LOS TRABAJADORES
A16: FRENTE AMPLIO
A17: INTEGRACIÓN NACIONAL
A18: LIBERACIÓN NACIONAL
A19: LIBERAL PROGRESISTA
A20: MOVIMIENTO LIBERTARIO
A21: NUEVA GENERACIÓN
A22: NUEVA REPÚBLICA
A23: PATRIA NUEVA
A24: RENOVACIÓN COSTARRICENSE
A25: REPUBLICANO SOCIAL CRISTIANO
A26: RESTAURACIÓN NACIONAL
A27: UNIDAD SOCIAL CRISTIANA
A28: UNIDOS PODEMOS
A29: UNIÓN NACIONAL
A30: ESCALA PROVINCIAL
A31: ACTUEMOS YA (CARTAGO)
A32: ALIANZA MAYOR
A33: AUTENTICO LIMONENSE (LIMÓN)
A34: COMUNAL UNIDO (SAN JOSÉ)
A35: DE LOS TRANSPORTISTAS (SAN JOSÉ)
A36: FUERZA UNIDAS PARA EL CAMBIO (SAN JOSÉ)
A37: GUANACASTE INDEPENDIENTE (GUANACASTE)
A38: IZQUIERDA UNIDA (LIMÓN)
A39: JUSTICIA SOCIAL COSTARRICENSE (LIMÓN)
A40: MOVIMIENTO DE LOS TRABAJADORES Y CAMPESINOS (LIMÓN)
A41: NUESTRO PUEBLO (SAN JOSÉ)
A42: PATRIA IGUALDAD Y DEMOCRACIA (PUNTARENAS)
A43: PATRIA, IGUALDAD Y DEMOCRACIA (SAN JOSÉ)
A44: PUEBLO UNIDO (PUNTARENAS)
A45: RECUPERANDO VALORES (LIMÓN)
A46: RESTAURACIÓN HEREDIANA (HEREDIA)
A47: TODOS (SAN JOSÉ)
A48: TRANSPARENCIA CARTAGINÉS (CARTAGO)
A49: UNIÓN AGRÍCOLA CARTAGINÉS (CARTAGO)
A50: UNIÓN GUANACASTECA (GUANACASTE)
A51: VAMOS (SAN JOSÉ)
A52: VERDE (CARTAGO)
A53: VIVA PUNTARENAS (PUNTARENAS)
A54: ESCALA CANTONAL
A55: ACCIÓN CANTONAL SIQUIRRES INDEPENDIENTE (SIQUIRRES, LIMÓN)
A56: ACCIÓN NARANJEÑA (NARANJO, ALAJUELA)
A57: ACCIÓN QUEPEÑA (QUEPOS, PUNTARENAS)
A58: ACUERDO CANTONAL DESAMPARADEÑO (DESAMPARADOS, SAN JOSÉ)
A59: ACUERDO DE ALIANZA DE QUEPOS (AGUIRRE, PUNTARENAS)
A60: ALIANZA CRISTIANA SANTANEÑA (SANTA ANA, SAN JOSÉ)
A61: ALIANZA POR PALMARES (PALMARES, ALAJUELA)
A62: ALIANZA POR SAN JOSÉ (SAN JOSÉ, SAN JOSÉ)
A63: ALIANZA SANCARLEÑA (SAN CARLOS, ALAJUELA)
A64: ALIANZA POR SARCHÍ (SARCHÍ, ALAJUELA)
A65: ALIANZA SOCIAL POR LA UNIÓN (LA UNIÓN. CARTAGO)
A66: ALTERNATIVA SJO (SAN JOSÉ, SAN JOSÉ)
A67: ANTICORRUPCIÓN COSTARRICENSE (SAN JOSÉ, SAN JOSÉ)
A68: AUTÉNTICO LABRADOR DE CORONADO (VÁZQUEZ DE CORONADO, SAN JOSÉ)
A69: AUTÉNTICO NICOYANO
A70: AUTÉNTICO SANTACRUCEÑO
A71: AUTENTICO SIQUIRREÑO (SIQUIRRES, LIMÓN)
A72: AUTÓNOMO OROMONTANO (MONTES DE ORO, PUNTARENAS)
A73: AVANCE ISIDREÑO
A74: AVANCE MONTES DE OCA (MONTES DE OCA, SAN JOSÉ)
A75: AVANTE POCOCÍ (POCOCÍ LIMÓN)
A76: BARVA UNIDA (BARVA, HEREDIA)
A77: CANTONAL DE CARRILLO (CARRILLO , GUANACASTE)
A78: CIUDADANÍA GOICOECHEA (GOICOECHEA, SAN JOSÉ)
A79: CIUDADANOS LIBRES (GOICOECHEA, SAN JOSÉ)
A80: CIVÍCO DE TIBÁS FUENTEOVEJUNA (TIBÁS, SAN JOSÉ)
A81: COMUNAL PRO-CURRI (CURRIDABAT, SAN JOSÉ)
A82: CORREDORES EN ACCIÓN (CORREDORES , PUNTARENAS)
A83: CURRIDABAT SIGLO XXI (CURRIDABAT, SAN JOSÉ)
A84: DEL SOL (SANTA ANA, SAN JOSÉ)
A85: DEMÓCRATA (VÁZQUES DE CORONADO, SAN JOSÉ)
A86: DEMÓCRATA COSTARRICENSE (SAN JOSÉ, SAN JOSÉ)
A87: DESARROLLO TALAMANQUEÑO (TALAMANCA, LIMÓN)
A88: DESPERTAR ALAJUELENSE (ALAJUELA, ALAJUELA)
A89: ECOLÓGICO COMUNAL COSTARRICENSE (DESAMPARADOS, SAN JOSÉ)
A90: EL PARTIDO DE NICOYA (NICOYA, GUANACASTE)
A91: EL PUENTE Y LOS CAMINOS DE MORA (MORA, SAN JOSÉ)
A92: FUERZA DEMOCRÁTICA DESAMPARADEÑA (DESAMPARADOS, SAN JOSÉ)
A93: FUERZA SARCHISEÑA (SARCHÍ, ALAJUELA)
A94: GARABITO ECOLÓGICO (GARABITO, PUNTARENAS)
A95: PARTIDO GENTE MONTES DE OCA (MONTES DE OCA, SAN JOSÉ)
A96: GOICOECHEA EN ACCIÓN (GOICOECHEA, SAN JOSÉ)
A97: GUANACASTE PRIMERO (NICOYA, GUANACASTE)
A98: HUMANISTA DE MONTES DE OCA (MONTES DE OCA, SAN JOSÉ)
A99: INDEPENDIENTE BELEMITA (BELEN, HEREDIA)
A100: INDEPENDIENTE ESCAZUCEÑO (ESCAZÚ, SAN JOSÉ)
A101: INNOVACIÓN CANTONAL (SAN JOSÉ, SAN JOSÉ)
A102: INTEGRACIÓN BARBAREÑA (SANTA BÁRBARA, HEREDIA)
A103: JUSTICIA GENERALEÑA (PÉREZ ZELEDÓN, SAN JOSÉ)
A104: JUSTICIA SOCIAL (QUEPOS, PUNTARENAS)
A105: LA FUERZA DE LA UNIÓN (LA UNIÓN, CARTAGO)
A106: LA GRAN NICOYA (NICOYA, GUANACASTE)
A107: LIGA RAMONENSE (SAN RAMÓN, ALAJUELA)
A108: LIMÓN INDEPENDIENTE (CENTRO, LIMÓN)
A109: MOVIMIENTO AVANCE SANTO DOMINGO
A110: NANDAYURE PROGRESA (NANDAYURE, GUANACASTE)
A111: NUEVA MAYORIA GRIEGA (GRECIA, ALAJUELA)
A112: ORGANIZACIÓN SOCIAL ACTIVA (OSA, PUNTARENAS)
A113: PALMARES PRIMERO (PALMARES, ALAJUELA)
A114: PARRITA INDEPENDIENTE (PARRITA, PUNTARENAS)
A115: PROGRESER (SAN CARLOS, AJAJUELA)
A116: PROGRESO COMUNAL DESAMPARADEÑO (DESAMPARADOS, SAN JOSÉ)
A117: PUEBLO GARABITO (GARABITO, PUNTARENAS)
A118: PURISCAL EN MARCHA (PURISCAL, SAN JOSÉ)
A119: PURISCALEÑOS DE CORAZÓN (PURISCAL, SAN JOSÉ)
A120: RECICLARTE
A121: RENOVACIÓN CARTAGO (CENTRAL, CARTAGO)
A122: RENOVEMOS ALAJUELA (ALAJUELA, ALAJUELA)
A123: RESCATE CANTONAL LA UNIÓN (LA UNIÓN, CARTAGO)
A124: RESTAURACIÓN PARRITEÑA (PARRITA, PUNTARENAS)
A125: SENTIR HEREDIA (HEREDIA, HEREDIA)
A126: SOBERANO (SAN JOSÉ, SAN JOSÉ)
A127: SOLIDARIDAD (CENTRAL, SAN JOSÉ)
A128: SOMOS MORAVIA (MORAVIA, SAN JOSÉ)
A129: SOMOS SARCHÍ (SARCHÍ, ALAJUELA) | C129: YO SOY EL CAMBIO
A130: TARRAZÚ PRIMERO (TARRAZÚ, SAN JOSÉ)
A131: TERRA ESCAZÚ (ESCAZÚ, SAN JOSÉ)
A132: TODO POR FLORES (FLORES( HEREDIA)
A133: TODOS POR GOICOECHEA (GOICOECHEA, SAN JOSÉ)
A134: TURRIALBA PRIMERO (TURRIALBA, CARTAGO)
A135: ÚNICO ABANGAREÑO
A136: UNIDOS PARA EL DESARROLLO (MORA, SAN JOSÉ)
A137: UNIDOS POR ESCAZÚ (ESCAZÚ, SAN JOSÉ)
A138: UNIÓN ATENIENSE (ATENAS, ALAJUELA)
A139: UNIÓN CARIBEÑA (POCOCÍ, LIMÓN)
A140: UNIÓN DOMINGUEÑA (SANTO DOMINGO, HEREDIA)
A141: UNIÓN DE PUNTARENENSES EMPRENDEDORES (PUNTARENAS, PUNTARENAS)
A142: UNIÓN GRIEGA (GRECIA, ALAJUELA)
A143: UNIÓN PALMAREÑA (PALMARES, ALAJUELA)
A144: UNIÓN GUARQUEÑO (EL GUARCO, CARTAGO)
A145: UNIÓN PALMAREÑA (PALMARES, ALAJUELA)
A146: UNIÓN POASEÑA (POÁS, ALAJUELA)
A147: YO SOY EL CAMBIO (POCOCÍ, LIMÓN)
A148: YUNTA PROGRESISTA ESCAZUCEÑA (ESCAZÚ, SAN JOSÉ)
A149: Fuente: Página Web Tribunal Supremo de Elecciones.

Sheet C18
A1: CUADRO 18 COSTA RICA: CANDIDATURAS INSCRITAS POR ELECCIÓN, SEGÚN PROVINCIA Y TIPO DE CANDIDATURA
A2: ELECCIONES 2002, 2006, 2010, 2016 y 2020
A4: PROVINCIA Y TIPO DE CANDIDATURA | B4: 2002 | C4: 2006 | D4: 2010 | E4: 2016 | F4: 2020
A6: COSTA RICA | B6: =SUM(B7:B13) -> 25234 | C6: =SUM(C7:C13) -> 26708 | D6: =SUM(D7:D13) -> 23096 | E6: =SUM(E7:E13) -> 31879 | F6: =SUM(F7:F13) -> 33873
A7: SAN JOSÉ | B7: =+B16+B25+B34+B43 -> 6907 | C7: =+C16+C25+C34+C43 -> 7262 | D7: =+D16+D25+D34+D43 -> 6414 | E7: =+E16+E25+E34+E43 -> 8540 | F7: =+F16+F25+F34+F43 -> 8718
A8: ALAJUELA | B8: =+B17+B26+B35+B44+B52+B58 -> 5056 | C8: 5368 | D8: 4508 | E8: 6759 | F8: =+F17+F26+F35+F44+F52+F58 -> 7081
A9: CARTAGO | B9: 2886 | C9: 3297 | D9: 2370 | E9: 3577 | F9: =+F18+F27+F36+F45+F53+F59 -> 4129
A10: HEREDIA | B10: =+B19+B28+B37+B46 -> 2647 | C10: =+C19+C28+C37+C46 -> 2473 | D10: =+D19+D28+D37+D46 -> 2453 | E10: =+E19+E28+E37+E46 -> 2972 | F10: =+F19+F28+F37+F46 -> 2924
A11: GUANACASTE | B11: =+B20+B29+B38+B47+B54+B60 -> 2722 | C11: 2980 | D11: 2454 | E11: 3299 | F11: =+F20+F29+F38+F47+F54+F60 -> 4100
A12: PUNTARENAS | B12: 3012 | C12: 3246 | D12: 2911 | E12: 4056 | F12: =+F21+F30+F39+F48+F55+F61 -> 3773
A13: LIMÓN | B13: =+B22+B31+B40+B49 -> 2004 | C13: =+C22+C31+C40+C49 -> 2082 | D13: =+D22+D31+D40+D49 -> 1986 | E13: =+E22+E31+E40+E49 -> 2676 | F13: =+F22+F31+F40+F49 -> 3148
A15: ALCALDÍA Y VICEALCALDÍA | B15: =SUM(B16:B22) -> 1089 | C15: =SUM(C16:C22) -> 1099 | D15: =SUM(D16:D22) -> 1008 | E15: =SUM(E16:E22) -> 1780 | F15: =SUM(F16:F22) -> 2018
A16: SAN JOSÉ | B16: 266 | C16: 273 | D16: 258 | E16: 468 | F16: 494
A17: ALAJUELA | B17: 185 | C17: 184 | D17: 182 | E17: 313 | F17: 348
A18: CARTAGO | B18: 112 | C18: 118 | D18: 87 | E18: 200 | F18: 255
A19: HEREDIA | B19: 135 | C19: 119 | D19: 117 | E19: 199 | F19: 234
A20: GUANACASTE | B20: 144 | C20: 146 | D20: 115 | E20: 180 | F20: 249
A21: PUNTARENAS | B21: 141 | C21: 157 | D21: 146 | E21: 259 | F21: 232
A22: LIMÓN | B22: 106 | C22: 102 | D22: 103 | E22: 161 | F22: 206
A24: REGIDURÍA 1/ | B24: =SUM(B25:B31) -> 8973 | C24: =SUM(C25:C31) -> 10789 | D24: =SUM(D25:D31) -> 7234 | E24: =SUM(E25:E31) -> 7016 | F24: =SUM(F25:F31) -> 7845
A25: SAN JOSÉ | B25: 2500 | C25: 3210 | D25: 2175 | E25: 2033 | F25: 2184
A26: ALAJUELA | B26: 1686 | C26: 1866 | D26: 1177 | E26: 1218 | F26: 1333
A27: CARTAGO | B27: 1115 | C27: 1465 | D27: 779 | E27: 821 | F27: 970
A28: HEREDIA | B28: 1071 | C28: 1137 | D28: 818 | E28: 721 | F28: 792
A29: GUANACASTE | B29: 828 | C29: 1183 | D29: 739 | E29: 644 | F29: 877
A30: PUNTARENAS | B30: 1090 | C30: 1048 | D30: 802 | E30: 870 | F30: 844
A31: LIMÓN | B31: 683 | C31: 880 | D31: 744 | E31: 709 | F31: 845
A33: SINDICATURA | B33: =SUM(B34:B40) -> 3488 | C33: =SUM(C34:C40) -> 3726 | D33: =SUM(D34:D40) -> 3578 | E33: =SUM(E34:E40) -> 6085 | F33: =SUM(F34:F40) -> 6760
A34: SAN JOSÉ | B34: 936 | C34: 943 | D34: 958 | E34: 1630 | F34: 1699
A35: ALAJUELA | B35: 726 | C35: 790 | D35: 809 | E35: 1399 | F35: 1469
A36: CARTAGO | B36: 371 | C36: 484 | D36: 338 | E36: 741 | F36: 917
A37: HEREDIA | B37: 349 | C37: 335 | D37: 356 | E37: 523 | F37: 595
A38: GUANACASTE | B38: 437 | C38: 438 | D38: 380 | E38: 596 | F38: 779
A39: PUNTARENAS | B39: 385 | C39: 467 | D39: 459 | E39: 747 | F39: 697
A40: LIMÓN | B40: 284 | C40: 269 | D40: 278 | E40: 449 | F40: 604
A42: CONCEJALÍA DE DISTRITO | B42: =SUM(B43:B49) -> 11454 | C42: =SUM(C43:C49) -> 10832 | D42: =SUM(D43:D49) -> 11004 | E42: =SUM(E43:E49) -> 16546 | F42: =SUM(F43:F49) -> 16777
A43: SAN JOSÉ | B43: 3205 | C43: 2836 | D43: 3023 | E43: 4409 | F43: 4341
A44: ALAJUELA | B44: 2430 | C44: 2495 | D44: 2321 | E44: 3775 | F44: 3870
A45: CARTAGO | B45: 1222 | C45: 1182 | D45: 1109 | E45: 1703 | F45: 1882
A46: HEREDIA | B46: 1092 | C46: 882 | D46: 1162 | E46: 1529 | F46: 1303
A47: GUANACASTE | B47: 1289 | C47: 1176 | D47: 1181 | E47: 1813 | F47: 2136
A48: PUNTARENAS | B48: 1285 | C48: 1430 | D48: 1347 | E48: 1960 | F48: 1752
A49: LIMÓN | B49: 931 | C49: 831 | D49: 861 | E49: 1357 | F49: 1493
A51: INTENDENCIA Y VICEINTENDENCIA | B51: =SUM(B52:B55) -> 26 | C51: =SUM(C52:C55) -> 34 | D51: =SUM(D52:D55) -> 61 | E51: =SUM(E52:E55) -> 103 | F51: =SUM(F52:F55) -> 106
A52: ALAJUELA | B52: 4 | C52: 4 | D52: 4 | E52: 11 | F52: 12
A53: CARTAGO | B53: 6 | C53: 6 | D53: 14 | E53: 26 | F53: 29
A54: GUANACASTE | B54: 3 | C54: 4 | D54: 8 | E54: 14 | F54: 14
A55: PUNTARENAS | B55: 13 | C55: 20 | D55: 35 | E55: 52 | F55: 51
A57: CONCEJALÍA MUNICIPALE DE DISTRITO | B57: =SUM(B58:B61) -> 204 | C57: =SUM(C58:C61) -> 228 | D57: =SUM(D58:D61) -> 211 | E57: =SUM(E58:E61) -> 349 | F57: =SUM(F58:F61) -> 367
A58: ALAJUELA | B58: 25 | C58: 29 | D58: 15 | E58: 43 | F58: 49
A59: CARTAGO | B59: 60 | C59: 42 | D59: 43 | E59: 86 | F59: 76
A60: GUANACASTE | B60: 21 | C60: 33 | D60: 31 | E60: 52 | F60: 45
A61: PUNTARENAS | B61: 98 | C61: 124 | D61: 122 | E61: 168 | F61: 197
A64: 1/ Los candidaturas a regidores se presentaros en las elecciones generales en el mes de febrero en los años 2002, 2006 y 2010.
A66: Fuente: Cómputo de Votos y Declaratorias de Elección, y Departamento de Registro de Partidos Políticos.

Sheet C19
A2: CUADRO 19 COSTA RICA: PUESTOS A ELEGIR, POR CARGO, SEGÚN TIPO DE CANDIDATURA ELECCIONES MUNICIPALES 2 DE FEBRERO 2020
A4: PUESTOS A ELEGIR | B4: TOTAL | C4: PROPIEDAD | D4: SUPLENCIA
A6: TOTAL | B6: =SUM(B8:B16) -> 6138 | C6: =SUM(C8:C16) -> 3118 | D6: =SUM(D8:D16) -> 3020
A8: ALCALDÍA | B8: 82 | C8: 82 | D8: NA
A9: VICEALCALDÍA PRIMERA | B9: 82 | C9: 82 | D9: NA
A10: VICEALCALDÍA SEGUNDA | B10: 82 | C10: NA | D10: 82
A11: REGIDURÍA | B11: =+C11+D11 -> 1016 | C11: 508 | D11: 508
A12: SINDICATURA | B12: 972 | C12: 486 | D12: 486
A13: CONCEJALÍA DE DISTRITO | B13: 3824 | C13: =486*4-C16 -> 1912 | D13: =486*4-D16 -> 1912
A14: INTENDENCIA | B14: =+C14 -> 8 | C14: 8 | D14: NA
A15: VICEINTENDENCIA | B15: =+C15 -> 8 | C15: 8 | D15: NA
A16: CONCEJALÍA MUNICIPAL DE DISTRITO | B16: 64 | C16: 32 | D16: 32
A19: Nota: No se considera la Isla del Coco debido a que no se presentaron candidatos para ese distrito
A20: Fuente: Convocatoria Elecciones y División Territorial Administrativa

Sheet C20
A1: CUADRO 20 COSTA RICA: COMPOSICIÓN DE LAS PAPELETAS POR SEXO, SEGÚN TIPO DE CANDIDATURA Y CARGO
A2: ELECCIONES MUNICIPALES 2 DE FEBRERO 2020
A3: (CIFRAS ABSOLUTAS Y RELATIVAS)
A5: TIPO DE CANDIDATURA Y CARGO | B5: TOTAL | C5: HOMBRES | E5: MUJERES
C6: ABSOLUTO | D6: % | E6: ABSOLUTO | F6: %
A8: TOTAL | B8: =SUM(B9:B17) -> 33873 | C8: =SUM(C9:C17) -> 17177 | D8: =+C8/B8*100 -> 50.71000502 | E8: =SUM(E9:E17) -> 16696 | F8: =+E8/B8*100 -> 49.28999498
A9: ALCALDÍA | B9: =+C9+E9 -> 692 | C9: =+C20 -> 533 | D9: =+C9/B9*100 -> 77.02312139 | E9: =+E20 -> 159 | F9: =+E9/B9*100 -> 22.97687861
A10: VICEALCALDÍA PRIMERA | B10: 677 | C10: =+C21 -> 154 | D10: =+C10/B10*100 -> 22.74741507 | E10: =+E21 -> 523 | F10: 77.25258493
A11: VICEALCALDÍA SEGUNDA | B11: 649 | C11: =+C30 -> 457 | D11: =+C11/B11*100 -> 70.41602465 | E11: =+E30 -> 192 | F11: 29.58397535
A12: REGIDURÍA | B12: =+C12+E12 -> 7845 | C12: =+C22+C31 -> 4039 | D12: 51.48502231 | E12: =+E22+E31 -> 3806 | F12: 48.51497769
A13: SINDICATURA | B13: 6760 | C13: =+C23+C32 -> 3406 | D13: 50.38461538 | E13: =+E23+E32 -> 3354 | F13: 49.61538462
A14: CONCEJALÍA DE DISTRITO | B14: 16777 | C14: =+C24+C33 -> 8351 | D14: 49.7764797 | E14: =+E24+E33 -> 8426 | F14: 50.2235203
A15: INTENDENCIA | B15: 54 | C15: =+C26 -> 40 | D15: 74.07407407 | E15: =+E26 -> 14 | F15: 25.92592593
A16: VICEINTENDENCIA | B16: 52 | C16: =+C27 -> 14 | D16: 26.92307692 | E16: =+E27 -> 38 | F16: 73.07692308
A17: CONCEJALÍA MUNICIPAL DE DISTRITO | B17: =+C17+E17 -> 367 | C17: =+C25+C34 -> 183 | D17: 49.86376022 | E17: =+E25+E34 -> 184 | F17: 50.13623978
A19: TOTAL EN PROPIEDAD | B19: =SUM(B20:B27) -> 18554 | C19: =SUM(C20:C27) -> 9849 | D19: =+C19/B19*100 -> 53.08289318 | E19: =SUM(E20:E27) -> 8705 | F19: =+E19/B19*100 -> 46.91710682
A20: ALCALDÍA | B20: =+C20+E20 -> 692 | C20: 533 | D20: =+C20/B20*100 -> 77.02312139 | E20: 159 | F20: =+E20/B20*100 -> 22.97687861
A21: VICEALCALDÍA PRIMERA | B21: 677 | C21: 154 | D21: =+C21/B21*100 -> 22.74741507 | E21: 523 | F21: =+E21/B21*100 -> 77.25258493
A22: REGIDURÍA | B22: =+C22+E22 -> 4015 | C22: 2140 | D22: 53.30012453 | E22: 1875 | F22: 46.69987547
A23: SINDICATURA | B23: 3692 | C23: 2269 | D23: 61.45720477 | E23: 1423 | F23: 38.54279523
A24: CONCEJALÍA DE DISTRITO | B24: 9180 | C24: 4603 | D24: 50.1416122 | E24: 4577 | F24: 49.8583878
A25: CONCEJALÍA MUNICIPAL DE DISTRITO | B25: 192 | C25: 96 | D25: 50 | E25: 96 | F25: 50
A26: INTENDENCIA | B26: 54 | C26: 40 | D26: 74.07407407 | E26: 14 | F26: 25.92592593
A27: VICEINTENDENCIA | B27: 52 | C27: 14 | D27: 26.92307692 | E27: 38 | F27: 73.07692308
A29: TOTAL EN SUPLENCIA | B29: =SUM(B31:B34) -> 14670 | C29: =SUM(C31:C34) -> 6871 | D29: =+C29/B29*100 -> 46.83708248 | E29: =SUM(E31:E34) -> 7799 | F29: =+E29/B29*100 -> 53.16291752
A30: VICEALCALDÍA SEGUNDA | B30: =+C30+E30 -> 649 | C30: 457 | D30: 70.41602465 | E30: 192 | F30: 29.58397535
A31: REGIDURÍA | B31: =+C31+E31 -> 3830 | C31: 1899 | D31: 49.58224543 | E31: 1931 | F31: 50.41775457
A32: SINDICATURA | B32: =+C32+E32 -> 3068 | C32: 1137 | D32: 37.05997392 | E32: 1931 | F32: 62.94002608
A33: CONCEJALÍA DE DISTRITO | B33: =+C33+E33 -> 7597 | C33: 3748 | D33: 49.33526392 | E33: 3849 | F33: 50.66473608
A34: CONCEJALÍA MUNICIPAL DE DISTRITO | B34: =+C34+E34 -> 175 | C34: 87 | D34: 49.71428571 | E34: 88 | F34: 50.28571429
A37: Fuente: Departamento de Registro de Partidos Políticos, Base de datos de candidaturas febrero 2020

Sheet G3
C3: Sexo
A4: Tipo de candidatura | B4: MUJER | C4: HOMBRE | E4: MUJER | F4: HOMBRE
A5: =+'C20'!A10 -> VICEALCALDÍA PRIMERA | B5: =+'C20'!E10 -> 523 | C5: =+'C20'!C10 -> 154 | D5: =+B5+C5 -> 677 | E5: =+C5/D5 -> 0.2274741507 | F5: =+B5/D5 -> 0.7725258493
A6: =+'C20'!A16 -> VICEINTENDENCIA | B6: =+'C20'!E16 -> 38 | C6: =+'C20'!C16 -> 14 | D6: 52 | E6: 0.2692307692 | F6: 0.7307692308
A7: =+'C20'!A14 -> CONCEJALÍA DE DISTRITO | B7: =+'C20'!E14 -> 8426 | C7: =+'C20'!C14 -> 8351 | D7: 16777 | E7: 0.497764797 | F7: 0.502235203
A8: =+'C20'!A17 -> CONCEJALÍA MUNICIPAL DE DISTRITO | B8: =+'C20'!E17 -> 184 | C8: =+'C20'!C17 -> 183 | D8: 367 | E8: 0.4986376022 | F8: 0.5013623978
A9: =+'C20'!A13 -> SINDICATURA | B9: =+'C20'!E13 -> 3354 | C9: =+'C20'!C13 -> 3406 | D9: 6760 | E9: 0.5038461538 | F9: 0.4961538462
A10: =+'C20'!A12 -> REGIDURÍA | B10: =+'C20'!E12 -> 3806 | C10: =+'C20'!C12 -> 4039 | D10: 7845 | E10: 0.5148502231 | F10: 0.4851497769
A11: =+'C20'!A11 -> VICEALCALDÍA SEGUNDA | B11: =+'C20'!E11 -> 192 | C11: =+'C20'!C11 -> 457 | D11: 649 | E11: 0.7041602465 | F11: 0.2958397535
A12: =+'C20'!A15 -> INTENDENCIA | B12: =+'C20'!E15 -> 14 | C12: =+'C20'!C15 -> 40 | D12: 54 | E12: 0.7407407407 | F12: 0.2592592593
A13: =+'C20'!A9 -> ALCALDÍA | B13: =+'C20'!E9 -> 159 | C13: =+'C20'!C9 -> 533 | D13: 692 | E13: 0.7702312139 | F13: 0.2297687861
A34: Fuente: Departamento de Registro de Partidos Políticos, base de datos de Candidaturas 2020, Tribunal Supremo de Elecciones.

Sheet C21
A1: CUADRO 21 COSTA RICA: CANDIDATURAS A ALCALDÍAS Y VICEALCALDÍAS POR SEXO, SEGÚN PARTIDO POLÍTICO
A2: ELECCIONES MUNICIPALES 2 DE FEBRERO 2020
A3: (CIFRAS ABSOLUTAS Y RELATIVAS)
A5: PARTIDO POLÍTICO | B5: TOTAL | G5: ALCALDÍA | L5: VICEALCALDÍA PRIMERA | Q5: VICEALCALDÍA SEGUNDA
A6: PARTIDO POLITICO | B6: TOTAL | C6: HOMBRES | E6: MUJERES | G6: TOTAL | H6: HOMBRES | J6: MUJERES | L6: TOTAL | M6: HOMBRES | O6: MUJERES | Q6: TOTAL | R6: HOMBRES | T6: MUJERES
B7: ABS | C7: ABS | D7: % | E7: ABS | F7: % | G7: ABS | H7: ABS | I7: % | J7: ABS | K7: % | L7: ABS | M7: ABS | N7: % | O7: ABS | P7: % | Q7: ABS | R7: ABS | S7: % | T7: ABS | U7: %
A9: TOTAL | B9: =SUM(B11:B96) -> 2018 | C9: =SUM(C11:C96) -> 1144 | D9: =C9/B9*100 -> 56.68979187 | E9: =SUM(E11:E96) -> 874 | F9: =E9/B9*100 -> 43.31020813 | G9: =SUM(G11:G96) -> 692 | H9: =SUM(H11:H96) -> 533 | I9: =H9/G9*100 -> 77.02312139 | J9: =SUM(J11:J96) -> 159 | K9: =J9/G9*100 -> 22.97687861 | L9: =SUM(L11:L96) -> 677 | M9: =SUM(M11:M96) -> 154 | N9: =M9/L9*100 -> 22.74741507 | O9: =SUM(O11:O96) -> 523 | P9: =O9/L9*100 -> 77.25258493 | Q9: =SUM(Q11:Q96) -> 649 | R9: =SUM(R11:R96) -> 457 | S9: =R9/Q9*100 -> 70.41602465 | T9: =SUM(T11:T96) -> 192 | U9: =T9/Q9*100 -> 29.58397535
A11: ACCESIBILIDAD SIN EXCLUSIÓN | B11: =+C11+E11 -> 12 | C11: =+H11+M11+R11 -> 7 | D11: =C11/B11*100 -> 58.33333333 | E11: =+J11+O11+T11 -> 5 | F11: =E11/B11*100 -> 41.66666667 | G11: =+H11+J11 -> 4 | H11: 4 | I11: =H11/G11*100 -> 100 | J11: 0 | K11: =J11/G11*100 -> 0 | L11: =+M11+O11 -> 4 | M11: 0 | N11: =M11/L11*100 -> 0 | O11: 4 | P11: =O11/L11*100 -> 100 | Q11: =+R11+T11 -> 4 | R11: 3 | S11: =R11/Q11*100 -> 75 | T11: 1 | U11: =T11/Q11*100 -> 25
A12: ACCIÓN CANTONAL SIQUIRRES INDEPENDIENTE | B12: 3 | C12: 2 | D12: =C12/B12*100 -> 66.66666667 | E12: 1 | F12: =E12/B12*100 -> 33.33333333 | G12: 1 | H12: 1 | I12: 100 | J12: 0 | K12: 0 | L12: 1 | M12: 0 | N12: 0 | O12: 1 | P12: 100 | Q12: 1 | R12: 1 | S12: 100 | T12: 0 | U12: 0
A13: ACCIÓN CIUDADANA | B13: 125 | C13: 72 | D13: 57.6 | E13: 53 | F13: 42.4 | G13: 44 | H13: 30 | I13: 68.18181818 | J13: 14 | K13: 31.81818182 | L13: 42 | M13: 14 | N13: 33.33333333 | O13: 28 | P13: 66.66666667 | Q13: 39 | R13: 28 | S13: 71.79487179 | T13: 11 | U13: 28.20512821
A14: ACCIÓN NARANJEÑA | B14: 3 | C14: 2 | D14: 66.66666667 | E14: 1 | F14: 33.33333333 | G14: 1 | H14: 1 | I14: =H14/G14*100 -> 100 | J14: 0 | K14: =J14/G14*100 -> 0 | L14: 1 | M14: 0 | N14: 0 | O14: 1 | P14: =O14/L14*100 -> 100 | Q14: 1 | R14: 1 | S14: =R14/Q14*100 -> 100 | T14: 0 | U14: =T14/Q14*100 -> 0
A15: ACTUEMOS YA | B15: 21 | C15: 12 | D15: 57.14285714 | E15: 9 | F15: 42.85714286 | G15: 7 | H15: 5 | I15: 71.42857143 | J15: 2 | K15: 28.57142857 | L15: 7 | M15: 2 | N15: 28.57142857 | O15: 5 | P15: 71.42857143 | Q15: 7 | R15: 5 | S15: 71.42857143 | T15: 2 | U15: 28.57142857
A16: ACUERDO DE ALIANZA DE QUEPOS | B16: 3 | C16: 2 | D16: 66.66666667 | E16: 1 | F16: 33.33333333 | G16: 1 | H16: 1 | I16: 100 | J16: 0 | K16: 0 | L16: 1 | M16: 0 | N16: 0 | O16: 1 | P16: 100 | Q16: 1 | R16: 1 | S16: 100 | T16: 0 | U16: 0
A17: ALIANZA DEMÓCRATA CRISTIANA | B17: 46 | C17: 22 | D17: 47.82608696 | E17: 24 | F17: 52.17391304 | G17: 16 | H17: 13 | I17: 81.25 | J17: 3 | K17: 18.75 | L17: 16 | M17: 3 | N17: 18.75 | O17: 13 | P17: 81.25 | Q17: 14 | R17: 6 | S17: 42.85714286 | T17: 8 | U17: 57.14285714
A18: ALIANZA POR PALMARES | B18: 3 | C18: 2 | D18: 66.66666667 | E18: 1 | F18: 33.33333333 | G18: 1 | H18: 1 | I18: 100 | J18: 0 | K18: 0 | L18: 1 | M18: 0 | N18: 0 | O18: 1 | P18: 100 | Q18: 1 | R18: 1 | S18: 100 | T18: 0 | U18: 0
A19: ALIANZA POR SAN JOSÉ | B19: 3 | C19: 1 | D19: 33.33333333 | E19: 2 | F19: 66.66666667 | G19: 1 | H19: 0 | I19: 0 | J19: 1 | K19: 100 | L19: 1 | M19: 1 | N19: 100 | O19: 0 | P19: 0 | Q19: 1 | R19: 0 | S19: 0 | T19: 1 | U19: 100
A20: ALIANZA POR SARCHÍ | B20: 3 | C20: 2 | D20: 66.66666667 | E20: 1 | F20: 33.33333333 | G20: 1 | H20: 1 | I20: 100 | J20: 0 | K20: 0 | L20: 1 | M20: 0 | N20: 0 | O20: 1 | P20: 100 | Q20: 1 | R20: 1 | S20: 100 | T20: 0 | U20: 0
A21: ALIANZA SOCIAL POR LA UNIÓN | B21: 3 | C21: 2 | D21: 66.66666667 | E21: 1 | F21: 33.33333333 | G21: 1 | H21: 1 | I21: 100 | J21: 0 | K21: 0 | L21: 1 | M21: 0 | N21: 0 | O21: 1 | P21: 100 | Q21: 1 | R21: 1 | S21: 100 | T21: 0 | U21: 0
A22: ANTICORRUPCIÓN COSTARRICENSE | B22: 3 | C22: 1 | D22: 33.33333333 | E22: 2 | F22: 66.66666667 | G22: 1 | H22: 1 | I22: 100 | J22: 0 | K22: 0 | L22: 1 | M22: 0 | N22: 0 | O22: 1 | P22: 100 | Q22: 1 | R22: 0 | S22: 0 | T22: 1 | U22: 100
A23: AUTÉNTICO LABRADOR DE CORONADO | B23: 3 | C23: 2 | D23: 66.66666667 | E23: 1 | F23: 33.33333333 | G23: 1 | H23: 1 | I23: 100 | J23: 0 | K23: 0 | L23: 1 | M23: 0 | N23: 0 | O23: 1 | P23: 100 | Q23: 1 | R23: 1 | S23: 100 | T23: 0 | U23: 0
A24: AUTÉNTICO LIMONENSE | B24: 6 | C24: 3 | D24: 50 | E24: 3 | F24: 50 | G24: 2 | H24: 2 | I24: 100 | J24: 0 | K24: 0 | L24: 2 | M24: 0 | N24: 0 | O24: 2 | P24: 100 | Q24: 2 | R24: 1 | S24: 50 | T24: 1 | U24: 50
A25: AUTÉNTICO NICOYANO | B25: 3 | C25: 2 | D25: 66.66666667 | E25: 1 | F25: 33.33333333 | G25: 1 | H25: 1 | I25: 100 | J25: 0 | K25: 0 | L25: 1 | M25: 0 | N25: 0 | O25: 1 | P25: 100 | Q25: 1 | R25: 1 | S25: 100 | T25: 0 | U25: 0
A26: AUTÉNTICO SANTACRUCEÑO | B26: 3 | C26: 1 | D26: 33.33333333 | E26: 2 | F26: 66.66666667 | G26: 1 | H26: 1 | I26: 100 | J26: 0 | K26: 0 | L26: 1 | M26: 0 | N26: 0 | O26: 1 | P26: 100 | Q26: 1 | R26: 0 | S26: 0 | T26: 1 | U26: 100
A27: AUTÉNTICO SIQUIRREÑO | B27: 3 | C27: 2 | D27: 66.66666667 | E27: 1 | F27: 33.33333333 | G27: 1 | H27: 1 | I27: 100 | J27: 0 | K27: 0 | L27: 1 | M27: 0 | N27: 0 | O27: 1 | P27: 100 | Q27: 1 | R27: 1 | S27: 100 | T27: 0 | U27: 0
A28: AUTÓNOMO OROMONTANO | B28: 0 | C28: 0 | D28: 0 | E28: 0 | F28: 0 | G28: 0 | H28: 0 | I28: 0 | J28: 0 | K28: 0 | L28: 0 | M28: 0 | N28: 0 | O28: 0 | P28: 0 | Q28: 0 | R28: 0 | S28: 0 | T28: 0 | U28: 0
A29: AVANCE ISIDREÑO | B29: 3 | C29: 1 | D29: 33.33333333 | E29: 2 | F29: 66.66666667 | G29: 1 | H29: 1 | I29: 100 | J29: 0 | K29: 0 | L29: 1 | M29: 0 | N29: 0 | O29: 1 | P29: 100 | Q29: 1 | R29: 0 | S29: 0 | T29: 1 | U29: 100
A30: AVANCE MONTES DE OCA | B30: 3 | C30: 2 | D30: 66.66666667 | E30: 1 | F30: 33.33333333 | G30: 1 | H30: 1 | I30: 100 | J30: 0 | K30: 0 | L30: 1 | M30: 0 | N30: 0 | O30: 1 | P30: 100 | Q30: 1 | R30: 1 | S30: 100 | T30: 0 | U30: 0
A31: AVANTE POCOCÍ | B31: 3 | C31: 2 | D31: 66.66666667 | E31: 1 | F31: 33.33333333 | G31: 1 | H31: 1 | I31: 100 | J31: 0 | K31: 0 | L31: 1 | M31: 0 | N31: 0 | O31: 1 | P31: 100 | Q31: 1 | R31: 1 | S31: 100 | T31: 0 | U31: 0
A32: BARVA UNIDA | B32: 3 | C32: 1 | D32: 33.33333333 | E32: 2 | F32: 66.66666667 | G32: 1 | H32: 0 | I32: 0 | J32: 1 | K32: 100 | L32: 1 | M32: 1 | N32: 100 | O32: 0 | P32: 0 | Q32: 1 | R32: 0 | S32: 0 | T32: 1 | U32: 100
A33: CANTONAL DE CARRILLO | B33: 3 | C33: 1 | D33: 33.33333333 | E33: 2 | F33: 66.66666667 | G33: 1 | H33: 0 | I33: 0 | J33: 1 | K33: 100 | L33: 1 | M33: 1 | N33: 100 | O33: 0 | P33: 0 | Q33: 1 | R33: 0 | S33: 0 | T33: 1 | U33: 100
A34: COALICIÓN ALIANZA POR NICOYA | B34: 3 | C34: 1 | D34: 33.33333333 | E34: 2 | F34: 66.66666667 | G34: 1 | H34: 1 | I34: 100 | J34: 0 | K34: 0 | L34: 1 | M34: 0 | N34: 0 | O34: 1 | P34: 100 | Q34: 1 | R34: 0 | S34: 0 | T34: 1 | U34: 100
A35: COALICIÓN ASERRI DE TODOS | B35: 2 | C35: 1 | D35: 50 | E35: 1 | F35: 50 | G35: 1 | H35: 0 | I35: 0 | J35: 1 | K35: 100 | L35: 1 | M35: 1 | N35: 100 | O35: 0 | P35: 0 | Q35: 0 | R35: 0 | S35: 0 | T35: 0 | U35: 0
A36: COALICIÓN GENTE MONTES DE OCA | B36: 3 | C36: 2 | D36: 66.66666667 | E36: 1 | F36: 33.33333333 | G36: 1 | H36: 1 | I36: 100 | J36: 0 | K36: 0 | L36: 1 | M36: 0 | N36: 0 | O36: 1 | P36: 100 | Q36: 1 | R36: 1 | S36: 100 | T36: 0 | U36: 0
A37: COALICIÓN JUNTOS | B37: 3 | C37: 1 | D37: 33.33333333 | E37: 2 | F37: 66.66666667 | G37: 1 | H37: 1 | I37: 100 | J37: 0 | K37: 0 | L37: 1 | M37: 0 | N37: 0 | O37: 1 | P37: 100 | Q37: 1 | R37: 0 | S37: 0 | T37: 1 | U37: 100
A38: COALICIÓN UNIDAD POR FLORES | B38: 3 | C38: 1 | D38: 33.33333333 | E38: 2 | F38: 66.66666667 | G38: 1 | H38: 0 | I38: 0 | J38: 1 | K38: 100 | L38: 1 | M38: 1 | N38: 100 | O38: 0 | P38: 0 | Q38: 1 | R38: 0 | S38: 0 | T38: 1 | U38: 100
A39: COALICIÓN UNIÓN BELEMITA | B39: 3 | C39: 1 | D39: 33.33333333 | E39: 2 | F39: 66.66666667 | G39: 1 | H39: 1 | I39: 100 | J39: 0 | K39: 0 | L39: 1 | M39: 0 | N39: 0 | O39: 1 | P39: 100 | Q39: 1 | R39: 0 | S39: 0 | T39: 1 | U39: 100
A40: COMUNAL UNIDO | B40: 27 | C40: 17 | D40: 62.96296296 | E40: 10 | F40: 37.03703704 | G40: 9 | H40: 4 | I40: 44.44444444 | J40: 5 | K40: 55.55555556 | L40: 9 | M40: 5 | N40: 55.55555556 | O40: 4 | P40: 44.44444444 | Q40: 9 | R40: 8 | S40: 88.88888889 | T40: 1 | U40: 11.11111111
A41: CURRIDABAT SIGLO XXI | B41: 2 | C41: 1 | D41: 50 | E41: 1 | F41: 50 | G41: 1 | H41: 1 | I41: 100 | J41: 0 | K41: 0 | L41: 1 | M41: 0 | N41: 0 | O41: 1 | P41: 100 | Q41: 0 | R41: 0 | S41: 0 | T41: 0 | U41: 0
A42: DEL SOL | B42: 3 | C42: 2 | D42: 66.66666667 | E42: 1 | F42: 33.33333333 | G42: 1 | H42: 0 | I42: 0 | J42: 1 | K42: 100 | L42: 1 | M42: 1 | N42: 100 | O42: 0 | P42: 0 | Q42: 1 | R42: 1 | S42: 100 | T42: 0 | U42: 0
A43: DESARROLLO TALAMANQUEÑO | B43: =+C43+E43 -> 3 | C43: =+H43+M43+R43 -> 2 | D43: =C43/B43*100 -> 66.66666667 | E43: =+J43+O43+T43 -> 1 | F43: =E43/B43*100 -> 33.33333333 | G43: =+H43+J43 -> 1 | H43: 1 | I43: =H43/G43*100 -> 100 | J43: 0 | K43: =J43/G43*100 -> 0 | L43: =+M43+O43 -> 1 | M43: 0 | N43: =M43/L43*100 -> 0 | O43: 1 | P43: =O43/L43*100 -> 100 | Q43: =+R43+T43 -> 1 | R43: 1 | S43: =R43/Q43*100 -> 100 | T43: 0 | U43: =T43/Q43*100 -> 0
A44: DESPERTAR ALAJUELENSE | B44: 3 | C44: 2 | D44: 66.66666667 | E44: 1 | F44: 33.33333333 | G44: 1 | H44: 0 | I44: 0 | J44: 1 | K44: 100 | L44: 1 | M44: 1 | N44: 100 | O44: 0 | P44: 0 | Q44: 1 | R44: 1 | S44: 100 | T44: 0 | U44: 0
A45: ECOLÓGICO COMUNAL COSTARRICENSE | B45: 3 | C45: 1 | D45: 33.33333333 | E45: 2 | F45: 66.66666667 | G45: 1 | H45: 1 | I45: 100 | J45: 0 | K45: 0 | L45: 1 | M45: 0 | N45: 0 | O45: 1 | P45: 100 | Q45: 1 | R45: 0 | S45: 0 | T45: 1 | U45: 100
A46: FRENTE AMPLIO | B46: 90 | C46: 47 | D46: 52.22222222 | E46: 43 | F46: 47.77777778 | G46: 31 | H46: 18 | I46: 58.06451613 | J46: 13 | K46: 41.93548387 | L46: 30 | M46: 12 | N46: 40 | O46: 18 | P46: 60 | Q46: 29 | R46: 17 | S46: 58.62068966 | T46: 12 | U46: 41.37931034
A47: FUERZA SARCHISEÑA | B47: 3 | C47: 1 | D47: 33.33333333 | E47: 2 | F47: 66.66666667 | G47: 1 | H47: 0 | I47: 0 | J47: 1 | K47: 100 | L47: 1 | M47: 1 | N47: 100 | O47: 0 | P47: 0 | Q47: 1 | R47: 0 | S47: 0 | T47: 1 | U47: 100
A48: GOICOECHEA EN ACCIÓN | B48: 3 | C48: 2 | D48: 66.66666667 | E48: 1 | F48: 33.33333333 | G48: 1 | H48: 1 | I48: 100 | J48: 0 | K48: 0 | L48: 1 | M48: 0 | N48: 0 | O48: 1 | P48: 100 | Q48: 1 | R48: 1 | S48: 100 | T48: 0 | U48: 0
A49: GUANACASTE PRIMERO | B49: 3 | C49: 2 | D49: 66.66666667 | E49: 1 | F49: 33.33333333 | G49: 1 | H49: 1 | I49: 100 | J49: 0 | K49: 0 | L49: 1 | M49: 0 | N49: 0 | O49: 1 | P49: 100 | Q49: 1 | R49: 1 | S49: 100 | T49: 0 | U49: 0
A50: INNOVACIÓN CANTONAL | B50: 3 | C50: 2 | D50: 66.66666667 | E50: 1 | F50: 33.33333333 | G50: 1 | H50: 1 | I50: 100 | J50: 0 | K50: 0 | L50: 1 | M50: 0 | N50: 0 | O50: 1 | P50: 100 | Q50: 1 | R50: 1 | S50: 100 | T50: 0 | U50: 0
A51: INTEGRACIÓN NACIONAL | B51: 95 | C51: 57 | D51: 60 | E51: 38 | F51: 40 | G51: 32 | H51: 28 | I51: 87.5 | J51: 4 | K51: 12.5 | L51: 32 | M51: 4 | N51: 12.5 | O51: 28 | P51: 87.5 | Q51: 31 | R51: 25 | S51: 80.64516129 | T51: 6 | U51: 19.35483871
A52: IZQUIERDA COSTARRICENSE | B52: 18 | C52: 9 | D52: 50 | E52: 9 | F52: 50 | G52: 6 | H52: 3 | I52: 50 | J52: 3 | K52: 50 | L52: 6 | M52: 3 | N52: 50 | O52: 3 | P52: 50 | Q52: 6 | R52: 3 | S52: 50 | T52: 3 | U52: 50
A53: JUSTICIA SOCIAL | B53: 3 | C53: 2 | D53: 66.66666667 | E53: 1 | F53: 33.33333333 | G53: 1 | H53: 1 | I53: 100 | J53: 0 | K53: 0 | L53: 1 | M53: 0 | N53: 0 | O53: 1 | P53: 100 | Q53: 1 | R53: 1 | S53: 100 | T53: 0 | U53: 0
A54: JUSTICIA SOCIAL COSTARRICENSE | B54: 11 | C54: 5 | D54: 45.45454545 | E54: 6 | F54: 54.54545455 | G54: 4 | H54: 2 | I54: 50 | J54: 2 | K54: 50 | L54: 4 | M54: 2 | N54: 50 | O54: 2 | P54: 50 | Q54: 3 | R54: 1 | S54: 33.33333333 | T54: 2 | U54: 66.66666667
A55: LA FUERZA DE LA UNIÓN | B55: 3 | C55: 2 | D55: 66.66666667 | E55: 1 | F55: 33.33333333 | G55: 1 | H55: 1 | I55: 100 | J55: 0 | K55: 0 | L55: 1 | M55: 0 | N55: 0 | O55: 1 | P55: 100 | Q55: 1 | R55: 1 | S55: 100 | T55: 0 | U55: 0
A56: LA GRAN NICOYA | B56: 3 | C56: 1 | D56: 33.33333333 | E56: 2 | F56: 66.66666667 | G56: 1 | H56: 1 | I56: 100 | J56: 0 | K56: 0 | L56: 1 | M56: 0 | N56: 0 | O56: 1 | P56: 100 | Q56: 1 | R56: 0 | S56: 0 | T56: 1 | U56: 100
A57: LIBERACIÓN NACIONAL | B57: 246 | C57: 142 | D57: 57.72357724 | E57: 104 | F57: 42.27642276 | G57: 82 | H57: 66 | I57: 80.48780488 | J57: 16 | K57: 19.51219512 | L57: 82 | M57: 16 | N57: 19.51219512 | O57: 66 | P57: 80.48780488 | Q57: 82 | R57: 60 | S57: 73.17073171 | T57: 22 | U57: 26.82926829
A58: LIBERAL PROGRESISTA | B58: 20 | C58: 13 | D58: 65 | E58: 7 | F58: 35 | G58: 7 | H58: 6 | I58: 85.71428571 | J58: 1 | K58: 14.28571429 | L58: 7 | M58: 1 | N58: 14.28571429 | O58: 6 | P58: 85.71428571 | Q58: 6 | R58: 6 | S58: 100 | T58: 0 | U58: 0
A59: LIGA RAMONENSE | B59: 0 | C59: 0 | D59: 0 | E59: 0 | F59: 0 | G59: 0 | H59: 0 | I59: 0 | J59: 0 | K59: 0 | L59: 0 | M59: 0 | N59: 0 | O59: 0 | P59: 0 | Q59: 0 | R59: 0 | S59: 0 | T59: 0 | U59: 0
A60: MOVIMIENTO AVANCE SANTO DOMINGO | B60: 3 | C60: 2 | D60: =C60/B60*100 -> 66.66666667 | E60: 1 | F60: =E60/B60*100 -> 33.33333333 | G60: 1 | H60: 1 | I60: =H60/G60*100 -> 100 | J60: 0 | K60: =J60/G60*100 -> 0 | L60: 1 | M60: 0 | N60: =M60/L60*100 -> 0 | O60: 1 | P60: =O60/L60*100 -> 100 | Q60: 1 | R60: 1 | S60: =R60/Q60*100 -> 100 | T60: 0 | U60: =T60/Q60*100 -> 0
A61: NANDAYURE PROGRESA | B61: 3 | C61: 2 | D61: 66.66666667 | E61: 1 | F61: 33.33333333 | G61: 1 | H61: 1 | I61: 100 | J61: 0 | K61: 0 | L61: 1 | M61: 0 | N61: 0 | O61: 1 | P61: 100 | Q61: 1 | R61: 1 | S61: 100 | T61: 0 | U61: 0
A62: NUESTRO PUEBLO | B62: 33 | C62: 17 | D62: 51.51515152 | E62: 16 | F62: 48.48484848 | G62: 11 | H62: 8 | I62: 72.72727273 | J62: 3 | K62: 27.27272727 | L62: 11 | M62: 3 | N62: 27.27272727 | O62: 8 | P62: 72.72727273 | Q62: 11 | R62: 6 | S62: 54.54545455 | T62: 5 | U62: 45.45454545
A63: NUEVA GENERACIÓN | B63: 103 | C63: 54 | D63: 52.42718447 | E63: 49 | F63: 47.57281553 | G63: 35 | H63: 29 | I63: 82.85714286 | J63: 6 | K63: 17.14285714 | L63: 34 | M63: 6 | N63: 17.64705882 | O63: 28 | P63: 82.35294118 | Q63: 34 | R63: 19 | S63: 55.88235294 | T63: 15 | U63: 44.11764706
A64: NUEVA MAYORÍA GRIEGA | B64: 3 | C64: 2 | D64: 66.66666667 | E64: 1 | F64: 33.33333333 | G64: 1 | H64: 1 | I64: 100 | J64: 0 | K64: 0 | L64: 1 | M64: 0 | N64: 0 | O64: 1 | P64: 100 | Q64: 1 | R64: 1 | S64: 100 | T64: 0 | U64: 0
A65: NUEVA REPÚBLICA | B65: 221 | C65: 132 | D65: 59.72850679 | E65: 89 | F65: 40.27149321 | G65: 74 | H65: 55 | I65: 74.32432432 | J65: 19 | K65: 25.67567568 | L65: 74 | M65: 19 | N65: 25.67567568 | O65: 55 | P65: 74.32432432 | Q65: 73 | R65: 58 | S65: 79.45205479 | T65: 15 | U65: 20.54794521
A66: PALMARES PRIMERO | B66: 3 | C66: 1 | D66: 33.33333333 | E66: 2 | F66: 66.66666667 | G66: 1 | H66: 0 | I66: 0 | J66: 1 | K66: 100 | L66: 1 | M66: 1 | N66: 100 | O66: 0 | P66: 0 | Q66: 1 | R66: 0 | S66: 0 | T66: 1 | U66: 100
A67: PROGRESER | B67: 3 | C67: 2 | D67: 66.66666667 | E67: 1 | F67: 33.33333333 | G67: 1 | H67: 1 | I67: 100 | J67: 0 | K67: 0 | L67: 1 | M67: 0 | N67: 0 | O67: 1 | P67: 100 | Q67: 1 | R67: 1 | S67: 100 | T67: 0 | U67: 0
A68: PUEBLO GARABITO | B68: =+C68+E68 -> 3 | C68: =+H68+M68+R68 -> 2 | D68: =C68/B68*100 -> 66.66666667 | E68: =+J68+O68+T68 -> 1 | F68: =E68/B68*100 -> 33.33333333 | G68: =+H68+J68 -> 1 | H68: 1 | I68: =H68/G68*100 -> 100 | J68: 0 | K68: =J68/G68*100 -> 0 | L68: =+M68+O68 -> 1 | M68: 0 | N68: =M68/L68*100 -> 0 | O68: 1 | P68: =O68/L68*100 -> 100 | Q68: =+R68+T68 -> 1 | R68: 1 | S68: =R68/Q68*100 -> 100 | T68: 0 | U68: =T68/Q68*100 -> 0
A69: PURISCAL EN MARCHA | B69: 3 | C69: 2 | D69: 66.66666667 | E69: 1 | F69: 33.33333333 | G69: 1 | H69: 1 | I69: 100 | J69: 0 | K69: 0 | L69: 1 | M69: 0 | N69: 0 | O69: 1 | P69: 100 | Q69: 1 | R69: 1 | S69: 100 | T69: 0 | U69: 0
A70: RECUPERANDO VALORES | B70: 11 | C70: 7 | D70: 63.63636364 | E70: 4 | F70: 36.36363636 | G70: 4 | H70: 3 | I70: 75 | J70: 1 | K70: 25 | L70: 4 | M70: 1 | N70: 25 | O70: 3 | P70: 75 | Q70: 3 | R70: 3 | S70: 100 | T70: 0 | U70: 0
A71: RENOVACIÓN COSTARRICENSE | B71: 15 | C71: 8 | D71: 53.33333333 | E71: 7 | F71: 46.66666667 | G71: 5 | H71: 5 | I71: 100 | J71: 0 | K71: 0 | L71: 5 | M71: 0 | N71: 0 | O71: 5 | P71: 100 | Q71: 5 | R71: 3 | S71: 60 | T71: 2 | U71: 40
A72: REPUBLICANO SOCIAL CRISTIANO | B72: 125 | C72: 72 | D72: 57.6 | E72: 53 | F72: 42.4 | G72: 43 | H72: 38 | I72: 88.37209302 | J72: 5 | K72: 11.62790698 | L72: 43 | M72: 5 | N72: 11.62790698 | O72: 38 | P72: 88.37209302 | Q72: 39 | R72: 29 | S72: 74.35897436 | T72: 10 | U72: 25.64102564
A73: RESCATE CANTONAL LA UNIÓN | B73: 3 | C73: 1 | D73: 33.33333333 | E73: 2 | F73: 66.66666667 | G73: 1 | H73: 1 | I73: 100 | J73: 0 | K73: 0 | L73: 1 | M73: 0 | N73: 0 | O73: 1 | P73: 100 | Q73: 1 | R73: 0 | S73: 0 | T73: 1 | U73: 100
A74: RESTAURACIÓN NACIONAL | B74: 212 | C74: 123 | D74: 58.01886792 | E74: 89 | F74: 41.98113208 | G74: 79 | H74: 56 | I74: 70.88607595 | J74: 23 | K74: 29.11392405 | L74: 68 | M74: 19 | N74: 27.94117647 | O74: 49 | P74: 72.05882353 | Q74: 65 | R74: 48 | S74: 73.84615385 | T74: 17 | U74: 26.15384615
A75: RESTAURACIÓN PARRITEÑA | B75: 3 | C75: 2 | D75: 66.66666667 | E75: 1 | F75: 33.33333333 | G75: 1 | H75: 1 | I75: 100 | J75: 0 | K75: 0 | L75: 1 | M75: 0 | N75: 0 | O75: 1 | P75: 100 | Q75: 1 | R75: 1 | S75: 100 | T75: 0 | U75: 0
A76: SENTIR HEREDIA | B76: 3 | C76: 2 | D76: 66.66666667 | E76: 1 | F76: 33.33333333 | G76: 1 | H76: 1 | I76: 100 | J76: 0 | K76: 0 | L76: 1 | M76: 0 | N76: 0 | O76: 1 | P76: 100 | Q76: 1 | R76: 1 | S76: 100 | T76: 0 | U76: 0
A77: SOMOS MORAVIA | B77: 3 | C77: 2 | D77: 66.66666667 | E77: 1 | F77: 33.33333333 | G77: 1 | H77: 1 | I77: 100 | J77: 0 | K77: 0 | L77: 1 | M77: 0 | N77: 0 | O77: 1 | P77: 100 | Q77: 1 | R77: 1 | S77: 100 | T77: 0 | U77: 0
A78: SOMOS SARCHÍ | B78: 3 | C78: 2 | D78: 66.66666667 | E78: 1 | F78: 33.33333333 | G78: 1 | H78: 1 | I78: 100 | J78: 0 | K78: 0 | L78: 1 | M78: 0 | N78: 0 | O78: 1 | P78: 100 | Q78: 1 | R78: 1 | S78: 100 | T78: 0 | U78: 0
A79: TARRAZU PRIMERO | B79: 3 | C79: 2 | D79: 66.66666667 | E79: 1 | F79: 33.33333333 | G79: 1 | H79: 1 | I79: 100 | J79: 0 | K79: 0 | L79: 1 | M79: 0 | N79: 0 | O79: 1 | P79: 100 | Q79: 1 | R79: 1 | S79: 100 | T79: 0 | U79: 0
A80: TERRA ESCAZÚ | B80: 3 | C80: 1 | D80: 33.33333333 | E80: 2 | F80: 66.66666667 | G80: 1 | H80: 1 | I80: 100 | J80: 0 | K80: 0 | L80: 1 | M80: 0 | N80: 0 | O80: 1 | P80: 100 | Q80: 1 | R80: 0 | S80: 0 | T80: 1 | U80: 100
A81: TODOS POR GOICOECHEA | B81: 3 | C81: 2 | D81: 66.66666667 | E81: 1 | F81: 33.33333333 | G81: 1 | H81: 0 | I81: 0 | J81: 1 | K81: 100 | L81: 1 | M81: 1 | N81: 100 | O81: 0 | P81: 0 | Q81: 1 | R81: 1 | S81: 100 | T81: 0 | U81: 0
A82: TURRIALBA PRIMERO | B82: 3 | C82: 2 | D82: 66.66666667 | E82: 1 | F82: 33.33333333 | G82: 1 | H82: 1 | I82: 100 | J82: 0 | K82: 0 | L82: 1 | M82: 0 | N82: 0 | O82: 1 | P82: 100 | Q82: 1 | R82: 1 | S82: 100 | T82: 0 | U82: 0
A83: ÚNICO ABANGAREÑO | B83: 3 | C83: 2 | D83: 66.66666667 | E83: 1 | F83: 33.33333333 | G83: 1 | H83: 1 | I83: 100 | J83: 0 | K83: 0 | L83: 1 | M83: 0 | N83: 0 | O83: 1 | P83: 100 | Q83: 1 | R83: 1 | S83: 100 | T83: 0 | U83: 0
A84: UNIDAD SOCIAL CRISTIANA | B84: 210 | C84: 121 | D84: 57.61904762 | E84: 89 | F84: 42.38095238 | G84: 71 | H84: 60 | I84: 84.50704225 | J84: 11 | K84: 15.49295775 | L84: 71 | M84: 11 | N84: 15.49295775 | O84: 60 | P84: 84.50704225 | Q84: 68 | R84: 50 | S84: 73.52941176 | T84: 18 | U84: 26.47058824
A85: UNIDOS PARA EL DESARROLLO | B85: 3 | C85: 1 | D85: 33.33333333 | E85: 2 | F85: 66.66666667 | G85: 1 | H85: 1 | I85: 100 | J85: 0 | K85: 0 | L85: 1 | M85: 0 | N85: 0 | O85: 1 | P85: 100 | Q85: 1 | R85: 0 | S85: 0 | T85: 1 | U85: 100
A86: UNIDOS PODEMOS | B86: 146 | C86: 79 | D86: 54.10958904 | E86: 67 | F86: 45.89041096 | G86: 50 | H86: 36 | I86: 72 | J86: 14 | K86: 28 | L86: 50 | M86: 14 | N86: 28 | O86: 36 | P86: 72 | Q86: 46 | R86: 29 | S86: 63.04347826 | T86: 17 | U86: 36.95652174
A87: UNIDOS POR ESCAZÚ | B87: 3 | C87: 2 | D87: 66.66666667 | E87: 1 | F87: 33.33333333 | G87: 1 | H87: 1 | I87: 100 | J87: 0 | K87: 0 | L87: 1 | M87: 0 | N87: 0 | O87: 1 | P87: 100 | Q87: 1 | R87: 1 | S87: 100 | T87: 0 | U87: 0
A88: UNIÓN ATENIENSE | B88: 3 | C88: 2 | D88: 66.66666667 | E88: 1 | F88: 33.33333333 | G88: 1 | H88: 1 | I88: 100 | J88: 0 | K88: 0 | L88: 1 | M88: 0 | N88: 0 | O88: 1 | P88: 100 | Q88: 1 | R88: 1 | S88: 100 | T88: 0 | U88: 0
A89: UNIÓN DE PUNTARENENSES EMPRENDEDORES | B89: 3 | C89: 1 | D89: 33.33333333 | E89: 2 | F89: 66.66666667 | G89: 1 | H89: 0 | I89: 0 | J89: 1 | K89: 100 | L89: 1 | M89: 1 | N89: 100 | O89: 0 | P89: 0 | Q89: 1 | R89: 0 | S89: 0 | T89: 1 | U89: 100
A90: UNIÓN DOMINGUEÑA | B90: 3 | C90: 2 | D90: 66.66666667 | E90: 1 | F90: 33.33333333 | G90: 1 | H90: 1 | I90: 100 | J90: 0 | K90: 0 | L90: 1 | M90: 0 | N90: 0 | O90: 1 | P90: 100 | Q90: 1 | R90: 1 | S90: 100 | T90: 0 | U90: 0
A91: UNIÓN GRIEGA | B91: 3 | C91: 2 | D91: 66.66666667 | E91: 1 | F91: 33.33333333 | G91: 1 | H91: 1 | I91: 100 | J91: 0 | K91: 0 | L91: 1 | M91: 0 | N91: 0 | O91: 1 | P91: 100 | Q91: 1 | R91: 1 | S91: 100 | T91: 0 | U91: 0
A92: UNIÓN GUANACASTECA | B92: 21 | C92: 10 | D92: 47.61904762 | E92: 11 | F92: 52.38095238 | G92: 7 | H92: 5 | I92: 71.42857143 | J92: 2 | K92: 28.57142857 | L92: 7 | M92: 2 | N92: 28.57142857 | O92: 5 | P92: 71.42857143 | Q92: 7 | R92: 3 | S92: 42.85714286 | T92: 4 | U92: 57.14285714
A93: UNIÓN GUARQUEÑO | B93: 3 | C93: 2 | D93: 66.66666667 | E93: 1 | F93: 33.33333333 | G93: 1 | H93: 1 | I93: 100 | J93: 0 | K93: 0 | L93: 1 | M93: 0 | N93: 0 | O93: 1 | P93: 100 | Q93: 1 | R93: 1 | S93: 100 | T93: 0 | U93: 0
A94: VERDE ECOLOGISTA | B94: 23 | C94: 14 | D94: 60.86956522 | E94: 9 | F94: 39.13043478 | G94: 8 | H94: 8 | I94: 100 | J94: 0 | K94: 0 | L94: 8 | M94: 0 | N94: 0 | O94: 8 | P94: 100 | Q94: 7 | R94: 6 | S94: 85.71428571 | T94: 1 | U94: 14.28571429
A95: YO SOY EL CAMBIO | B95: 3 | C95: 2 | D95: 66.66666667 | E95: 1 | F95: 33.33333333 | G95: 1 | H95: 1 | I95: 100 | J95: 0 | K95: 0 | L95: 1 | M95: 0 | N95: 0 | O95: 1 | P95: 100 | Q95: 1 | R95: 1 | S95: 100 | T95: 0 | U95: 0
A96: YUNTA PROGRESISTA ESCAZUCEÑA | B96: =+C96+E96 -> 3 | C96: =+H96+M96+R96 -> 1 | D96: =C96/B96*100 -> 33.33333333 | E96: =+J96+O96+T96 -> 2 | F96: =E96/B96*100 -> 66.66666667 | G96: =+H96+J96 -> 1 | H96: 0 | I96: =H96/G96*100 -> 0 | J96: 1 | K96: =J96/G96*100 -> 100 | L96: =+M96+O96 -> 1 | M96: 1 | N96: =M96/L96*100 -> 100 | O96: 0 | P96: =O96/L96*100 -> 0 | Q96: =+R96+T96 -> 1 | R96: 0 | S96: =R96/Q96*100 -> 0 | T96: 1 | U96: =T96/Q96*100 -> 100
A99: =+'G3'!A34 -> Fuente: Departamento de Registro de Partidos Políticos, base de datos de Candidaturas 2020, Tribunal Supremo de Elecciones.

Sheet C22
A1: CUADRO 22 COSTA RICA: CANDIDATURAS A ALCALDÍA Y VICEALCALDÍAS POR SEXO, SEGÚN PROVINCIA Y CANTÓN
A2: ELECCIONES MUNICIPALES 2 DE FEBRERO 2020
A3: (CIFRAS ABSOLUTAS Y RELATIVAS)
A5: PROVINCIA Y CANTÓN | B5: TOTAL | G5: ALCALDÍA | L5: VICEALCALDÍA PRIMERA | Q5: VICEALCALDÍA SEGUNDA
B6: TOTAL | C6: HOMBRES | E6: MUJERES | G6: TOTAL | H6: HOMBRES | J6: MUJERES | L6: TOTAL | M6: HOMBRES | O6: MUJERES | Q6: TOTAL | R6: HOMBRES | T6: MUJERES
C7: ABS | D7: % | E7: ABS | F7: % | H7: ABS | I7: % | J7: ABS | K7: % | M7: ABS | N7: % | O7: ABS | P7: % | R7: ABS | S7: % | T7: ABS | U7: %
A9: COSTA RICA | B9: =+B10+B31+B48+B57+B68+B80+B92 -> 2018 | C9: =+C10+C31+C48+C57+C68+C80+C92 -> 1144 | D9: =C9/$B9*100 -> 56.68979187 | E9: =+E10+E31+E48+E57+E68+E80+E92 -> 874 | F9: =E9/$B9*100 -> 43.31020813 | G9: =G10+G31+G48+G57+G68+G80+G92 -> 692 | H9: =H10+H31+H48+H57+H68+H80+H92 -> 533 | I9: =H9/$G9*100 -> 77.02312139 | J9: =J10+J31+J48+J57+J68+J80+J92 -> 159 | K9: =J9/$G9*100 -> 22.97687861 | L9: =L10+L31+L48+L57+L68+L80+L92 -> 677 | M9: =M10+M31+M48+M57+M68+M80+M92 -> 154 | N9: =M9/$L9*100 -> 22.74741507 | O9: =O10+O31+O48+O57+O68+O80+O92 -> 523 | P9: =O9/$L9*100 -> 77.25258493 | Q9: =Q10+Q31+Q48+Q57+Q68+Q80+Q92 -> 649 | R9: =R10+R31+R48+R57+R68+R80+R92 -> 457 | S9: =R9/$Q9*100 -> 70.41602465 | T9: =T10+T31+T48+T57+T68+T80+T92 -> 192 | U9: =T9/$Q9*100 -> 29.58397535
A10: PROVINCIA SAN JOSÉ | B10: =SUM(B11:B30) -> 494 | C10: =SUM(C11:C30) -> 281 | D10: =C10/$B10*100 -> 56.88259109 | E10: =SUM(E11:E30) -> 213 | F10: =E10/$B10*100 -> 43.11740891 | G10: =SUM(G11:G30) -> 169 | H10: =SUM(H11:H30) -> 132 | I10: 78.10650888 | J10: =SUM(J11:J30) -> 37 | K10: 21.89349112 | L10: =SUM(L11:L30) -> 167 | M10: =SUM(M11:M30) -> 36 | N10: 21.55688623 | O10: =SUM(O11:O30) -> 131 | P10: 78.44311377 | Q10: =SUM(Q11:Q30) -> 158 | R10: =SUM(R11:R30) -> 113 | S10: 71.51898734 | T10: =SUM(T11:T30) -> 45 | U10: 28.48101266
A11: SAN JOSÉ | B11: =+C11+E11 -> 44 | C11: =+H11+M11+R11 -> 26 | D11: =C11/$B11*100 -> 59.09090909 | E11: =+J11+O11+T11 -> 18 | F11: =E11/$B11*100 -> 40.90909091 | G11: =+H11+J11 -> 15 | H11: 13 | I11: 86.66666667 | J11: 2 | K11: 13.33333333 | L11: =+M11+O11 -> 15 | M11: 2 | N11: 13.33333333 | O11: 13 | P11: 86.66666667 | Q11: =+R11+T11 -> 14 | R11: 11 | S11: 78.57142857 | T11: 3 | U11: 21.42857143
A12: ESCAZÚ | B12: =+C12+E12 -> 29 | C12: =+H12+M12+R12 -> 16 | D12: =C12/$B12*100 -> 55.17241379 | E12: =+J12+O12+T12 -> 13 | F12: 44.82758621 | G12: =+H12+J12 -> 10 | H12: 7 | I12: 70 | J12: 3 | K12: 30 | L12: 10 | M12: 3 | N12: 30 | O12: 7 | P12: 70 | Q12: 9 | R12: 6 | S12: 66.66666667 | T12: 3 | U12: 33.33333333
A13: DESAMPARADOS | B13: 41 | C13: 23 | D13: =C13/$B13*100 -> 56.09756098 | E13: 18 | F13: 43.90243902 | G13: 14 | H13: 13 | I13: 92.85714286 | J13: 1 | K13: 7.142857143 | L13: 14 | M13: 1 | N13: 7.142857143 | O13: 13 | P13: 92.85714286 | Q13: 13 | R13: 9 | S13: 69.23076923 | T13: 4 | U13: 30.76923077
A14: PURISCAL | B14: 27 | C14: 16 | D14: 59.25925926 | E14: 11 | F14: 40.74074074 | G14: 9 | H14: 7 | I14: 77.77777778 | J14: 2 | K14: 22.22222222 | L14: 9 | M14: 2 | N14: 22.22222222 | O14: 7 | P14: 77.77777778 | Q14: 9 | R14: 7 | S14: 77.77777778 | T14: 2 | U14: 22.22222222
A15: TARRAZÚ | B15: 21 | C15: 13 | D15: 61.9047619 | E15: 8 | F15: 38.0952381 | G15: 7 | H15: 6 | I15: 85.71428571 | J15: 1 | K15: 14.28571429 | L15: 7 | M15: 1 | N15: 14.28571429 | O15: 6 | P15: 85.71428571 | Q15: 7 | R15: 6 | S15: 85.71428571 | T15: 1 | U15: 14.28571429
A16: ASERRÍ | B16: 23 | C16: 14 | D16: 60.86956522 | E16: 9 | F16: 39.13043478 | G16: 8 | H16: 6 | I16: 75 | J16: 2 | K16: 25 | L16: 8 | M16: 2 | N16: 25 | O16: 6 | P16: 75 | Q16: 7 | R16: 6 | S16: 85.71428571 | T16: 1 | U16: 14.28571429
A17: MORA | B17: 22 | C17: 12 | D17: 54.54545455 | E17: 10 | F17: 45.45454545 | G17: 8 | H17: 4 | I17: 50 | J17: 4 | K17: 50 | L17: 7 | M17: 3 | N17: 42.85714286 | O17: 4 | P17: 57.14285714 | Q17: 7 | R17: 5 | S17: 71.42857143 | T17: 2 | U17: 28.57142857
A18: GOICOECHEA | B18: 50 | C18: 29 | D18: 58 | E18: 21 | F18: 42 | G18: 17 | H18: 14 | I18: 82.35294118 | J18: 3 | K18: 17.64705882 | L18: 17 | M18: 3 | N18: 17.64705882 | O18: 14 | P18: 82.35294118 | Q18: 16 | R18: 12 | S18: 75 | T18: 4 | U18: 25
A19: SANTA ANA | B19: 31 | C19: 17 | D19: 54.83870968 | E19: 14 | F19: 45.16129032 | G19: 11 | H19: 7 | I19: 63.63636364 | J19: 4 | K19: 36.36363636 | L19: 11 | M19: 4 | N19: 36.36363636 | O19: 7 | P19: 63.63636364 | Q19: 9 | R19: 6 | S19: 66.66666667 | T19: 3 | U19: 33.33333333
A20: ALAJUELITA | B20: 27 | C20: 16 | D20: 59.25925926 | E20: 11 | F20: 40.74074074 | G20: 9 | H20: 7 | I20: 77.77777778 | J20: 2 | K20: 22.22222222 | L20: 9 | M20: 2 | N20: 22.22222222 | O20: 7 | P20: 77.77777778 | Q20: 9 | R20: 7 | S20: 77.77777778 | T20: 2 | U20: 22.22222222
A21: VÁZQUEZ DE CORONADO | B21: 24 | C21: 15 | D21: 62.5 | E21: 9 | F21: 37.5 | G21: 8 | H21: 7 | I21: 87.5 | J21: 1 | K21: 12.5 | L21: 8 | M21: 1 | N21: 12.5 | O21: 7 | P21: 87.5 | Q21: 8 | R21: 7 | S21: 87.5 | T21: 1 | U21: 12.5
A22: ACOSTA | B22: 11 | C22: 6 | D22: 54.54545455 | E22: 5 | F22: 45.45454545 | G22: 4 | H22: 3 | I22: 75 | J22: 1 | K22: 25 | L22: 4 | M22: 1 | N22: 25 | O22: 3 | P22: 75 | Q22: 3 | R22: 2 | S22: 66.66666667 | T22: 1 | U22: 33.33333333
A23: TIBÁS | B23: 21 | C23: 11 | D23: 52.38095238 | E23: 10 | F23: 47.61904762 | G23: 7 | H23: 7 | I23: 100 | J23: 0 | K23: 0 | L23: 7 | M23: 0 | N23: 0 | O23: 7 | P23: 100 | Q23: 7 | R23: 4 | S23: 57.14285714 | T23: 3 | U23: 42.85714286
A24: MORAVIA | B24: 30 | C24: 17 | D24: 56.66666667 | E24: 13 | F24: 43.33333333 | G24: 10 | H24: 8 | I24: 80 | J24: 2 | K24: 20 | L24: 10 | M24: 2 | N24: 20 | O24: 8 | P24: 80 | Q24: 10 | R24: 7 | S24: 70 | T24: 3 | U24: 30
A25: MONTES DE OCA | B25: 27 | C25: 13 | D25: 48.14814815 | E25: 14 | F25: 51.85185185 | G25: 9 | H25: 6 | I25: 66.66666667 | J25: 3 | K25: 33.33333333 | L25: 9 | M25: 3 | N25: 33.33333333 | O25: 6 | P25: 66.66666667 | Q25: 9 | R25: 4 | S25: 44.44444444 | T25: 5 | U25: 55.55555556
A26: TURRUBARES | B26: 9 | C26: 5 | D26: 55.55555556 | E26: 4 | F26: 44.44444444 | G26: 3 | H26: 2 | I26: 66.66666667 | J26: 1 | K26: 33.33333333 | L26: 3 | M26: 1 | N26: 33.33333333 | O26: 2 | P26: 66.66666667 | Q26: 3 | R26: 2 | S26: 66.66666667 | T26: 1 | U26: 33.33333333
A27: DOTA | B27: 6 | C27: 4 | D27: 66.66666667 | E27: 2 | F27: 33.33333333 | G27: 2 | H27: 2 | I27: 100 | J27: 0 | K27: 0 | L27: 2 | M27: 0 | N27: 0 | O27: 2 | P27: 100 | Q27: 2 | R27: 2 | S27: 100 | T27: 0 | U27: 0
A28: CURRIDABAT | B28: 21 | C28: 11 | D28: 52.38095238 | E28: 10 | F28: 47.61904762 | G28: 8 | H28: 6 | I28: 75 | J28: 2 | K28: 25 | L28: 7 | M28: 2 | N28: 28.57142857 | O28: 5 | P28: 71.42857143 | Q28: 6 | R28: 3 | S28: 50 | T28: 3 | U28: 50
A29: PÉREZ ZELEDÓN | B29: 24 | C29: 13 | D29: 54.16666667 | E29: 11 | F29: 45.83333333 | G29: 8 | H29: 5 | I29: 62.5 | J29: 3 | K29: 37.5 | L29: 8 | M29: 3 | N29: 37.5 | O29: 5 | P29: 62.5 | Q29: 8 | R29: 5 | S29: 62.5 | T29: 3 | U29: 37.5
A30: LEÓN CORTÉS CASTRO | B30: 6 | C30: 4 | D30: 66.66666667 | E30: 2 | F30: 33.33333333 | G30: 2 | H30: 2 | I30: 100 | J30: 0 | K30: 0 | L30: 2 | M30: 0 | N30: 0 | O30: 2 | P30: 100 | Q30: 2 | R30: 2 | S30: 100 | T30: 0 | U30: 0
A31: PROVINCIA ALAJUELA | B31: =SUM(B32:B47) -> 348 | C31: =SUM(C32:C47) -> 201 | D31: =C31/$B31*100 -> 57.75862069 | E31: =SUM(E32:E47) -> 147 | F31: =E31/$B31*100 -> 42.24137931 | G31: =SUM(G32:G47) -> 120 | H31: =SUM(H32:H47) -> 100 | I31: 83.33333333 | J31: =SUM(J32:J47) -> 20 | K31: 16.66666667 | L31: =SUM(L32:L47) -> 116 | M31: =SUM(M32:M47) -> 19 | N31: 16.37931034 | O31: =SUM(O32:O47) -> 97 | P31: 83.62068966 | Q31: =SUM(Q32:Q47) -> 112 | R31: =SUM(R32:R47) -> 82 | S31: 73.21428571 | T31: =SUM(T32:T47) -> 30 | U31: 26.78571429
A32: ALAJUELA | B32: =+C32+E32 -> 33 | C32: =+H32+M32+R32 -> 21 | D32: =C32/$B32*100 -> 63.63636364 | E32: =+J32+O32+T32 -> 12 | F32: =E32/$B32*100 -> 36.36363636 | G32: =+H32+J32 -> 11 | H32: 10 | I32: =H32/$G32*100 -> 90.90909091 | J32: 1 | K32: 9.090909091 | L32: =+M32+O32 -> 11 | M32: 1 | N32: 9.090909091 | O32: 10 | P32: 90.90909091 | Q32: =+R32+T32 -> 11 | R32: 10 | S32: 90.90909091 | T32: 1 | U32: 9.090909091
A33: SAN RAMÓN | B33: =+C33+E33 -> 21 | C33: =+H33+M33+R33 -> 14 | D33: =C33/$B33*100 -> 66.66666667 | E33: =+J33+O33+T33 -> 7 | F33: =E33/$B33*100 -> 33.33333333 | G33: =+H33+J33 -> 7 | H33: 7 | I33: =H33/$G33*100 -> 100 | J33: 0 | K33: =J33/$G33*100 -> 0 | L33: =+M33+O33 -> 7 | M33: 0 | N33: =M33/$L33*100 -> 0 | O33: 7 | P33: =O33/$L33*100 -> 100 | Q33: =+R33+T33 -> 7 | R33: 7 | S33: =R33/$Q33*100 -> 100 | T33: 0 | U33: =T33/$Q33*100 -> 0
A34: GRECIA | B34: 30 | C34: 17 | D34: 56.66666667 | E34: 13 | F34: 43.33333333 | G34: 10 | H34: 8 | I34: 80 | J34: 2 | K34: 20 | L34: 10 | M34: 2 | N34: 20 | O34: 8 | P34: 80 | Q34: 10 | R34: 7 | S34: 70 | T34: 3 | U34: 30
A35: SAN MATEO | B35: 20 | C35: 11 | D35: 55 | E35: 9 | F35: 45 | G35: 7 | H35: 5 | I35: 71.42857143 | J35: 2 | K35: 28.57142857 | L35: 7 | M35: 2 | N35: 28.57142857 | O35: 5 | P35: 71.42857143 | Q35: 6 | R35: 4 | S35: 66.66666667 | T35: 2 | U35: 33.33333333
A36: ATENAS | B36: 25 | C36: 15 | D36: 60 | E36: 10 | F36: 40 | G36: 9 | H36: 8 | I36: 88.88888889 | J36: 1 | K36: 11.11111111 | L36: 8 | M36: 1 | N36: 12.5 | O36: 7 | P36: 87.5 | Q36: 8 | R36: 6 | S36: 75 | T36: 2 | U36: 25
A37: NARANJO | B37: 24 | C37: 13 | D37: 54.16666667 | E37: 11 | F37: 45.83333333 | G37: 9 | H37: 8 | I37: 88.88888889 | J37: 1 | K37: 11.11111111 | L37: 8 | M37: 1 | N37: 12.5 | O37: 7 | P37: 87.5 | Q37: 7 | R37: 4 | S37: 57.14285714 | T37: 3 | U37: 42.85714286
A38: PALMARES | B38: 27 | C38: 15 | D38: 55.55555556 | E38: 12 | F38: 44.44444444 | G38: 9 | H38: 8 | I38: 88.88888889 | J38: 1 | K38: 11.11111111 | L38: 9 | M38: 1 | N38: 11.11111111 | O38: 8 | P38: 88.88888889 | Q38: 9 | R38: 6 | S38: 66.66666667 | T38: 3 | U38: 33.33333333
A39: POÁS | B39: 18 | C39: 11 | D39: 61.11111111 | E39: 7 | F39: 38.88888889 | G39: 6 | H39: 6 | I39: 100 | J39: 0 | K39: 0 | L39: 6 | M39: 0 | N39: 0 | O39: 6 | P39: 100 | Q39: 6 | R39: 5 | S39: 83.33333333 | T39: 1 | U39: 16.66666667
A40: OROTINA | B40: 18 | C40: 10 | D40: 55.55555556 | E40: 8 | F40: 44.44444444 | G40: 6 | H40: 5 | I40: 83.33333333 | J40: 1 | K40: 16.66666667 | L40: 6 | M40: 1 | N40: 16.66666667 | O40: 5 | P40: 83.33333333 | Q40: 6 | R40: 4 | S40: 66.66666667 | T40: 2 | U40: 33.33333333
A41: SAN CARLOS | B41: 29 | C41: 16 | D41: 55.17241379 | E41: 13 | F41: 44.82758621 | G41: 10 | H41: 9 | I41: 90 | J41: 1 | K41: 10 | L41: 10 | M41: 1 | N41: 10 | O41: 9 | P41: 90 | Q41: 9 | R41: 6 | S41: 66.66666667 | T41: 3 | U41: 33.33333333
A42: ZARCERO | B42: 15 | C42: 8 | D42: 53.33333333 | E42: 7 | F42: 46.66666667 | G42: 5 | H42: 3 | I42: 60 | J42: 2 | K42: 40 | L42: 5 | M42: 2 | N42: 40 | O42: 3 | P42: 60 | Q42: 5 | R42: 3 | S42: 60 | T42: 2 | U42: 40
A43: SARCHÍ | B43: 22 | C43: 12 | D43: 54.54545455 | E43: 10 | F43: 45.45454545 | G43: 8 | H43: 5 | I43: 62.5 | J43: 3 | K43: 37.5 | L43: 7 | M43: 2 | N43: 28.57142857 | O43: 5 | P43: 71.42857143 | Q43: 7 | R43: 5 | S43: 71.42857143 | T43: 2 | U43: 28.57142857
A44: UPALA | B44: 15 | C44: 9 | D44: 60 | E44: 6 | F44: 40 | G44: 5 | H44: 3 | I44: 60 | J44: 2 | K44: 40 | L44: 5 | M44: 2 | N44: 40 | O44: 3 | P44: 60 | Q44: 5 | R44: 4 | S44: 80 | T44: 1 | U44: 20
A45: LOS CHILES | B45: 13 | C45: 9 | D45: 69.23076923 | E45: 4 | F45: 30.76923077 | G45: 5 | H45: 5 | I45: 100 | J45: 0 | K45: 0 | L45: 4 | M45: 0 | N45: 0 | O45: 4 | P45: 100 | Q45: 4 | R45: 4 | S45: 100 | T45: 0 | U45: 0
A46: GUATUSO | B46: 17 | C46: 9 | D46: 52.94117647 | E46: 8 | F46: 47.05882353 | G46: 6 | H46: 4 | I46: 66.66666667 | J46: 2 | K46: 33.33333333 | L46: 6 | M46: 2 | N46: 33.33333333 | O46: 4 | P46: 66.66666667 | Q46: 5 | R46: 3 | S46: 60 | T46: 2 | U46: 40
A47: RIO CUARTO | B47: 21 | C47: 11 | D47: 52.38095238 | E47: 10 | F47: 47.61904762 | G47: 7 | H47: 6 | I47: 85.71428571 | J47: 1 | K47: 14.28571429 | L47: 7 | M47: 1 | N47: 14.28571429 | O47: 6 | P47: 85.71428571 | Q47: 7 | R47: 4 | S47: 57.14285714 | T47: 3 | U47: 42.85714286
A48: PROVINCIA CARTAGO | B48: =SUM(B49:B56) -> 255 | C48: =SUM(C49:C56) -> 146 | D48: =C48/$B48*100 -> 57.25490196 | E48: =SUM(E49:E56) -> 109 | F48: =E48/$B48*100 -> 42.74509804 | G48: =SUM(G49:G56) -> 87 | H48: =SUM(H49:H56) -> 66 | I48: =H48/$G48*100 -> 75.86206897 | J48: =SUM(J49:J56) -> 21 | K48: =J48/$G48*100 -> 24.13793103 | L48: =SUM(L49:L56) -> 87 | M48: =SUM(M49:M56) -> 21 | N48: =M48/$L48*100 -> 24.13793103 | O48: =SUM(O49:O56) -> 66 | P48: =O48/$L48*100 -> 75.86206897 | Q48: =SUM(Q49:Q56) -> 81 | R48: =SUM(R49:R56) -> 59 | S48: =R48/$Q48*100 -> 72.83950617 | T48: =SUM(T49:T56) -> 22 | U48: =T48/$Q48*100 -> 27.16049383
A49: CARTAGO | B49: =+C49+E49 -> 36 | C49: =+H49+M49+R49 -> 21 | D49: =C49/$B49*100 -> 58.33333333 | E49: =+J49+O49+T49 -> 15 | F49: =E49/$B49*100 -> 41.66666667 | G49: =+H49+J49 -> 12 | H49: 9 | I49: =H49/$G49*100 -> 75 | J49: 3 | K49: =J49/$G49*100 -> 25 | L49: =+M49+O49 -> 12 | M49: 3 | N49: =M49/$L49*100 -> 25 | O49: 9 | P49: =O49/$L49*100 -> 75 | Q49: =+R49+T49 -> 12 | R49: 9 | S49: =R49/$Q49*100 -> 75 | T49: 3 | U49: =T49/$Q49*100 -> 25
A50: PARAÍSO | B50: =+C50+E50 -> 38 | C50: =+H50+M50+R50 -> 20 | D50: =C50/$B50*100 -> 52.63157895 | E50: =+J50+O50+T50 -> 18 | F50: =E50/$B50*100 -> 47.36842105 | G50: =+H50+J50 -> 13 | H50: 10 | I50: =H50/$G50*100 -> 76.92307692 | J50: 3 | K50: =J50/$G50*100 -> 23.07692308 | L50: =+M50+O50 -> 13 | M50: 3 | N50: =M50/$L50*100 -> 23.07692308 | O50: 10 | P50: =O50/$L50*100 -> 76.92307692 | Q50: =+R50+T50 -> 12 | R50: 7 | S50: =R50/$Q50*100 -> 58.33333333 | T50: 5 | U50: =T50/$Q50*100 -> 41.66666667
A51: LA UNIÓN | B51: 48 | C51: 29 | D51: 60.41666667 | E51: 19 | F51: 39.58333333 | G51: 16 | H51: 13 | I51: 81.25 | J51: 3 | K51: 18.75 | L51: 16 | M51: 3 | N51: 18.75 | O51: 13 | P51: 81.25 | Q51: 16 | R51: 13 | S51: 81.25 | T51: 3 | U51: 18.75
A52: JIMÉNEZ | B52: 25 | C52: 15 | D52: 60 | E52: 10 | F52: 40 | G52: 9 | H52: 7 | I52: 77.77777778 | J52: 2 | K52: 22.22222222 | L52: 9 | M52: 2 | N52: 22.22222222 | O52: 7 | P52: 77.77777778 | Q52: 7 | R52: 6 | S52: 85.71428571 | T52: 1 | U52: 14.28571429
A53: TURRIALBA | B53: 30 | C53: 17 | D53: 56.66666667 | E53: 13 | F53: 43.33333333 | G53: 10 | H53: 7 | I53: 70 | J53: 3 | K53: 30 | L53: 10 | M53: 3 | N53: 30 | O53: 7 | P53: 70 | Q53: 10 | R53: 7 | S53: 70 | T53: 3 | U53: 30
A54: ALVARADO | B54: 21 | C54: 10 | D54: 47.61904762 | E54: 11 | F54: 52.38095238 | G54: 7 | H54: 5 | I54: 71.42857143 | J54: 2 | K54: 28.57142857 | L54: 7 | M54: 2 | N54: 28.57142857 | O54: 5 | P54: 71.42857143 | Q54: 7 | R54: 3 | S54: 42.85714286 | T54: 4 | U54: 57.14285714
A55: OREAMUNO | B55: 30 | C55: 17 | D55: 56.66666667 | E55: 13 | F55: 43.33333333 | G55: 10 | H55: 7 | I55: 70 | J55: 3 | K55: 30 | L55: 10 | M55: 3 | N55: 30 | O55: 7 | P55: 70 | Q55: 10 | R55: 7 | S55: 70 | T55: 3 | U55: 30
A56: EL GUARCO | B56: 27 | C56: 17 | D56: 62.96296296 | E56: 10 | F56: 37.03703704 | G56: 10 | H56: 8 | I56: 80 | J56: 2 | K56: 20 | L56: 10 | M56: 2 | N56: 20 | O56: 8 | P56: 80 | Q56: 7 | R56: 7 | S56: 100 | T56: 0 | U56: 0
A57: PROVINCIA HEREDIA | B57: =SUM(B58:B67) -> 234 | C57: =SUM(C58:C67) -> 130 | D57: =C57/$B57*100 -> 55.55555556 | E57: =SUM(E58:E67) -> 104 | F57: =E57/$B57*100 -> 44.44444444 | G57: =SUM(G58:G67) -> 81 | H57: =SUM(H58:H67) -> 54 | I57: =H57/$G57*100 -> 66.66666667 | J57: =SUM(J58:J67) -> 27 | K57: =J57/$G57*100 -> 33.33333333 | L57: =SUM(L58:L67) -> 78 | M57: =SUM(M58:M67) -> 27 | N57: =M57/$L57*100 -> 34.61538462 | O57: =SUM(O58:O67) -> 51 | P57: =O57/$L57*100 -> 65.38461538 | Q57: =SUM(Q58:Q67) -> 75 | R57: =SUM(R58:R67) -> 49 | S57: =R57/$Q57*100 -> 65.33333333 | T57: =SUM(T58:T67) -> 26 | U57: =T57/$Q57*100 -> 34.66666667
A58: HEREDIA | B58: =+C58+E58 -> 27 | C58: =+H58+M58+R58 -> 17 | D58: =C58/$B58*100 -> 62.96296296 | E58: =+J58+O58+T58 -> 10 | F58: =E58/$B58*100 -> 37.03703704 | G58: =+H58+J58 -> 9 | H58: 8 | I58: =H58/$G58*100 -> 88.88888889 | J58: 1 | K58: =J58/$G58*100 -> 11.11111111 | L58: =+M58+O58 -> 9 | M58: 1 | N58: =M58/$L58*100 -> 11.11111111 | O58: 8 | P58: =O58/$L58*100 -> 88.88888889 | Q58: =+R58+T58 -> 9 | R58: 8 | S58: =R58/$Q58*100 -> 88.88888889 | T58: 1 | U58: =T58/$Q58*100 -> 11.11111111
A59: BARVA | B59: =+C59+E59 -> 30 | C59: =+H59+M59+R59 -> 16 | D59: =C59/$B59*100 -> 53.33333333 | E59: =+J59+O59+T59 -> 14 | F59: =E59/$B59*100 -> 46.66666667 | G59: =+H59+J59 -> 10 | H59: 7 | I59: =H59/$G59*100 -> 70 | J59: 3 | K59: =J59/$G59*100 -> 30 | L59: =+M59+O59 -> 10 | M59: 3 | N59: =M59/$L59*100 -> 30 | O59: 7 | P59: =O59/$L59*100 -> 70 | Q59: =+R59+T59 -> 10 | R59: 6 | S59: =R59/$Q59*100 -> 60 | T59: 4 | U59: =T59/$Q59*100 -> 40
A60: SANTO DOMINGO | B60: 22 | C60: 15 | D60: 68.18181818 | E60: 7 | F60: 31.81818182 | G60: 8 | H60: 6 | I60: 75 | J60: 2 | K60: 25 | L60: 7 | M60: 2 | N60: 28.57142857 | O60: 5 | P60: 71.42857143 | Q60: 7 | R60: 7 | S60: 100 | T60: 0 | U60: 0
A61: SANTA BÁRBARA | B61: 29 | C61: 15 | D61: 51.72413793 | E61: 14 | F61: 48.27586207 | G61: 10 | H61: 5 | I61: 50 | J61: 5 | K61: 50 | L61: 10 | M61: 5 | N61: 50 | O61: 5 | P61: 50 | Q61: 9 | R61: 5 | S61: 55.55555556 | T61: 4 | U61: 44.44444444
A62: SAN RAFAEL | B62: 23 | C62: 13 | D62: 56.52173913 | E62: 10 | F62: 43.47826087 | G62: 8 | H62: 4 | I62: 50 | J62: 4 | K62: 50 | L62: 8 | M62: 4 | N62: 50 | O62: 4 | P62: 50 | Q62: 7 | R62: 5 | S62: 71.42857143 | T62: 2 | U62: 28.57142857
A63: SAN ISIDRO | B63: 22 | C63: 12 | D63: 54.54545455 | E63: 10 | F63: 45.45454545 | G63: 8 | H63: 4 | I63: 50 | J63: 4 | K63: 50 | L63: 7 | M63: 4 | N63: 57.14285714 | O63: 3 | P63: 42.85714286 | Q63: 7 | R63: 4 | S63: 57.14285714 | T63: 3 | U63: 42.85714286
A64: BELÉN | B64: 21 | C64: 9 | D64: 42.85714286 | E64: 12 | F64: 57.14285714 | G64: 7 | H64: 4 | I64: 57.14285714 | J64: 3 | K64: 42.85714286 | L64: 7 | M64: 3 | N64: 42.85714286 | O64: 4 | P64: 57.14285714 | Q64: 7 | R64: 2 | S64: 28.57142857 | T64: 5 | U64: 71.42857143
A65: FLORES | B65: 18 | C65: 9 | D65: 50 | E65: 9 | F65: 50 | G65: 6 | H65: 3 | I65: 50 | J65: 3 | K65: 50 | L65: 6 | M65: 3 | N65: 50 | O65: 3 | P65: 50 | Q65: 6 | R65: 3 | S65: 50 | T65: 3 | U65: 50
A66: SAN PABLO | B66: 14 | C66: 8 | D66: 57.14285714 | E66: 6 | F66: 42.85714286 | G66: 5 | H66: 5 | I66: 100 | J66: 0 | K66: 0 | L66: 5 | M66: 0 | N66: 0 | O66: 5 | P66: 100 | Q66: 4 | R66: 3 | S66: 75 | T66: 1 | U66: 25
A67: SARAPIQUÍ | B67: 28 | C67: 16 | D67: 57.14285714 | E67: 12 | F67: 42.85714286 | G67: 10 | H67: 8 | I67: 80 | J67: 2 | K67: 20 | L67: 9 | M67: 2 | N67: 22.22222222 | O67: 7 | P67: 77.77777778 | Q67: 9 | R67: 6 | S67: 66.66666667 | T67: 3 | U67: 33.33333333
A68: PROVINCIA GUANACASTE | B68: =SUM(B69:B79) -> 249 | C68: =SUM(C69:C79) -> 137 | D68: =C68/$B68*100 -> 55.02008032 | E68: =SUM(E69:E79) -> 112 | F68: =E68/$B68*100 -> 44.97991968 | G68: =SUM(G69:G79) -> 86 | H68: =SUM(H69:H79) -> 65 | I68: =H68/$G68*100 -> 75.58139535 | J68: =SUM(J69:J79) -> 21 | K68: =J68/$G68*100 -> 24.41860465 | L68: =SUM(L69:L79) -> 82 | M68: =SUM(M69:M79) -> 19 | N68: =M68/$L68*100 -> 23.17073171 | O68: =SUM(O69:O79) -> 63 | P68: =O68/$L68*100 -> 76.82926829 | Q68: =SUM(Q69:Q79) -> 81 | R68: =SUM(R69:R79) -> 53 | S68: =R68/$Q68*100 -> 65.43209877 | T68: =SUM(T69:T79) -> 28 | U68: =T68/$Q68*100 -> 34.56790123
A69: LIBERIA | B69: =+C69+E69 -> 33 | C69: =+H69+M69+R69 -> 17 | D69: =C69/$B69*100 -> 51.51515152 | E69: =+J69+O69+T69 -> 16 | F69: =E69/$B69*100 -> 48.48484848 | G69: =+H69+J69 -> 11 | H69: 7 | I69: =H69/$G69*100 -> 63.63636364 | J69: 4 | K69: =J69/$G69*100 -> 36.36363636 | L69: =+M69+O69 -> 11 | M69: 4 | N69: =M69/$L69*100 -> 36.36363636 | O69: 7 | P69: =O69/$L69*100 -> 63.63636364 | Q69: =+R69+T69 -> 11 | R69: 6 | S69: =R69/$Q69*100 -> 54.54545455 | T69: 5 | U69: =T69/$Q69*100 -> 45.45454545
A70: NICOYA | B70: =+C70+E70 -> 33 | C70: =+H70+M70+R70 -> 20 | D70: =C70/$B70*100 -> 60.60606061 | E70: =+J70+O70+T70 -> 13 | F70: =E70/$B70*100 -> 39.39393939 | G70: =+H70+J70 -> 11 | H70: 10 | I70: =H70/$G70*100 -> 90.90909091 | J70: 1 | K70: =J70/$G70*100 -> 9.090909091 | L70: =+M70+O70 -> 11 | M70: 1 | N70: =M70/$L70*100 -> 9.090909091 | O70: 10 | P70: =O70/$L70*100 -> 90.90909091 | Q70: =+R70+T70 -> 11 | R70: 9 | S70: =R70/$Q70*100 -> 81.81818182 | T70: 2 | U70: =T70/$Q70*100 -> 18.18181818
A71: SANTA CRUZ | B71: 24 | C71: 14 | D71: 58.33333333 | E71: 10 | F71: 41.66666667 | G71: 9 | H71: 8 | I71: 88.88888889 | J71: 1 | K71: 11.11111111 | L71: 8 | M71: 1 | N71: 12.5 | O71: 7 | P71: 87.5 | Q71: 7 | R71: 5 | S71: 71.42857143 | T71: 2 | U71: 28.57142857
A72: BAGACES | B72: 24 | C72: 11 | D72: 45.83333333 | E72: 13 | F72: 54.16666667 | G72: 8 | H72: 5 | I72: 62.5 | J72: 3 | K72: 37.5 | L72: 8 | M72: 3 | N72: 37.5 | O72: 5 | P72: 62.5 | Q72: 8 | R72: 3 | S72: 37.5 | T72: 5 | U72: 62.5
A73: CARRILLO | B73: 18 | C73: 10 | D73: 55.55555556 | E73: 8 | F73: 44.44444444 | G73: 6 | H73: 5 | I73: 83.33333333 | J73: 1 | K73: 16.66666667 | L73: 6 | M73: 1 | N73: 16.66666667 | O73: 5 | P73: 83.33333333 | Q73: 6 | R73: 4 | S73: 66.66666667 | T73: 2 | U73: 33.33333333
A74: CAÑAS | B74: 22 | C74: 13 | D74: 59.09090909 | E74: 9 | F74: 40.90909091 | G74: 8 | H74: 7 | I74: 87.5 | J74: 1 | K74: 12.5 | L74: 7 | M74: 0 | N74: 0 | O74: 7 | P74: 100 | Q74: 7 | R74: 6 | S74: 85.71428571 | T74: 1 | U74: 14.28571429
A75: ABANGARES | B75: 30 | C75: 18 | D75: 60 | E75: 12 | F75: 40 | G75: 10 | H75: 7 | I75: 70 | J75: 3 | K75: 30 | L75: 10 | M75: 3 | N75: 30 | O75: 7 | P75: 70 | Q75: 10 | R75: 8 | S75: 80 | T75: 2 | U75: 20
A76: TILARÁN | B76: 7 | C76: 4 | D76: 57.14285714 | E76: 3 | F76: 42.85714286 | G76: 3 | H76: 3 | I76: 100 | J76: 0 | K76: 0 | L76: 2 | M76: 0 | N76: 0 | O76: 2 | P76: 100 | Q76: 2 | R76: 1 | S76: 50 | T76: 1 | U76: 50
A77: NANDAYURE | B77: 21 | C77: 11 | D77: 52.38095238 | E77: 10 | F77: 47.61904762 | G77: 7 | H77: 5 | I77: 71.42857143 | J77: 2 | K77: 28.57142857 | L77: 7 | M77: 2 | N77: 28.57142857 | O77: 5 | P77: 71.42857143 | Q77: 7 | R77: 4 | S77: 57.14285714 | T77: 3 | U77: 42.85714286
A78: LA CRUZ | B78: 24 | C78: 12 | D78: 50 | E78: 12 | F78: 50 | G78: 8 | H78: 5 | I78: 62.5 | J78: 3 | K78: 37.5 | L78: 8 | M78: 3 | N78: 37.5 | O78: 5 | P78: 62.5 | Q78: 8 | R78: 4 | S78: 50 | T78: 4 | U78: 50
A79: HOJANCHA | B79: 13 | C79: 7 | D79: 53.84615385 | E79: 6 | F79: 46.15384615 | G79: 5 | H79: 3 | I79: 60 | J79: 2 | K79: 40 | L79: 4 | M79: 1 | N79: 25 | O79: 3 | P79: 75 | Q79: 4 | R79: 3 | S79: 75 | T79: 1 | U79: 25
A80: PROVINCIA PUNTARENAS | B80: =SUM(B81:B91) -> 232 | C80: =SUM(C81:C91) -> 130 | D80: =C80/$B80*100 -> 56.03448276 | E80: =SUM(E81:E91) -> 102 | F80: =E80/$B80*100 -> 43.96551724 | G80: =SUM(G81:G91) -> 79 | H80: =SUM(H81:H91) -> 64 | I80: =H80/$G80*100 -> 81.01265823 | J80: =SUM(J81:J91) -> 15 | K80: =J80/$G80*100 -> 18.98734177 | L80: =SUM(L81:L91) -> 77 | M80: =SUM(M81:M91) -> 14 | N80: =M80/$L80*100 -> 18.18181818 | O80: =SUM(O81:O91) -> 63 | P80: =O80/$L80*100 -> 81.81818182 | Q80: =SUM(Q81:Q91) -> 76 | R80: =SUM(R81:R91) -> 52 | S80: =R80/$Q80*100 -> 68.42105263 | T80: =SUM(T81:T91) -> 24 | U80: =T80/$Q80*100 -> 31.57894737
A81: PUNTARENAS | B81: =+C81+E81 -> 27 | C81: =+H81+M81+R81 -> 14 | D81: =C81/$B81*100 -> 51.85185185 | E81: =+J81+O81+T81 -> 13 | F81: =E81/$B81*100 -> 48.14814815 | G81: =+H81+J81 -> 9 | H81: 6 | I81: =H81/$G81*100 -> 66.66666667 | J81: 3 | K81: =J81/$G81*100 -> 33.33333333 | L81: =+M81+O81 -> 9 | M81: 3 | N81: =M81/$L81*100 -> 33.33333333 | O81: 6 | P81: =O81/$L81*100 -> 66.66666667 | Q81: =+R81+T81 -> 9 | R81: 5 | S81: =R81/$Q81*100 -> 55.55555556 | T81: 4 | U81: =T81/$Q81*100 -> 44.44444444
A82: ESPARZA | B82: =+C82+E82 -> 21 | C82: =+H82+M82+R82 -> 13 | D82: =C82/$B82*100 -> 61.9047619 | E82: =+J82+O82+T82 -> 8 | F82: =E82/$B82*100 -> 38.0952381 | G82: =+H82+J82 -> 7 | H82: 5 | I82: =H82/$G82*100 -> 71.42857143 | J82: 2 | K82: =J82/$G82*100 -> 28.57142857 | L82: =+M82+O82 -> 7 | M82: 2 | N82: =M82/$L82*100 -> 28.57142857 | O82: 5 | P82: =O82/$L82*100 -> 71.42857143 | Q82: =+R82+T82 -> 7 | R82: 6 | S82: =R82/$Q82*100 -> 85.71428571 | T82: 1 | U82: =T82/$Q82*100 -> 14.28571429
A83: BUENOS AIRES | B83: 18 | C83: 10 | D83: 55.55555556 | E83: 8 | F83: 44.44444444 | G83: 6 | H83: 5 | I83: 83.33333333 | J83: 1 | K83: 16.66666667 | L83: 6 | M83: 1 | N83: 16.66666667 | O83: 5 | P83: 83.33333333 | Q83: 6 | R83: 4 | S83: 66.66666667 | T83: 2 | U83: 33.33333333
A84: MONTES DE ORO | B84: 16 | C84: 7 | D84: 43.75 | E84: 9 | F84: 56.25 | G84: 6 | H84: 4 | I84: 66.66666667 | J84: 2 | K84: 33.33333333 | L84: 5 | M84: 1 | N84: 20 | O84: 4 | P84: 80 | Q84: 5 | R84: 2 | S84: 40 | T84: 3 | U84: 60
A85: OSA | B85: 19 | C85: 11 | D85: 57.89473684 | E85: 8 | F85: 42.10526316 | G85: 7 | H85: 6 | I85: 85.71428571 | J85: 1 | K85: 14.28571429 | L85: 6 | M85: 1 | N85: 16.66666667 | O85: 5 | P85: 83.33333333 | Q85: 6 | R85: 4 | S85: 66.66666667 | T85: 2 | U85: 33.33333333
A86: QUEPOS | B86: 30 | C86: 17 | D86: 56.66666667 | E86: 13 | F86: 43.33333333 | G86: 10 | H86: 8 | I86: 80 | J86: 2 | K86: 20 | L86: 10 | M86: 2 | N86: 20 | O86: 8 | P86: 80 | Q86: 10 | R86: 7 | S86: 70 | T86: 3 | U86: 30
A87: GOLFITO | B87: 24 | C87: 13 | D87: 54.16666667 | E87: 11 | F87: 45.83333333 | G87: 8 | H87: 5 | I87: 62.5 | J87: 3 | K87: 37.5 | L87: 8 | M87: 3 | N87: 37.5 | O87: 5 | P87: 62.5 | Q87: 8 | R87: 5 | S87: 62.5 | T87: 3 | U87: 37.5
A88: COTO BRUS | B88: 15 | C88: 7 | D88: 46.66666667 | E88: 8 | F88: 53.33333333 | G88: 5 | H88: 5 | I88: 100 | J88: 0 | K88: 0 | L88: 5 | M88: 0 | N88: 0 | O88: 5 | P88: 100 | Q88: 5 | R88: 2 | S88: 40 | T88: 3 | U88: 60
A89: PARRITA | B89: 17 | C89: 10 | D89: 58.82352941 | E89: 7 | F89: 41.17647059 | G89: 6 | H89: 5 | I89: 83.33333333 | J89: 1 | K89: 16.66666667 | L89: 6 | M89: 1 | N89: 16.66666667 | O89: 5 | P89: 83.33333333 | Q89: 5 | R89: 4 | S89: 80 | T89: 1 | U89: 20
A90: CORREDORES | B90: 24 | C90: 16 | D90: 66.66666667 | E90: 8 | F90: 33.33333333 | G90: 8 | H90: 8 | I90: 100 | J90: 0 | K90: 0 | L90: 8 | M90: 0 | N90: 0 | O90: 8 | P90: 100 | Q90: 8 | R90: 8 | S90: 100 | T90: 0 | U90: 0
A91: GARABITO | B91: 21 | C91: 12 | D91: 57.14285714 | E91: 9 | F91: 42.85714286 | G91: 7 | H91: 7 | I91: 100 | J91: 0 | K91: 0 | L91: 7 | M91: 0 | N91: 0 | O91: 7 | P91: 100 | Q91: 7 | R91: 5 | S91: 71.42857143 | T91: 2 | U91: 28.57142857
A92: PROVINCIA LIMÓN | B92: =SUM(B93:B98) -> 206 | C92: =SUM(C93:C98) -> 119 | D92: =C92/$B92*100 -> 57.76699029 | E92: =SUM(E93:E98) -> 87 | F92: =E92/$B92*100 -> 42.23300971 | G92: =SUM(G93:G98) -> 70 | H92: =SUM(H93:H98) -> 52 | I92: =H92/$G92*100 -> 74.28571429 | J92: =SUM(J93:J98) -> 18 | K92: =J92/$G92*100 -> 25.71428571 | L92: =SUM(L93:L98) -> 70 | M92: =SUM(M93:M98) -> 18 | N92: =M92/$L92*100 -> 25.71428571 | O92: =SUM(O93:O98) -> 52 | P92: =O92/$L92*100 -> 74.28571429 | Q92: =SUM(Q93:Q98) -> 66 | R92: =SUM(R93:R98) -> 49 | S92: =R92/$Q92*100 -> 74.24242424 | T92: =SUM(T93:T98) -> 17 | U92: =T92/$Q92*100 -> 25.75757576
A93: LIMÓN | B93: =+C93+E93 -> 36 | C93: =+H93+M93+R93 -> 20 | D93: 55.55555556 | E93: =+J93+O93+T93 -> 16 | F93: 44.44444444 | G93: =+H93+J93 -> 12 | H93: 6 | I93: 50 | J93: 6 | K93: 50 | L93: =+M93+O93 -> 12 | M93: 6 | N93: 50 | O93: 6 | P93: 50 | Q93: =+R93+T93 -> 12 | R93: 8 | S93: 66.66666667 | T93: 4 | U93: 33.33333333
A94: POCOCÍ | B94: 45 | C94: 29 | D94: 64.44444444 | E94: 16 | F94: 35.55555556 | G94: 15 | H94: 10 | I94: 66.66666667 | J94: 5 | K94: 33.33333333 | L94: 15 | M94: 5 | N94: 33.33333333 | O94: 10 | P94: 66.66666667 | Q94: 15 | R94: 14 | S94: 93.33333333 | T94: 1 | U94: 6.666666667
A95: SIQUIRRES | B95: 33 | C95: 18 | D95: 54.54545455 | E95: 15 | F95: 45.45454545 | G95: 12 | H95: 10 | I95: 83.33333333 | J95: 2 | K95: 16.66666667 | L95: 12 | M95: 2 | N95: 16.66666667 | O95: 10 | P95: 83.33333333 | Q95: 9 | R95: 6 | S95: 66.66666667 | T95: 3 | U95: 33.33333333
A96: TALAMANCA | B96: 27 | C96: 16 | D96: 59.25925926 | E96: 11 | F96: 40.74074074 | G96: 9 | H96: 8 | I96: 88.88888889 | J96: 1 | K96: 11.11111111 | L96: 9 | M96: 1 | N96: 11.11111111 | O96: 8 | P96: 88.88888889 | Q96: 9 | R96: 7 | S96: 77.77777778 | T96: 2 | U96: 22.22222222
A97: MATINA | B97: 33 | C97: 19 | D97: 57.57575758 | E97: 14 | F97: 42.42424242 | G97: 11 | H97: 10 | I97: 90.90909091 | J97: 1 | K97: 9.090909091 | L97: 11 | M97: 1 | N97: 9.090909091 | O97: 10 | P97: 90.90909091 | Q97: 11 | R97: 8 | S97: 72.72727273 | T97: 3 | U97: 27.27272727
A98: GUÁCIMO | B98: 32 | C98: 17 | D98: 53.125 | E98: 15 | F98: 46.875 | G98: 11 | H98: 8 | I98: 72.72727273 | J98: 3 | K98: 27.27272727 | L98: 11 | M98: 3 | N98: 27.27272727 | O98: 8 | P98: 72.72727273 | Q98: 10 | R98: 6 | S98: 60 | T98: 4 | U98: 40
A101: =+'G3'!A34 -> Fuente: Departamento de Registro de Partidos Políticos, base de datos de Candidaturas 2020, Tribunal Supremo de Elecciones.

Sheet C23
A1: CUADRO 23 COSTA RICA: CANDIDATURAS A REGIDURÍAS EN PROPIEDAD Y SUPLENCIA POR SEXO, SEGÚN PARTIDO POLÍTICO
A2: ELECCIONES MUNICIPALES 2 DE FEBRERO 2020
A3: (CIFRAS ABSOLUTAS Y RELATIVAS)
A5: PARTIDO POLÍTICO | B5: REGIDURÍAS | G5: EN PROPIEDAD | L5: EN SUPLENCIA
A6: PARTIDO POLITICO | B6: TOTAL | C6: HOMBRES | E6: MUJERES | G6: TOTAL | H6: HOMBRES | J6: MUJERES | L6: TOTAL | M6: HOMBRES | O6: MUJERES
B7: ABS | C7: ABS | D7: % | E7: ABS | F7: % | G7: ABS | H7: ABS | I7: % | J7: ABS | K7: % | L7: ABS | M7: ABS | N7: % | O7: ABS | P7: %
A9: TOTAL | B9: =SUM(B11:B96) -> 7845 | C9: =SUM(C11:C96) -> 4039 | D9: =C9/B9*100 -> 51.48502231 | E9: =SUM(E11:E96) -> 3806 | F9: =E9/B9*100 -> 48.51497769 | G9: =SUM(G11:G96) -> 4015 | H9: =SUM(H11:H96) -> 2140 | I9: =H9/G9*100 -> 53.30012453 | J9: =SUM(J11:J96) -> 1875 | K9: =J9/G9*100 -> 46.69987547 | L9: =SUM(L11:L96) -> 3830 | M9: =SUM(M11:M96) -> 1899 | N9: =M9/L9*100 -> 49.58224543 | O9: =SUM(O11:O96) -> 1931 | P9: =O9/L9*100 -> 50.41775457
A11: ACCESIBILIDAD SIN EXCLUSIÓN | B11: =+C11+E11 -> 59 | C11: =+H11+M11 -> 30 | D11: =C11/B11*100 -> 50.84745763 | E11: =+J11+O11 -> 29 | F11: =E11/B11*100 -> 49.15254237 | G11: =+H11+J11 -> 29 | H11: 16 | I11: =H11/G11*100 -> 55.17241379 | J11: 13 | K11: =J11/G11*100 -> 44.82758621 | L11: =+M11+O11 -> 30 | M11: 14 | N11: =M11/L11*100 -> 46.66666667 | O11: 16 | P11: =O11/L11*100 -> 53.33333333
A12: ACCIÓN CANTONAL SIQUIRRES INDEPENDIENTE | B12: 14 | C12: 7 | D12: 50 | E12: 7 | F12: 50 | G12: 7 | H12: 4 | I12: 57.14285714 | J12: 3 | K12: 42.85714286 | L12: 7 | M12: 3 | N12: 42.85714286 | O12: 4 | P12: 57.14285714
A13: ACCIÓN CIUDADANA | B13: 558 | C13: 280 | D13: 50.17921147 | E13: 278 | F13: 49.82078853 | G13: 281 | H13: 136 | I13: 48.39857651 | J13: 145 | K13: 51.60142349 | L13: 277 | M13: 144 | N13: 51.98555957 | O13: 133 | P13: 48.01444043
A14: ACCIÓN NARANJEÑA | B14: 10 | C14: 5 | D14: 50 | E14: 5 | F14: 50 | G14: 5 | H14: 3 | I14: 60 | J14: 2 | K14: 40 | L14: 5 | M14: 2 | N14: 40 | O14: 3 | P14: 60
A15: ACTUEMOS YA | B15: 72 | C15: 36 | D15: 50 | E15: 36 | F15: 50 | G15: 37 | H15: 20 | I15: 54.05405405 | J15: 17 | K15: 45.94594595 | L15: 35 | M15: 16 | N15: 45.71428571 | O15: 19 | P15: 54.28571429
A16: ACUERDO DE ALIANZA DE QUEPOS | B16: 10 | C16: 5 | D16: 50 | E16: 5 | F16: 50 | G16: 5 | H16: 3 | I16: 60 | J16: 2 | K16: 40 | L16: 5 | M16: 2 | N16: 40 | O16: 3 | P16: 60
A17: ALIANZA DEMÓCRATA CRISTIANA | B17: =+C17+E17 -> 179 | C17: =+H17+M17 -> 90 | D17: =C17/B17*100 -> 50.27932961 | E17: =+J17+O17 -> 89 | F17: =E17/B17*100 -> 49.72067039 | G17: =+H17+J17 -> 91 | H17: 49 | I17: =H17/G17*100 -> 53.84615385 | J17: 42 | K17: =J17/G17*100 -> 46.15384615 | L17: =+M17+O17 -> 88 | M17: 41 | N17: =M17/L17*100 -> 46.59090909 | O17: 47 | P17: =O17/L17*100 -> 53.40909091
A18: ALIANZA POR PALMARES | B18: 8 | C18: 4 | D18: 50 | E18: 4 | F18: 50 | G18: 5 | H18: 3 | I18: 60 | J18: 2 | K18: 40 | L18: 3 | M18: 1 | N18: 33.33333333 | O18: 2 | P18: 66.66666667
A19: ALIANZA POR SAN JOSÉ | B19: 20 | C19: 11 | D19: 55 | E19: 9 | F19: 45 | G19: 11 | H19: 6 | I19: 54.54545455 | J19: 5 | K19: 45.45454545 | L19: 9 | M19: 5 | N19: 55.55555556 | O19: 4 | P19: 44.44444444
A20: ALIANZA POR SARCHÍ | B20: 10 | C20: 5 | D20: 50 | E20: 5 | F20: 50 | G20: 5 | H20: 2 | I20: 40 | J20: 3 | K20: 60 | L20: 5 | M20: 3 | N20: 60 | O20: 2 | P20: 40
A21: ALIANZA SOCIAL POR LA UNIÓN | B21: 18 | C21: 9 | D21: 50 | E21: 9 | F21: 50 | G21: 9 | H21: 5 | I21: 55.55555556 | J21: 4 | K21: 44.44444444 | L21: 9 | M21: 4 | N21: 44.44444444 | O21: 5 | P21: 55.55555556
A22: ANTICORRUPCIÓN COSTARRICENSE | B22: 12 | C22: 6 | D22: 50 | E22: 6 | F22: 50 | G22: 9 | H22: 5 | I22: 55.55555556 | J22: 4 | K22: 44.44444444 | L22: 3 | M22: 1 | N22: 33.33333333 | O22: 2 | P22: 66.66666667
A23: AUTÉNTICO LABRADOR DE CORONADO | B23: 13 | C23: 6 | D23: 46.15384615 | E23: 7 | F23: 53.84615385 | G23: 6 | H23: 3 | I23: 50 | J23: 3 | K23: 50 | L23: 7 | M23: 3 | N23: 42.85714286 | O23: 4 | P23: 57.14285714
A24: AUTÉNTICO LIMONENSE | B24: 31 | C24: 15 | D24: 48.38709677 | E24: 16 | F24: 51.61290323 | G24: 15 | H24: 8 | I24: 53.33333333 | J24: 7 | K24: 46.66666667 | L24: 16 | M24: 7 | N24: 43.75 | O24: 9 | P24: 56.25
A25: AUTÉNTICO NICOYANO | B25: 14 | C25: 8 | D25: 57.14285714 | E25: 6 | F25: 42.85714286 | G25: 7 | H25: 4 | I25: 57.14285714 | J25: 3 | K25: 42.85714286 | L25: 7 | M25: 4 | N25: 57.14285714 | O25: 3 | P25: 42.85714286
A26: AUTÉNTICO SANTACRUCEÑO | B26: 14 | C26: 7 | D26: 50 | E26: 7 | F26: 50 | G26: 7 | H26: 4 | I26: 57.14285714 | J26: 3 | K26: 42.85714286 | L26: 7 | M26: 3 | N26: 42.85714286 | O26: 4 | P26: 57.14285714
A27: AUTÉNTICO SIQUIRREÑO | B27: 14 | C27: 7 | D27: 50 | E27: 7 | F27: 50 | G27: 7 | H27: 4 | I27: 57.14285714 | J27: 3 | K27: 42.85714286 | L27: 7 | M27: 3 | N27: 42.85714286 | O27: 4 | P27: 57.14285714
A28: AUTÓNOMO OROMONTANO | B28: 8 | C28: 4 | D28: 50 | E28: 4 | F28: 50 | G28: 4 | H28: 2 | I28: 50 | J28: 2 | K28: 50 | L28: 4 | M28: 2 | N28: 50 | O28: 2 | P28: 50
A29: AVANCE ISIDREÑO | B29: 9 | C29: 4 | D29: 44.44444444 | E29: 5 | F29: 55.55555556 | G29: 4 | H29: 2 | I29: 50 | J29: 2 | K29: 50 | L29: 5 | M29: 2 | N29: 40 | O29: 3 | P29: 60
A30: AVANCE MONTES DE OCA | B30: 6 | C30: 3 | D30: 50 | E30: 3 | F30: 50 | G30: 3 | H30: 2 | I30: 66.66666667 | J30: 1 | K30: 33.33333333 | L30: 3 | M30: 1 | N30: 33.33333333 | O30: 2 | P30: 66.66666667
A31: AVANTE POCOCÍ | B31: 7 | C31: 4 | D31: 57.14285714 | E31: 3 | F31: 42.85714286 | G31: 4 | H31: 2 | I31: 50 | J31: 2 | K31: 50 | L31: 3 | M31: 2 | N31: 66.66666667 | O31: 1 | P31: 33.33333333
A32: BARVA UNIDA | B32: 10 | C32: 5 | D32: 50 | E32: 5 | F32: 50 | G32: 5 | H32: 2 | I32: 40 | J32: 3 | K32: 60 | L32: 5 | M32: 3 | N32: 60 | O32: 2 | P32: 40
A33: CANTONAL DE CARRILLO | B33: 8 | C33: 4 | D33: 50 | E33: 4 | F33: 50 | G33: 4 | H33: 2 | I33: 50 | J33: 2 | K33: 50 | L33: 4 | M33: 2 | N33: 50 | O33: 2 | P33: 50
A34: COALICIÓN ALIANZA POR NICOYA | B34: 13 | C34: 7 | D34: 53.84615385 | E34: 6 | F34: 46.15384615 | G34: 7 | H34: 4 | I34: 57.14285714 | J34: 3 | K34: 42.85714286 | L34: 6 | M34: 3 | N34: 50 | O34: 3 | P34: 50
A35: COALICIÓN ASERRI DE TODOS | B35: 6 | C35: 3 | D35: 50 | E35: 3 | F35: 50 | G35: 3 | H35: 2 | I35: 66.66666667 | J35: 1 | K35: 33.33333333 | L35: 3 | M35: 1 | N35: 33.33333333 | O35: 2 | P35: 66.66666667
A36: COALICIÓN GENTE MONTES DE OCA | B36: 11 | C36: 6 | D36: 54.54545455 | E36: 5 | F36: 45.45454545 | G36: 6 | H36: 3 | I36: 50 | J36: 3 | K36: 50 | L36: 5 | M36: 3 | N36: 60 | O36: 2 | P36: 40
A37: COALICIÓN JUNTOS | B37: 16 | C37: 8 | D37: 50 | E37: 8 | F37: 50 | G37: 11 | H37: 6 | I37: 54.54545455 | J37: 5 | K37: 45.45454545 | L37: 5 | M37: 2 | N37: 40 | O37: 3 | P37: 60
A38: COALICIÓN UNIDAD POR FLORES | B38: 10 | C38: 5 | D38: 50 | E38: 5 | F38: 50 | G38: 5 | H38: 2 | I38: 40 | J38: 3 | K38: 60 | L38: 5 | M38: 3 | N38: 60 | O38: 2 | P38: 40
A39: COALICIÓN UNIÓN BELEMITA | B39: 9 | C39: 4 | D39: 44.44444444 | E39: 5 | F39: 55.55555556 | G39: 5 | H39: 2 | I39: 40 | J39: 3 | K39: 60 | L39: 4 | M39: 2 | N39: 50 | O39: 2 | P39: 50
A40: COMUNAL UNIDO | B40: 124 | C40: 64 | D40: 51.61290323 | E40: 60 | F40: 48.38709677 | G40: 65 | H40: 35 | I40: 53.84615385 | J40: 30 | K40: 46.15384615 | L40: 59 | M40: 29 | N40: 49.15254237 | O40: 30 | P40: 50.84745763
A41: CURRIDABAT SIGLO XXI | B41: 13 | C41: 6 | D41: 46.15384615 | E41: 7 | F41: 53.84615385 | G41: 7 | H41: 3 | I41: 42.85714286 | J41: 4 | K41: 57.14285714 | L41: 6 | M41: 3 | N41: 50 | O41: 3 | P41: 50
A42: DEL SOL | B42: 14 | C42: 7 | D42: 50 | E42: 7 | F42: 50 | G42: 7 | H42: 3 | I42: 42.85714286 | J42: 4 | K42: 57.14285714 | L42: 7 | M42: 4 | N42: 57.14285714 | O42: 3 | P42: 42.85714286
A43: DESARROLLO TALAMANQUEÑO | B43: 10 | C43: 5 | D43: 50 | E43: 5 | F43: 50 | G43: 5 | H43: 3 | I43: 60 | J43: 2 | K43: 40 | L43: 5 | M43: 2 | N43: 40 | O43: 3 | P43: 60
A44: DESPERTAR ALAJUELENSE | B44: 22 | C44: 11 | D44: 50 | E44: 11 | F44: 50 | G44: 11 | H44: 5 | I44: 45.45454545 | J44: 6 | K44: 54.54545455 | L44: 11 | M44: 6 | N44: 54.54545455 | O44: 5 | P44: 45.45454545
A45: ECOLÓGICO COMUNAL COSTARRICENSE | B45: 21 | C45: 11 | D45: 52.38095238 | E45: 10 | F45: 47.61904762 | G45: 10 | H45: 5 | I45: 50 | J45: 5 | K45: 50 | L45: 11 | M45: 6 | N45: 54.54545455 | O45: 5 | P45: 45.45454545
A46: FRENTE AMPLIO | B46: 363 | C46: 182 | D46: 50.13774105 | E46: 181 | F46: 49.86225895 | G46: 186 | H46: 93 | I46: 50 | J46: 93 | K46: 50 | L46: 177 | M46: 89 | N46: 50.28248588 | O46: 88 | P46: 49.71751412
A47: FUERZA SARCHISEÑA | B47: 10 | C47: 5 | D47: 50 | E47: 5 | F47: 50 | G47: 5 | H47: 3 | I47: 60 | J47: 2 | K47: 40 | L47: 5 | M47: 2 | N47: 40 | O47: 3 | P47: 60
A48: GOICOECHEA EN ACCIÓN | B48: 8 | C48: 4 | D48: 50 | E48: 4 | F48: 50 | G48: 4 | H48: 2 | I48: 50 | J48: 2 | K48: 50 | L48: 4 | M48: 2 | N48: 50 | O48: 2 | P48: 50
A49: GUANACASTE PRIMERO | B49: =+C49+E49 -> 12 | C49: =+H49+M49 -> 7 | D49: =C49/B49*100 -> 58.33333333 | E49: =+J49+O49 -> 5 | F49: =E49/B49*100 -> 41.66666667 | G49: =+H49+J49 -> 5 | H49: 3 | I49: =H49/G49*100 -> 60 | J49: 2 | K49: =J49/G49*100 -> 40 | L49: =+M49+O49 -> 7 | M49: 4 | N49: =M49/L49*100 -> 57.14285714 | O49: 3 | P49: =O49/L49*100 -> 42.85714286
A50: INNOVACIÓN CANTONAL | B50: 18 | C50: 10 | D50: 55.55555556 | E50: 8 | F50: 44.44444444 | G50: 9 | H50: 5 | I50: 55.55555556 | J50: 4 | K50: 44.44444444 | L50: 9 | M50: 5 | N50: 55.55555556 | O50: 4 | P50: 44.44444444
A51: INTEGRACIÓN NACIONAL | B51: 294 | C51: 145 | D51: 49.31972789 | E51: 149 | F51: 50.68027211 | G51: 151 | H51: 76 | I51: 50.33112583 | J51: 75 | K51: 49.66887417 | L51: 143 | M51: 69 | N51: 48.25174825 | O51: 74 | P51: 51.74825175
A52: IZQUIERDA COSTARRICENSE | B52: 53 | C52: 26 | D52: 49.05660377 | E52: 27 | F52: 50.94339623 | G52: 31 | H52: 16 | I52: 51.61290323 | J52: 15 | K52: 48.38709677 | L52: 22 | M52: 10 | N52: 45.45454545 | O52: 12 | P52: 54.54545455
A53: JUSTICIA SOCIAL | B53: 10 | C53: 6 | D53: 60 | E53: 4 | F53: 40 | G53: 5 | H53: 3 | I53: 60 | J53: 2 | K53: 40 | L53: 5 | M53: 3 | N53: 60 | O53: 2 | P53: 40
A54: JUSTICIA SOCIAL COSTARRICENSE | B54: 50 | C54: 25 | D54: 50 | E54: 25 | F54: 50 | G54: 27 | H54: 14 | I54: 51.85185185 | J54: 13 | K54: 48.14814815 | L54: 23 | M54: 11 | N54: 47.82608696 | O54: 12 | P54: 52.17391304
A55: LA FUERZA DE LA UNIÓN | B55: 6 | C55: 3 | D55: 50 | E55: 3 | F55: 50 | G55: 3 | H55: 2 | I55: 66.66666667 | J55: 1 | K55: 33.33333333 | L55: 3 | M55: 1 | N55: 33.33333333 | O55: 2 | P55: 66.66666667
A56: LA GRAN NICOYA | B56: 14 | C56: 7 | D56: 50 | E56: 7 | F56: 50 | G56: 7 | H56: 4 | I56: 57.14285714 | J56: 3 | K56: 42.85714286 | L56: 7 | M56: 3 | N56: 42.85714286 | O56: 4 | P56: 57.14285714
A57: LIBERACIÓN NACIONAL | B57: 977 | C57: 514 | D57: 52.61003071 | E57: 463 | F57: 47.38996929 | G57: 491 | H57: 270 | I57: 54.9898167 | J57: 221 | K57: 45.0101833 | L57: 486 | M57: 244 | N57: 50.20576132 | O57: 242 | P57: 49.79423868
A58: LIBERAL PROGRESISTA | B58: 90 | C58: 47 | D58: 52.22222222 | E58: 43 | F58: 47.77777778 | G58: 48 | H58: 26 | I58: 54.16666667 | J58: 22 | K58: 45.83333333 | L58: 42 | M58: 21 | N58: 50 | O58: 21 | P58: 50
A59: LIGA RAMONENSE | B59: 14 | C59: 8 | D59: 57.14285714 | E59: 6 | F59: 42.85714286 | G59: 7 | H59: 4 | I59: 57.14285714 | J59: 3 | K59: 42.85714286 | L59: 7 | M59: 4 | N59: 57.14285714 | O59: 3 | P59: 42.85714286
A60: MOVIMIENTO AVANCE SANTO DOMINGO | B60: 10 | C60: 5 | D60: 50 | E60: 5 | F60: 50 | G60: 5 | H60: 3 | I60: 60 | J60: 2 | K60: 40 | L60: 5 | M60: 2 | N60: 40 | O60: 3 | P60: 60
A61: NANDAYURE PROGRESA | B61: 10 | C61: 5 | D61: 50 | E61: 5 | F61: 50 | G61: 5 | H61: 3 | I61: 60 | J61: 2 | K61: 40 | L61: 5 | M61: 2 | N61: 40 | O61: 3 | P61: 60
A62: NUESTRO PUEBLO | B62: 171 | C62: 86 | D62: 50.29239766 | E62: 85 | F62: 49.70760234 | G62: 87 | H62: 45 | I62: 51.72413793 | J62: 42 | K62: 48.27586207 | L62: 84 | M62: 41 | N62: 48.80952381 | O62: 43 | P62: 51.19047619
A63: NUEVA GENERACIÓN | B63: 392 | C63: 201 | D63: 51.2755102 | E63: 191 | F63: 48.7244898 | G63: 200 | H63: 105 | I63: 52.5 | J63: 95 | K63: 47.5 | L63: 192 | M63: 96 | N63: 50 | O63: 96 | P63: 50
A64: NUEVA MAYORÍA GRIEGA | B64: 12 | C64: 7 | D64: 58.33333333 | E64: 5 | F64: 41.66666667 | G64: 7 | H64: 4 | I64: 57.14285714 | J64: 3 | K64: 42.85714286 | L64: 5 | M64: 3 | N64: 60 | O64: 2 | P64: 40
A65: NUEVA REPÚBLICA | B65: 784 | C65: 403 | D65: 51.40306122 | E65: 381 | F65: 48.59693878 | G65: 406 | H65: 216 | I65: 53.20197044 | J65: 190 | K65: 46.79802956 | L65: 378 | M65: 187 | N65: 49.47089947 | O65: 191 | P65: 50.52910053
A66: PALMARES PRIMERO | B66: 10 | C66: 5 | D66: 50 | E66: 5 | F66: 50 | G66: 5 | H66: 3 | I66: 60 | J66: 2 | K66: 40 | L66: 5 | M66: 2 | N66: 40 | O66: 3 | P66: 60
A67: PROGRESER | B67: 11 | C67: 5 | D67: 45.45454545 | E67: 6 | F67: 54.54545455 | G67: 6 | H67: 3 | I67: 50 | J67: 3 | K67: 50 | L67: 5 | M67: 2 | N67: 40 | O67: 3 | P67: 60
A68: PUEBLO GARABITO | B68: 9 | C68: 5 | D68: 55.55555556 | E68: 4 | F68: 44.44444444 | G68: 4 | H68: 2 | I68: 50 | J68: 2 | K68: 50 | L68: 5 | M68: 3 | N68: 60 | O68: 2 | P68: 40
A69: PURISCAL EN MARCHA | B69: 10 | C69: 6 | D69: 60 | E69: 4 | F69: 40 | G69: 5 | H69: 3 | I69: 60 | J69: 2 | K69: 40 | L69: 5 | M69: 3 | N69: 60 | O69: 2 | P69: 40
A70: RECUPERANDO VALORES | B70: 52 | C70: 27 | D70: 51.92307692 | E70: 25 | F70: 48.07692308 | G70: 25 | H70: 13 | I70: 52 | J70: 12 | K70: 48 | L70: 27 | M70: 14 | N70: 51.85185185 | O70: 13 | P70: 48.14814815
A71: RENOVACIÓN COSTARRICENSE | B71: 63 | C71: 34 | D71: 53.96825397 | E71: 29 | F71: 46.03174603 | G71: 33 | H71: 19 | I71: 57.57575758 | J71: 14 | K71: 42.42424242 | L71: 30 | M71: 15 | N71: 50 | O71: 15 | P71: 50
A72: REPUBLICANO SOCIAL CRISTIANO | B72: 535 | C72: 277 | D72: 51.77570093 | E72: 258 | F72: 48.22429907 | G72: 269 | H72: 146 | I72: 54.27509294 | J72: 123 | K72: 45.72490706 | L72: 266 | M72: 131 | N72: 49.2481203 | O72: 135 | P72: 50.7518797
A73: RESCATE CANTONAL LA UNIÓN | B73: =+C73+E73 -> 18 | C73: =+H73+M73 -> 9 | D73: =C73/B73*100 -> 50 | E73: =+J73+O73 -> 9 | F73: =E73/B73*100 -> 50 | G73: =+H73+J73 -> 9 | H73: 5 | I73: =H73/G73*100 -> 55.55555556 | J73: 4 | K73: =J73/G73*100 -> 44.44444444 | L73: =+M73+O73 -> 9 | M73: 4 | N73: =M73/L73*100 -> 44.44444444 | O73: 5 | P73: =O73/L73*100 -> 55.55555556
A74: RESTAURACIÓN NACIONAL | B74: 721 | C74: 381 | D74: 52.84327323 | E74: 340 | F74: 47.15672677 | G74: 389 | H74: 212 | I74: 54.49871465 | J74: 177 | K74: 45.50128535 | L74: 332 | M74: 169 | N74: 50.90361446 | O74: 163 | P74: 49.09638554
A75: RESTAURACIÓN PARRITEÑA | B75: 8 | C75: 5 | D75: 62.5 | E75: 3 | F75: 37.5 | G75: 3 | H75: 2 | I75: 66.66666667 | J75: 1 | K75: 33.33333333 | L75: 5 | M75: 3 | N75: 60 | O75: 2 | P75: 40
A76: SENTIR HEREDIA | B76: 18 | C76: 9 | D76: 50 | E76: 9 | F76: 50 | G76: 9 | H76: 4 | I76: 44.44444444 | J76: 5 | K76: 55.55555556 | L76: 9 | M76: 5 | N76: 55.55555556 | O76: 4 | P76: 44.44444444
A77: SOMOS MORAVIA | B77: 14 | C77: 7 | D77: 50 | E77: 7 | F77: 50 | G77: 7 | H77: 4 | I77: 57.14285714 | J77: 3 | K77: 42.85714286 | L77: 7 | M77: 3 | N77: 42.85714286 | O77: 4 | P77: 57.14285714
A78: SOMOS SARCHÍ | B78: 10 | C78: 5 | D78: 50 | E78: 5 | F78: 50 | G78: 5 | H78: 3 | I78: 60 | J78: 2 | K78: 40 | L78: 5 | M78: 2 | N78: 40 | O78: 3 | P78: 60
A79: TARRAZÚ PRIMERO | B79: 9 | C79: 5 | D79: 55.55555556 | E79: 4 | F79: 44.44444444 | G79: 5 | H79: 3 | I79: 60 | J79: 2 | K79: 40 | L79: 4 | M79: 2 | N79: 50 | O79: 2 | P79: 50
A80: TERRA ESCAZÚ | B80: 1 | C80: 1 | D80: 100 | E80: 0 | F80: 0 | G80: 1 | H80: 1 | I80: 100 | J80: 0 | K80: 0 | L80: 0 | M80: 0 | O80: 0
A81: TODOS POR GOICOECHEA | B81: 10 | C81: 5 | D81: 50 | E81: 5 | F81: 50 | G81: 5 | H81: 2 | I81: 40 | J81: 3 | K81: 60 | L81: 5 | M81: 3 | N81: 60 | O81: 2 | P81: 40
A82: TURRIALBA PRIMERO | B82: 14 | C82: 7 | D82: 50 | E82: 7 | F82: 50 | G82: 7 | H82: 4 | I82: 57.14285714 | J82: 3 | K82: 42.85714286 | L82: 7 | M82: 3 | N82: 42.85714286 | O82: 4 | P82: 57.14285714
A83: ÚNICO ABANGAREÑO | B83: 10 | C83: 5 | D83: 50 | E83: 5 | F83: 50 | G83: 5 | H83: 2 | I83: 40 | J83: 3 | K83: 60 | L83: 5 | M83: 3 | N83: 60 | O83: 2 | P83: 40
A84: UNIDAD SOCIAL CRISTIANA | B84: 770 | C84: 400 | D84: 51.94805195 | E84: 370 | F84: 48.05194805 | G84: 387 | H84: 207 | I84: 53.48837209 | J84: 180 | K84: 46.51162791 | L84: 383 | M84: 193 | N84: 50.39164491 | O84: 190 | P84: 49.60835509
A85: UNIDOS PARA EL DESARROLLO | B85: 10 | C85: 6 | D85: 60 | E85: 4 | F85: 40 | G85: 5 | H85: 3 | I85: 60 | J85: 2 | K85: 40 | L85: 5 | M85: 3 | N85: 60 | O85: 2 | P85: 40
A86: UNIDOS PODEMOS | B86: 637 | C86: 328 | D86: 51.49136578 | E86: 309 | F86: 48.50863422 | G86: 323 | H86: 177 | I86: 54.79876161 | J86: 146 | K86: 45.20123839 | L86: 314 | M86: 151 | N86: 48.08917197 | O86: 163 | P86: 51.91082803
A87: UNIDOS POR ESCAZÚ | B87: 14 | C87: 8 | D87: 57.14285714 | E87: 6 | F87: 42.85714286 | G87: 7 | H87: 4 | I87: 57.14285714 | J87: 3 | K87: 42.85714286 | L87: 7 | M87: 4 | N87: 57.14285714 | O87: 3 | P87: 42.85714286
A88: UNIÓN ATENIENSE | B88: 10 | C88: 5 | D88: 50 | E88: 5 | F88: 50 | G88: 5 | H88: 3 | I88: 60 | J88: 2 | K88: 40 | L88: 5 | M88: 2 | N88: 40 | O88: 3 | P88: 60
A89: UNIÓN DE PUNTARENENSES EMPRENDEDORES | B89: 8 | C89: 4 | D89: 50 | E89: 4 | F89: 50 | G89: 4 | H89: 2 | I89: 50 | J89: 2 | K89: 50 | L89: 4 | M89: 2 | N89: 50 | O89: 2 | P89: 50
A90: UNIÓN DOMINGUEÑA | B90: 7 | C90: 3 | D90: 42.85714286 | E90: 4 | F90: 57.14285714 | G90: 4 | H90: 2 | I90: 50 | J90: 2 | K90: 50 | L90: 3 | M90: 1 | N90: 33.33333333 | O90: 2 | P90: 66.66666667
A91: UNIÓN GRIEGA | B91: 13 | C91: 7 | D91: 53.84615385 | E91: 6 | F91: 46.15384615 | G91: 7 | H91: 4 | I91: 57.14285714 | J91: 3 | K91: 42.85714286 | L91: 6 | M91: 3 | N91: 50 | O91: 3 | P91: 50
A92: UNIÓN GUANACASTECA | B92: 79 | C92: 39 | D92: 49.36708861 | E92: 40 | F92: 50.63291139 | G92: 40 | H92: 22 | I92: 55 | J92: 18 | K92: 45 | L92: 39 | M92: 17 | N92: 43.58974359 | O92: 22 | P92: 56.41025641
A93: UNIÓN GUARQUEÑO | B93: 10 | C93: 5 | D93: 50 | E93: 5 | F93: 50 | G93: 5 | H93: 3 | I93: 60 | J93: 2 | K93: 40 | L93: 5 | M93: 2 | N93: 40 | O93: 3 | P93: 60
A94: VERDE ECOLOGISTA | B94: 71 | C94: 37 | D94: 52.11267606 | E94: 34 | F94: 47.88732394 | G94: 34 | H94: 19 | I94: 55.88235294 | J94: 15 | K94: 44.11764706 | L94: 37 | M94: 18 | N94: 48.64864865 | O94: 19 | P94: 51.35135135
A95: YO SOY EL CAMBIO | B95: 8 | C95: 4 | D95: 50 | E95: 4 | F95: 50 | G95: 4 | H95: 2 | I95: 50 | J95: 2 | K95: 50 | L95: 4 | M95: 2 | N95: 50 | O95: 2 | P95: 50
A96: YUNTA PROGRESISTA ESCAZUCEÑA | B96: 14 | C96: 7 | D96: 50 | E96: 7 | F96: 50 | G96: 7 | H96: 4 | I96: 57.14285714 | J96: 3 | K96: 42.85714286 | L96: 7 | M96: 3 | N96: 42.85714286 | O96: 4 | P96: 57.14285714
A99: =+'G3'!A34 -> Fuente: Departamento de Registro de Partidos Políticos, base de datos de Candidaturas 2020, Tribunal Supremo de Elecciones.

Sheet C24
A1: CUADRO 24 COSTA RICA: CANDIDATURAS A REGIDURÍAS EN PROPIEDAD Y SUPLENCIA POR SEXO, SEGÚN PROVINCIA Y CANTÓN
A2: ELECCIONES MUNICIPALES 2 DE FEBRERO 2020
A3: (CIFRAS ABSOLUTAS Y RELATIVAS)
A5: PROVINCIA Y CANTÓN | B5: REGIDURÍAS | G5: EN PROPIEDAD | L5: EN SUPLENCIA
B6: TOTAL | C6: HOMBRES | E6: MUJERES | G6: TOTAL | H6: HOMBRES | J6: MUJERES | L6: TOTAL | M6: HOMBRES | O6: MUJERES
C7: ABS | D7: % | E7: ABS | F7: % | H7: ABS | I7: % | J7: ABS | K7: % | M7: ABS | N7: % | O7: ABS | P7: %
A9: COSTA RICA | B9: =G9+L9 -> 7845 | C9: =H9+M9 -> 4039 | D9: =C9/$B9*100 -> 51.48502231 | E9: =J9+O9 -> 3806 | F9: =E9/$B9*100 -> 48.51497769 | G9: =+G10+G31+G48+G57+G68+G80+G92 -> 4015 | H9: =+H10+H31+H48+H57+H68+H80+H92 -> 2140 | I9: =H9/$G9*100 -> 53.30012453 | J9: =+J10+J31+J48+J57+J68+J80+J92 -> 1875 | K9: =J9/$G9*100 -> 46.69987547 | L9: =+L10+L31+L48+L57+L68+L80+L92 -> 3830 | M9: =+M10+M31+M48+M57+M68+M80+M92 -> 1899 | N9: =M9/$L9*100 -> 49.58224543 | O9: =+O10+O31+O48+O57+O68+O80+O92 -> 1931 | P9: =O9/$L9*100 -> 50.41775457 | S9: Cargo
A10: PROVINCIA SAN JOSÉ | B10: =+G10+L10 -> 2184 | C10: =+H10+M10 -> 1131 | D10: 51.78571429 | E10: =+J10+O10 -> 1053 | F10: 48.21428571 | G10: =SUM(G11:G30) -> 1122 | H10: =SUM(H11:H30) -> 602 | I10: 53.65418895 | J10: =SUM(J11:J30) -> 520 | K10: 46.34581105 | L10: =SUM(L11:L30) -> 1062 | M10: =SUM(M11:M30) -> 529 | N10: 49.81167608 | O10: =SUM(O11:O30) -> 533 | P10: 50.18832392 | S10: Sexo | U10: Total
A11: SAN JOSÉ | B11: =+G11+L11 -> 269 | C11: =+H11+M11 -> 141 | D11: 52.41635688 | E11: =+J11+O11 -> 128 | F11: 47.58364312 | G11: =+H11+J11 -> 142 | H11: 77 | I11: 54.22535211 | J11: 65 | K11: 45.77464789 | L11: =+M11+O11 -> 127 | M11: 64 | N11: 50.39370079 | O11: 63 | P11: 49.60629921 | S11: HOMBRE | T11: MUJER
A12: ESCAZÚ | B12: =+G12+L12 -> 117 | C12: =+H12+M12 -> 62 | D12: 52.99145299 | E12: =+J12+O12 -> 55 | F12: 47.00854701 | G12: 60 | H12: 35 | I12: 58.33333333 | J12: 25 | K12: 41.66666667 | L12: 57 | M12: 27 | N12: 47.36842105 | O12: 30 | P12: 52.63157895
A13: DESAMPARADOS | B13: 247 | C13: 129 | D13: 52.22672065 | E13: 118 | F13: 47.77327935 | G13: 127 | H13: 66 | I13: 51.96850394 | J13: 61 | K13: 48.03149606 | L13: 120 | M13: 63 | N13: 52.5 | O13: 57 | P13: 47.5
A14: PURISCAL | B14: 70 | C14: 37 | D14: 52.85714286 | E14: 33 | F14: 47.14285714 | G14: 36 | H14: 19 | I14: 52.77777778 | J14: 17 | K14: 47.22222222 | L14: 34 | M14: 18 | N14: 52.94117647 | O14: 16 | P14: 47.05882353
A15: TARRAZÚ | B15: 61 | C15: 32 | D15: 52.45901639 | E15: 29 | F15: 47.54098361 | G15: 31 | H15: 18 | I15: 58.06451613 | J15: 13 | K15: 41.93548387 | L15: 30 | M15: 14 | N15: 46.66666667 | O15: 16 | P15: 53.33333333
A16: ASERRÍ | B16: 95 | C16: 50 | D16: 52.63157895 | E16: 45 | F16: 47.36842105 | G16: 48 | H16: 27 | I16: 56.25 | J16: 21 | K16: 43.75 | L16: 47 | M16: 23 | N16: 48.93617021 | O16: 24 | P16: 51.06382979
A17: MORA | B17: 68 | C17: 35 | D17: 51.47058824 | E17: 33 | F17: 48.52941176 | G17: 39 | H17: 21 | I17: 53.84615385 | J17: 18 | K17: 46.15384615 | L17: 29 | M17: 14 | N17: 48.27586207 | O17: 15 | P17: 51.72413793
A18: GOICOECHEA | B18: 227 | C18: 119 | D18: 52.42290749 | E18: 108 | F18: 47.57709251 | G18: 116 | H18: 61 | I18: 52.5862069 | J18: 55 | K18: 47.4137931 | L18: 111 | M18: 58 | N18: 52.25225225 | O18: 53 | P18: 47.74774775
A19: SANTA ANA | B19: 137 | C19: 69 | D19: 50.3649635 | E19: 68 | F19: 49.6350365 | G19: 70 | H19: 36 | I19: 51.42857143 | J19: 34 | K19: 48.57142857 | L19: 67 | M19: 33 | N19: 49.25373134 | O19: 34 | P19: 50.74626866
A20: ALAJUELITA | B20: 105 | C20: 53 | D20: 50.47619048 | E20: 52 | F20: 49.52380952 | G20: 52 | H20: 28 | I20: 53.84615385 | J20: 24 | K20: 46.15384615 | L20: 53 | M20: 25 | N20: 47.16981132 | O20: 28 | P20: 52.83018868
A21: VÁZQUEZ DE CORONADO | B21: 107 | C21: 55 | D21: 51.40186916 | E21: 52 | F21: 48.59813084 | G21: 54 | H21: 28 | I21: 51.85185185 | J21: 26 | K21: 48.14814815 | L21: 53 | M21: 27 | N21: 50.94339623 | O21: 26 | P21: 49.05660377
A22: ACOSTA | B22: 42 | C22: 22 | D22: 52.38095238 | E22: 20 | F22: 47.61904762 | G22: 24 | H22: 13 | I22: 54.16666667 | J22: 11 | K22: 45.83333333 | L22: 18 | M22: 9 | N22: 50 | O22: 9 | P22: 50
A23: TIBÁS | B23: 96 | C23: 48 | D23: 50 | E23: 48 | F23: 50 | G23: 48 | H23: 24 | I23: 50 | J23: 24 | K23: 50 | L23: 48 | M23: 24 | N23: 50 | O23: 24 | P23: 50
A24: MORAVIA | B24: 113 | C24: =+H24+M24 -> 58 | D24: 51.32743363 | E24: =+J24+O24 -> 55 | F24: 48.67256637 | G24: 56 | H24: 30 | I24: 53.57142857 | J24: 26 | K24: 46.42857143 | L24: 57 | M24: 28 | N24: 49.12280702 | O24: 29 | P24: 50.87719298
A25: MONTES DE OCA | B25: 104 | C25: 55 | D25: 52.88461538 | E25: 49 | F25: 47.11538462 | G25: 52 | H25: 27 | I25: 51.92307692 | J25: 25 | K25: 48.07692308 | L25: 52 | M25: 28 | N25: 53.84615385 | O25: 24 | P25: 46.15384615
A26: TURRUBARES | B26: 31 | C26: 17 | D26: 54.83870968 | E26: 14 | F26: 45.16129032 | G26: 17 | H26: 10 | I26: 58.82352941 | J26: 7 | K26: 41.17647059 | L26: 14 | M26: 7 | N26: 50 | O26: 7 | P26: 50
A27: DOTA | B27: 28 | C27: 13 | D27: 46.42857143 | E27: 15 | F27: 53.57142857 | G27: 15 | H27: 8 | I27: 53.33333333 | J27: 7 | K27: 46.66666667 | L27: 13 | M27: 5 | N27: 38.46153846 | O27: 8 | P27: 61.53846154
A28: CURRIDABAT | B28: 105 | C28: 52 | D28: 49.52380952 | E28: 53 | F28: 50.47619048 | G28: 53 | H28: 29 | I28: 54.71698113 | J28: 24 | K28: 45.28301887 | L28: 52 | M28: 23 | N28: 44.23076923 | O28: 29 | P28: 55.76923077
A29: PÉREZ ZELEDÓN | B29: 140 | C29: 72 | D29: 51.42857143 | E29: 68 | F29: 48.57142857 | G29: 70 | H29: 39 | I29: 55.71428571 | J29: 31 | K29: 44.28571429 | L29: 70 | M29: 33 | N29: 47.14285714 | O29: 37 | P29: 52.85714286
A30: LEÓN CORTÉS CASTRO | B30: 22 | C30: =+H30+M30 -> 12 | D30: 54.54545455 | E30: 10 | F30: 45.45454545 | G30: 12 | H30: 6 | I30: 50 | J30: 6 | K30: 50 | L30: 10 | M30: 6 | N30: 60 | O30: 4 | P30: 40
A31: PROVINCIA ALAJUELA | B31: =+G31+L31 -> 1333 | C31: =+H31+M31 -> 688 | D31: 51.61290323 | E31: =+J31+O31 -> 645 | F31: 48.38709677 | G31: 682 | H31: =SUM(H32:H47) -> 360 | I31: 52.78592375 | J31: =SUM(J32:J47) -> 322 | K31: 47.21407625 | L31: =+M31+O31 -> 651 | M31: =SUM(M32:M47) -> 328 | N31: 50.38402458 | O31: =SUM(O32:O47) -> 323 | P31: 49.61597542
A32: ALAJUELA | B32: =+G32+L32 -> 222 | C32: =+H32+M32 -> 113 | D32: 50.9009009 | E32: =+J32+O32 -> 109 | F32: 49.0990991 | G32: 112 | H32: 58 | I32: 51.78571429 | J32: 54 | K32: 48.21428571 | L32: =+M32+O32 -> 110 | M32: 55 | N32: 50 | O32: 55 | P32: 50
A33: SAN RAMÓN | B33: =+G33+L33 -> 108 | C33: =+H33+M33 -> 56 | D33: =C33/$B33*100 -> 51.85185185 | E33: =+J33+O33 -> 52 | F33: =E33/$B33*100 -> 48.14814815 | G33: =+H33+J33 -> 55 | H33: 29 | I33: =H33/$G33*100 -> 52.72727273 | J33: 26 | K33: =J33/$G33*100 -> 47.27272727 | L33: =+M33+O33 -> 53 | M33: 27 | N33: =M33/$L33*100 -> 50.94339623 | O33: 26 | P33: =O33/$L33*100 -> 49.05660377
A34: GRECIA | B34: 115 | C34: 59 | D34: 51.30434783 | E34: 56 | F34: 48.69565217 | G34: 59 | H34: 30 | I34: 50.84745763 | J34: 29 | K34: 49.15254237 | L34: 56 | M34: 29 | N34: 51.78571429 | O34: 27 | P34: 48.21428571
A35: SAN MATEO | B35: 66 | C35: 34 | D35: 51.51515152 | E35: 32 | F35: 48.48484848 | G35: 35 | H35: 20 | I35: 57.14285714 | J35: 15 | K35: 42.85714286 | L35: 31 | M35: 14 | N35: 45.16129032 | O35: 17 | P35: 54.83870968
A36: ATENAS | B36: 79 | C36: 44 | D36: 55.69620253 | E36: 35 | F36: 44.30379747 | G36: 41 | H36: 24 | I36: 58.53658537 | J36: 17 | K36: 41.46341463 | L36: 38 | M36: 20 | N36: 52.63157895 | O36: 18 | P36: 47.36842105
A37: NARANJO | B37: 79 | C37: 39 | D37: 49.36708861 | E37: 40 | F37: 50.63291139 | G37: 40 | H37: 22 | I37: 55 | J37: 18 | K37: 45 | L37: 39 | M37: 17 | N37: 43.58974359 | O37: 22 | P37: 56.41025641
A38: PALMARES | B38: 84 | C38: 47 | D38: 55.95238095 | E38: 37 | F38: 44.04761905 | G38: 42 | H38: 24 | I38: 57.14285714 | J38: 18 | K38: 42.85714286 | L38: 42 | M38: 23 | N38: 54.76190476 | O38: 19 | P38: 45.23809524
A39: POÁS | B39: 50 | C39: 25 | D39: 50 | E39: 25 | F39: 50 | G39: 26 | H39: 14 | I39: 53.84615385 | J39: 12 | K39: 46.15384615 | L39: 24 | M39: 11 | N39: 45.83333333 | O39: 13 | P39: 54.16666667
A40: OROTINA | B40: 51 | C40: 27 | D40: 52.94117647 | E40: 24 | F40: 47.05882353 | G40: 27 | H40: 14 | I40: 51.85185185 | J40: 13 | K40: 48.14814815 | L40: 24 | M40: 13 | N40: 54.16666667 | O40: 11 | P40: 45.83333333
A41: SAN CARLOS | B41: 163 | C41: 84 | D41: 51.53374233 | E41: 79 | F41: 48.46625767 | G41: 83 | H41: 42 | I41: 50.60240964 | J41: 41 | K41: 49.39759036 | L41: 80 | M41: 42 | N41: 52.5 | O41: 38 | P41: 47.5
A42: ZARCERO | B42: 44 | C42: 22 | D42: 50 | E42: 22 | F42: 50 | G42: 22 | H42: 12 | I42: 54.54545455 | J42: 10 | K42: 45.45454545 | L42: 22 | M42: 10 | N42: 45.45454545 | O42: 12 | P42: 54.54545455
A43: SARCHÍ | B43: 67 | C43: 33 | D43: 49.25373134 | E43: 34 | F43: 50.74626866 | G43: 34 | H43: 16 | I43: 47.05882353 | J43: 18 | K43: 52.94117647 | L43: 33 | M43: 17 | N43: 51.51515152 | O43: 16 | P43: 48.48484848
A44: UPALA | B44: 61 | C44: 32 | D44: 52.45901639 | E44: 29 | F44: 47.54098361 | G44: 31 | H44: 16 | I44: 51.61290323 | J44: 15 | K44: 48.38709677 | L44: 30 | M44: 16 | N44: 53.33333333 | O44: 14 | P44: 46.66666667
A45: LOS CHILES | B45: 29 | C45: 15 | D45: 51.72413793 | E45: 14 | F45: 48.27586207 | G45: 16 | H45: 9 | I45: 56.25 | J45: 7 | K45: 43.75 | L45: 13 | M45: 6 | N45: 46.15384615 | O45: 7 | P45: 53.84615385
A46: GUATUSO | B46: 52 | C46: 26 | D46: 50 | E46: 26 | F46: 50 | G46: 27 | H46: 14 | I46: 51.85185185 | J46: 13 | K46: 48.14814815 | L46: 25 | M46: 12 | N46: 48 | O46: 13 | P46: 52
A47: RIO CUARTO | B47: 63 | C47: 32 | D47: 50.79365079 | E47: 31 | F47: 49.20634921 | G47: 32 | H47: 16 | I47: 50 | J47: 16 | K47: 50 | L47: 31 | M47: 16 | N47: 51.61290323 | O47: 15 | P47: 48.38709677
A48: PROVINCIA CARTAGO | B48: =+G48+L48 -> 970 | C48: =+H48+M48 -> 493 | D48: =C48/$B48*100 -> 50.82474227 | E48: =+J48+O48 -> 477 | F48: =E48/$B48*100 -> 49.17525773 | G48: =+H48+J48 -> 491 | H48: =SUM(H49:H56) -> 262 | I48: =H48/$G48*100 -> 53.3604888 | J48: =SUM(J49:J56) -> 229 | K48: =J48/$G48*100 -> 46.6395112 | L48: 479 | M48: =SUM(M49:M56) -> 231 | N48: =M48/$L48*100 -> 48.22546973 | O48: =SUM(O49:O56) -> 248 | P48: =O48/$L48*100 -> 51.77453027
A49: CARTAGO | B49: =+G49+L49 -> 165 | C49: =+H49+M49 -> 87 | D49: =C49/$B49*100 -> 52.72727273 | E49: =+J49+O49 -> 78 | F49: =E49/$B49*100 -> 47.27272727 | G49: =+H49+J49 -> 84 | H49: 45 | I49: =H49/$G49*100 -> 53.57142857 | J49: 39 | K49: =J49/$G49*100 -> 46.42857143 | L49: 81 | M49: 42 | N49: =M49/$L49*100 -> 51.85185185 | O49: 39 | P49: =O49/$L49*100 -> 48.14814815
A50: PARAÍSO | B50: =+G50+L50 -> 135 | C50: =+H50+M50 -> 71 | D50: =C50/$B50*100 -> 52.59259259 | E50: =+J50+O50 -> 64 | F50: =E50/$B50*100 -> 47.40740741 | G50: =+H50+J50 -> 69 | H50: 36 | I50: =H50/$G50*100 -> 52.17391304 | J50: 33 | K50: =J50/$G50*100 -> 47.82608696 | L50: =+M50+O50 -> 66 | M50: 35 | N50: =M50/$L50*100 -> 53.03030303 | O50: 31 | P50: =O50/$L50*100 -> 46.96969697
A51: LA UNIÓN | B51: 233 | C51: 113 | D51: 48.49785408 | E51: 120 | F51: 51.50214592 | G51: 116 | H51: 61 | I51: 52.5862069 | J51: 55 | K51: 47.4137931 | L51: 117 | M51: 52 | N51: 44.44444444 | O51: 65 | P51: 55.55555556
A52: JIMÉNEZ | B52: 70 | C52: 35 | D52: 50 | E52: 35 | F52: 50 | G52: 38 | H52: 20 | I52: 52.63157895 | J52: 18 | K52: 47.36842105 | L52: 32 | M52: 15 | N52: 46.875 | O52: 17 | P52: 53.125
A53: TURRIALBA | B53: 129 | C53: 67 | D53: 51.9379845 | E53: 62 | F53: 48.0620155 | G53: 65 | H53: 34 | I53: 52.30769231 | J53: 31 | K53: 47.69230769 | L53: 64 | M53: 33 | N53: 51.5625 | O53: 31 | P53: 48.4375
A54: ALVARADO | B54: 71 | C54: 36 | D54: 50.70422535 | E54: 35 | F54: 49.29577465 | G54: 35 | H54: 20 | I54: 57.14285714 | J54: 15 | K54: 42.85714286 | L54: 36 | M54: 16 | N54: 44.44444444 | O54: 20 | P54: 55.55555556
A55: OREAMUNO | B55: 82 | C55: 42 | D55: 51.2195122 | E55: 40 | F55: 48.7804878 | G55: 41 | H55: 22 | I55: 53.65853659 | J55: 19 | K55: 46.34146341 | L55: 41 | M55: 20 | N55: 48.7804878 | O55: 21 | P55: 51.2195122
A56: EL GUARCO | B56: 85 | C56: 42 | D56: 49.41176471 | E56: 43 | F56: 50.58823529 | G56: 43 | H56: 24 | I56: 55.81395349 | J56: 19 | K56: 44.18604651 | L56: 42 | M56: 18 | N56: 42.85714286 | O56: 24 | P56: 57.14285714
A57: PROVINCIA HEREDIA | B57: =+G57+L57 -> 792 | C57: =+H57+M57 -> 409 | D57: =C57/$B57*100 -> 51.64141414 | E57: =+J57+O57 -> 383 | F57: =E57/$B57*100 -> 48.35858586 | G57: =+H57+J57 -> 404 | H57: =SUM(H58:H67) -> 213 | I57: =H57/$G57*100 -> 52.72277228 | J57: =SUM(J58:J67) -> 191 | K57: =J57/$G57*100 -> 47.27722772 | L57: =+M57+O57 -> 388 | M57: =SUM(M58:M67) -> 196 | N57: =M57/$L57*100 -> 50.51546392 | O57: =SUM(O58:O67) -> 192 | P57: =O57/$L57*100 -> 49.48453608
A58: HEREDIA | B58: =+G58+L58 -> 150 | C58: =+H58+M58 -> 78 | D58: =C58/$B58*100 -> 52 | E58: =+J58+O58 -> 72 | F58: =E58/$B58*100 -> 48 | G58: =+H58+J58 -> 75 | H58: 40 | I58: =H58/$G58*100 -> 53.33333333 | J58: 35 | K58: =J58/$G58*100 -> 46.66666667 | L58: =+M58+O58 -> 75 | M58: 38 | N58: =M58/$L58*100 -> 50.66666667 | O58: 37 | P58: =O58/$L58*100 -> 49.33333333
A59: BARVA | B59: =+G59+L59 -> 84 | C59: =+H59+M59 -> 43 | D59: =C59/$B59*100 -> 51.19047619 | E59: =+J59+O59 -> 41 | F59: =E59/$B59*100 -> 48.80952381 | G59: =+H59+J59 -> 41 | H59: 19 | I59: =H59/$G59*100 -> 46.34146341 | J59: 22 | K59: =J59/$G59*100 -> 53.65853659 | L59: =+M59+O59 -> 43 | M59: 24 | N59: =M59/$L59*100 -> 55.81395349 | O59: 19 | P59: =O59/$L59*100 -> 44.18604651
A60: SANTO DOMINGO | B60: 74 | C60: 38 | D60: 51.35135135 | E60: 36 | F60: 48.64864865 | G60: 37 | H60: 20 | I60: 54.05405405 | J60: 17 | K60: 45.94594595 | L60: 37 | M60: 18 | N60: 48.64864865 | O60: 19 | P60: 51.35135135
A61: SANTA BÁRBARA | B61: 83 | C61: 44 | D61: 53.01204819 | E61: 39 | F61: 46.98795181 | G61: 42 | H61: 25 | I61: 59.52380952 | J61: 17 | K61: 40.47619048 | L61: 41 | M61: 19 | N61: 46.34146341 | O61: 22 | P61: 53.65853659
A62: SAN RAFAEL | B62: 85 | C62: 42 | D62: 49.41176471 | E62: 43 | F62: 50.58823529 | G62: 43 | H62: 23 | I62: 53.48837209 | J62: 20 | K62: 46.51162791 | L62: 42 | M62: 19 | N62: 45.23809524 | O62: 23 | P62: 54.76190476
A63: SAN ISIDRO | B63: 61 | C63: 31 | D63: 50.81967213 | E63: 30 | F63: 49.18032787 | G63: 32 | H63: 19 | I63: 59.375 | J63: 13 | K63: 40.625 | L63: 29 | M63: 12 | N63: 41.37931034 | O63: 17 | P63: 58.62068966
A64: BELÉN | B64: 44 | C64: 23 | D64: 52.27272727 | E64: 21 | F64: 47.72727273 | G64: 24 | H64: 11 | I64: 45.83333333 | J64: 13 | K64: 54.16666667 | L64: 20 | M64: 12 | N64: 60 | O64: 8 | P64: 40
A65: FLORES | B65: 55 | C65: 28 | D65: 50.90909091 | E65: 27 | F65: 49.09090909 | G65: 28 | H65: 15 | I65: 53.57142857 | J65: 13 | K65: 46.42857143 | L65: 27 | M65: 13 | N65: 48.14814815 | O65: 14 | P65: 51.85185185
A66: SAN PABLO | B66: 42 | C66: 23 | D66: 54.76190476 | E66: 19 | F66: 45.23809524 | G66: 23 | H66: 12 | I66: 52.17391304 | J66: 11 | K66: 47.82608696 | L66: 19 | M66: 11 | N66: 57.89473684 | O66: 8 | P66: 42.10526316
A67: SARAPIQUÍ | B67: 114 | C67: 59 | D67: 51.75438596 | E67: 55 | F67: 48.24561404 | G67: 59 | H67: 29 | I67: 49.15254237 | J67: 30 | K67: 50.84745763 | L67: 55 | M67: 30 | N67: 54.54545455 | O67: 25 | P67: 45.45454545
A68: PROVINCIA GUANACASTE | B68: =+G68+L68 -> 877 | C68: =+H68+M68 -> 448 | D68: =C68/$B68*100 -> 51.08323831 | E68: =+J68+O68 -> 429 | F68: =E68/$B68*100 -> 48.91676169 | G68: =+H68+J68 -> 449 | H68: =SUM(H69:H79) -> 240 | I68: =H68/$G68*100 -> 53.45211581 | J68: =SUM(J69:J79) -> 209 | K68: =J68/$G68*100 -> 46.54788419 | L68: =+M68+O68 -> 428 | M68: =SUM(M69:M79) -> 208 | N68: =M68/$L68*100 -> 48.59813084 | O68: =SUM(O69:O79) -> 220 | P68: =O68/$L68*100 -> 51.40186916
A69: LIBERIA | B69: =+G69+L69 -> 134 | C69: =+H69+M69 -> 70 | D69: =C69/$B69*100 -> 52.23880597 | E69: =+J69+O69 -> 64 | F69: =E69/$B69*100 -> 47.76119403 | G69: =+H69+J69 -> 70 | H69: 37 | I69: =H69/$G69*100 -> 52.85714286 | J69: 33 | K69: =J69/$G69*100 -> 47.14285714 | L69: =+M69+O69 -> 64 | M69: 33 | N69: =M69/$L69*100 -> 51.5625 | O69: 31 | P69: =O69/$L69*100 -> 48.4375
A70: NICOYA | B70: =+G70+L70 -> 137 | C70: =+H70+M70 -> 73 | D70: =C70/$B70*100 -> 53.28467153 | E70: =+J70+O70 -> 64 | F70: =E70/$B70*100 -> 46.71532847 | G70: =+H70+J70 -> 70 | H70: 40 | I70: =H70/$G70*100 -> 57.14285714 | J70: 30 | K70: =J70/$G70*100 -> 42.85714286 | L70: =+M70+O70 -> 67 | M70: 33 | N70: =M70/$L70*100 -> 49.25373134 | O70: 34 | P70: =O70/$L70*100 -> 50.74626866
A71: SANTA CRUZ | B71: 115 | C71: 56 | D71: 48.69565217 | E71: 59 | F71: 51.30434783 | G71: 58 | H71: 30 | I71: 51.72413793 | J71: 28 | K71: 48.27586207 | L71: 57 | M71: 26 | N71: 45.61403509 | O71: 31 | P71: 54.38596491
A72: BAGACES | B72: 66 | C72: 33 | D72: 50 | E72: 33 | F72: 50 | G72: 32 | H72: 16 | I72: 50 | J72: 16 | K72: 50 | L72: 34 | M72: 17 | N72: 50 | O72: 17 | P72: 50
A73: CARRILLO | B73: 65 | C73: 33 | D73: 50.76923077 | E73: 32 | F73: 49.23076923 | G73: 34 | H73: 18 | I73: 52.94117647 | J73: 16 | K73: 47.05882353 | L73: 31 | M73: 15 | N73: 48.38709677 | O73: 16 | P73: 51.61290323
A74: CAÑAS | B74: 73 | C74: 38 | D74: 52.05479452 | E74: 35 | F74: 47.94520548 | G74: 38 | H74: 21 | I74: 55.26315789 | J74: 17 | K74: 44.73684211 | L74: 35 | M74: 17 | N74: 48.57142857 | O74: 18 | P74: 51.42857143
A75: ABANGARES | B75: 91 | C75: 47 | D75: 51.64835165 | E75: 44 | F75: 48.35164835 | G75: 46 | H75: 24 | I75: 52.17391304 | J75: 22 | K75: 47.82608696 | L75: 45 | M75: 23 | N75: 51.11111111 | O75: 22 | P75: 48.88888889
A76: TILARÁN | B76: 32 | C76: 16 | D76: 50 | E76: 16 | F76: 50 | G76: 18 | H76: 10 | I76: 55.55555556 | J76: 8 | K76: 44.44444444 | L76: 14 | M76: 6 | N76: 42.85714286 | O76: 8 | P76: 57.14285714
A77: NANDAYURE | B77: 54 | C77: 27 | D77: 50 | E77: 27 | F77: 50 | G77: 27 | H77: 16 | I77: 59.25925926 | J77: 11 | K77: 40.74074074 | L77: 27 | M77: 11 | N77: 40.74074074 | O77: 16 | P77: 59.25925926
A78: LA CRUZ | B78: 79 | C78: 40 | D78: 50.63291139 | E78: 39 | F78: 49.36708861 | G78: 40 | H78: 20 | I78: 50 | J78: 20 | K78: 50 | L78: 39 | M78: 20 | N78: 51.28205128 | O78: 19 | P78: 48.71794872
A79: HOJANCHA | B79: 31 | C79: 15 | D79: 48.38709677 | E79: 16 | F79: 51.61290323 | G79: 16 | H79: 8 | I79: 50 | J79: 8 | K79: 50 | L79: 15 | M79: 7 | N79: 46.66666667 | O79: 8 | P79: 53.33333333
A80: PROVINCIA PUNTARENAS | B80: =+G80+L80 -> 844 | C80: =+H80+M80 -> 436 | D80: =C80/$B80*100 -> 51.65876777 | E80: =+J80+O80 -> 408 | F80: =E80/$B80*100 -> 48.34123223 | G80: =+H80+J80 -> 432 | H80: =SUM(H81:H91) -> 231 | I80: =H80/$G80*100 -> 53.47222222 | J80: =SUM(J81:J91) -> 201 | K80: =J80/$G80*100 -> 46.52777778 | L80: =+M80+O80 -> 412 | M80: =SUM(M81:M91) -> 205 | N80: =M80/$L80*100 -> 49.75728155 | O80: =SUM(O81:O91) -> 207 | P80: =O80/$L80*100 -> 50.24271845
A81: PUNTARENAS | B81: =+G81+L81 -> 125 | C81: =+H81+M81 -> 66 | D81: =C81/$B81*100 -> 52.8 | E81: =+J81+O81 -> 59 | F81: =E81/$B81*100 -> 47.2 | G81: =+H81+J81 -> 64 | H81: 34 | I81: =H81/$G81*100 -> 53.125 | J81: 30 | K81: =J81/$G81*100 -> 46.875 | L81: =+M81+O81 -> 61 | M81: 32 | N81: =M81/$L81*100 -> 52.45901639 | O81: 29 | P81: =O81/$L81*100 -> 47.54098361
A82: ESPARZA | B82: =+G82+L82 -> 61 | C82: =+H82+M82 -> 30 | D82: =C82/$B82*100 -> 49.18032787 | E82: =+J82+O82 -> 31 | F82: =E82/$B82*100 -> 50.81967213 | G82: =+H82+J82 -> 31 | H82: 16 | I82: =H82/$G82*100 -> 51.61290323 | J82: 15 | K82: =J82/$G82*100 -> 48.38709677 | L82: =+M82+O82 -> 30 | M82: 14 | N82: =M82/$L82*100 -> 46.66666667 | O82: 16 | P82: =O82/$L82*100 -> 53.33333333
A83: BUENOS AIRES | B83: 84 | C83: 43 | D83: 51.19047619 | E83: 41 | F83: 48.80952381 | G83: 42 | H83: 23 | I83: 54.76190476 | J83: 19 | K83: 45.23809524 | L83: 42 | M83: 20 | N83: 47.61904762 | O83: 22 | P83: 52.38095238
A84: MONTES DE ORO | B84: 46 | C84: 23 | D84: 50 | E84: 23 | F84: 50 | G84: 24 | H84: 12 | I84: 50 | J84: 12 | K84: 50 | L84: 22 | M84: 11 | N84: 50 | O84: 11 | P84: 50
A85: OSA | B85: 56 | C85: 29 | D85: 51.78571429 | E85: 27 | F85: 48.21428571 | G85: 32 | H85: 17 | I85: 53.125 | J85: 15 | K85: 46.875 | L85: 24 | M85: 12 | N85: 50 | O85: 12 | P85: 50
A86: QUEPOS | B86: 104 | C86: 54 | D86: 51.92307692 | E86: 50 | F86: 48.07692308 | G86: 52 | H86: 30 | I86: 57.69230769 | J86: 22 | K86: 42.30769231 | L86: 52 | M86: 24 | N86: 46.15384615 | O86: 28 | P86: 53.84615385
A87: GOLFITO | B87: 76 | C87: 37 | D87: 48.68421053 | E87: 39 | F87: 51.31578947 | G87: 40 | H87: 21 | I87: 52.5 | J87: 19 | K87: 47.5 | L87: 36 | M87: 16 | N87: 44.44444444 | O87: 20 | P87: 55.55555556
A88: COTO BRUS | B88: 45 | C88: 26 | D88: 57.77777778 | E88: 19 | F88: 42.22222222 | G88: 25 | H88: 14 | I88: 56 | J88: 11 | K88: 44 | L88: 20 | M88: 12 | N88: 60 | O88: 8 | P88: 40
A89: PARRITA | B89: 68 | C89: 36 | D89: 52.94117647 | E89: 32 | F89: 47.05882353 | G89: 33 | H89: 18 | I89: 54.54545455 | J89: 15 | K89: 45.45454545 | L89: 35 | M89: 18 | N89: 51.42857143 | O89: 17 | P89: 48.57142857
A90: CORREDORES | B90: 112 | C90: 58 | D90: 51.78571429 | E90: 54 | F90: 48.21428571 | G90: 55 | H90: 28 | I90: 50.90909091 | J90: 27 | K90: 49.09090909 | L90: 57 | M90: 30 | N90: 52.63157895 | O90: 27 | P90: 47.36842105
A91: GARABITO | B91: 67 | C91: 34 | D91: 50.74626866 | E91: 33 | F91: 49.25373134 | G91: 34 | H91: 18 | I91: 52.94117647 | J91: 16 | K91: 47.05882353 | L91: 33 | M91: 16 | N91: 48.48484848 | O91: 17 | P91: 51.51515152
A92: PROVINCIA LIMÓN | B92: =+G92+L92 -> 845 | C92: 434 | D92: =C92/$B92*100 -> 51.36094675 | E92: =+J92+O92 -> 411 | F92: =E92/$B92*100 -> 48.63905325 | G92: =+H92+J92 -> 435 | H92: =SUM(H93:H98) -> 232 | I92: =H92/$G92*100 -> 53.33333333 | J92: =SUM(J93:J98) -> 203 | K92: =J92/$G92*100 -> 46.66666667 | L92: =+M92+O92 -> 410 | M92: =SUM(M93:M98) -> 202 | N92: =M92/$L92*100 -> 49.26829268 | O92: =SUM(O93:O98) -> 208 | P92: =O92/$L92*100 -> 50.73170732
A93: LIMÓN | B93: 137 | C93: 71 | D93: 51.82481752 | E93: 66 | F93: 48.17518248 | G93: 71 | H93: 37 | I93: 52.11267606 | J93: 34 | K93: 47.88732394 | L93: 66 | M93: 34 | N93: 51.51515152 | O93: 32 | P93: 48.48484848
A94: POCOCÍ | B94: 221 | C94: 113 | D94: 51.13122172 | E94: 108 | F94: 48.86877828 | G94: 116 | H94: 61 | I94: 52.5862069 | J94: 55 | K94: 47.4137931 | L94: 105 | M94: 52 | N94: 49.52380952 | O94: 53 | P94: 50.47619048
A95: SIQUIRRES | B95: 146 | C95: 75 | D95: 51.36986301 | E95: 71 | F95: 48.63013699 | G95: 75 | H95: 41 | I95: 54.66666667 | J95: 34 | K95: 45.33333333 | L95: 71 | M95: 34 | N95: 47.88732394 | O95: 37 | P95: 52.11267606
A96: TALAMANCA | B96: 100 | C96: 53 | D96: 53 | E96: 47 | F96: 47 | G96: 51 | H96: 28 | I96: 54.90196078 | J96: 23 | K96: 45.09803922 | L96: 49 | M96: 25 | N96: 51.02040816 | O96: 24 | P96: 48.97959184
A97: MATINA | B97: 100 | C97: 51 | D97: 51 | E97: 49 | F97: 49 | G97: 52 | H97: 30 | I97: 57.69230769 | J97: 22 | K97: 42.30769231 | L97: 48 | M97: 21 | N97: 43.75 | O97: 27 | P97: 56.25
A98: GUÁCIMO | B98: 141 | C98: 71 | D98: 50.35460993 | E98: 70 | F98: 49.64539007 | G98: 70 | H98: 35 | I98: 50 | J98: 35 | K98: 50 | L98: 71 | M98: 36 | N98: 50.70422535 | O98: 35 | P98: 49.29577465
A101: =+'G3'!A34 -> Fuente: Departamento de Registro de Partidos Políticos, base de datos de Candidaturas 2020, Tribunal Supremo de Elecciones.

Sheet C25
A1: CUADRO 25 COSTA RICA: CANDIDATURAS A SÍNDICATURAS EN PROPIEDAD Y SUPLENCIA POR SEXO, SEGÚN PARTIDO POLÍTICO
A2: ELECCIONES MUNICIPALES 2 DE FEBRERO 2020
A3: (CIFRAS ABSOLUTAS Y RELATIVAS)
A5: PARTIDO POLÍTICO | B5: SÍNDICATURAS | G5: EN PROPIEDAD | L5: EN SUPLENCIA
A6: PARTIDO POLITICO | B6: TOTAL | C6: HOMBRES | E6: MUJERES | G6: TOTAL | H6: HOMBRES | J6: MUJERES | L6: TOTAL | M6: HOMBRES | O6: MUJERES
B7: ABS | C7: ABS | D7: % | E7: ABS | F7: % | G7: ABS | H7: ABS | I7: % | J7: ABS | K7: % | L7: ABS | M7: ABS | N7: % | O7: ABS | P7: %
A9: TOTAL | B9: =SUM(B11:B90) -> 6760 | C9: =SUM(C11:C90) -> 3406 | D9: =C9/B9*100 -> 50.38461538 | E9: =SUM(E11:E90) -> 3354 | F9: =E9/B9*100 -> 49.61538462 | G9: =SUM(G11:G90) -> 3692 | H9: =SUM(H11:H90) -> 2269 | I9: =H9/G9*100 -> 61.45720477 | J9: =SUM(J11:J90) -> 1423 | K9: =J9/G9*100 -> 38.54279523 | L9: =SUM(L11:L90) -> 3068 | M9: =SUM(M11:M90) -> 1137 | N9: =M9/L9*100 -> 37.05997392 | O9: =SUM(O11:O90) -> 1931 | P9: =O9/L9*100 -> 62.94002608
A11: ACCESIBILIDAD SIN EXCLUSIÓN | B11: =+C11+E11 -> 38 | C11: =+H11+M11 -> 19 | D11: =C11/B11*100 -> 50 | E11: =+J11+O11 -> 19 | F11: =E11/B11*100 -> 50 | G11: =+H11+J11 -> 20 | H11: 13 | I11: =H11/G11*100 -> 65 | J11: 7 | K11: =J11/G11*100 -> 35 | L11: =+M11+O11 -> 18 | M11: 6 | N11: =M11/L11*100 -> 33.33333333 | O11: 12 | P11: =O11/L11*100 -> 66.66666667
A12: ACCIÓN CANTONAL SIQUIRRES INDEPENDIENTE | B12: =+C12+E12 -> 14 | C12: =+H12+M12 -> 7 | D12: =C12/B12*100 -> 50 | E12: =+J12+O12 -> 7 | F12: =E12/B12*100 -> 50 | G12: =+H12+J12 -> 7 | H12: 6 | I12: =H12/G12*100 -> 85.71428571 | J12: 1 | K12: =J12/G12*100 -> 14.28571429 | L12: =+M12+O12 -> 7 | M12: 1 | N12: =M12/L12*100 -> 14.28571429 | O12: 6 | P12: =O12/L12*100 -> 85.71428571
A13: ACCIÓN CIUDADANA | B13: 479 | C13: 238 | D13: 49.6868476 | E13: 241 | F13: 50.3131524 | G13: 265 | H13: 133 | I13: 50.18867925 | J13: 132 | K13: 49.81132075 | L13: 214 | M13: 105 | N13: 49.06542056 | O13: 109 | P13: 50.93457944
A14: ACCIÓN NARANJEÑA | B14: 14 | C14: 7 | D14: 50 | E14: 7 | F14: 50 | G14: 8 | H14: 6 | I14: 75 | J14: 2 | K14: 25 | L14: 6 | M14: 1 | N14: 16.66666667 | O14: 5 | P14: 83.33333333
A15: ACTUEMOS YA | B15: 62 | C15: 32 | D15: 51.61290323 | E15: 30 | F15: 48.38709677 | G15: 33 | H15: 27 | I15: 81.81818182 | J15: 6 | K15: 18.18181818 | L15: 29 | M15: 5 | N15: 17.24137931 | O15: 24 | P15: 82.75862069
A16: ACUERDO DE ALIANZA DE QUEPOS | B16: 5 | C16: 3 | D16: 60 | E16: 2 | F16: 40 | G16: 3 | H16: 3 | I16: 100 | J16: 0 | K16: 0 | L16: 2 | M16: 0 | N16: 0 | O16: 2 | P16: 100
A17: ALIANZA DEMÓCRATA CRISTIANA | B17: 168 | C17: 87 | D17: 51.78571429 | E17: 81 | F17: 48.21428571 | G17: 96 | H17: 57 | I17: 59.375 | J17: 39 | K17: 40.625 | L17: 72 | M17: 30 | N17: 41.66666667 | O17: 42 | P17: 58.33333333
A18: ALIANZA POR PALMARES | B18: 14 | C18: 7 | D18: 50 | E18: 7 | F18: 50 | G18: 7 | H18: 3 | I18: 42.85714286 | J18: 4 | K18: 57.14285714 | L18: 7 | M18: 4 | N18: 57.14285714 | O18: 3 | P18: 42.85714286
A19: ALIANZA POR SAN JOSÉ | B19: 22 | C19: 11 | D19: 50 | E19: 11 | F19: 50 | G19: 11 | H19: 5 | I19: 45.45454545 | J19: 6 | K19: 54.54545455 | L19: 11 | M19: 6 | N19: 54.54545455 | O19: 5 | P19: 45.45454545
A20: ALIANZA POR SARCHÍ | B20: 10 | C20: 5 | D20: 50 | E20: 5 | F20: 50 | G20: 5 | H20: 3 | I20: 60 | J20: 2 | K20: 40 | L20: 5 | M20: 2 | N20: 40 | O20: 3 | P20: 60
A21: ALIANZA SOCIAL POR LA UNIÓN | B21: 15 | C21: 7 | D21: 46.66666667 | E21: 8 | F21: 53.33333333 | G21: 8 | H21: 4 | I21: 50 | J21: 4 | K21: 50 | L21: 7 | M21: 3 | N21: 42.85714286 | O21: 4 | P21: 57.14285714
A22: ANTICORRUPCIÓN COSTARRICENSE | B22: 8 | C22: 4 | D22: 50 | E22: 4 | F22: 50 | G22: 5 | H22: 3 | I22: 60 | J22: 2 | K22: 40 | L22: 3 | M22: 1 | N22: 33.33333333 | O22: 2 | P22: 66.66666667
A23: AUTÉNTICO LABRADOR DE CORONADO | B23: 8 | C23: 4 | D23: 50 | E23: 4 | F23: 50 | G23: 5 | H23: 2 | I23: 40 | J23: 3 | K23: 60 | L23: 3 | M23: 2 | N23: 66.66666667 | O23: 1 | P23: 33.33333333
A24: AUTÉNTICO LIMONENSE | B24: 20 | C24: 10 | D24: 50 | E24: 10 | F24: 50 | G24: 10 | H24: 5 | I24: 50 | J24: 5 | K24: 50 | L24: 10 | M24: 5 | N24: 50 | O24: 5 | P24: 50
A25: AUTÉNTICO SANTACRUCEÑO | B25: 18 | C25: 9 | D25: 50 | E25: 9 | F25: 50 | G25: 9 | H25: 3 | I25: 33.33333333 | J25: 6 | K25: 66.66666667 | L25: 9 | M25: 6 | N25: 66.66666667 | O25: 3 | P25: 33.33333333
A26: AUTÉNTICO SIQUIRREÑO | B26: 8 | C26: 4 | D26: 50 | E26: 4 | F26: 50 | G26: 5 | H26: 2 | I26: 40 | J26: 3 | K26: 60 | L26: 3 | M26: 2 | N26: 66.66666667 | O26: 1 | P26: 33.33333333
A27: AUTÓNOMO OROMONTANO | B27: 6 | C27: 3 | D27: 50 | E27: 3 | F27: 50 | G27: 3 | H27: 2 | I27: 66.66666667 | J27: 1 | K27: 33.33333333 | L27: 3 | M27: 1 | N27: 33.33333333 | O27: 2 | P27: 66.66666667
A28: AVANCE MONTES DE OCA | B28: 6 | C28: 3 | D28: 50 | E28: 3 | F28: 50 | G28: 3 | H28: 1 | I28: 33.33333333 | J28: 2 | K28: 66.66666667 | L28: 3 | M28: 2 | N28: 66.66666667 | O28: 1 | P28: 33.33333333
A29: AVANTE POCOCÍ | B29: 11 | C29: 5 | D29: 45.45454545 | E29: 6 | F29: 54.54545455 | G29: 7 | H29: 4 | I29: 57.14285714 | J29: 3 | K29: 42.85714286 | L29: 4 | M29: 1 | N29: 25 | O29: 3 | P29: 75
A30: BARVA UNIDA | B30: 10 | C30: 6 | D30: 60 | E30: 4 | F30: 40 | G30: 6 | H30: 3 | I30: 50 | J30: 3 | K30: 50 | L30: 4 | M30: 3 | N30: 75 | O30: 1 | P30: 25
A31: CANTONAL DE CARRILLO | B31: 8 | C31: 4 | D31: 50 | E31: 4 | F31: 50 | G31: 4 | H31: 2 | I31: 50 | J31: 2 | K31: 50 | L31: 4 | M31: 2 | N31: 50 | O31: 2 | P31: 50
A32: COALICIÓN ALIANZA POR NICOYA | B32: 12 | C32: 6 | D32: 50 | E32: 6 | F32: 50 | G32: 7 | H32: 3 | I32: 42.85714286 | J32: 4 | K32: 57.14285714 | L32: 5 | M32: 3 | N32: 60 | O32: 2 | P32: 40
A33: COALICIÓN ASERRI DE TODOS | B33: 11 | C33: 6 | D33: 54.54545455 | E33: 5 | F33: 45.45454545 | G33: 7 | H33: 3 | I33: 42.85714286 | J33: 4 | K33: 57.14285714 | L33: 4 | M33: 3 | N33: 75 | O33: 1 | P33: 25
A34: COALICIÓN GENTE MONTES DE OCA | B34: 5 | C34: 2 | D34: 40 | E34: 3 | F34: 60 | G34: 3 | H34: 1 | I34: 33.33333333 | J34: 2 | K34: 66.66666667 | L34: 2 | M34: 1 | N34: 50 | O34: 1 | P34: 50
A35: COALICIÓN JUNTOS | B35: 17 | C35: 9 | D35: 52.94117647 | E35: 8 | F35: 47.05882353 | G35: 9 | H35: 5 | I35: 55.55555556 | J35: 4 | K35: 44.44444444 | L35: 8 | M35: 4 | N35: 50 | O35: 4 | P35: 50
A36: COALICIÓN UNIDAD POR FLORES | B36: 6 | C36: 3 | D36: 50 | E36: 3 | F36: 50 | G36: 3 | H36: 2 | I36: 66.66666667 | J36: 1 | K36: 33.33333333 | L36: 3 | M36: 1 | N36: 33.33333333 | O36: 2 | P36: 66.66666667
A37: COALICIÓN UNIÓN BELEMITA | B37: 6 | C37: 3 | D37: 50 | E37: 3 | F37: 50 | G37: 3 | H37: 2 | I37: 66.66666667 | J37: 1 | K37: 33.33333333 | L37: 3 | M37: 1 | N37: 33.33333333 | O37: 2 | P37: 66.66666667
A38: COMUNAL UNIDO | B38: 115 | C38: 55 | D38: 47.82608696 | E38: 60 | F38: 52.17391304 | G38: 61 | H38: 28 | I38: 45.90163934 | J38: 33 | K38: 54.09836066 | L38: 54 | M38: 27 | N38: 50 | O38: 27 | P38: 50
A39: CURRIDABAT SIGLO XXI | B39: 8 | C39: 4 | D39: 50 | E39: 4 | F39: 50 | G39: 4 | H39: 2 | I39: 50 | J39: 2 | K39: 50 | L39: 4 | M39: 2 | N39: 50 | O39: 2 | P39: 50
A40: DEL SOL | B40: 9 | C40: 4 | D40: 44.44444444 | E40: 5 | F40: 55.55555556 | G40: 5 | H40: 3 | I40: 60 | J40: 2 | K40: 40 | L40: 4 | M40: 1 | N40: 25 | O40: 3 | P40: 75
A41: DESARROLLO TALAMANQUEÑO | B41: 7 | C41: 4 | D41: 57.14285714 | E41: 3 | F41: 42.85714286 | G41: 4 | H41: 3 | I41: 75 | J41: 1 | K41: 25 | L41: 3 | M41: 1 | N41: 33.33333333 | O41: 2 | P41: 66.66666667
A42: DESPERTAR ALAJUELENSE | B42: 28 | C42: 14 | D42: 50 | E42: 14 | F42: 50 | G42: 14 | H42: 8 | I42: 57.14285714 | J42: 6 | K42: 42.85714286 | L42: 14 | M42: 6 | N42: 42.85714286 | O42: 8 | P42: 57.14285714
A43: ECOLÓGICO COMUNAL COSTARRICENSE | B43: 25 | C43: 13 | D43: 52 | E43: 12 | F43: 48 | G43: 13 | H43: 6 | I43: 46.15384615 | J43: 7 | K43: 53.84615385 | L43: 12 | M43: 7 | N43: 58.33333333 | O43: 5 | P43: 41.66666667
A44: FRENTE AMPLIO | B44: 231 | C44: 116 | D44: 50.21645022 | E44: 115 | F44: 49.78354978 | G44: 136 | H44: 70 | I44: 51.47058824 | J44: 66 | K44: 48.52941176 | L44: 95 | M44: 46 | N44: 48.42105263 | O44: 49 | P44: 51.57894737
A45: FUERZA SARCHISEÑA | B45: 8 | C45: 5 | D45: 62.5 | E45: 3 | F45: 37.5 | G45: 5 | H45: 3 | I45: 60 | J45: 2 | K45: 40 | L45: 3 | M45: 2 | N45: 66.66666667 | O45: 1 | P45: 33.33333333
A46: GUANACASTE PRIMERO | B46: 13 | C46: 7 | D46: 53.84615385 | E46: 6 | F46: 46.15384615 | G46: 7 | H46: 4 | I46: 57.14285714 | J46: 3 | K46: 42.85714286 | L46: 6 | M46: 3 | N46: 50 | O46: 3 | P46: 50
A47: INNOVACIÓN CANTONAL | B47: 7 | C47: 5 | D47: 71.42857143 | E47: 2 | F47: 28.57142857 | G47: 5 | H47: 4 | I47: 80 | J47: 1 | K47: 20 | L47: 2 | M47: 1 | N47: 50 | O47: 1 | P47: 50
A48: INTEGRACIÓN NACIONAL | B48: 270 | C48: 137 | D48: 50.74074074 | E48: 133 | F48: 49.25925926 | G48: 156 | H48: 89 | I48: 57.05128205 | J48: 67 | K48: 42.94871795 | L48: 114 | M48: 48 | N48: 42.10526316 | O48: 66 | P48: 57.89473684
A49: IZQUIERDA COSTARRICENSE | B49: 14 | C49: 7 | D49: 50 | E49: 7 | F49: 50 | G49: 11 | H49: 6 | I49: 54.54545455 | J49: 5 | K49: 45.45454545 | L49: 3 | M49: 1 | N49: 33.33333333 | O49: 2 | P49: 66.66666667
A50: JUSTICIA SOCIAL | B50: 6 | C50: 3 | D50: 50 | E50: 3 | F50: 50 | G50: 3 | H50: 1 | I50: 33.33333333 | J50: 2 | K50: 66.66666667 | L50: 3 | M50: 2 | N50: 66.66666667 | O50: 1 | P50: 33.33333333
A51: JUSTICIA SOCIAL COSTARRICENSE | B51: 38 | C51: 20 | D51: 52.63157895 | E51: 18 | F51: 47.36842105 | G51: 21 | H51: 13 | I51: 61.9047619 | J51: 8 | K51: 38.0952381 | L51: 17 | M51: 7 | N51: 41.17647059 | O51: 10 | P51: 58.82352941
A52: LA FUERZA DE LA UNIÓN | B52: 8 | C52: 4 | D52: 50 | E52: 4 | F52: 50 | G52: 5 | H52: 4 | I52: 80 | J52: 1 | K52: 20 | L52: 3 | M52: 0 | N52: 0 | O52: 3 | P52: 100
A53: LA GRAN NICOYA | B53: 11 | C53: 5 | D53: 45.45454545 | E53: 6 | F53: 54.54545455 | G53: 7 | H53: 4 | I53: 57.14285714 | J53: 3 | K53: 42.85714286 | L53: 4 | M53: 1 | N53: 25 | O53: 3 | P53: 75
A54: LIBERACIÓN NACIONAL | B54: 960 | C54: 481 | D54: 50.10416667 | E54: 479 | F54: 49.89583333 | G54: 485 | H54: 314 | I54: 64.74226804 | J54: 171 | K54: 35.25773196 | L54: 475 | M54: 167 | N54: 35.15789474 | O54: 308 | P54: 64.84210526
A55: LIBERAL PROGRESISTA | B55: 61 | C55: 31 | D55: 50.81967213 | E55: 30 | F55: 49.18032787 | G55: 34 | H55: 23 | I55: 67.64705882 | J55: 11 | K55: 32.35294118 | L55: 27 | M55: 8 | N55: 29.62962963 | O55: 19 | P55: 70.37037037
A56: MOVIMIENTO AVANCE SANTO DOMINGO | B56: 13 | C56: 7 | D56: 53.84615385 | E56: 6 | F56: 46.15384615 | G56: 8 | H56: 5 | I56: 62.5 | J56: 3 | K56: 37.5 | L56: 5 | M56: 2 | N56: 40 | O56: 3 | P56: 60
A57: NANDAYURE PROGRESA | B57: 11 | C57: 6 | D57: 54.54545455 | E57: 5 | F57: 45.45454545 | G57: 6 | H57: 5 | I57: 83.33333333 | J57: 1 | K57: 16.66666667 | L57: 5 | M57: 1 | N57: 20 | O57: 4 | P57: 80
A58: NUESTRO PUEBLO | B58: 127 | C58: 61 | D58: 48.03149606 | E58: 66 | F58: 51.96850394 | G58: 68 | H58: 39 | I58: 57.35294118 | J58: 29 | K58: 42.64705882 | L58: 59 | M58: 22 | N58: 37.28813559 | O58: 37 | P58: 62.71186441
A59: NUEVA GENERACIÓN | B59: 356 | C59: 176 | D59: 49.43820225 | E59: 180 | F59: 50.56179775 | G59: 193 | H59: 127 | I59: 65.80310881 | J59: 66 | K59: 34.19689119 | L59: 163 | M59: 49 | N59: 30.06134969 | O59: 114 | P59: 69.93865031
A60: NUEVA MAYORÍA GRIEGA | B60: 14 | C60: 7 | D60: 50 | E60: 7 | F60: 50 | G60: 7 | H60: 3 | I60: 42.85714286 | J60: 4 | K60: 57.14285714 | L60: 7 | M60: 4 | N60: 57.14285714 | O60: 3 | P60: 42.85714286
A61: NUEVA REPÚBLICA | B61: 633 | C61: 332 | D61: 52.44865719 | E61: 301 | F61: 47.55134281 | G61: 372 | H61: 239 | I61: 64.24731183 | J61: 133 | K61: 35.75268817 | L61: 261 | M61: 93 | N61: 35.63218391 | O61: 168 | P61: 64.36781609
A62: PALMARES PRIMERO | B62: 2 | C62: 1 | D62: 50 | E62: 1 | F62: 50 | G62: 1 | H62: 0 | I62: 0 | J62: 1 | K62: 100 | L62: 1 | M62: 1 | N62: 100 | O62: 0 | P62: 0
A63: PROGRESER | B63: 26 | C63: 13 | D63: 50 | E63: 13 | F63: 50 | G63: 13 | H63: 10 | I63: 76.92307692 | J63: 3 | K63: 23.07692308 | L63: 13 | M63: 3 | N63: 23.07692308 | O63: 10 | P63: 76.92307692
A64: PURISCAL EN MARCHA | B64: 18 | C64: 9 | D64: 50 | E64: 9 | F64: 50 | G64: 9 | H64: 4 | I64: 44.44444444 | J64: 5 | K64: 55.55555556 | L64: 9 | M64: 5 | N64: 55.55555556 | O64: 4 | P64: 44.44444444
A65: RECUPERANDO VALORES | B65: 39 | C65: 19 | D65: 48.71794872 | E65: 20 | F65: 51.28205128 | G65: 21 | H65: 9 | I65: 42.85714286 | J65: 12 | K65: 57.14285714 | L65: 18 | M65: 10 | N65: 55.55555556 | O65: 8 | P65: 44.44444444
A66: RENOVACIÓN COSTARRICENSE | B66: 36 | C66: 16 | D66: 44.44444444 | E66: 20 | F66: 55.55555556 | G66: 23 | H66: 11 | I66: 47.82608696 | J66: 12 | K66: 52.17391304 | L66: 13 | M66: 5 | N66: 38.46153846 | O66: 8 | P66: 61.53846154
A67: REPUBLICANO SOCIAL CRISTIANO | B67: 474 | C67: 236 | D67: 49.78902954 | E67: 238 | F67: 50.21097046 | G67: 260 | H67: 161 | I67: 61.92307692 | J67: 99 | K67: 38.07692308 | L67: 214 | M67: 75 | N67: 35.04672897 | O67: 139 | P67: 64.95327103
A68: RESCATE CANTONAL LA UNIÓN | B68: 16 | C68: 8 | D68: 50 | E68: 8 | F68: 50 | G68: 8 | H68: 6 | I68: 75 | J68: 2 | K68: 25 | L68: 8 | M68: 2 | N68: 25 | O68: 6 | P68: 75
A69: RESTAURACIÓN NACIONAL | B69: 565 | C69: 286 | D69: 50.61946903 | E69: 279 | F69: 49.38053097 | G69: 319 | H69: 202 | I69: 63.32288401 | J69: 117 | K69: 36.67711599 | L69: 246 | M69: 84 | N69: 34.14634146 | O69: 162 | P69: 65.85365854
A70: RESTAURACIÓN PARRITEÑA | B70: 1 | C70: 1 | D70: 100 | E70: 0 | F70: 0 | G70: 1 | H70: 1 | I70: 100 | J70: 0 | K70: 0 | L70: 0 | M70: 0 | N70: 0 | O70: 0 | P70: 0
A71: SENTIR HEREDIA | B71: 8 | C71: 4 | D71: 50 | E71: 4 | F71: 50 | G71: 4 | H71: 2 | I71: 50 | J71: 2 | K71: 50 | L71: 4 | M71: 2 | N71: 50 | O71: 2 | P71: 50
A72: SOMOS MORAVIA | B72: 6 | C72: 3 | D72: 50 | E72: 3 | F72: 50 | G72: 3 | H72: 1 | I72: 33.33333333 | J72: 2 | K72: 66.66666667 | L72: 3 | M72: 2 | N72: 66.66666667 | O72: 1 | P72: 33.33333333
A73: SOMOS SARCHÍ | B73: 8 | C73: 4 | D73: 50 | E73: 4 | F73: 50 | G73: 4 | H73: 3 | I73: 75 | J73: 1 | K73: 25 | L73: 4 | M73: 1 | N73: 25 | O73: 3 | P73: 75
A74: TARRAZÚ PRIMERO | B74: 6 | C74: 3 | D74: 50 | E74: 3 | F74: 50 | G74: 3 | H74: 2 | I74: 66.66666667 | J74: 1 | K74: 33.33333333 | L74: 3 | M74: 1 | N74: 33.33333333 | O74: 2 | P74: 66.66666667
A75: TODOS POR GOICOECHEA | B75: 14 | C75: 7 | D75: 50 | E75: 7 | F75: 50 | G75: 7 | H75: 5 | I75: 71.42857143 | J75: 2 | K75: 28.57142857 | L75: 7 | M75: 2 | N75: 28.57142857 | O75: 5 | P75: 71.42857143
A76: TURRIALBA PRIMERO | B76: =+C76+E76 -> 24 | C76: =+H76+M76 -> 12 | D76: =C76/B76*100 -> 50 | E76: =+J76+O76 -> 12 | F76: =E76/B76*100 -> 50 | G76: =+H76+J76 -> 12 | H76: 9 | I76: =H76/G76*100 -> 75 | J76: 3 | K76: =J76/G76*100 -> 25 | L76: =+M76+O76 -> 12 | M76: 3 | N76: =M76/L76*100 -> 25 | O76: 9 | P76: =O76/L76*100 -> 75
A77: ÚNICO ABANGAREÑO | B77: 7 | C77: 4 | D77: 57.14285714 | E77: 3 | F77: 42.85714286 | G77: 4 | H77: 3 | I77: 75 | J77: 1 | K77: 25 | L77: 3 | M77: 1 | N77: 33.33333333 | O77: 2 | P77: 66.66666667
A78: UNIDAD SOCIAL CRISTIANA | B78: 797 | C78: 400 | D78: 50.18820577 | E78: 397 | F78: 49.81179423 | G78: 410 | H78: 279 | I78: 68.04878049 | J78: 131 | K78: 31.95121951 | L78: 387 | M78: 121 | N78: 31.26614987 | O78: 266 | P78: 68.73385013
A79: UNIDOS PARA EL DESARROLLO | B79: 12 | C79: 6 | D79: 50 | E79: 6 | F79: 50 | G79: 6 | H79: 2 | I79: 33.33333333 | J79: 4 | K79: 66.66666667 | L79: 6 | M79: 4 | N79: 66.66666667 | O79: 2 | P79: 33.33333333
A80: UNIDOS PODEMOS | B80: 527 | C80: 265 | D80: 50.28462998 | E80: 262 | F80: 49.71537002 | G80: 289 | H80: 187 | I80: 64.70588235 | J80: 102 | K80: 35.29411765 | L80: 238 | M80: 78 | N80: 32.77310924 | O80: 160 | P80: 67.22689076
A81: UNIDOS POR ESCAZÚ | B81: 5 | C81: 2 | D81: 40 | E81: 3 | F81: 60 | G81: 3 | H81: 2 | I81: 66.66666667 | J81: 1 | K81: 33.33333333 | L81: 2 | M81: 0 | N81: 0 | O81: 2 | P81: 100
A82: UNIÓN ATENIENSE | B82: 16 | C82: 8 | D82: 50 | E82: 8 | F82: 50 | G82: 8 | H82: 7 | I82: 87.5 | J82: 1 | K82: 12.5 | L82: 8 | M82: 1 | N82: 12.5 | O82: 7 | P82: 87.5
A83: UNIÓN DE PUNTARENENSES EMPRENDEDORES | B83: 24 | C83: 13 | D83: 54.16666667 | E83: 11 | F83: 45.83333333 | G83: 13 | H83: 7 | I83: 53.84615385 | J83: 6 | K83: 46.15384615 | L83: 11 | M83: 6 | N83: 54.54545455 | O83: 5 | P83: 45.45454545
A84: UNIÓN DOMINGUEÑA | B84: 10 | C84: 6 | D84: 60 | E84: 4 | F84: 40 | G84: 6 | H84: 3 | I84: 50 | J84: 3 | K84: 50 | L84: 4 | M84: 3 | N84: 75 | O84: 1 | P84: 25
A85: UNIÓN GRIEGA | B85: 12 | C85: 7 | D85: 58.33333333 | E85: 5 | F85: 41.66666667 | G85: 7 | H85: 4 | I85: 57.14285714 | J85: 3 | K85: 42.85714286 | L85: 5 | M85: 3 | N85: 60 | O85: 2 | P85: 40
A86: UNIÓN GUANACASTECA | B86: 62 | C86: 30 | D86: 48.38709677 | E86: 32 | F86: 51.61290323 | G86: 34 | H86: 17 | I86: 50 | J86: 17 | K86: 50 | L86: 28 | M86: 13 | N86: 46.42857143 | O86: 15 | P86: 53.57142857
A87: UNIÓN GUARQUEÑO | B87: 7 | C87: 3 | D87: 42.85714286 | E87: 4 | F87: 57.14285714 | G87: 4 | H87: 3 | I87: 75 | J87: 1 | K87: 25 | L87: 3 | M87: 0 | N87: 0 | O87: 3 | P87: 100
A88: VERDE ECOLOGISTA | B88: 52 | C88: 26 | D88: 50 | E88: 26 | F88: 50 | G88: 32 | H88: 21 | I88: 65.625 | J88: 11 | K88: 34.375 | L88: 20 | M88: 5 | N88: 25 | O88: 15 | P88: 75
A89: YO SOY EL CAMBIO | B89: 6 | C89: 3 | D89: 50 | E89: 3 | F89: 50 | G89: 3 | H89: 1 | I89: 33.33333333 | J89: 2 | K89: 66.66666667 | L89: 3 | M89: 2 | N89: 66.66666667 | O89: 1 | P89: 33.33333333
A90: YUNTA PROGRESISTA ESCAZUCEÑA | B90: 6 | C90: 3 | D90: 50 | E90: 3 | F90: 50 | G90: 3 | H90: 1 | I90: 33.33333333 | J90: 2 | K90: 66.66666667 | L90: 3 | M90: 2 | N90: 66.66666667 | O90: 1 | P90: 33.33333333
A93: =+'G3'!A34 -> Fuente: Departamento de Registro de Partidos Políticos, base de datos de Candidaturas 2020, Tribunal Supremo de Elecciones.

Sheet C26
A1: CUADRO 26 COSTA RICA: CANDIDATURA A SÍNDICATURAS EN PROPIEDAD Y SUPLENCIA POR SEXO, SEGÚN PROVINCIA Y CANTÓN
A2: ELECCIONES MUNICIPALES 2 DE FEBRERO 2020
A3: (CIFRAS ABSOLUTAS Y RELATIVAS)
A5: PROVINCIA Y CANTÓN | B5: SINDICATURAS | G5: EN PROPIEDAD | L5: EN SUPLENCIA
B6: TOTAL | C6: HOMBRES | E6: MUJERES | G6: TOTAL | H6: HOMBRES | J6: MUJERES | L6: TOTAL | M6: HOMBRES | O6: MUJERES
C7: ABS | D7: % | E7: ABS | F7: % | H7: ABS | I7: % | J7: ABS | K7: % | M7: ABS | N7: % | O7: ABS | P7: %
A9: COSTA RICA | B9: =G9+L9 -> 6760 | C9: =H9+M9 -> 3406 | D9: =C9/$B9*100 -> 50.38461538 | E9: =J9+O9 -> 3354 | F9: =E9/$B9*100 -> 49.61538462 | G9: =+G10+G31+G48+G57+G68+G80+G92 -> 3692 | H9: =+H10+H31+H48+H57+H68+H80+H92 -> 2269 | I9: =H9/$G9*100 -> 61.45720477 | J9: =+J10+J31+J48+J57+J68+J80+J92 -> 1423 | K9: =J9/$G9*100 -> 38.54279523 | L9: =+L10+L31+L48+L57+L68+L80+L92 -> 3068 | M9: =+M10+M31+M48+M57+M68+M80+M92 -> 1137 | N9: =M9/$L9*100 -> 37.05997392 | O9: =+O10+O31+O48+O57+O68+O80+O92 -> 1931 | P9: =O9/$L9*100 -> 62.94002608 | S9: Cargo
A10: PROVINCIA SAN JOSÉ | B10: =+G10+L10 -> 1699 | C10: =+H10+M10 -> 852 | D10: =C10/$B10*100 -> 50.14714538 | E10: =+J10+O10 -> 847 | F10: =E10/$B10*100 -> 49.85285462 | G10: =SUM(G11:G30) -> 943 | H10: =SUM(H11:H30) -> 543 | I10: =H10/$G10*100 -> 57.58218452 | J10: =SUM(J11:J30) -> 400 | K10: =J10/$G10*100 -> 42.41781548 | L10: =SUM(L11:L30) -> 756 | M10: =SUM(M11:M30) -> 309 | N10: =M10/$L10*100 -> 40.87301587 | O10: =SUM(O11:O30) -> 447 | P10: =O10/$L10*100 -> 59.12698413 | S10: Sexo | U10: Total
A11: SAN JOSÉ | B11: =+G11+L11 -> 250 | C11: =+H11+M11 -> 128 | D11: =C11/$B11*100 -> 51.2 | E11: =+J11+O11 -> 122 | F11: =E11/$B11*100 -> 48.8 | G11: =+H11+J11 -> 144 | H11: 83 | I11: =H11/$G11*100 -> 57.63888889 | J11: 61 | K11: =J11/$G11*100 -> 42.36111111 | L11: =+M11+O11 -> 106 | M11: 45 | N11: =M11/$L11*100 -> 42.45283019 | O11: 61 | P11: =O11/$L11*100 -> 57.54716981 | S11: HOMBRE | T11: MUJER
A12: ESCAZÚ | B12: =+G12+L12 -> 50 | C12: =+H12+M12 -> 25 | D12: =C12/$B12*100 -> 50 | E12: =+J12+O12 -> 25 | F12: =E12/$B12*100 -> 50 | G12: =+H12+J12 -> 27 | H12: 17 | I12: =H12/$G12*100 -> 62.96296296 | J12: 10 | K12: =J12/$G12*100 -> 37.03703704 | L12: =+M12+O12 -> 23 | M12: 8 | N12: =M12/$L12*100 -> 34.7826087 | O12: 15 | P12: =O12/$L12*100 -> 65.2173913
A13: DESAMPARADOS | B13: 245 | C13: 121 | D13: 49.3877551 | E13: 124 | F13: 50.6122449 | G13: 133 | H13: 65 | I13: 48.87218045 | J13: 68 | K13: 51.12781955 | L13: 112 | M13: 56 | N13: 50 | O13: 56 | P13: 50
A14: PURISCAL | B14: 112 | C14: 59 | D14: 52.67857143 | E14: 53 | F14: 47.32142857 | G14: 62 | H14: 32 | I14: 51.61290323 | J14: 30 | K14: 48.38709677 | L14: 50 | M14: 27 | N14: 54 | O14: 23 | P14: 46
A15: TARRAZÚ | B15: 38 | C15: 19 | D15: 50 | E15: 19 | F15: 50 | G15: 19 | H15: 16 | I15: 84.21052632 | J15: 3 | K15: 15.78947368 | L15: 19 | M15: 3 | N15: 15.78947368 | O15: 16 | P15: 84.21052632
A16: ASERRÍ | B16: 64 | C16: 31 | D16: 48.4375 | E16: 33 | F16: 51.5625 | G16: 41 | H16: 26 | I16: 63.41463415 | J16: 15 | K16: 36.58536585 | L16: 23 | M16: 5 | N16: 21.73913043 | O16: 18 | P16: 78.26086957
A17: MORA | B17: 65 | C17: 32 | D17: 49.23076923 | E17: 33 | F17: 50.76923077 | G17: 35 | H17: 19 | I17: 54.28571429 | J17: 16 | K17: 45.71428571 | L17: 30 | M17: 13 | N17: 43.33333333 | O17: 17 | P17: 56.66666667
A18: GOICOECHEA | B18: 171 | C18: 86 | D18: 50.29239766 | E18: 85 | F18: 49.70760234 | G18: 93 | H18: 52 | I18: 55.91397849 | J18: 41 | K18: 44.08602151 | L18: 78 | M18: 34 | N18: 43.58974359 | O18: 44 | P18: 56.41025641
A19: SANTA ANA | B19: 103 | C19: 49 | D19: 47.57281553 | E19: 54 | F19: 52.42718447 | G19: 60 | H19: 31 | I19: 51.66666667 | J19: 29 | K19: 48.33333333 | L19: 43 | M19: 18 | N19: 41.86046512 | O19: 25 | P19: 58.13953488
A20: ALAJUELITA | B20: 80 | C20: 40 | D20: 50 | E20: 40 | F20: 50 | G20: 45 | H20: 27 | I20: 60 | J20: 18 | K20: 40 | L20: 35 | M20: 13 | N20: 37.14285714 | O20: 22 | P20: 62.85714286
A21: VÁZQUEZ DE CORONADO | B21: 73 | C21: 37 | D21: 50.68493151 | E21: 36 | F21: 49.31506849 | G21: 41 | H21: 24 | I21: 58.53658537 | J21: 17 | K21: 41.46341463 | L21: 32 | M21: 13 | N21: 40.625 | O21: 19 | P21: 59.375
A22: ACOSTA | B22: 24 | C22: 14 | D22: 58.33333333 | E22: 10 | F22: 41.66666667 | G22: 14 | H22: 11 | I22: 78.57142857 | J22: 3 | K22: 21.42857143 | L22: 10 | M22: 3 | N22: 30 | O22: 7 | P22: 70
A23: TIBÁS | B23: 58 | C23: 29 | D23: 50 | E23: 29 | F23: 50 | G23: 30 | H23: 15 | I23: 50 | J23: 15 | K23: 50 | L23: 28 | M23: 14 | N23: 50 | O23: 14 | P23: 50
A24: MORAVIA | B24: 53 | C24: 26 | D24: 49.05660377 | E24: 27 | F24: 50.94339623 | G24: 28 | H24: 16 | I24: 57.14285714 | J24: 12 | K24: 42.85714286 | L24: 25 | M24: 10 | N24: 40 | O24: 15 | P24: 60
A25: MONTES DE OCA | B25: 62 | C25: 31 | D25: 50 | E25: 31 | F25: 50 | G25: 32 | H25: 13 | I25: 40.625 | J25: 19 | K25: 59.375 | L25: 30 | M25: 18 | N25: 60 | O25: 12 | P25: 40
A26: TURRUBARES | B26: 21 | C26: 10 | D26: 47.61904762 | E26: 11 | F26: 52.38095238 | G26: 12 | H26: 7 | I26: 58.33333333 | J26: 5 | K26: 41.66666667 | L26: 9 | M26: 3 | N26: 33.33333333 | O26: 6 | P26: 66.66666667
A27: DOTA | B27: 14 | C27: 7 | D27: 50 | E27: 7 | F27: 50 | G27: 7 | H27: 3 | I27: 42.85714286 | J27: 4 | K27: 57.14285714 | L27: 7 | M27: 4 | N27: 57.14285714 | O27: 3 | P27: 42.85714286
A28: CURRIDABAT | B28: 53 | C28: 26 | D28: 49.05660377 | E28: 27 | F28: 50.94339623 | G28: 31 | H28: 20 | I28: 64.51612903 | J28: 11 | K28: 35.48387097 | L28: 22 | M28: 6 | N28: 27.27272727 | O28: 16 | P28: 72.72727273
A29: PÉREZ ZELEDÓN | B29: 141 | C29: 71 | D29: 50.35460993 | E29: 70 | F29: 49.64539007 | G29: 77 | H29: 59 | I29: 76.62337662 | J29: 18 | K29: 23.37662338 | L29: 64 | M29: 12 | N29: 18.75 | O29: 52 | P29: 81.25
A30: LEÓN CORTÉS CASTRO | B30: 22 | C30: 11 | D30: 50 | E30: 11 | F30: 50 | G30: 12 | H30: 7 | I30: 58.33333333 | J30: 5 | K30: 41.66666667 | L30: 10 | M30: 4 | N30: 40 | O30: 6 | P30: 60
A31: PROVINCIA ALAJUELA | B31: =+G31+L31 -> 1469 | C31: =+H31+M31 -> 736 | D31: =C31/$B31*100 -> 50.10211028 | E31: =+J31+O31 -> 733 | F31: =E31/$B31*100 -> 49.89788972 | G31: =+H31+J31 -> 786 | H31: =SUM(H32:H47) -> 496 | I31: =H31/$G31*100 -> 63.1043257 | J31: =SUM(J32:J47) -> 290 | K31: =J31/$G31*100 -> 36.8956743 | L31: =+M31+O31 -> 683 | M31: =SUM(M32:M47) -> 240 | N31: =M31/$L31*100 -> 35.13909224 | O31: =SUM(O32:O47) -> 443 | P31: =O31/$L31*100 -> 64.86090776
A32: ALAJUELA | B32: =+G32+L32 -> 234 | C32: =+H32+M32 -> 117 | D32: =C32/$B32*100 -> 50 | E32: =+J32+O32 -> 117 | F32: =E32/$B32*100 -> 50 | G32: =+H32+J32 -> 125 | H32: 83 | I32: =H32/$G32*100 -> 66.4 | J32: 42 | K32: =J32/$G32*100 -> 33.6 | L32: =+M32+O32 -> 109 | M32: 34 | N32: =M32/$L32*100 -> 31.19266055 | O32: 75 | P32: =O32/$L32*100 -> 68.80733945
A33: SAN RAMÓN | B33: =+G33+L33 -> 161 | C33: =+H33+M33 -> 78 | D33: =C33/$B33*100 -> 48.44720497 | E33: =+J33+O33 -> 83 | F33: =E33/$B33*100 -> 51.55279503 | G33: =+H33+J33 -> 86 | H33: 52 | I33: =H33/$G33*100 -> 60.46511628 | J33: 34 | K33: =J33/$G33*100 -> 39.53488372 | L33: =+M33+O33 -> 75 | M33: 26 | N33: =M33/$L33*100 -> 34.66666667 | O33: 49 | P33: =O33/$L33*100 -> 65.33333333
A34: GRECIA | B34: 106 | C34: 53 | D34: 50 | E34: 53 | F34: 50 | G34: 57 | H34: 28 | I34: 49.12280702 | J34: 29 | K34: 50.87719298 | L34: 49 | M34: 25 | N34: 51.02040816 | O34: 24 | P34: 48.97959184
A35: SAN MATEO | B35: 33 | C35: 17 | D35: 51.51515152 | E35: 16 | F35: 48.48484848 | G35: 19 | H35: 8 | I35: 42.10526316 | J35: 11 | K35: 57.89473684 | L35: 14 | M35: 9 | N35: 64.28571429 | O35: 5 | P35: 35.71428571
A36: ATENAS | B36: 120 | C36: 60 | D36: 50 | E36: 60 | F36: 50 | G36: 63 | H36: 41 | I36: 65.07936508 | J36: 22 | K36: 34.92063492 | L36: 57 | M36: 19 | N36: 33.33333333 | O36: 38 | P36: 66.66666667
A37: NARANJO | B37: 112 | C37: 55 | D37: 49.10714286 | E37: 57 | F37: 50.89285714 | G37: 63 | H37: 41 | I37: 65.07936508 | J37: 22 | K37: 34.92063492 | L37: 49 | M37: 14 | N37: 28.57142857 | O37: 35 | P37: 71.42857143
A38: PALMARES | B38: 87 | C38: 47 | D38: 54.02298851 | E38: 40 | F38: 45.97701149 | G38: 47 | H38: 30 | I38: 63.82978723 | J38: 17 | K38: 36.17021277 | L38: 40 | M38: 17 | N38: 42.5 | O38: 23 | P38: 57.5
A39: POÁS | B39: 49 | C39: 27 | D39: 55.10204082 | E39: 22 | F39: 44.89795918 | G39: 27 | H39: 15 | I39: 55.55555556 | J39: 12 | K39: 44.44444444 | L39: 22 | M39: 12 | N39: 54.54545455 | O39: 10 | P39: 45.45454545
A40: OROTINA | B40: 52 | C40: 26 | D40: 50 | E40: 26 | F40: 50 | G40: 26 | H40: 13 | I40: 50 | J40: 13 | K40: 50 | L40: 26 | M40: 13 | N40: 50 | O40: 13 | P40: 50
A41: SAN CARLOS | B41: 226 | C41: 111 | D41: 49.11504425 | E41: 115 | F41: 50.88495575 | G41: 118 | H41: 82 | I41: 69.49152542 | J41: 36 | K41: 30.50847458 | L41: 108 | M41: 29 | N41: 26.85185185 | O41: 79 | P41: 73.14814815
A42: ZARCERO | B42: 54 | C42: 28 | D42: 51.85185185 | E42: 26 | F42: 48.14814815 | G42: 30 | H42: 20 | I42: 66.66666667 | J42: 10 | K42: 33.33333333 | L42: 24 | M42: 8 | N42: 33.33333333 | O42: 16 | P42: 66.66666667
A43: SARCHÍ | B43: 65 | C43: 33 | D43: 50.76923077 | E43: 32 | F43: 49.23076923 | G43: 35 | H43: 23 | I43: 65.71428571 | J43: 12 | K43: 34.28571429 | L43: 30 | M43: 10 | N43: 33.33333333 | O43: 20 | P43: 66.66666667
A44: UPALA | B44: 68 | C44: 33 | D44: 48.52941176 | E44: 35 | F44: 51.47058824 | G44: 37 | H44: 23 | I44: 62.16216216 | J44: 14 | K44: 37.83783784 | L44: 31 | M44: 10 | N44: 32.25806452 | O44: 21 | P44: 67.74193548
A45: LOS CHILES | B45: 27 | C45: 13 | D45: 48.14814815 | E45: 14 | F45: 51.85185185 | G45: 15 | H45: 7 | I45: 46.66666667 | J45: 8 | K45: 53.33333333 | L45: 12 | M45: 6 | N45: 50 | O45: 6 | P45: 50
A46: GUATUSO | B46: 33 | C46: 17 | D46: 51.51515152 | E46: 16 | F46: 48.48484848 | G46: 17 | H46: 14 | I46: 82.35294118 | J46: 3 | K46: 17.64705882 | L46: 16 | M46: 3 | N46: 18.75 | O46: 13 | P46: 81.25
A47: RIO CUARTO | B47: 42 | C47: 21 | D47: 50 | E47: 21 | F47: 50 | G47: 21 | H47: 16 | I47: 76.19047619 | J47: 5 | K47: 23.80952381 | L47: 21 | M47: 5 | N47: 23.80952381 | O47: 16 | P47: 76.19047619
A48: PROVINCIA CARTAGO | B48: =+G48+L48 -> 917 | C48: =+H48+M48 -> 464 | D48: =C48/$B48*100 -> 50.5997819 | E48: =+J48+O48 -> 453 | F48: =E48/$B48*100 -> 49.4002181 | G48: =+H48+J48 -> 496 | H48: =SUM(H49:H56) -> 332 | I48: =H48/$G48*100 -> 66.93548387 | J48: =SUM(J49:J56) -> 164 | K48: =J48/$G48*100 -> 33.06451613 | L48: =+M48+O48 -> 421 | M48: =SUM(M49:M56) -> 132 | N48: =M48/$L48*100 -> 31.35391924 | O48: =SUM(O49:O56) -> 289 | P48: =O48/$L48*100 -> 68.64608076
A49: CARTAGO | B49: =+G49+L49 -> 200 | C49: =+H49+M49 -> 101 | D49: =C49/$B49*100 -> 50.5 | E49: =+J49+O49 -> 99 | F49: =E49/$B49*100 -> 49.5 | G49: =+H49+J49 -> 112 | H49: 80 | I49: =H49/$G49*100 -> 71.42857143 | J49: 32 | K49: =J49/$G49*100 -> 28.57142857 | L49: =+M49+O49 -> 88 | M49: 21 | N49: =M49/$L49*100 -> 23.86363636 | O49: 67 | P49: =O49/$L49*100 -> 76.13636364
A50: PARAÍSO | B50: =+G50+L50 -> 110 | C50: =+H50+M50 -> 57 | D50: =C50/$B50*100 -> 51.81818182 | E50: =+J50+O50 -> 53 | F50: =E50/$B50*100 -> 48.18181818 | G50: =+H50+J50 -> 58 | H50: 46 | I50: =H50/$G50*100 -> 79.31034483 | J50: 12 | K50: =J50/$G50*100 -> 20.68965517 | L50: =+M50+O50 -> 52 | M50: 11 | N50: =M50/$L50*100 -> 21.15384615 | O50: 41 | P50: =O50/$L50*100 -> 78.84615385
A51: LA UNIÓN | B51: 202 | C51: 102 | D51: 50.4950495 | E51: 100 | F51: 49.5049505 | G51: 110 | H51: 65 | I51: 59.09090909 | J51: 45 | K51: 40.90909091 | L51: 92 | M51: 37 | N51: 40.2173913 | O51: 55 | P51: 59.7826087
A52: JIMÉNEZ | B52: 34 | C52: 16 | D52: 47.05882353 | E52: 18 | F52: 52.94117647 | G52: 19 | H52: 14 | I52: 73.68421053 | J52: 5 | K52: 26.31578947 | L52: 15 | M52: 2 | N52: 13.33333333 | O52: 13 | P52: 86.66666667
A53: TURRIALBA | B53: 197 | C53: 101 | D53: 51.26903553 | E53: 96 | F53: 48.73096447 | G53: 102 | H53: 67 | I53: 65.68627451 | J53: 35 | K53: 34.31372549 | L53: 95 | M53: 34 | N53: 35.78947368 | O53: 61 | P53: 64.21052632
A54: ALVARADO | B54: 36 | C54: 19 | D54: 52.77777778 | E54: 17 | F54: 47.22222222 | G54: 21 | H54: 14 | I54: 66.66666667 | J54: 7 | K54: 33.33333333 | L54: 15 | M54: 5 | N54: 33.33333333 | O54: 10 | P54: 66.66666667
A55: OREAMUNO | B55: 73 | C55: 38 | D55: 52.05479452 | E55: 35 | F55: 47.94520548 | G55: 39 | H55: 26 | I55: 66.66666667 | J55: 13 | K55: 33.33333333 | L55: 34 | M55: 12 | N55: 35.29411765 | O55: 22 | P55: 64.70588235
A56: EL GUARCO | B56: 65 | C56: 30 | D56: 46.15384615 | E56: 35 | F56: 53.84615385 | G56: 35 | H56: 20 | I56: 57.14285714 | J56: 15 | K56: 42.85714286 | L56: 30 | M56: 10 | N56: 33.33333333 | O56: 20 | P56: 66.66666667
A57: PROVINCIA HEREDIA | B57: =+G57+L57 -> 595 | C57: =+H57+M57 -> 305 | D57: =C57/$B57*100 -> 51.2605042 | E57: =+J57+O57 -> 290 | F57: =E57/$B57*100 -> 48.7394958 | G57: =+H57+J57 -> 335 | H57: =SUM(H58:H67) -> 195 | I57: =H57/$G57*100 -> 58.20895522 | J57: =SUM(J58:J67) -> 140 | K57: =J57/$G57*100 -> 41.79104478 | L57: =+M57+O57 -> 260 | M57: =SUM(M58:M67) -> 110 | N57: =M57/$L57*100 -> 42.30769231 | O57: =SUM(O58:O67) -> 150 | P57: =O57/$L57*100 -> 57.69230769
A58: HEREDIA | B58: =+G58+L58 -> 84 | C58: =+H58+M58 -> 42 | D58: =C58/$B58*100 -> 50 | E58: =+J58+O58 -> 42 | F58: =E58/$B58*100 -> 50 | G58: =+H58+J58 -> 45 | H58: 26 | I58: =H58/$G58*100 -> 57.77777778 | J58: 19 | K58: =J58/$G58*100 -> 42.22222222 | L58: =+M58+O58 -> 39 | M58: 16 | N58: =M58/$L58*100 -> 41.02564103 | O58: 23 | P58: =O58/$L58*100 -> 58.97435897
A59: BARVA | B59: =+G59+L59 -> 96 | C59: =+H59+M59 -> 52 | D59: =C59/$B59*100 -> 54.16666667 | E59: =+J59+O59 -> 44 | F59: =E59/$B59*100 -> 45.83333333 | G59: =+H59+J59 -> 54 | H59: 32 | I59: =H59/$G59*100 -> 59.25925926 | J59: 22 | K59: =J59/$G59*100 -> 40.74074074 | L59: =+M59+O59 -> 42 | M59: 20 | N59: =M59/$L59*100 -> 47.61904762 | O59: 22 | P59: =O59/$L59*100 -> 52.38095238
A60: SANTO DOMINGO | B60: 84 | C60: 44 | D60: 52.38095238 | E60: 40 | F60: 47.61904762 | G60: 48 | H60: 27 | I60: 56.25 | J60: 21 | K60: 43.75 | L60: 36 | M60: 17 | N60: 47.22222222 | O60: 19 | P60: 52.77777778
A61: SANTA BÁRBARA | B61: 87 | C61: 45 | D61: 51.72413793 | E61: 42 | F61: 48.27586207 | G61: 52 | H61: 28 | I61: 53.84615385 | J61: 24 | K61: 46.15384615 | L61: 35 | M61: 17 | N61: 48.57142857 | O61: 18 | P61: 51.42857143
A62: SAN RAFAEL | B62: 60 | C62: 28 | D62: 46.66666667 | E62: 32 | F62: 53.33333333 | G62: 34 | H62: 17 | I62: 50 | J62: 17 | K62: 50 | L62: 26 | M62: 11 | N62: 42.30769231 | O62: 15 | P62: 57.69230769
A63: SAN ISIDRO | B63: 36 | C63: 19 | D63: 52.77777778 | E63: 17 | F63: 47.22222222 | G63: 20 | H63: 14 | I63: 70 | J63: 6 | K63: 30 | L63: 16 | M63: 5 | N63: 31.25 | O63: 11 | P63: 68.75
A64: BELÉN | B64: 24 | C64: 11 | D64: 45.83333333 | E64: 13 | F64: 54.16666667 | G64: 15 | H64: 6 | I64: 40 | J64: 9 | K64: 60 | L64: 9 | M64: 5 | N64: 55.55555556 | O64: 4 | P64: 44.44444444
A65: FLORES | B65: 30 | C65: 15 | D65: 50 | E65: 15 | F65: 50 | G65: 16 | H65: 10 | I65: 62.5 | J65: 6 | K65: 37.5 | L65: 14 | M65: 5 | N65: 35.71428571 | O65: 9 | P65: 64.28571429
A66: SAN PABLO | B66: =+G66+L66 -> 18 | C66: 9 | D66: 50 | E66: =+J66+O66 -> 9 | F66: 50 | G66: 10 | H66: 5 | I66: 50 | J66: 5 | K66: 50 | L66: 8 | M66: 4 | N66: 50 | O66: 4 | P66: 50
A67: SARAPIQUÍ | B67: 76 | C67: 40 | D67: =C67/$B67*100 -> 52.63157895 | E67: =+J67+O67 -> 36 | F67: =E67/$B67*100 -> 47.36842105 | G67: =+H67+J67 -> 41 | H67: 30 | I67: =H67/$G67*100 -> 73.17073171 | J67: 11 | K67: =J67/$G67*100 -> 26.82926829 | L67: =+M67+O67 -> 35 | M67: 10 | N67: =M67/$L67*100 -> 28.57142857 | O67: 25 | P67: =O67/$L67*100 -> 71.42857143
A68: PROVINCIA GUANACASTE | B68: 779 | C68: 386 | D68: =C68/$B68*100 -> 49.55070603 | E68: =+J68+O68 -> 393 | F68: =E68/$B68*100 -> 50.44929397 | G68: =+H68+J68 -> 425 | H68: =SUM(H69:H79) -> 262 | I68: =H68/$G68*100 -> 61.64705882 | J68: =SUM(J69:J79) -> 163 | K68: =J68/$G68*100 -> 38.35294118 | L68: =+M68+O68 -> 354 | M68: =SUM(M69:M79) -> 124 | N68: =M68/$L68*100 -> 35.02824859 | O68: =SUM(O69:O79) -> 230 | P68: =O68/$L68*100 -> 64.97175141
A69: LIBERIA | B69: 86 | C69: 43 | D69: =C69/$B69*100 -> 50 | E69: =+J69+O69 -> 43 | F69: =E69/$B69*100 -> 50 | G69: =+H69+J69 -> 48 | H69: 27 | I69: =H69/$G69*100 -> 56.25 | J69: 21 | K69: =J69/$G69*100 -> 43.75 | L69: =+M69+O69 -> 38 | M69: 16 | N69: =M69/$L69*100 -> 42.10526316 | O69: 22 | P69: =O69/$L69*100 -> 57.89473684
A70: NICOYA | B70: =+G70+L70 -> 117 | C70: =+H70+M70 -> 57 | D70: =C70/$B70*100 -> 48.71794872 | E70: =+J70+O70 -> 60 | F70: =E70/$B70*100 -> 51.28205128 | G70: =+H70+J70 -> 66 | H70: 39 | I70: =H70/$G70*100 -> 59.09090909 | J70: 27 | K70: =J70/$G70*100 -> 40.90909091 | L70: =+M70+O70 -> 51 | M70: 18 | N70: =M70/$L70*100 -> 35.29411765 | O70: 33 | P70: =O70/$L70*100 -> 64.70588235
A71: SANTA CRUZ | B71: 145 | C71: 72 | D71: 49.65517241 | E71: 73 | F71: 50.34482759 | G71: 80 | H71: 47 | I71: 58.75 | J71: 33 | K71: 41.25 | L71: 65 | M71: 25 | N71: 38.46153846 | O71: 40 | P71: 61.53846154
A72: BAGACES | B72: 55 | C72: 27 | D72: 49.09090909 | E72: 28 | F72: 50.90909091 | G72: 30 | H72: 11 | I72: 36.66666667 | J72: 19 | K72: 63.33333333 | L72: 25 | M72: 16 | N72: 64 | O72: 9 | P72: 36
A73: CARRILLO | B73: 55 | C73: 27 | D73: 49.09090909 | E73: 28 | F73: 50.90909091 | G73: 28 | H73: 14 | I73: 50 | J73: 14 | K73: 50 | L73: 27 | M73: 13 | N73: 48.14814815 | O73: 14 | P73: 51.85185185
A74: CAÑAS | B74: 61 | C74: 30 | D74: 49.18032787 | E74: 31 | F74: 50.81967213 | G74: 32 | H74: 20 | I74: 62.5 | J74: 12 | K74: 37.5 | L74: 29 | M74: 10 | N74: 34.48275862 | O74: 19 | P74: 65.51724138
A75: ABANGARES | B75: 64 | C75: 32 | D75: 50 | E75: 32 | F75: 50 | G75: 34 | H75: 25 | I75: 73.52941176 | J75: 9 | K75: 26.47058824 | L75: 30 | M75: 7 | N75: 23.33333333 | O75: 23 | P75: 76.66666667
A76: TILARÁN | B76: 47 | C76: 24 | D76: 51.06382979 | E76: 23 | F76: 48.93617021 | G76: 26 | H76: 20 | I76: 76.92307692 | J76: 6 | K76: 23.07692308 | L76: 21 | M76: 4 | N76: 19.04761905 | O76: 17 | P76: 80.95238095
A77: NANDAYURE | B77: 74 | C77: 37 | D77: 50 | E77: 37 | F77: 50 | G77: 40 | H77: 34 | I77: 85 | J77: 6 | K77: 15 | L77: 34 | M77: 3 | N77: 8.823529412 | O77: 31 | P77: 91.17647059
A78: LA CRUZ | B78: 49 | C78: 23 | D78: 46.93877551 | E78: 26 | F78: 53.06122449 | G78: 27 | H78: 16 | I78: 59.25925926 | J78: 11 | K78: 40.74074074 | L78: 22 | M78: 7 | N78: 31.81818182 | O78: 15 | P78: 68.18181818
A79: HOJANCHA | B79: 26 | C79: 14 | D79: 53.84615385 | E79: 12 | F79: 46.15384615 | G79: 14 | H79: 9 | I79: 64.28571429 | J79: 5 | K79: 35.71428571 | L79: 12 | M79: 5 | N79: 41.66666667 | O79: 7 | P79: 58.33333333
A80: PROVINCIA PUNTARENAS | B80: =+G80+L80 -> 697 | C80: =+H80+M80 -> 355 | D80: =C80/$B80*100 -> 50.93256815 | E80: =+J80+O80 -> 342 | F80: =E80/$B80*100 -> 49.06743185 | G80: =+H80+J80 -> 373 | H80: =SUM(H81:H91) -> 253 | I80: =H80/$G80*100 -> 67.82841823 | J80: =SUM(J81:J91) -> 120 | K80: =J80/$G80*100 -> 32.17158177 | L80: =+M80+O80 -> 324 | M80: =SUM(M81:M91) -> 102 | N80: =M80/$L80*100 -> 31.48148148 | O80: =SUM(O81:O91) -> 222 | P80: =O80/$L80*100 -> 68.51851852
A81: PUNTARENAS | B81: =+G81+L81 -> 196 | C81: =+H81+M81 -> 98 | D81: =C81/$B81*100 -> 50 | E81: =+J81+O81 -> 98 | F81: =E81/$B81*100 -> 50 | G81: =+H81+J81 -> 105 | H81: 71 | I81: =H81/$G81*100 -> 67.61904762 | J81: 34 | K81: =J81/$G81*100 -> 32.38095238 | L81: =+M81+O81 -> 91 | M81: 27 | N81: =M81/$L81*100 -> 29.67032967 | O81: 64 | P81: =O81/$L81*100 -> 70.32967033
A82: ESPARZA | B82: =+G82+L82 -> 66 | C82: =+H82+M82 -> 33 | D82: =C82/$B82*100 -> 50 | E82: =+J82+O82 -> 33 | F82: =E82/$B82*100 -> 50 | G82: =+H82+J82 -> 34 | H82: 22 | I82: =H82/$G82*100 -> 64.70588235 | J82: 12 | K82: =J82/$G82*100 -> 35.29411765 | L82: =+M82+O82 -> 32 | M82: 11 | N82: =M82/$L82*100 -> 34.375 | O82: 21 | P82: =O82/$L82*100 -> 65.625
A83: BUENOS AIRES | B83: 87 | C83: 45 | D83: 51.72413793 | E83: 42 | F83: 48.27586207 | G83: 46 | H83: 35 | I83: 76.08695652 | J83: 11 | K83: 23.91304348 | L83: 41 | M83: 10 | N83: 24.3902439 | O83: 31 | P83: 75.6097561
A84: MONTES DE ORO | B84: 32 | C84: 16 | D84: 50 | E84: 16 | F84: 50 | G84: 17 | H84: 10 | I84: 58.82352941 | J84: 7 | K84: 41.17647059 | L84: 15 | M84: 6 | N84: 40 | O84: 9 | P84: 60
A85: OSA | B85: 55 | C85: 30 | D85: 54.54545455 | E85: 25 | F85: 45.45454545 | G85: 31 | H85: 27 | I85: 87.09677419 | J85: 4 | K85: 12.90322581 | L85: 24 | M85: 3 | N85: 12.5 | O85: 21 | P85: 87.5
A86: QUEPOS | B86: 62 | C86: 32 | D86: 51.61290323 | E86: 30 | F86: 48.38709677 | G86: 33 | H86: 20 | I86: 60.60606061 | J86: 13 | K86: 39.39393939 | L86: 29 | M86: 12 | N86: 41.37931034 | O86: 17 | P86: 58.62068966
A87: GOLFITO | B87: 61 | C87: 30 | D87: 49.18032787 | E87: 31 | F87: 50.81967213 | G87: 32 | H87: 17 | I87: 53.125 | J87: 15 | K87: 46.875 | L87: 29 | M87: 13 | N87: 44.82758621 | O87: 16 | P87: 55.17241379
A88: COTO BRUS | B88: 50 | C88: 26 | D88: 52 | E88: 24 | F88: 48 | G88: 27 | H88: 20 | I88: 74.07407407 | J88: 7 | K88: 25.92592593 | L88: 23 | M88: 6 | N88: 26.08695652 | O88: 17 | P88: 73.91304348
A89: PARRITA | B89: 10 | C89: 6 | D89: 60 | E89: 4 | F89: 40 | G89: 6 | H89: 5 | I89: 83.33333333 | J89: 1 | K89: 16.66666667 | L89: 4 | M89: 1 | N89: 25 | O89: 3 | P89: 75
A90: CORREDORES | B90: 61 | C90: 30 | D90: 49.18032787 | E90: 31 | F90: 50.81967213 | G90: 33 | H90: 21 | I90: 63.63636364 | J90: 12 | K90: 36.36363636 | L90: 28 | M90: 9 | N90: 32.14285714 | O90: 19 | P90: 67.85714286
A91: GARABITO | B91: 17 | C91: 9 | D91: 52.94117647 | E91: 8 | F91: 47.05882353 | G91: 9 | H91: 5 | I91: 55.55555556 | J91: 4 | K91: 44.44444444 | L91: 8 | M91: 4 | N91: 50 | O91: 4 | P91: 50
A92: PROVINCIA LIMÓN | B92: =+G92+L92 -> 604 | C92: 308 | D92: =C92/$B92*100 -> 50.99337748 | E92: =+J92+O92 -> 296 | F92: =E92/$B92*100 -> 49.00662252 | G92: =+H92+J92 -> 334 | H92: =SUM(H93:H98) -> 188 | I92: =H92/$G92*100 -> 56.28742515 | J92: =SUM(J93:J98) -> 146 | K92: =J92/$G92*100 -> 43.71257485 | L92: =+M92+O92 -> 270 | M92: =SUM(M93:M98) -> 120 | N92: =M92/$L92*100 -> 44.44444444 | O92: =SUM(O93:O98) -> 150 | P92: =O92/$L92*100 -> 55.55555556
A93: LIMÓN | B93: 76 | C93: 38 | D93: 50 | E93: 38 | F93: 50 | G93: 40 | H93: 20 | I93: 50 | J93: 20 | K93: 50 | L93: 36 | M93: 18 | N93: 50 | O93: 18 | P93: 50
A94: POCOCÍ | B94: 178 | C94: 91 | D94: 51.12359551 | E94: 87 | F94: 48.87640449 | G94: 98 | H94: 57 | I94: 58.16326531 | J94: 41 | K94: 41.83673469 | L94: 80 | M94: 34 | N94: 42.5 | O94: 46 | P94: 57.5
A95: SIQUIRRES | B95: 137 | C95: 70 | D95: 51.09489051 | E95: 67 | F95: 48.90510949 | G95: 77 | H95: 43 | I95: 55.84415584 | J95: 34 | K95: 44.15584416 | L95: 60 | M95: 27 | N95: 45 | O95: 33 | P95: 55
A96: TALAMANCA | B96: 70 | C96: 37 | D96: 52.85714286 | E96: 33 | F96: 47.14285714 | G96: 39 | H96: 27 | I96: 69.23076923 | J96: 12 | K96: 30.76923077 | L96: 31 | M96: 10 | N96: 32.25806452 | O96: 21 | P96: 67.74193548
A97: MATINA | B97: 57 | C97: 28 | D97: 49.12280702 | E97: 29 | F97: 50.87719298 | G97: 31 | H97: 16 | I97: 51.61290323 | J97: 15 | K97: 48.38709677 | L97: 26 | M97: 12 | N97: 46.15384615 | O97: 14 | P97: 53.84615385
A98: GUÁCIMO | B98: 86 | C98: 44 | D98: 51.1627907 | E98: 42 | F98: 48.8372093 | G98: 49 | H98: 25 | I98: 51.02040816 | J98: 24 | K98: 48.97959184 | L98: 37 | M98: 19 | N98: 51.35135135 | O98: 18 | P98: 48.64864865
A101: =+'G3'!A34 -> Fuente: Departamento de Registro de Partidos Políticos, base de datos de Candidaturas 2020, Tribunal Supremo de Elecciones.

Sheet C27
A2: ELECCIONES MUNICIPALES 2 DE FEBRERO 2020
A3: (CIFRAS ABSOLUTAS Y RELATIVAS)
A5: PARTIDO POLÍTICO | B5: CONCEJALÍAS DE DISTRITO | G5: EN PROPIEDAD | L5: EN SUPLENCIA
A6: PARTIDO POLITICO | B6: TOTAL | C6: HOMBRES | E6: MUJERES | G6: TOTAL | H6: HOMBRES | J6: MUJERES | L6: TOTAL | M6: HOMBRES | O6: MUJERES
B7: ABS | C7: ABS | D7: % | E7: ABS | F7: % | G7: ABS | H7: ABS | I7: % | J7: ABS | K7: % | L7: ABS | M7: ABS | N7: % | O7: ABS | P7: %
A9: TOTAL | B9: =SUM(B11:B88) -> 16777 | C9: =SUM(C11:C88) -> 8351 | D9: =C9/B9*100 -> 49.7764797 | E9: =SUM(E11:E88) -> 8426 | F9: =E9/B9*100 -> 50.2235203 | G9: =SUM(G11:G88) -> 9180 | H9: =SUM(H11:H88) -> 4603 | I9: =H9/G9*100 -> 50.1416122 | J9: =SUM(J11:J88) -> 4577 | K9: =J9/G9*100 -> 49.8583878 | L9: =SUM(L11:L88) -> 7597 | M9: =SUM(M11:M88) -> 3748 | N9: =M9/L9*100 -> 49.33526392 | O9: =SUM(O11:O88) -> 3849 | P9: =O9/L9*100 -> 50.66473608
A11: ACCESIBILIDAD SIN EXCLUSIÓN | B11: =+C11+E11 -> 101 | C11: =+H11+M11 -> 49 | D11: =C11/B11*100 -> 48.51485149 | E11: =+J11+O11 -> 52 | F11: =E11/B11*100 -> 51.48514851 | G11: =+H11+J11 -> 51 | H11: 25 | I11: =H11/G11*100 -> 49.01960784 | J11: 26 | K11: =J11/G11*100 -> 50.98039216 | L11: =+M11+O11 -> 50 | M11: 24 | N11: =M11/L11*100 -> 48 | O11: 26 | P11: =O11/L11*100 -> 52
A12: ACCIÓN CANTONAL SIQUIRRES INDEPENDIENTE | B12: =+C12+E12 -> 33 | C12: =+H12+M12 -> 15 | D12: =C12/B12*100 -> 45.45454545 | E12: =+J12+O12 -> 18 | F12: =E12/B12*100 -> 54.54545455 | G12: =+H12+J12 -> 20 | H12: 11 | I12: =H12/G12*100 -> 55 | J12: 9 | K12: =J12/G12*100 -> 45 | L12: =+M12+O12 -> 13 | M12: 4 | N12: =M12/L12*100 -> 30.76923077 | O12: 9 | P12: =O12/L12*100 -> 69.23076923
A13: ACCIÓN CIUDADANA | B13: 1079 | C13: 538 | D13: 49.86098239 | E13: 541 | F13: 50.13901761 | G13: 637 | H13: 314 | I13: 49.29356358 | J13: 323 | K13: 50.70643642 | L13: 442 | M13: 224 | N13: 50.67873303 | O13: 218 | P13: 49.32126697
A14: ACCIÓN NARANJEÑA | B14: 25 | C14: 11 | D14: 44 | E14: 14 | F14: 56 | G14: 25 | H14: 11 | I14: 44 | J14: 14 | K14: 56 | L14: 0 | M14: 0 | N14: 0 | O14: 0 | P14: 0
A15: ACTUEMOS YA | B15: 114 | C15: 56 | D15: 49.12280702 | E15: 58 | F15: 50.87719298 | G15: 66 | H15: 31 | I15: 46.96969697 | J15: 35 | K15: 53.03030303 | L15: 48 | M15: 25 | N15: 52.08333333 | O15: 23 | P15: 47.91666667
A16: ACUERDO DE ALIANZA DE QUEPOS | B16: 23 | C16: 11 | D16: 47.82608696 | E16: 12 | F16: 52.17391304 | G16: 11 | H16: 5 | I16: 45.45454545 | J16: 6 | K16: 54.54545455 | L16: 12 | M16: 6 | N16: 50 | O16: 6 | P16: 50
A17: ALIANZA DEMÓCRATA CRISTIANA | B17: 320 | C17: 162 | D17: 50.625 | E17: 158 | F17: 49.375 | G17: 180 | H17: 94 | I17: 52.22222222 | J17: 86 | K17: 47.77777778 | L17: 140 | M17: 68 | N17: 48.57142857 | O17: 72 | P17: 51.42857143
A18: ALIANZA POR PALMARES | B18: 55 | C18: 27 | D18: 49.09090909 | E18: 28 | F18: 50.90909091 | G18: 27 | H18: 14 | I18: 51.85185185 | J18: 13 | K18: 48.14814815 | L18: 28 | M18: 13 | N18: 46.42857143 | O18: 15 | P18: 53.57142857
A19: ALIANZA POR SAN JOSÉ | B19: 77 | C19: 37 | D19: 48.05194805 | E19: 40 | F19: 51.94805195 | G19: 41 | H19: 19 | I19: 46.34146341 | J19: 22 | K19: 53.65853659 | L19: 36 | M19: 18 | N19: 50 | O19: 18 | P19: 50
A20: ALIANZA POR SARCHÍ | B20: 5 | C20: 3 | D20: 60 | E20: 2 | F20: 40 | G20: 3 | H20: 2 | I20: 66.66666667 | J20: 1 | K20: 33.33333333 | L20: 2 | M20: 1 | N20: 50 | O20: 1 | P20: 50
A21: ALIANZA SOCIAL POR LA UNIÓN | B21: 26 | C21: 14 | D21: 53.84615385 | E21: 12 | F21: 46.15384615 | G21: 14 | H21: 9 | I21: 64.28571429 | J21: 5 | K21: 35.71428571 | L21: 12 | M21: 5 | N21: 41.66666667 | O21: 7 | P21: 58.33333333
A22: AUTÉNTICO LABRADOR DE CORONADO | B22: 6 | C22: 4 | D22: 66.66666667 | E22: 2 | F22: 33.33333333 | G22: 6 | H22: 4 | I22: 66.66666667 | J22: 2 | K22: 33.33333333 | L22: 0 | M22: 0 | N22: 0 | O22: 0 | P22: 0
A23: AUTÉNTICO LIMONENSE | B23: 69 | C23: 33 | D23: 47.82608696 | E23: 36 | F23: 52.17391304 | G23: 34 | H23: 17 | I23: 50 | J23: 17 | K23: 50 | L23: 35 | M23: 16 | N23: 45.71428571 | O23: 19 | P23: 54.28571429
A24: AUTÉNTICO SANTACRUCEÑO | B24: 63 | C24: 31 | D24: 49.20634921 | E24: 32 | F24: 50.79365079 | G24: 33 | H24: 16 | I24: 48.48484848 | J24: 17 | K24: 51.51515152 | L24: 30 | M24: 15 | N24: 50 | O24: 15 | P24: 50
A25: AUTÉNTICO SIQUIRREÑO | B25: 14 | C25: 6 | D25: 42.85714286 | E25: 8 | F25: 57.14285714 | G25: 12 | H25: 6 | I25: 50 | J25: 6 | K25: 50 | L25: 2 | M25: 0 | N25: 0 | O25: 2 | P25: 100
A26: AUTÓNOMO OROMONTANO | B26: 9 | C26: 5 | D26: 55.55555556 | E26: 4 | F26: 44.44444444 | G26: 5 | H26: 3 | I26: 60 | J26: 2 | K26: 40 | L26: 4 | M26: 2 | N26: 50 | O26: 2 | P26: 50
A27: AVANCE MONTES DE OCA | B27: 1 | C27: 0 | D27: 0 | E27: 1 | F27: 100 | G27: 1 | H27: 0 | I27: 0 | J27: 1 | K27: 100 | L27: 0 | M27: 0 | N27: 0 | O27: 0 | P27: 0
A28: AVANTE POCOCÍ | B28: 3 | C28: 2 | D28: 66.66666667 | E28: 1 | F28: 33.33333333 | G28: 3 | H28: 2 | I28: 66.66666667 | J28: 1 | K28: 33.33333333 | L28: 0 | M28: 0 | N28: 0 | O28: 0 | P28: 0
A29: CANTONAL DE CARRILLO | B29: 19 | C29: 10 | D29: 52.63157895 | E29: 9 | F29: 47.36842105 | G29: 10 | H29: 5 | I29: 50 | J29: 5 | K29: 50 | L29: 9 | M29: 5 | N29: 55.55555556 | O29: 4 | P29: 44.44444444
A30: COALICIÓN ALIANZA POR NICOYA | B30: 32 | C30: 18 | D30: 56.25 | E30: 14 | F30: 43.75 | G30: 17 | H30: 10 | I30: 58.82352941 | J30: 7 | K30: 41.17647059 | L30: 15 | M30: 8 | N30: 53.33333333 | O30: 7 | P30: 46.66666667
A31: COALICIÓN ASERRI DE TODOS | B31: 31 | C31: 16 | D31: 51.61290323 | E31: 15 | F31: 48.38709677 | G31: 16 | H31: 9 | I31: 56.25 | J31: 7 | K31: 43.75 | L31: 15 | M31: 7 | N31: 46.66666667 | O31: 8 | P31: 53.33333333
A32: COALICIÓN GENTE MONTES DE OCA | B32: 15 | C32: 7 | D32: 46.66666667 | E32: 8 | F32: 53.33333333 | G32: 7 | H32: 3 | I32: 42.85714286 | J32: 4 | K32: 57.14285714 | L32: 8 | M32: 4 | N32: 50 | O32: 4 | P32: 50
A33: COALICIÓN JUNTOS | B33: 46 | C33: 23 | D33: 50 | E33: 23 | F33: 50 | G33: 26 | H33: 12 | I33: 46.15384615 | J33: 14 | K33: 53.84615385 | L33: 20 | M33: 11 | N33: 55 | O33: 9 | P33: 45
A34: COALICIÓN UNIDAD POR FLORES | B34: 17 | C34: 9 | D34: 52.94117647 | E34: 8 | F34: 47.05882353 | G34: 9 | H34: 5 | I34: 55.55555556 | J34: 4 | K34: 44.44444444 | L34: 8 | M34: 4 | N34: 50 | O34: 4 | P34: 50
A35: COALICIÓN UNIÓN BELEMITA | B35: 10 | C35: 6 | D35: 60 | E35: 4 | F35: 40 | G35: 5 | H35: 3 | I35: 60 | J35: 2 | K35: 40 | L35: 5 | M35: 3 | N35: 60 | O35: 2 | P35: 40
A36: COMUNAL UNIDO | B36: 236 | C36: 116 | D36: 49.15254237 | E36: 120 | F36: 50.84745763 | G36: 147 | H36: 74 | I36: 50.34013605 | J36: 73 | K36: 49.65986395 | L36: 89 | M36: 42 | N36: 47.19101124 | O36: 47 | P36: 52.80898876
A37: CURRIDABAT SIGLO XXI | B37: 31 | C37: 15 | D37: 48.38709677 | E37: 16 | F37: 51.61290323 | G37: 16 | H37: 8 | I37: 50 | J37: 8 | K37: 50 | L37: 15 | M37: 7 | N37: 46.66666667 | O37: 8 | P37: 53.33333333
A38: DEL SOL | B38: 26 | C38: 11 | D38: 42.30769231 | E38: 15 | F38: 57.69230769 | G38: 14 | H38: 6 | I38: 42.85714286 | J38: 8 | K38: 57.14285714 | L38: 12 | M38: 5 | N38: 41.66666667 | O38: 7 | P38: 58.33333333
A39: DESARROLLO TALAMANQUEÑO | B39: 31 | C39: 15 | D39: 48.38709677 | E39: 16 | F39: 51.61290323 | G39: 15 | H39: 7 | I39: 46.66666667 | J39: 8 | K39: 53.33333333 | L39: 16 | M39: 8 | N39: 50 | O39: 8 | P39: 50
A40: DESPERTAR ALAJUELENSE | B40: 105 | C40: 54 | D40: 51.42857143 | E40: 51 | F40: 48.57142857 | G40: 52 | H40: 27 | I40: 51.92307692 | J40: 25 | K40: 48.07692308 | L40: 53 | M40: 27 | N40: 50.94339623 | O40: 26 | P40: 49.05660377
A41: ECOLÓGICO COMUNAL COSTARRICENSE | B41: 67 | C41: 32 | D41: 47.76119403 | E41: 35 | F41: 52.23880597 | G41: 34 | H41: 15 | I41: 44.11764706 | J41: 19 | K41: 55.88235294 | L41: 33 | M41: 17 | N41: 51.51515152 | O41: 16 | P41: 48.48484848
A42: FRENTE AMPLIO | B42: 393 | C42: 196 | D42: 49.87277354 | E42: 197 | F42: 50.12722646 | G42: 215 | H42: 107 | I42: 49.76744186 | J42: 108 | K42: 50.23255814 | L42: 178 | M42: 89 | N42: 50 | O42: 89 | P42: 50
A43: GUANACASTE PRIMERO | B43: 2 | C43: 1 | D43: 50 | E43: 1 | F43: 50 | G43: 2 | H43: 1 | I43: 50 | J43: 1 | K43: 50 | L43: 0 | M43: 0 | N43: 0 | O43: 0 | P43: 0
A44: INNOVACIÓN CANTONAL | B44: 9 | C44: 4 | D44: 44.44444444 | E44: 5 | F44: 55.55555556 | G44: 5 | H44: 2 | I44: 40 | J44: 3 | K44: 60 | L44: 4 | M44: 2 | N44: 50 | O44: 2 | P44: 50
A45: INTEGRACIÓN NACIONAL | B45: 585 | C45: 291 | D45: 49.74358974 | E45: 294 | F45: 50.25641026 | G45: 322 | H45: 162 | I45: 50.31055901 | J45: 160 | K45: 49.68944099 | L45: 263 | M45: 129 | N45: 49.04942966 | O45: 134 | P45: 50.95057034
A46: IZQUIERDA COSTARRICENSE | B46: 7 | C46: 3 | D46: 42.85714286 | E46: 4 | F46: 57.14285714 | G46: 7 | H46: 3 | I46: 42.85714286 | J46: 4 | K46: 57.14285714 | L46: 0 | M46: 0 | N46: 0 | O46: 0 | P46: 0
A47: JUSTICIA SOCIAL | B47: 12 | C47: 6 | D47: 50 | E47: 6 | F47: 50 | G47: 12 | H47: 6 | I47: 50 | J47: 6 | K47: 50 | L47: 0 | M47: 0 | N47: 0 | O47: 0 | P47: 0
A48: JUSTICIA SOCIAL COSTARRICENSE | B48: 101 | C48: 51 | D48: 50.4950495 | E48: 50 | F48: 49.5049505 | G48: 50 | H48: 26 | I48: 52 | J48: 24 | K48: 48 | L48: 51 | M48: 25 | N48: 49.01960784 | O48: 26 | P48: 50.98039216
A49: LA GRAN NICOYA | B49: 19 | C49: 10 | D49: 52.63157895 | E49: 9 | F49: 47.36842105 | G49: 8 | H49: 4 | I49: 50 | J49: 4 | K49: 50 | L49: 11 | M49: 6 | N49: 54.54545455 | O49: 5 | P49: 45.45454545
A50: LIBERACIÓN NACIONAL | B50: 3408 | C50: 1703 | D50: 49.97065728 | E50: 1705 | F50: 50.02934272 | G50: 1759 | H50: 882 | I50: 50.14212621 | J50: 877 | K50: 49.85787379 | L50: 1649 | M50: 821 | N50: 49.78775015 | O50: 828 | P50: 50.21224985
A51: LIBERAL PROGRESISTA | B51: 114 | C51: 56 | D51: 49.12280702 | E51: 58 | F51: 50.87719298 | G51: 72 | H51: 36 | I51: 50 | J51: 36 | K51: 50 | L51: 42 | M51: 20 | N51: 47.61904762 | O51: 22 | P51: 52.38095238
A52: MOVIMIENTO AVANCE SANTO DOMINGO | B52: 48 | C52: 25 | D52: 52.08333333 | E52: 23 | F52: 47.91666667 | G52: 28 | H52: 15 | I52: 53.57142857 | J52: 13 | K52: 46.42857143 | L52: 20 | M52: 10 | N52: 50 | O52: 10 | P52: 50
A53: NANDAYURE PROGRESA | B53: 37 | C53: 20 | D53: 54.05405405 | E53: 17 | F53: 45.94594595 | G53: 21 | H53: 12 | I53: 57.14285714 | J53: 9 | K53: 42.85714286 | L53: 16 | M53: 8 | N53: 50 | O53: 8 | P53: 50
A54: NUESTRO PUEBLO | B54: 344 | C54: 168 | D54: 48.8372093 | E54: 176 | F54: 51.1627907 | G54: 176 | H54: 87 | I54: 49.43181818 | J54: 89 | K54: 50.56818182 | L54: 168 | M54: 81 | N54: 48.21428571 | O54: 87 | P54: 51.78571429
A55: NUEVA GENERACIÓN | B55: 965 | C55: 482 | D55: 49.94818653 | E55: 483 | F55: 50.05181347 | G55: 535 | H55: 267 | I55: 49.90654206 | J55: 268 | K55: 50.09345794 | L55: 430 | M55: 215 | N55: 50 | O55: 215 | P55: 50
A56: NUEVA MAYORÍA GRIEGA | B56: 35 | C56: 17 | D56: 48.57142857 | E56: 18 | F56: 51.42857143 | G56: 23 | H56: 11 | I56: 47.82608696 | J56: 12 | K56: 52.17391304 | L56: 12 | M56: 6 | N56: 50 | O56: 6 | P56: 50
A57: NUEVA REPÚBLICA | B57: 1107 | C57: 545 | D57: 49.23215899 | E57: 562 | F57: 50.76784101 | G57: 650 | H57: 332 | I57: 51.07692308 | J57: 318 | K57: 48.92307692 | L57: 457 | M57: 213 | N57: 46.6083151 | O57: 244 | P57: 53.3916849
A58: PALMARES PRIMERO | B58: 8 | C58: 4 | D58: 50 | E58: 4 | F58: 50 | G58: 4 | H58: 2 | I58: 50 | J58: 2 | K58: 50 | L58: 4 | M58: 2 | N58: 50 | O58: 2 | P58: 50
A59: PROGRESER | B59: 98 | C59: 49 | D59: 50 | E59: 49 | F59: 50 | G59: 50 | H59: 25 | I59: 50 | J59: 25 | K59: 50 | L59: 48 | M59: 24 | N59: 50 | O59: 24 | P59: 50
A60: PUEBLO GARABITO | B60: 11 | C60: 5 | D60: 45.45454545 | E60: 6 | F60: 54.54545455 | G60: 7 | H60: 3 | I60: 42.85714286 | J60: 4 | K60: 57.14285714 | L60: 4 | M60: 2 | N60: 50 | O60: 2 | P60: 50
A61: PURISCAL EN MARCHA | B61: 72 | C61: 36 | D61: 50 | E61: 36 | F61: 50 | G61: 36 | H61: 18 | I61: 50 | J61: 18 | K61: 50 | L61: 36 | M61: 18 | N61: 50 | O61: 18 | P61: 50
A62: RECUPERANDO VALORES | B62: 106 | C62: 52 | D62: 49.05660377 | E62: 54 | F62: 50.94339623 | G62: 55 | H62: 26 | I62: 47.27272727 | J62: 29 | K62: 52.72727273 | L62: 51 | M62: 26 | N62: 50.98039216 | O62: 25 | P62: 49.01960784
A63: RENOVACIÓN COSTARRICENSE | B63: 102 | C63: 49 | D63: 48.03921569 | E63: 53 | F63: 51.96078431 | G63: 55 | H63: 26 | I63: 47.27272727 | J63: 29 | K63: 52.72727273 | L63: 47 | M63: 23 | N63: 48.93617021 | O63: 24 | P63: 51.06382979
A64: REPUBLICANO SOCIAL CRISTIANO | B64: 1114 | C64: 556 | D64: 49.91023339 | E64: 558 | F64: 50.08976661 | G64: 619 | H64: 317 | I64: 51.21163166 | J64: 302 | K64: 48.78836834 | L64: 495 | M64: 239 | N64: 48.28282828 | O64: 256 | P64: 51.71717172
A65: RESCATE CANTONAL LA UNIÓN | B65: 40 | C65: 19 | D65: 47.5 | E65: 21 | F65: 52.5 | G65: 23 | H65: 13 | I65: 56.52173913 | J65: 10 | K65: 43.47826087 | L65: 17 | M65: 6 | N65: 35.29411765 | O65: 11 | P65: 64.70588235
A66: RESTAURACIÓN NACIONAL | B66: 1531 | C66: 762 | D66: 49.77139125 | E66: 769 | F66: 50.22860875 | G66: 831 | H66: 408 | I66: 49.09747292 | J66: 423 | K66: 50.90252708 | L66: 700 | M66: 354 | N66: 50.57142857 | O66: 346 | P66: 49.42857143
A67: RESTAURACIÓN PARRITEÑA | B67: 3 | C67: 2 | D67: 66.66666667 | E67: 1 | F67: 33.33333333 | G67: 3 | H67: 2 | I67: 66.66666667 | J67: 1 | K67: 33.33333333 | L67: 0 | M67: 0 | N67: 0 | O67: 0 | P67: 0
A68: SENTIR HEREDIA | B68: 33 | C68: 15 | D68: 45.45454545 | E68: 18 | F68: 54.54545455 | G68: 17 | H68: 8 | I68: 47.05882353 | J68: 9 | K68: 52.94117647 | L68: 16 | M68: 7 | N68: 43.75 | O68: 9 | P68: 56.25
A69: SOMOS MORAVIA | B69: 16 | C69: 8 | D69: 50 | E69: 8 | F69: 50 | G69: 8 | H69: 4 | I69: 50 | J69: 4 | K69: 50 | L69: 8 | M69: 4 | N69: 50 | O69: 4 | P69: 50
A70: SOMOS SARCHÍ | B70: 34 | C70: 17 | D70: 50 | E70: 17 | F70: 50 | G70: 17 | H70: 9 | I70: 52.94117647 | J70: 8 | K70: 47.05882353 | L70: 17 | M70: 8 | N70: 47.05882353 | O70: 9 | P70: 52.94117647
A71: TARRAZÚ PRIMERO | B71: 20 | C71: 12 | D71: 60 | E71: 8 | F71: 40 | G71: 10 | H71: 6 | I71: 60 | J71: 4 | K71: 40 | L71: 10 | M71: 6 | N71: 60 | O71: 4 | P71: 40
A72: TERRA ESCAZÚ | B72: 12 | C72: 6 | D72: 50 | E72: 6 | F72: 50 | G72: 12 | H72: 6 | I72: 50 | J72: 6 | K72: 50 | L72: 0 | M72: 0 | N72: 0 | O72: 0 | P72: 0
A73: TODOS POR GOICOECHEA | B73: 52 | C73: 27 | D73: 51.92307692 | E73: 25 | F73: 48.07692308 | G73: 26 | H73: 14 | I73: 53.84615385 | J73: 12 | K73: 46.15384615 | L73: 26 | M73: 13 | N73: 50 | O73: 13 | P73: 50
A74: TURRIALBA PRIMERO | B74: 86 | C74: 42 | D74: 48.8372093 | E74: 44 | F74: 51.1627907 | G74: 43 | H74: 21 | I74: 48.8372093 | J74: 22 | K74: 51.1627907 | L74: 43 | M74: 21 | N74: 48.8372093 | O74: 22 | P74: 51.1627907
A75: ÚNICO ABANGAREÑO | B75: 14 | C75: 7 | D75: 50 | E75: 7 | F75: 50 | G75: 6 | H75: 2 | I75: 33.33333333 | J75: 4 | K75: 66.66666667 | L75: 8 | M75: 5 | N75: 62.5 | O75: 3 | P75: 37.5
A76: UNIDAD SOCIAL CRISTIANA | B76: =+C76+E76 -> 1871 | C76: =+H76+M76 -> 931 | D76: =C76/B76*100 -> 49.75948691 | E76: =+J76+O76 -> 940 | F76: =E76/B76*100 -> 50.24051309 | G76: =+H76+J76 -> 1024 | H76: 511 | I76: =H76/G76*100 -> 49.90234375 | J76: 513 | K76: =J76/G76*100 -> 50.09765625 | L76: =+M76+O76 -> 847 | M76: 420 | N76: =M76/L76*100 -> 49.58677686 | O76: 427 | P76: =O76/L76*100 -> 50.41322314
A77: UNIDOS PARA EL DESARROLLO | B77: 12 | C77: 5 | D77: 41.66666667 | E77: 7 | F77: 58.33333333 | G77: 9 | H77: 3 | I77: 33.33333333 | J77: 6 | K77: 66.66666667 | L77: 3 | M77: 2 | N77: 66.66666667 | O77: 1 | P77: 33.33333333
A78: UNIDOS PODEMOS | B78: 1160 | C78: 579 | D78: 49.9137931 | E78: 581 | F78: 50.0862069 | G78: 638 | H78: 325 | I78: 50.94043887 | J78: 313 | K78: 49.05956113 | L78: 522 | M78: 254 | N78: 48.65900383 | O78: 268 | P78: 51.34099617
A79: UNIDOS POR ESCAZÚ | B79: 12 | C79: 6 | D79: 50 | E79: 6 | F79: 50 | G79: 6 | H79: 3 | I79: 50 | J79: 3 | K79: 50 | L79: 6 | M79: 3 | N79: 50 | O79: 3 | P79: 50
A80: UNIÓN ATENIENSE | B80: 61 | C80: 32 | D80: 52.45901639 | E80: 29 | F80: 47.54098361 | G80: 30 | H80: 17 | I80: 56.66666667 | J80: 13 | K80: 43.33333333 | L80: 31 | M80: 15 | N80: 48.38709677 | O80: 16 | P80: 51.61290323
A81: UNIÓN DE PUNTARENENSES EMPRENDEDORES | B81: 62 | C81: 31 | D81: 50 | E81: 31 | F81: 50 | G81: 32 | H81: 17 | I81: 53.125 | J81: 15 | K81: 46.875 | L81: 30 | M81: 14 | N81: 46.66666667 | O81: 16 | P81: 53.33333333
A82: UNIÓN DOMINGUEÑA | B82: 27 | C82: 14 | D82: 51.85185185 | E82: 13 | F82: 48.14814815 | G82: 15 | H82: 8 | I82: 53.33333333 | J82: 7 | K82: 46.66666667 | L82: 12 | M82: 6 | N82: 50 | O82: 6 | P82: 50
A83: UNIÓN GRIEGA | B83: 46 | C83: 23 | D83: 50 | E83: 23 | F83: 50 | G83: 23 | H83: 11 | I83: 47.82608696 | J83: 12 | K83: 52.17391304 | L83: 23 | M83: 12 | N83: 52.17391304 | O83: 11 | P83: 47.82608696
A84: UNIÓN GUANACASTECA | B84: 212 | C84: 104 | D84: 49.05660377 | E84: 108 | F84: 50.94339623 | G84: 108 | H84: 52 | I84: 48.14814815 | J84: 56 | K84: 51.85185185 | L84: 104 | M84: 52 | N84: 50 | O84: 52 | P84: 50
A85: UNIÓN GUARQUEÑO | B85: 6 | C85: 4 | D85: 66.66666667 | E85: 2 | F85: 33.33333333 | G85: 3 | H85: 1 | I85: 33.33333333 | J85: 2 | K85: 66.66666667 | L85: 3 | M85: 3 | N85: 100 | O85: 0 | P85: 0
A86: VERDE ECOLOGISTA | B86: 40 | C86: 20 | D86: 50 | E86: 20 | F86: 50 | G86: 28 | H86: 15 | I86: 53.57142857 | J86: 13 | K86: 46.42857143 | L86: 12 | M86: 5 | N86: 41.66666667 | O86: 7 | P86: 58.33333333
A87: YO SOY EL CAMBIO | B87: 17 | C87: 8 | D87: 47.05882353 | E87: 9 | F87: 52.94117647 | G87: 8 | H87: 4 | I87: 50 | J87: 4 | K87: 50 | L87: 9 | M87: 4 | N87: 44.44444444 | O87: 5 | P87: 55.55555556
A88: YUNTA PROGRESISTA ESCAZUCEÑA | B88: 24 | C88: 12 | D88: 50 | E88: 12 | F88: 50 | G88: 12 | H88: 6 | I88: 50 | J88: 6 | K88: 50 | L88: 12 | M88: 6 | N88: 50 | O88: 6 | P88: 50
A91: =+'G3'!A34 -> Fuente: Departamento de Registro de Partidos Políticos, base de datos de Candidaturas 2020, Tribunal Supremo de Elecciones.

Sheet C28
A1: CUADRO 28 COSTA RICA: CANDIDATURAS A CONCEJALÍAS DE DISTRITO EN PROPIEDAD Y SUPLENCIA POR SEXO, SEGÚN PROVINCIA Y CANTÓN
A2: ELECCIONES MUNICIPLAES 2 DE FEBRERO 2020
A3: (CIFRAS ABSOLUTAS Y RELATIVAS)
A5: PROVINCIA Y CANTÓN | B5: CONCEJALÍAS DE DISTRITO | G5: EN PROPIEDAD | L5: EN SUPLENCIA
B6: TOTAL | C6: HOMBRES | E6: MUJERES | G6: TOTAL | H6: HOMBRES | J6: MUJERES | L6: TOTAL | M6: HOMBRES | O6: MUJERES
C7: ABS | D7: % | E7: ABS | F7: % | H7: ABS | I7: % | J7: ABS | K7: % | M7: ABS | N7: % | O7: ABS | P7: %
A9: COSTA RICA | B9: =G9+L9 -> 16777 | C9: =H9+M9 -> 8351 | D9: =C9/$B9*100 -> 49.7764797 | E9: =J9+O9 -> 8426 | F9: =E9/$B9*100 -> 50.2235203 | G9: =+G10+G31+G48+G57+G68+G80+G92 -> 9180 | H9: =+H10+H31+H48+H57+H68+H80+H92 -> 4603 | I9: =H9/$G9*100 -> 50.1416122 | J9: =+J10+J31+J48+J57+J68+J80+J92 -> 4577 | K9: =J9/$G9*100 -> 49.8583878 | L9: =+L10+L31+L48+L57+L68+L80+L92 -> 7597 | M9: =+M10+M31+M48+M57+M68+M80+M92 -> 3748 | N9: =M9/$L9*100 -> 49.33526392 | O9: =+O10+O31+O48+O57+O68+O80+O92 -> 3849 | P9: =O9/$L9*100 -> 50.66473608
A10: PROVINCIA SAN JOSÉ | B10: =+G10+L10 -> 4341 | C10: =+H10+M10 -> 2152 | D10: =C10/$B10*100 -> 49.57383091 | E10: =+J10+O10 -> 2189 | F10: =E10/$B10*100 -> 50.42616909 | G10: =+H10+J10 -> 2382 | H10: =SUM(H11:H30) -> 1188 | I10: =H10/$G10*100 -> 49.87405542 | J10: =SUM(J11:J30) -> 1194 | K10: =J10/$G10*100 -> 50.12594458 | L10: =+M10+O10 -> 1959 | M10: =SUM(M11:M30) -> 964 | N10: =M10/$L10*100 -> 49.20877999 | O10: =SUM(O11:O30) -> 995 | P10: =O10/$L10*100 -> 50.79122001
A11: SAN JOSÉ | B11: =+G11+L11 -> 725 | C11: =+H11+M11 -> 357 | D11: =C11/$B11*100 -> 49.24137931 | E11: =+J11+O11 -> 368 | F11: =E11/$B11*100 -> 50.75862069 | G11: =+H11+J11 -> 387 | H11: 189 | I11: =H11/$G11*100 -> 48.8372093 | J11: 198 | K11: =J11/$G11*100 -> 51.1627907 | L11: =+M11+O11 -> 338 | M11: 168 | N11: =M11/$L11*100 -> 49.70414201 | O11: 170 | P11: =O11/$L11*100 -> 50.29585799
A12: ESCAZÚ | B12: =+G12+L12 -> 150 | C12: =+H12+M12 -> 75 | D12: =C12/$B12*100 -> 50 | E12: =+J12+O12 -> 75 | F12: =E12/$B12*100 -> 50 | G12: =+H12+J12 -> 82 | H12: 42 | I12: =H12/$G12*100 -> 51.2195122 | J12: 40 | K12: =J12/$G12*100 -> 48.7804878 | L12: =+M12+O12 -> 68 | M12: 33 | N12: =M12/$L12*100 -> 48.52941176 | O12: 35 | P12: =O12/$L12*100 -> 51.47058824
A13: DESAMPARADOS | B13: 601 | C13: 292 | D13: 48.58569052 | E13: 309 | F13: 51.41430948 | G13: 322 | H13: 156 | I13: 48.44720497 | J13: 166 | K13: 51.55279503 | L13: 279 | M13: 136 | N13: 48.74551971 | O13: 143 | P13: 51.25448029
A14: PURISCAL | B14: 267 | C14: 132 | D14: 49.43820225 | E14: 135 | F14: 50.56179775 | G14: 146 | H14: 73 | I14: 50 | J14: 73 | K14: 50 | L14: 121 | M14: 59 | N14: 48.76033058 | O14: 62 | P14: 51.23966942
A15: TARRAZÚ | B15: 111 | C15: 59 | D15: 53.15315315 | E15: 52 | F15: 46.84684685 | G15: 54 | H15: 29 | I15: 53.7037037 | J15: 25 | K15: 46.2962963 | L15: 57 | M15: 30 | N15: 52.63157895 | O15: 27 | P15: 47.36842105
A16: ASERRÍ | B16: 176 | C16: 86 | D16: 48.86363636 | E16: 90 | F16: 51.13636364 | G16: 98 | H16: 49 | I16: 50 | J16: 49 | K16: 50 | L16: 78 | M16: 37 | N16: 47.43589744 | O16: 41 | P16: 52.56410256
A17: MORA | B17: 146 | C17: 74 | D17: 50.68493151 | E17: 72 | F17: 49.31506849 | G17: 88 | H17: 42 | I17: 47.72727273 | J17: 46 | K17: 52.27272727 | L17: 58 | M17: 32 | N17: 55.17241379 | O17: 26 | P17: 44.82758621
A18: GOICOECHEA | B18: 502 | C18: 254 | D18: 50.59760956 | E18: 248 | F18: 49.40239044 | G18: 272 | H18: 138 | I18: 50.73529412 | J18: 134 | K18: 49.26470588 | L18: 230 | M18: 116 | N18: 50.43478261 | O18: 114 | P18: 49.56521739
A19: SANTA ANA | B19: 157 | C19: 79 | D19: 50.31847134 | E19: 78 | F19: 49.68152866 | G19: 94 | H19: 49 | I19: 52.12765957 | J19: 45 | K19: 47.87234043 | L19: 63 | M19: 30 | N19: 47.61904762 | O19: 33 | P19: 52.38095238
A20: ALAJUELITA | B20: 150 | C20: 73 | D20: 48.66666667 | E20: 77 | F20: 51.33333333 | G20: 80 | H20: 40 | I20: 50 | J20: 40 | K20: 50 | L20: 70 | M20: 33 | N20: 47.14285714 | O20: 37 | P20: 52.85714286
A21: VÁZQUEZ DE CORONADO | B21: 183 | C21: 92 | D21: 50.27322404 | E21: 91 | F21: 49.72677596 | G21: 106 | H21: 56 | I21: 52.83018868 | J21: 50 | K21: 47.16981132 | L21: 77 | M21: 36 | N21: 46.75324675 | O21: 41 | P21: 53.24675325
A22: ACOSTA | B22: 95 | C22: 47 | D22: 49.47368421 | E22: 48 | F22: 50.52631579 | G22: 53 | H22: 27 | I22: 50.94339623 | J22: 26 | K22: 49.05660377 | L22: 42 | M22: 20 | N22: 47.61904762 | O22: 22 | P22: 52.38095238
A23: TIBÁS | B23: 153 | C23: 75 | D23: 49.01960784 | E23: 78 | F23: 50.98039216 | G23: 92 | H23: 48 | I23: 52.17391304 | J23: 44 | K23: 47.82608696 | L23: 61 | M23: 27 | N23: 44.26229508 | O23: 34 | P23: 55.73770492
A24: MORAVIA | B24: 104 | C24: 50 | D24: 48.07692308 | E24: 54 | F24: 51.92307692 | G24: 63 | H24: 29 | I24: 46.03174603 | J24: 34 | K24: 53.96825397 | L24: 41 | M24: 21 | N24: 51.2195122 | O24: 20 | P24: 48.7804878
A25: MONTES DE OCA | B25: 148 | C25: 71 | D25: 47.97297297 | E25: 77 | F25: 52.02702703 | G25: 79 | H25: 37 | I25: 46.83544304 | J25: 42 | K25: 53.16455696 | L25: 69 | M25: 34 | N25: 49.27536232 | O25: 35 | P25: 50.72463768
A26: TURRUBARES | B26: 71 | C26: 36 | D26: 50.70422535 | E26: 35 | F26: 49.29577465 | G26: 39 | H26: 20 | I26: 51.28205128 | J26: 19 | K26: 48.71794872 | L26: 32 | M26: 16 | N26: 50 | O26: 16 | P26: 50
A27: DOTA | B27: 22 | C27: 11 | D27: 50 | E27: 11 | F27: 50 | G27: 16 | H27: 8 | I27: 50 | J27: 8 | K27: 50 | L27: 6 | M27: 3 | N27: 50 | O27: 3 | P27: 50
A28: CURRIDABAT | B28: 104 | C28: 52 | D28: 50 | E28: 52 | F28: 50 | G28: 60 | H28: 32 | I28: 53.33333333 | J28: 28 | K28: 46.66666667 | L28: 44 | M28: 20 | N28: 45.45454545 | O28: 24 | P28: 54.54545455
A29: PÉREZ ZELEDÓN | B29: 418 | C29: 208 | D29: 49.76076555 | E29: 210 | F29: 50.23923445 | G29: 221 | H29: 110 | I29: 49.77375566 | J29: 111 | K29: 50.22624434 | L29: 197 | M29: 98 | N29: 49.74619289 | O29: 99 | P29: 50.25380711
A30: LEÓN CORTÉS CASTRO | B30: 58 | C30: 29 | D30: 50 | E30: 29 | F30: 50 | G30: 30 | H30: 14 | I30: 46.66666667 | J30: 16 | K30: 53.33333333 | L30: 28 | M30: 15 | N30: 53.57142857 | O30: 13 | P30: 46.42857143
A31: PROVINCIA ALAJUELA | B31: =+G31+L31 -> 3870 | C31: =+H31+M31 -> 1927 | D31: =C31/$B31*100 -> 49.79328165 | E31: =+J31+O31 -> 1943 | F31: =E31/$B31*100 -> 50.20671835 | G31: =+H31+J31 -> 2105 | H31: =SUM(H32:H47) -> 1048 | I31: =H31/$G31*100 -> 49.78622328 | J31: =SUM(J32:J47) -> 1057 | K31: =J31/$G31*100 -> 50.21377672 | L31: =+M31+O31 -> 1765 | M31: =SUM(M32:M47) -> 879 | N31: =M31/$L31*100 -> 49.80169972 | O31: =SUM(O32:O47) -> 886 | P31: =O31/$L31*100 -> 50.19830028
A32: ALAJUELA | B32: =+G32+L32 -> 761 | C32: =+H32+M32 -> 379 | D32: 49.80289093 | E32: =+J32+O32 -> 382 | F32: =E32/$B32*100 -> 50.19710907 | G32: =+H32+J32 -> 411 | H32: 203 | I32: =H32/$G32*100 -> 49.39172749 | J32: 208 | K32: =J32/$G32*100 -> 50.60827251 | L32: =+M32+O32 -> 350 | M32: 176 | N32: =M32/$L32*100 -> 50.28571429 | O32: 174 | P32: =O32/$L32*100 -> 49.71428571
A33: SAN RAMÓN | B33: =+G33+L33 -> 330 | C33: =+H33+M33 -> 160 | D33: 48.48484848 | E33: =+J33+O33 -> 170 | F33: =E33/$B33*100 -> 51.51515152 | G33: =+H33+J33 -> 182 | H33: 81 | I33: =H33/$G33*100 -> 44.50549451 | J33: 101 | K33: =J33/$G33*100 -> 55.49450549 | L33: =+M33+O33 -> 148 | M33: 79 | N33: =M33/$L33*100 -> 53.37837838 | O33: 69 | P33: =O33/$L33*100 -> 46.62162162
A34: GRECIA | B34: 312 | C34: 154 | D34: 49.35897436 | E34: 158 | F34: 50.64102564 | G34: 177 | H34: 88 | I34: 49.71751412 | J34: 89 | K34: 50.28248588 | L34: 135 | M34: 66 | N34: 48.88888889 | O34: 69 | P34: 51.11111111
A35: SAN MATEO | B35: 67 | C35: 34 | D35: 50.74626866 | E35: 33 | F35: 49.25373134 | G35: 34 | H35: 18 | I35: 52.94117647 | J35: 16 | K35: 47.05882353 | L35: 33 | M35: 16 | N35: 48.48484848 | O35: 17 | P35: 51.51515152
A36: ATENAS | B36: 280 | C36: 140 | D36: 50 | E36: 140 | F36: 50 | G36: 150 | H36: 77 | I36: 51.33333333 | J36: 73 | K36: 48.66666667 | L36: 130 | M36: 63 | N36: 48.46153846 | O36: 67 | P36: 51.53846154
A37: NARANJO | B37: 245 | C37: 122 | D37: 49.79591837 | E37: 123 | F37: 50.20408163 | G37: 148 | H37: 74 | I37: 50 | J37: 74 | K37: 50 | L37: 97 | M37: 48 | N37: 49.48453608 | O37: 49 | P37: 50.51546392
A38: PALMARES | B38: 273 | C38: 138 | D38: 50.54945055 | E38: 135 | F38: 49.45054945 | G38: 139 | H38: 71 | I38: 51.07913669 | J38: 68 | K38: 48.92086331 | L38: 134 | M38: 67 | N38: 50 | O38: 67 | P38: 50
A39: POÁS | B39: 137 | C39: 65 | D39: 47.44525547 | E39: 72 | F39: 52.55474453 | G39: 74 | H39: 35 | I39: 47.2972973 | J39: 39 | K39: 52.7027027 | L39: 63 | M39: 30 | N39: 47.61904762 | O39: 33 | P39: 52.38095238
A40: OROTINA | B40: 152 | C40: 77 | D40: 50.65789474 | E40: 75 | F40: 49.34210526 | G40: 83 | H40: 40 | I40: 48.19277108 | J40: 43 | K40: 51.80722892 | L40: 69 | M40: 37 | N40: 53.62318841 | O40: 32 | P40: 46.37681159
A41: SAN CARLOS | B41: 564 | C41: 279 | D41: 49.46808511 | E41: 285 | F41: 50.53191489 | G41: 304 | H41: 152 | I41: 50 | J41: 152 | K41: 50 | L41: 260 | M41: 127 | N41: 48.84615385 | O41: 133 | P41: 51.15384615
A42: ZARCERO | B42: 105 | C42: 52 | D42: 49.52380952 | E42: 53 | F42: 50.47619048 | G42: 54 | H42: 30 | I42: 55.55555556 | J42: 24 | K42: 44.44444444 | L42: 51 | M42: 22 | N42: 43.1372549 | O42: 29 | P42: 56.8627451
A43: SRCHÍ | B43: 150 | C43: 78 | D43: 52 | E43: 72 | F43: 48 | G43: 84 | H43: 45 | I43: 53.57142857 | J43: 39 | K43: 46.42857143 | L43: 66 | M43: 33 | N43: 50 | O43: 33 | P43: 50
A44: UPALA | B44: 197 | C44: 99 | D44: 50.25380711 | E44: 98 | F44: 49.74619289 | G44: 108 | H44: 52 | I44: 48.14814815 | J44: 56 | K44: 51.85185185 | L44: 89 | M44: 47 | N44: 52.80898876 | O44: 42 | P44: 47.19101124
A45: LOS CHILES | B45: 78 | C45: 40 | D45: 51.28205128 | E45: 38 | F45: 48.71794872 | G45: 42 | H45: 23 | I45: 54.76190476 | J45: 19 | K45: 45.23809524 | L45: 36 | M45: 17 | N45: 47.22222222 | O45: 19 | P45: 52.77777778
A46: GUATUSO | B46: 89 | C46: 45 | D46: 50.56179775 | E46: 44 | F46: 49.43820225 | G46: 46 | H46: 25 | I46: 54.34782609 | J46: 21 | K46: 45.65217391 | L46: 43 | M46: 20 | N46: 46.51162791 | O46: 23 | P46: 53.48837209
A47: RÍO CUARTO | B47: 130 | C47: 65 | D47: 50 | E47: 65 | F47: 50 | G47: 69 | H47: 34 | I47: 49.27536232 | J47: 35 | K47: 50.72463768 | L47: 61 | M47: 31 | N47: 50.81967213 | O47: 30 | P47: 49.18032787
A48: PROVINCIA CARTAGO | B48: =+G48+L48 -> 1882 | C48: =+H48+M48 -> 944 | D48: =C48/$B48*100 -> 50.15940489 | E48: =+J48+O48 -> 938 | F48: =E48/$B48*100 -> 49.84059511 | G48: =+H48+J48 -> 1068 | H48: =SUM(H49:H56) -> 538 | I48: =H48/$G48*100 -> 50.37453184 | J48: =SUM(J49:J56) -> 530 | K48: =J48/$G48*100 -> 49.62546816 | L48: =+M48+O48 -> 814 | M48: =SUM(M49:M56) -> 406 | N48: =M48/$L48*100 -> 49.87714988 | O48: =SUM(O49:O56) -> 408 | P48: =O48/$L48*100 -> 50.12285012
A49: CARTAGO | B49: =+G49+L49 -> 440 | C49: =+H49+M49 -> 221 | D49: =C49/$B49*100 -> 50.22727273 | E49: =+J49+O49 -> 219 | F49: =E49/$B49*100 -> 49.77272727 | G49: =+H49+J49 -> 243 | H49: 120 | I49: =H49/$G49*100 -> 49.38271605 | J49: 123 | K49: =J49/$G49*100 -> 50.61728395 | L49: =+M49+O49 -> 197 | M49: 101 | N49: =M49/$L49*100 -> 51.26903553 | O49: 96 | P49: =O49/$L49*100 -> 48.73096447
A50: PARAÍSO | B50: =+G50+L50 -> 237 | C50: =+H50+M50 -> 115 | D50: =C50/$B50*100 -> 48.52320675 | E50: =+J50+O50 -> 122 | F50: =E50/$B50*100 -> 51.47679325 | G50: =+H50+J50 -> 129 | H50: 63 | I50: =H50/$G50*100 -> 48.8372093 | J50: 66 | K50: =J50/$G50*100 -> 51.1627907 | L50: =+M50+O50 -> 108 | M50: 52 | N50: =M50/$L50*100 -> 48.14814815 | O50: 56 | P50: =O50/$L50*100 -> 51.85185185
A51: LA UNIÓN | B51: 272 | C51: 135 | D51: 49.63235294 | E51: 137 | F51: 50.36764706 | G51: 170 | H51: 86 | I51: 50.58823529 | J51: 84 | K51: 49.41176471 | L51: 102 | M51: 49 | N51: 48.03921569 | O51: 53 | P51: 51.96078431
A52: JIMÉNEZ | B52: 61 | C52: 32 | D52: 52.45901639 | E52: 29 | F52: 47.54098361 | G52: 34 | H52: 18 | I52: 52.94117647 | J52: 16 | K52: 47.05882353 | L52: 27 | M52: 14 | N52: 51.85185185 | O52: 13 | P52: 48.14814815
A53: TURRIALBA | B53: 488 | C53: 242 | D53: 49.59016393 | E53: 246 | F53: 50.40983607 | G53: 270 | H53: 136 | I53: 50.37037037 | J53: 134 | K53: 49.62962963 | L53: 218 | M53: 106 | N53: 48.62385321 | O53: 112 | P53: 51.37614679
A54: ALVARADO | B54: 49 | C54: 26 | D54: 53.06122449 | E54: 23 | F54: 46.93877551 | G54: 34 | H54: 18 | I54: 52.94117647 | J54: 16 | K54: 47.05882353 | L54: 15 | M54: 8 | N54: 53.33333333 | O54: 7 | P54: 46.66666667
A55: OREAMUNO | B55: 188 | C55: 97 | D55: 51.59574468 | E55: 91 | F55: 48.40425532 | G55: 101 | H55: 53 | I55: 52.47524752 | J55: 48 | K55: 47.52475248 | L55: 87 | M55: 44 | N55: 50.57471264 | O55: 43 | P55: 49.42528736
A56: EL GUARCO | B56: 147 | C56: 76 | D56: 51.70068027 | E56: 71 | F56: 48.29931973 | G56: 87 | H56: 44 | I56: 50.57471264 | J56: 43 | K56: 49.42528736 | L56: 60 | M56: 32 | N56: 53.33333333 | O56: 28 | P56: 46.66666667
A57: PROVINCIA HEREDIA | B57: =+G57+L57 -> 1303 | C57: =+H57+M57 -> 654 | D57: =C57/$B57*100 -> 50.19186493 | E57: =+J57+O57 -> 649 | F57: =E57/$B57*100 -> 49.80813507 | G57: =+H57+J57 -> 741 | H57: =SUM(H58:H67) -> 381 | I57: =H57/$G57*100 -> 51.41700405 | J57: =SUM(J58:J67) -> 360 | K57: =J57/$G57*100 -> 48.58299595 | L57: =+M57+O57 -> 562 | M57: =SUM(M58:M67) -> 273 | N57: =M57/$L57*100 -> 48.57651246 | O57: =SUM(O58:O67) -> 289 | P57: =O57/$L57*100 -> 51.42348754
A58: HEREDIA | B58: =+G58+L58 -> 189 | C58: =+H58+M58 -> 96 | D58: =C58/$B58*100 -> 50.79365079 | E58: =+J58+O58 -> 93 | F58: =E58/$B58*100 -> 49.20634921 | G58: =+H58+J58 -> 111 | H58: 55 | I58: =H58/$G58*100 -> 49.54954955 | J58: 56 | K58: =J58/$G58*100 -> 50.45045045 | L58: =+M58+O58 -> 78 | M58: 41 | N58: =M58/$L58*100 -> 52.56410256 | O58: 37 | P58: =O58/$L58*100 -> 47.43589744
A59: BARVA | B59: =+G59+L59 -> 191 | C59: =+H59+M59 -> 98 | D59: =C59/$B59*100 -> 51.30890052 | E59: =+J59+O59 -> 93 | F59: =E59/$B59*100 -> 48.69109948 | G59: =+H59+J59 -> 106 | H59: 57 | I59: =H59/$G59*100 -> 53.77358491 | J59: 49 | K59: =J59/$G59*100 -> 46.22641509 | L59: =+M59+O59 -> 85 | M59: 41 | N59: =M59/$L59*100 -> 48.23529412 | O59: 44 | P59: =O59/$L59*100 -> 51.76470588
A60: SANTO DOMINGO | B60: 174 | C60: 90 | D60: 51.72413793 | E60: 84 | F60: 48.27586207 | G60: 109 | H60: 58 | I60: 53.21100917 | J60: 51 | K60: 46.78899083 | L60: 65 | M60: 32 | N60: 49.23076923 | O60: 33 | P60: 50.76923077
A61: SANTA BÁRBARA | B61: 163 | C61: 79 | D61: 48.46625767 | E61: 84 | F61: 51.53374233 | G61: 103 | H61: 51 | I61: 49.51456311 | J61: 52 | K61: 50.48543689 | L61: 60 | M61: 28 | N61: 46.66666667 | O61: 32 | P61: 53.33333333
A62: SAN RAFAEL | B62: 135 | C62: 64 | D62: 47.40740741 | E62: 71 | F62: 52.59259259 | G62: 71 | H62: 35 | I62: 49.29577465 | J62: 36 | K62: 50.70422535 | L62: 64 | M62: 29 | N62: 45.3125 | O62: 35 | P62: 54.6875
A63: SAN ISIDRO | B63: 117 | C63: 58 | D63: 49.57264957 | E63: 59 | F63: 50.42735043 | G63: 60 | H63: 30 | I63: 50 | J63: 30 | K63: 50 | L63: 57 | M63: 28 | N63: 49.12280702 | O63: 29 | P63: 50.87719298
A64: BELÉN | B64: 62 | C64: 31 | D64: 50 | E64: 31 | F64: 50 | G64: 35 | H64: 18 | I64: 51.42857143 | J64: 17 | K64: 48.57142857 | L64: 27 | M64: 13 | N64: 48.14814815 | O64: 14 | P64: 51.85185185
A65: FLORES | B65: 56 | C65: 29 | D65: 51.78571429 | E65: 27 | F65: 48.21428571 | G65: 36 | H65: 19 | I65: 52.77777778 | J65: 17 | K65: 47.22222222 | L65: 20 | M65: 10 | N65: 50 | O65: 10 | P65: 50
A66: SAN PABLO | B66: 51 | C66: 26 | D66: 50.98039216 | E66: 25 | F66: 49.01960784 | G66: 28 | H66: 14 | I66: 50 | J66: 14 | K66: 50 | L66: 23 | M66: 12 | N66: 52.17391304 | O66: 11 | P66: 47.82608696
A67: SARAPIQUÍ | B67: 165 | C67: 83 | D67: 50.3030303 | E67: 82 | F67: 49.6969697 | G67: 82 | H67: 44 | I67: 53.65853659 | J67: 38 | K67: 46.34146341 | L67: 83 | M67: 39 | N67: 46.98795181 | O67: 44 | P67: 53.01204819
A68: PROVINCIA GUANACASTE | B68: =+G68+L68 -> 2136 | C68: =+H68+M68 -> 1059 | D68: =C68/$B68*100 -> 49.57865169 | E68: =+J68+O68 -> 1077 | F68: =E68/$B68*100 -> 50.42134831 | G68: =+H68+J68 -> 1135 | H68: =SUM(H69:H79) -> 568 | I68: =H68/$G68*100 -> 50.04405286 | J68: =SUM(J69:J79) -> 567 | K68: =J68/$G68*100 -> 49.95594714 | L68: =+M68+O68 -> 1001 | M68: =SUM(M69:M79) -> 491 | N68: =M68/$L68*100 -> 49.05094905 | O68: =SUM(O69:O79) -> 510 | P68: =O68/$L68*100 -> 50.94905095
A69: LIBERIA | B69: =+G69+L69 -> 206 | C69: =+H69+M69 -> 101 | D69: =C69/$B69*100 -> 49.02912621 | E69: =+J69+O69 -> 105 | F69: =E69/$B69*100 -> 50.97087379 | G69: =+H69+J69 -> 108 | H69: 53 | I69: =H69/$G69*100 -> 49.07407407 | J69: 55 | K69: =J69/$G69*100 -> 50.92592593 | L69: =+M69+O69 -> 98 | M69: 48 | N69: =M69/$L69*100 -> 48.97959184 | O69: 50 | P69: =O69/$L69*100 -> 51.02040816
A70: NICOYA | B70: =+G70+L70 -> 289 | C70: =+H70+M70 -> 147 | D70: =C70/$B70*100 -> 50.8650519 | E70: =+J70+O70 -> 142 | F70: =E70/$B70*100 -> 49.1349481 | G70: =+H70+J70 -> 153 | H70: 80 | I70: =H70/$G70*100 -> 52.2875817 | J70: 73 | K70: =J70/$G70*100 -> 47.7124183 | L70: =+M70+O70 -> 136 | M70: 67 | N70: =M70/$L70*100 -> 49.26470588 | O70: 69 | P70: =O70/$L70*100 -> 50.73529412
A71: SANTA CRUZ | B71: 437 | C71: 216 | D71: 49.42791762 | E71: 221 | F71: 50.57208238 | G71: 233 | H71: 113 | I71: 48.49785408 | J71: 120 | K71: 51.50214592 | L71: 204 | M71: 103 | N71: 50.49019608 | O71: 101 | P71: 49.50980392
A72: BAGACES | B72: 166 | C72: 77 | D72: 46.38554217 | E72: 89 | F72: 53.61445783 | G72: 89 | H72: 41 | I72: 46.06741573 | J72: 48 | K72: 53.93258427 | L72: 77 | M72: 36 | N72: 46.75324675 | O72: 41 | P72: 53.24675325
A73: CARRILLO | B73: 189 | C73: 94 | D73: 49.73544974 | E73: 95 | F73: 50.26455026 | G73: 98 | H73: 49 | I73: 50 | J73: 49 | K73: 50 | L73: 91 | M73: 45 | N73: 49.45054945 | O73: 46 | P73: 50.54945055
A74: CAÑAS | B74: 202 | C74: 103 | D74: 50.99009901 | E74: 99 | F74: 49.00990099 | G74: 103 | H74: 53 | I74: 51.45631068 | J74: 50 | K74: 48.54368932 | L74: 99 | M74: 50 | N74: 50.50505051 | O74: 49 | P74: 49.49494949
A75: ABANGARES | B75: 114 | C75: 58 | D75: 50.87719298 | E75: 56 | F75: 49.12280702 | G75: 65 | H75: 33 | I75: 50.76923077 | J75: 32 | K75: 49.23076923 | L75: 49 | M75: 25 | N75: 51.02040816 | O75: 24 | P75: 48.97959184
A76: TILARÁN | B76: 122 | C76: 58 | D76: 47.54098361 | E76: 64 | F76: 52.45901639 | G76: 65 | H76: 33 | I76: 50.76923077 | J76: 32 | K76: 49.23076923 | L76: 57 | M76: 25 | N76: 43.85964912 | O76: 32 | P76: 56.14035088
A77: NANDAYURE | B77: 198 | C77: 100 | D77: 50.50505051 | E77: 98 | F77: 49.49494949 | G77: 109 | H77: 57 | I77: 52.29357798 | J77: 52 | K77: 47.70642202 | L77: 89 | M77: 43 | N77: 48.31460674 | O77: 46 | P77: 51.68539326
A78: LA CRUZ | B78: 135 | C78: 67 | D78: 49.62962963 | E78: 68 | F78: 50.37037037 | G78: 72 | H78: 36 | I78: 50 | J78: 36 | K78: 50 | L78: 63 | M78: 31 | N78: 49.20634921 | O78: 32 | P78: 50.79365079
A79: HOJANCHA | B79: 78 | C79: 38 | D79: 48.71794872 | E79: 40 | F79: 51.28205128 | G79: 40 | H79: 20 | I79: 50 | J79: 20 | K79: 50 | L79: 38 | M79: 18 | N79: 47.36842105 | O79: 20 | P79: 52.63157895
A80: PROVINCIA PUNTARENAS | B80: =+G80+L80 -> 1752 | C80: =+H80+M80 -> 872 | D80: =C80/$B80*100 -> 49.7716895 | E80: =+J80+O80 -> 880 | F80: =E80/$B80*100 -> 50.2283105 | G80: =+H80+J80 -> 950 | H80: =SUM(H81:H91) -> 474 | I80: =H80/$G80*100 -> 49.89473684 | J80: =SUM(J81:J91) -> 476 | K80: =J80/$G80*100 -> 50.10526316 | L80: =+M80+O80 -> 802 | M80: =SUM(M81:M91) -> 398 | N80: =M80/$L80*100 -> 49.62593516 | O80: =SUM(O81:O91) -> 404 | P80: =O80/$L80*100 -> 50.37406484
A81: PUNTARENAS | B81: =+G81+L81 -> 384 | C81: =+H81+M81 -> 184 | D81: =C81/$B81*100 -> 47.91666667 | E81: =+J81+O81 -> 200 | F81: =E81/$B81*100 -> 52.08333333 | G81: =+H81+J81 -> 213 | H81: 101 | I81: =H81/$G81*100 -> 47.41784038 | J81: 112 | K81: =J81/$G81*100 -> 52.58215962 | L81: =+M81+O81 -> 171 | M81: 83 | N81: =M81/$L81*100 -> 48.5380117 | O81: 88 | P81: =O81/$L81*100 -> 51.4619883
A82: ESPARZA | B82: =+G82+L82 -> 172 | C82: =+H82+M82 -> 86 | D82: =C82/$B82*100 -> 50 | E82: =+J82+O82 -> 86 | F82: =E82/$B82*100 -> 50 | G82: =+H82+J82 -> 97 | H82: 47 | I82: =H82/$G82*100 -> 48.45360825 | J82: 50 | K82: =J82/$G82*100 -> 51.54639175 | L82: =+M82+O82 -> 75 | M82: 39 | N82: =M82/$L82*100 -> 52 | O82: 36 | P82: =O82/$L82*100 -> 48
A83: BUENOS AIRES | B83: 196 | C83: 96 | D83: 48.97959184 | E83: 100 | F83: 51.02040816 | G83: 103 | H83: 51 | I83: 49.51456311 | J83: 52 | K83: 50.48543689 | L83: 93 | M83: 45 | N83: 48.38709677 | O83: 48 | P83: 51.61290323
A84: MONTES DE ORO | B84: 64 | C84: 34 | D84: 53.125 | E84: 30 | F84: 46.875 | G84: 33 | H84: 18 | I84: 54.54545455 | J84: 15 | K84: 45.45454545 | L84: 31 | M84: 16 | N84: 51.61290323 | O84: 15 | P84: 48.38709677
A85: OSA | B85: 134 | C85: 72 | D85: 53.73134328 | E85: 62 | F85: 46.26865672 | G85: 73 | H85: 38 | I85: 52.05479452 | J85: 35 | K85: 47.94520548 | L85: 61 | M85: 34 | N85: 55.73770492 | O85: 27 | P85: 44.26229508
A86: QUEPOS | B86: 169 | C86: 83 | D86: 49.11242604 | E86: 86 | F86: 50.88757396 | G86: 99 | H86: 49 | I86: 49.49494949 | J86: 50 | K86: 50.50505051 | L86: 70 | M86: 34 | N86: 48.57142857 | O86: 36 | P86: 51.42857143
A87: GOLFITO | B87: 217 | C87: 108 | D87: 49.76958525 | E87: 109 | F87: 50.23041475 | G87: 113 | H87: 58 | I87: 51.32743363 | J87: 55 | K87: 48.67256637 | L87: 104 | M87: 50 | N87: 48.07692308 | O87: 54 | P87: 51.92307692
A88: COTO BRUS | B88: 151 | C88: 77 | D88: 50.99337748 | E88: 74 | F88: 49.00662252 | G88: 78 | H88: 41 | I88: 52.56410256 | J88: 37 | K88: 47.43589744 | L88: 73 | M88: 36 | N88: 49.31506849 | O88: 37 | P88: 50.68493151
A89: PARRITA | B89: 43 | C89: 22 | D89: 51.1627907 | E89: 21 | F89: 48.8372093 | G89: 23 | H89: 12 | I89: 52.17391304 | J89: 11 | K89: 47.82608696 | L89: 20 | M89: 10 | N89: 50 | O89: 10 | P89: 50
A90: CORREDORES | B90: 177 | C90: 88 | D90: 49.71751412 | E90: 89 | F90: 50.28248588 | G90: 91 | H90: 46 | I90: 50.54945055 | J90: 45 | K90: 49.45054945 | L90: 86 | M90: 42 | N90: 48.8372093 | O90: 44 | P90: 51.1627907
A91: GARABITO | B91: 45 | C91: 22 | D91: 48.88888889 | E91: 23 | F91: 51.11111111 | G91: 27 | H91: 13 | I91: 48.14814815 | J91: 14 | K91: 51.85185185 | L91: 18 | M91: 9 | N91: 50 | O91: 9 | P91: 50
A92: PROVINCIA LIMÓN | B92: =+G92+L92 -> 1493 | C92: 743 | D92: =C92/$B92*100 -> 49.76557267 | E92: =+J92+O92 -> 750 | F92: =E92/$B92*100 -> 50.23442733 | G92: =+H92+J92 -> 799 | H92: =SUM(H93:H98) -> 406 | I92: =H92/$G92*100 -> 50.8135169 | J92: =SUM(J93:J98) -> 393 | K92: =J92/$G92*100 -> 49.1864831 | L92: =+M92+O92 -> 694 | M92: =SUM(M93:M98) -> 337 | N92: =M92/$L92*100 -> 48.55907781 | O92: =SUM(O93:O98) -> 357 | P92: =O92/$L92*100 -> 51.44092219
A93: LIMÓN | B93: 213 | C93: 108 | D93: 50.70422535 | E93: 105 | F93: 49.29577465 | G93: 113 | H93: 58 | I93: 51.32743363 | J93: 55 | K93: 48.67256637 | L93: 100 | M93: 50 | N93: 50 | O93: 50 | P93: 50
A94: POCOCÍ | B94: 475 | C94: 238 | D94: 50.10526316 | E94: 237 | F94: 49.89473684 | G94: 255 | H94: 129 | I94: 50.58823529 | J94: 126 | K94: 49.41176471 | L94: 220 | M94: 109 | N94: 49.54545455 | O94: 111 | P94: 50.45454545
A95: SIQUIRRES | B95: 226 | C95: 109 | D95: 48.2300885 | E95: 117 | F95: 51.7699115 | G95: 132 | H95: 69 | I95: 52.27272727 | J95: 63 | K95: 47.72727273 | L95: 94 | M95: 40 | N95: 42.55319149 | O95: 54 | P95: 57.44680851
A96: TALAMANCA | B96: 196 | C96: 97 | D96: 49.48979592 | E96: 99 | F96: 50.51020408 | G96: 104 | H96: 54 | I96: 51.92307692 | J96: 50 | K96: 48.07692308 | L96: 92 | M96: 43 | N96: 46.73913043 | O96: 49 | P96: 53.26086957
A97: MATINA | B97: 193 | C97: 96 | D97: 49.74093264 | E97: 97 | F97: 50.25906736 | G97: 97 | H97: 47 | I97: 48.45360825 | J97: 50 | K97: 51.54639175 | L97: 96 | M97: 49 | N97: 51.04166667 | O97: 47 | P97: 48.95833333
A98: GUÁCIMO | B98: 190 | C98: 95 | D98: 50 | E98: 95 | F98: 50 | G98: 98 | H98: 49 | I98: 50 | J98: 49 | K98: 50 | L98: 92 | M98: 46 | N98: 50 | O98: 46 | P98: 50
A101: =+'G3'!A34 -> Fuente: Departamento de Registro de Partidos Políticos, base de datos de Candidaturas 2020, Tribunal Supremo de Elecciones.

Sheet C29
A1: CUADRO 29 COSTA RICA: CANDIDATURAS A INTENDENCIAS Y VICEINTENDENCIAS POR SEXO, SEGÚN PARTIDO POLÍTICO
A2: ELECCIONES MUNICIPALES 2 DE FEBRERO 2020
A3: (CIFRAS ABSOLUTAS Y RELATIVAS)
A5: PARTIDO POLÍTICO | B5: TOTAL | G5: INTENDENCIAS | L5: VICEINTENDENCIAS
A6: PARTIDO POLITICO | B6: TOTAL | C6: HOMBRES | E6: MUJERES | G6: TOTAL | H6: HOMBRES | J6: MUJERES | L6: TOTAL | M6: HOMBRES | O6: MUJERES
B7: ABS | C7: ABS | D7: % | E7: ABS | F7: % | G7: ABS | H7: ABS | I7: % | J7: ABS | K7: % | L7: ABS | M7: ABS | N7: % | O7: ABS | P7: %
A9: TOTAL | B9: =SUM(B11:B26) -> 106 | C9: =SUM(C11:C26) -> 54 | D9: =C9/B9*100 -> 50.94339623 | E9: =SUM(E11:E26) -> 52 | F9: =E9/B9*100 -> 49.05660377 | G9: =SUM(G11:G26) -> 54 | H9: =SUM(H11:H26) -> 40 | I9: =H9/G9*100 -> 74.07407407 | J9: =SUM(J11:J26) -> 14 | K9: =J9/G9*100 -> 25.92592593 | L9: =SUM(L11:L26) -> 52 | M9: =SUM(M11:M26) -> 14 | N9: =M9/L9*100 -> 26.92307692 | O9: =SUM(O11:O26) -> 38 | P9: =O9/L9*100 -> 73.07692308
A11: ACCIÓN CIUDADANA | B11: =+C11+E11 -> 8 | C11: =+H11+M11 -> 4 | D11: =C11/B11*100 -> 50 | E11: =+J11+O11 -> 4 | F11: =E11/B11*100 -> 50 | G11: =+H11+J11 -> 4 | H11: 3 | I11: =H11/G11*100 -> 75 | J11: 1 | K11: =J11/G11*100 -> 25 | L11: =+M11+O11 -> 4 | M11: 1 | N11: =M11/L11*100 -> 25 | O11: 3 | P11: =O11/L11*100 -> 75
A12: ACTUEMOS YA | B12: =+C12+E12 -> 2 | C12: =+H12+M12 -> 1 | D12: =C12/B12*100 -> 50 | E12: =+J12+O12 -> 1 | F12: =E12/B12*100 -> 50 | G12: =+H12+J12 -> 1 | H12: 1 | I12: =H12/G12*100 -> 100 | J12: 0 | K12: =J12/G12*100 -> 0 | L12: =+M12+O12 -> 1 | M12: 0 | N12: =M12/L12*100 -> 0 | O12: 1 | P12: =O12/L12*100 -> 100
A13: ALIANZA DEMÓCRATA CRISTIANA | B13: 2 | C13: 1 | D13: 50 | E13: 1 | F13: 50 | G13: 1 | H13: 0 | I13: 0 | J13: 1 | K13: 100 | L13: 1 | M13: 1 | N13: 100 | O13: 0 | P13: 0
A14: FRENTE AMPLIO | B14: 2 | C14: 1 | D14: 50 | E14: 1 | F14: 50 | G14: 1 | H14: 1 | I14: 100 | J14: 0 | K14: 0 | L14: 1 | M14: 0 | N14: 0 | O14: 1 | P14: 100
A15: INTEGRACIÓN NACIONAL | B15: 12 | C15: 6 | D15: 50 | E15: 6 | F15: 50 | G15: 6 | H15: 5 | I15: 83.33333333 | J15: 1 | K15: 16.66666667 | L15: 6 | M15: 1 | N15: 16.66666667 | O15: 5 | P15: 83.33333333
A16: LIBERACIÓN NACIONAL | B16: 16 | C16: 8 | D16: 50 | E16: 8 | F16: 50 | G16: 8 | H16: 3 | I16: 37.5 | J16: 5 | K16: 62.5 | L16: 8 | M16: 5 | N16: 62.5 | O16: 3 | P16: 37.5
A17: LIBERAL PROGRESISTA | B17: 2 | C17: 1 | D17: 50 | E17: 1 | F17: 50 | G17: 1 | H17: 1 | I17: 100 | J17: 0 | K17: 0 | L17: 1 | M17: 0 | N17: 0 | O17: 1 | P17: 100
A18: NUEVA GENERACIÓN | B18: 11 | C18: 6 | D18: 54.54545455 | E18: 5 | F18: 45.45454545 | G18: 6 | H18: 6 | I18: 100 | J18: 0 | K18: 0 | L18: 5 | M18: 0 | N18: 0 | O18: 5 | P18: 100
A19: NUEVA REPÚBLICA | B19: 12 | C19: 6 | D19: 50 | E19: 6 | F19: 50 | G19: 6 | H19: 5 | I19: 83.33333333 | J19: 1 | K19: 16.66666667 | L19: 6 | M19: 1 | N19: 16.66666667 | O19: 5 | P19: 83.33333333
A20: REPUBLICANO SOCIAL CRISTIANO | B20: 8 | C20: 4 | D20: 50 | E20: 4 | F20: 50 | G20: 4 | H20: 4 | I20: 100 | J20: 0 | K20: 0 | L20: 4 | M20: 0 | N20: 0 | O20: 4 | P20: 100
A21: RESTAURACIÓN NACIONAL | B21: 6 | C21: 3 | D21: 50 | E21: 3 | F21: 50 | G21: 3 | H21: 2 | I21: 66.66666667 | J21: 1 | K21: 33.33333333 | L21: 3 | M21: 1 | N21: 33.33333333 | O21: 2 | P21: 66.66666667
A22: ÚNICO ABANGAREÑO | B22: 2 | C22: 1 | D22: 50 | E22: 1 | F22: 50 | G22: 1 | H22: 0 | I22: 0 | J22: 1 | K22: 100 | L22: 1 | M22: 1 | N22: 100 | O22: 0 | P22: 0
A23: UNIDAD SOCIAL CRISTIANA | B23: =+C23+E23 -> 12 | C23: =+H23+M23 -> 6 | D23: =C23/B23*100 -> 50 | E23: =+J23+O23 -> 6 | F23: =E23/B23*100 -> 50 | G23: =+H23+J23 -> 6 | H23: 5 | I23: =H23/G23*100 -> 83.33333333 | J23: 1 | K23: =J23/G23*100 -> 16.66666667 | L23: =+M23+O23 -> 6 | M23: 1 | N23: =M23/L23*100 -> 16.66666667 | O23: 5 | P23: =O23/L23*100 -> 83.33333333
A24: UNIDOS PODEMOS | B24: =+C24+E24 -> 4 | C24: =+H24+M24 -> 2 | D24: =C24/B24*100 -> 50 | E24: =+J24+O24 -> 2 | F24: =E24/B24*100 -> 50 | G24: =+H24+J24 -> 2 | H24: 1 | I24: =H24/G24*100 -> 50 | J24: 1 | K24: =J24/G24*100 -> 50 | L24: =+M24+O24 -> 2 | M24: 1 | N24: =M24/L24*100 -> 50 | O24: 1 | P24: =O24/L24*100 -> 50
A25: UNIÓN DE PUNTARENENSES EMPRENDEDORES | B25: =+C25+E25 -> 4 | C25: =+H25+M25 -> 2 | D25: =C25/B25*100 -> 50 | E25: =+J25+O25 -> 2 | F25: =E25/B25*100 -> 50 | G25: =+H25+J25 -> 2 | H25: 1 | I25: =H25/G25*100 -> 50 | J25: 1 | K25: =J25/G25*100 -> 50 | L25: =+M25+O25 -> 2 | M25: 1 | N25: =M25/L25*100 -> 50 | O25: 1 | P25: =O25/L25*100 -> 50
A26: VERDE ECOLOGISTA | B26: =+C26+E26 -> 3 | C26: =+H26+M26 -> 2 | D26: =C26/B26*100 -> 66.66666667 | E26: =+J26+O26 -> 1 | F26: =E26/B26*100 -> 33.33333333 | G26: =+H26+J26 -> 2 | H26: 2 | I26: =H26/G26*100 -> 100 | J26: 0 | K26: =J26/G26*100 -> 0 | L26: =+M26+O26 -> 1 | M26: 0 | N26: =M26/L26*100 -> 0 | O26: 1 | P26: =O26/L26*100 -> 100
A30: =+'G3'!A34 -> Fuente: Departamento de Registro de Partidos Políticos, base de datos de Candidaturas 2020, Tribunal Supremo de Elecciones.

Sheet C30
A1: CUADRO 30 COSTA RICA: CANDIDATURAS A INTENDENCIAS Y VICEINTENDENCIAS POR SEXO, SEGÚN PROVINCIA Y DISTRITO ADMINISTRATIVO
A2: ELECCIONES MUNICIPALES 2 DE FEBRERO 2020
A3: (CIFRAS ABSOLUTAS Y RELATIVAS)
A5: PROVINCIA / DISTRITO ADMINISTRATIVO | B5: TOTAL | G5: INTENDENCIAS | L5: VICEINTENDENCIAS
A6: PARTIDO POLITICO | B6: TOTAL | C6: HOMBRES | E6: MUJERES | G6: TOTAL | H6: HOMBRES | J6: MUJERES | L6: TOTAL | M6: HOMBRES | O6: MUJERES
C7: ABS | D7: % | E7: ABS | F7: % | G7: ABS | H7: ABS | I7: % | J7: ABS | K7: % | L7: ABS | M7: ABS | N7: % | O7: ABS | P7: %
A9: COSTA RICA | B9: =+B10+B12+B15+B17 -> 106 | C9: =+C10+C12+C15+C17 -> 54 | D9: =C9/$B9*100 -> 50.94339623 | E9: =+E10+E12+E15+E17 -> 52 | F9: =E9/$B9*100 -> 49.05660377 | G9: =+G10+G12+G15+G17 -> 54 | H9: =+H10+H12+H15+H17 -> 40 | I9: =H9/$G9*100 -> 74.07407407 | J9: =+J10+J12+J15+J17 -> 14 | K9: =J9/$G9*100 -> 25.92592593 | L9: =+L10+L12+L15+L17 -> 52 | M9: =+M10+M12+M15+M17 -> 14 | N9: =M9/$L9*100 -> 26.92307692 | O9: =+O10+O12+O15+O17 -> 38 | P9: =O9/$L9*100 -> 73.07692308
A10: PROVINCIA ALAJUELA | B10: =SUM(B11) -> 12 | C10: =SUM(C11) -> 6 | D10: =C10/$B10*100 -> 50 | E10: =SUM(E11) -> 6 | F10: 50 | G10: =SUM(G11) -> 6 | H10: =SUM(H11) -> 4 | I10: =H10/$G10*100 -> 66.66666667 | J10: =SUM(J11) -> 2 | K10: =J10/$G10*100 -> 33.33333333 | L10: =SUM(L11) -> 6 | M10: =SUM(M11) -> 2 | N10: =M10/$L10*100 -> 33.33333333 | O10: =SUM(O11) -> 4 | P10: =O10/$L10*100 -> 66.66666667
A11: PEÑAS BLANCAS | B11: =+C11+E11 -> 12 | C11: =+H11+M11 -> 6 | D11: =C11/$B11*100 -> 50 | E11: =+J11+O11 -> 6 | F11: 50 | G11: =+H11+J11 -> 6 | H11: 4 | I11: =H11/G11*100 -> 66.66666667 | J11: 2 | K11: =J11/G11*100 -> 33.33333333 | L11: =+M11+O11 -> 6 | M11: 2 | N11: =M11/L11*100 -> 33.33333333 | O11: 4 | P11: =O11/L11*100 -> 66.66666667
A12: PROVINCIA CARTAGO | B12: =SUM(B13:B14) -> 29 | C12: =SUM(C13:C14) -> 15 | D12: =C12/$B12*100 -> 51.72413793 | E12: =SUM(E13:E14) -> 14 | F12: 48.27586207 | G12: =SUM(G13:G14) -> 15 | H12: =SUM(H13:H14) -> 13 | I12: =H12/$G12*100 -> 86.66666667 | J12: =SUM(J13:J14) -> 2 | K12: =J12/$G12*100 -> 13.33333333 | L12: =SUM(L13:L14) -> 14 | M12: =SUM(M13:M14) -> 2 | N12: =M12/$L12*100 -> 14.28571429 | O12: =SUM(O13:O14) -> 12 | P12: =O12/$L12*100 -> 85.71428571
A13: TUCURRIQUE | B13: =+C13+E13 -> 11 | C13: =+H13+M13 -> 6 | D13: =C13/$B13*100 -> 54.54545455 | E13: =+J13+O13 -> 5 | F13: 45.45454545 | G13: =+H13+J13 -> 6 | H13: 5 | I13: =H13/G13*100 -> 83.33333333 | J13: 1 | K13: =J13/G13*100 -> 16.66666667 | L13: =+M13+O13 -> 5 | M13: 1 | N13: =M13/L13*100 -> 20 | O13: 4 | P13: =O13/L13*100 -> 80
A14: CERVANTES | B14: =+C14+E14 -> 18 | C14: =+H14+M14 -> 9 | D14: 50 | E14: =+J14+O14 -> 9 | F14: 50 | G14: =+H14+J14 -> 9 | H14: 8 | I14: =H14/G14*100 -> 88.88888889 | J14: 1 | K14: =J14/G14*100 -> 11.11111111 | L14: =+M14+O14 -> 9 | M14: 1 | N14: =M14/L14*100 -> 11.11111111 | O14: 8 | P14: =O14/L14*100 -> 88.88888889
A15: PROVINCIA GUANACASTE | B15: =SUM(B16) -> 14 | C15: =SUM(C16) -> 7 | D15: =C15/$B15*100 -> 50 | E15: =SUM(E16) -> 7 | F15: 50 | G15: =SUM(G16) -> 7 | H15: =SUM(H16) -> 3 | I15: =H15/$G15*100 -> 42.85714286 | J15: =SUM(J16) -> 4 | K15: =J15/$G15*100 -> 57.14285714 | L15: =SUM(L16) -> 7 | M15: =SUM(M16) -> 4 | N15: =M15/$L15*100 -> 57.14285714 | O15: =SUM(O16) -> 3 | P15: =O15/$L15*100 -> 42.85714286
A16: COLORADO | B16: =+C16+E16 -> 14 | C16: =+H16+M16 -> 7 | D16: 50 | E16: =+J16+O16 -> 7 | F16: 50 | G16: =+H16+J16 -> 7 | H16: 3 | I16: =H16/G16*100 -> 42.85714286 | J16: 4 | K16: =J16/G16*100 -> 57.14285714 | L16: =+M16+O16 -> 7 | M16: 4 | N16: =M16/L16*100 -> 57.14285714 | O16: 3 | P16: =O16/L16*100 -> 42.85714286
A17: PROVINCIA PUNTARENAS | B17: =SUM(B18:B21) -> 51 | C17: =SUM(C18:C21) -> 26 | D17: =C17/$B17*100 -> 50.98039216 | E17: =SUM(E18:E21) -> 25 | F17: 49.01960784 | G17: =SUM(G18:G21) -> 26 | H17: =SUM(H18:H21) -> 20 | I17: =H17/$G17*100 -> 76.92307692 | J17: =SUM(J18:J21) -> 6 | K17: =J17/$G17*100 -> 23.07692308 | L17: =SUM(L18:L21) -> 25 | M17: =SUM(M18:M21) -> 6 | N17: =M17/$L17*100 -> 24 | O17: =SUM(O18:O21) -> 19 | P17: =O17/$L17*100 -> 76
A18: LEPANTO | B18: =+C18+E18 -> 16 | C18: =+H18+M18 -> 8 | D18: =C18/$B18*100 -> 50 | E18: =+J18+O18 -> 8 | F18: 50 | G18: =+H18+J18 -> 8 | H18: 7 | I18: =H18/G18*100 -> 87.5 | J18: 1 | K18: =J18/G18*100 -> 12.5 | L18: =+M18+O18 -> 8 | M18: 1 | N18: =M18/L18*100 -> 12.5 | O18: 7 | P18: =O18/L18*100 -> 87.5
A19: PAQUERA | B19: =+C19+E19 -> 11 | C19: =+H19+M19 -> 6 | D19: =C19/$B19*100 -> 54.54545455 | E19: =+J19+O19 -> 5 | F19: 45.45454545 | G19: =+H19+J19 -> 6 | H19: 5 | I19: =H19/G19*100 -> 83.33333333 | J19: 1 | K19: =J19/G19*100 -> 16.66666667 | L19: =+M19+O19 -> 5 | M19: 1 | N19: =M19/L19*100 -> 20 | O19: 4 | P19: =O19/L19*100 -> 80
A20: MONTE VERDE | B20: =+C20+E20 -> 12 | C20: =+H20+M20 -> 6 | D20: =C20/$B20*100 -> 50 | E20: =+J20+O20 -> 6 | F20: 50 | G20: =+H20+J20 -> 6 | H20: 4 | I20: =H20/G20*100 -> 66.66666667 | J20: 2 | K20: =J20/G20*100 -> 33.33333333 | L20: =+M20+O20 -> 6 | M20: 2 | N20: =M20/L20*100 -> 33.33333333 | O20: 4 | P20: =O20/L20*100 -> 66.66666667
